Workbook

Sheet Start
A1: START | F1: Excel Toolkit for Mitigation Analysis for Low-Carbon Development Planning | Q1: XLMT-Energy Industries v17.1
D10: Disclaimer
D11: Data used has been obtained from reliable sources. The Ministry of Social Security, National Solidarity, and Environment and Sustainable Development (Environment and Sustainable Development Division) assumes no responsibility for errors and omissions in the data provided. Users are, however, kindly asked to report any errors or deficiencies in this product to the Ministry. The choices of calculation made in this tool are derived from TNC Report (2016).
D13: ©2017 Government of Mauritius and United Nations Environment Programme
D14: All rights reserved. No part of this Guideline and/or Toolkit may be produced, stored in a retrieval system or transmitted, in any form or by any means, electronic, mechanical, photocopying, recording or otherwise without prior permission from the Ministry of Social Security, National Solidarity, and Environment and Sustainable Development (Environment and Sustainable Development Division) and the United Nations Environment Programme. Results based on the use of the Toolkit must be duly acknowledged and referenced; the copyright holder’s endorsement of Users' views, products or services shall not be implied in any way.

Sheet 1. Sector
A1: SECTOR | D1: Excel Toolkit for Mitigation Analysis for Low-Carbon Development Planning | J1: XLMT-Energy Industries v17.1
E3: STAKEHOLDER USER GROUP | G3: Contact Details of Registered Users
G4: Name | H4: Email | I4: Phone Number | J4: Address
D5: Chairs: | E5: Ministry of Energy and Public Utilities | G5: Mr H Multra | H5: hmultra@govmu.org | I5: +230 405 0610 Ext 6823 | J5: SICOM Tower, Ebene
E6: Energy Efficency Management Office | G6: Mr R Mungur | H6: ramungur@gmail.com | I6: +230 206 0582 | J6: SICOM Tower, Ebene
D7: Members: | E7: Ministry of Energy and Public Utilities | G7: Mr P Ramparsad | H7: ramparsad8@yahoo.com | I7: +230 405 6700 | J7: SICOM Tower, Ebene
E8: Central Electricty Board (CEB) | G8: Mr S Sookhraz | H8: sanjay.sookhraz@ceb.intnet.mu | I8: +230 217 0600
E9: Energy Efficency Management Office | G9: Mr O Sewtohul | H9: osewtohul@govmu.org | I9: +230 206 0583 | J9: SICOM Tower, Ebene
E10: Energy Efficency Management Office | G10: Mrs S Hosany | H10: shosany2@govmu.org | J10: SICOM Tower, Ebene

Sheet 2. Description
A1: DESCRIPTION | E1: Excel Toolkit for Mitigation Analysis for Low-Carbon Development Planning | R1: XLMT-Energy Industries v17.1
C3: Mitigation actions modelled to reduce GHG emissions in land transport (source: TNC, 2016)
C4: Scenarios | G4: TNC Assumptions | K4: Expected GHG emissions/reductions (GgCO2e)
C5: BAU | D5: Business-As-Usual | G5: # | K5: BAU GHG Emissions: 2020: 3004; 2025: 3470; 2030: 3838; 2035: 4136; 2040: 4153; 2045: 4386; 2050: 4620;
C6: SC1 | D6: Energy Efficiency Measures | G6: Implementation of Energy Efficiency measures | K6: Relative to BAU, emissions reductions of: 2020: 216; 2025: 459; 2030: 734; 2035: 1102; 2040: 1490; 2045: 1836; 2050: 2117;
C7: SC2 | D7: SC1+ Wind Energy Penetration | G7: SC1+ Wind Energy Penetration | K7: Relative to BAU, emissions reductions of: 2020: 280; 2025: 523; 2030: 798; 2035: 1165; 2040: 1554; 2045: 1900; 2050: 2181;
C8: SC3 | D8: SC2+ Solar Energy Penetration | G8: SC2+ Solar Energy Penetration | K8: Relative to BAU, emissions reductions of: 2020: 399; 2025: 642; 2030: 917; 2035: 1284; 2040: 1673; 2045: 2019; 2050: 2299;
C9: SC4 | D9: SC3+ WTE Penetration | G9: SC3+ WTE Penetration | K9: Relative to BAU, emissions reductions of: 2020: 618; 2025: 862; 2030: 1124; 2035: 1492; 2040: 1880; 2045: 2226; 2050: 2507;
C10: SC5 | D10: SC4+ Biomass Energy Penetration | G10: SC4+ Biomass Energy Penetration | K10: Relative to BAU, emissions reductions of: 2020: 618; 2025: 965; 2030: 1228; 2035: 1595; 2040: 1984; 2045: 2330; 2050: 2610;
C11: SC6 | D11: SC5+ Additional RE Penetration | G11: SC5 + Additional RE entering grid beyond 2030 | K11: Relative to BAU, emissions reductions of: 2020: 618; 2025: 965; 2030: 1305; 2035: 1673; 2040: 2071; 2045: 2484; 2050: 2871;
C12: # | D12: For this sector, a baseline emissions analysis has been carried out in TNC using through a comparative analysis of three sector models, namely, (i) MAED modelling carried out in the process of updating the LTES for MEPU, (ii) system dynamics modelling, and (iii) Mauritius 2050 Pathways calculator. The models provide reference or business-as-usual (BAU) scenarios up to the year 2050 – see TNC Report (2016) for details.
E26: Additional RE post 2030 till 2050

Sheet 3. Query
A1: QUERY | D1: Excel Toolkit for Mitigation Analysis for Low-Carbon Development Planning | O1: XLMT-Energy Industries v17.1
C3: Users can analyze their results after inputting their parameters (if required) and new assumptions. The number of cases of User-defined scenarios that can be made, in addition to the TNC scenarios (labelled TNC), has been limited to two (labelled UD1 and UD2) for practical reasons. Users can visualize the impact of their assumptions and/or parameter changes made on a number of variables relevant to individual sectors including the Total CO2e emission. Full list of the variables relevant to individual sectors appear in in the individual user manuals. Results can be compared graphically or through tabular representations. Radar dashboards are provided to assess the extent of departure from the targeted annual values estimated by the original TNC studies. The Toolkit has a pdf reporting system, which provides details of the project and the results of the investigations.

Sheet 4. Data
A1: Data | D1: Excel Toolkit for Mitigation Analysis for Low-Carbon Development Planning | O1: XLMT-Energy Industries v17.1
AH2: New RE Projects | AI2: Demand-Side
Q3: Wind | U3: Solar PV | AB3: WTE | AD3: Bagasse | AF3: Total RE Project | AH3: Total New Increment
P4: Year | Q4: Aerowatt | R4: P. Sophie | S4: Total | U4: 5X2MW | V4: 15MW | W4: 15MW | X4: 15MW | Y4: 1-9MW | Z4: Total | AB4: Total | AD4: Total | AF4: TNC Total | AG4: Year | AH4: New Increment | AI4: BAU | AJ4: EE | AK4: Year | AL4: bagasse | AM4: Hydro | AN4: LFG | AO4: PV | AP4: New1 | AQ4: New2 | AR4: Total Existing RE
P5: 2014 | Q5: 0 | R5: 0 | S5: =SUM(Q5:R5) -> 0 | U5: 0 | V5: 0 | W5: 0 | X5: 0 | Y5: 0 | Z5: =SUM(U5:Y5) -> 0 | AB5: 0 | AD5: 0 | AF5: =S5+Z5+AB5+AD5 -> 0 | AG5: 2014 | AH5: 0 | AI5: 3019 | AJ5: 0 | AK5: 2014 | AL5: 520 | AM5: 105 | AN5: 21 | AO5: 26 | AP5: 0 | AQ5: 0 | AR5: =SUM(AL5:AQ5) -> 672
P6: =P5+1 -> 2015 | Q6: 0 | R6: 0 | S6: =SUM(Q6:R6) -> 0 | U6: 0 | V6: 0 | W6: 0 | X6: 0 | Y6: 0 | Z6: =SUM(U6:Y6) -> 0 | AB6: 0 | AD6: 0 | AF6: =S6+Z6+AB6+AD6 -> 0 | AG6: =AG5+1 -> 2015 | AH6: 0 | AI6: 3138 | AJ6: 33 | AK6: =AK5+1 -> 2015 | AL6: 520 | AM6: 105 | AN6: 21 | AO6: 26 | AR6: =SUM(AL6:AQ6) -> 672
L7: In this figure the Energy Generated is kept constant as from its last entry (values to be determined by the Chair) | P7: =P6+1 -> 2016 | Q7: 14 | R7: 0 | S7: =SUM(Q7:R7) -> 14 | U7: 0 | V7: 0 | W7: 0 | X7: 0 | Y7: 0 | Z7: =SUM(U7:Y7) -> 0 | AB7: 0 | AD7: 0 | AF7: =S7+Z7+AB7+AD7 -> 14 | AG7: =AG6+1 -> 2016 | AH7: 0 | AI7: 3276 | AJ7: 73.6 | AK7: =AK6+1 -> 2016 | AL7: 520 | AM7: 105 | AN7: 21 | AO7: 26 | AR7: =SUM(AL7:AQ7) -> 672
E9: ='4. Data'!I47262 -> 0
P11: Thermal | Q11: Hydro | R11: LFG | S11: PV | T11: Total
P13: 2450 | Q13: 105.12 | R13: 20.4 | S13: 25.9 | T13: =SUM(P13:S13) -> 2601.42
B25: Note: Energy generated by kerosene has been lumped in Fuel Oil
B27: Electricity Generation (GWh) (Source: Statistics Mauritius)
C28: SECONDARY | G28: PRIMARY
B29: Year | C29: Fuel oil | D29: Coal | E29: Bagasse | F29: TOTAL SECONDARY | G29: Hydro | H29: Landfill gas | I29: PV | J29: Wind | K29: Total PV/Wind | L29: TOTAL PRIMARY | M29: Total Fossil Fuel | N29: Total RenewableS | O29: Total
B30: 2000 | C30: 888.07 | D30: 363.29 | E30: 430.49 | F30: =SUM(C30:E30) -> 1681.85 | G30: 96.55 | H30: 0 | J30: 0 | K30: =I30+J30 -> 0 | L30: =G30+H30+K30 -> 96.55 | M30: =C30+D30 -> 1251.36 | N30: =E30+L30 -> 527.04 | O30: =M30+N30 -> 1778.4
B31: 2001 | C31: 897.1 | D31: 465.29 | E31: 477.61 | F31: =SUM(C31:E31) -> 1840 | G31: 70.82 | H31: 0 | J31: 0 | K31: =I31+J31 -> 0 | L31: =G31+H31+K31 -> 70.82 | M31: 1362.39 | N31: 548.43 | O31: =M31+N31 -> 1910.82
B32: 2002 | C32: 905.4 | D32: 505.469 | E32: 452.134 | F32: 1863.003 | G32: 85.862152 | H32: 0 | J32: 0 | K32: 0 | L32: 85.862152 | M32: 1410.869 | N32: 537.996152 | O32: 1948.865152
A33: OK | B33: 2003 | C33: 1017.3 | D33: 505.469 | E33: 448.92 | F33: 1971.689 | G33: 117.770666 | H33: 0 | J33: 0 | K33: 0 | L33: 117.770666 | M33: 1522.769 | N33: 566.690666 | O33: 2089.459666
B34: 2004 | C34: 1102.6 | D34: 505.469 | E34: 469.58 | F34: 2077.649 | G34: 122.273396 | H34: 0 | J34: 0.4 | K34: 0.4 | L34: 122.673396 | M34: 1608.069 | N34: 592.253396 | O34: 2200.322396
B35: 2005 | C35: 1094.2 | D35: 505.469 | E35: 452.871 | F35: 2052.54 | G35: 114.881326 | H35: 0 | J35: 0.4 | K35: 0.4 | L35: 115.281326 | M35: 1599.669 | N35: 568.152326 | O35: 2167.821326
B36: 2006 | C36: 1029.1 | D36: 505.469 | E36: 445.745038 | F36: 1980.314038 | G36: 76.6421 | H36: 0 | J36: 0.4 | K36: 0.4 | L36: 77.0421 | M36: 1534.569 | N36: 522.787138 | O36: 2057.356138
B37: 2007 | C37: 918.9 | D37: 505.469 | E37: 467.921074 | F37: 1892.290074 | G37: 83.858482 | H37: 0 | J37: 0.4 | K37: 0.4 | L37: 84.258482 | M37: 1424.369 | N37: 552.179556 | O37: =M37+N37 -> 1976.548556
B38: 2008 | C38: 833.7 | D38: 505.469 | E38: 486.40425 | F38: 1825.57325 | G38: 108.034885 | H38: 0 | J38: 0.4 | K38: 0.4 | L38: 108.434885 | M38: 1339.169 | N38: 594.839135 | O38: 1934.008135
B39: 2009 | C39: 953.3 | D39: 505.469 | E39: 485.030855 | F39: 1943.799855 | G39: 122.41049 | H39: 0 | J39: 1.5 | K39: 1.5 | L39: 123.91049 | M39: 1458.769 | N39: 608.941345 | O39: 2067.710345
B40: 2010 | C40: 995.5 | D40: 505.469 | E40: 474.075978 | F40: 1975.044978 | G40: 100.72934 | H40: 0 | J40: 2.5 | K40: 2.5 | L40: 103.22934 | M40: 1500.969 | N40: 577.305318 | O40: 2078.274318
B41: 2011 | C41: 1070.3 | D41: 505.469 | E41: 486.49219 | F41: 2062.26119 | G41: 56.484045 | H41: 3.1 | J41: 2.8 | K41: 2.8 | L41: 62.384045 | M41: 1575.769 | N41: 548.876235 | O41: 2124.645235
B42: 2012 | C42: 1068 | D42: 505.469 | E42: 470.495159 | F42: 2043.964159 | G42: 74.072968 | H42: 17.8 | I42: 0.9 | J42: 3.6 | K42: 4.5 | L42: 96.372968 | M42: 1573.469 | N42: 566.868127 | O42: 2140.337127
B43: 2013 | C43: 1077.8 | D43: 505.469 | E43: 472.785047 | F43: 2056.054047 | G43: 94.835796 | H43: 20 | I43: 2.7 | J43: 3.6 | K43: 6.3 | L43: 121.135796 | M43: 1583.269 | N43: 593.920843 | O43: 2177.189843
B44: 2014 | C44: 1081.3 | D44: 505.469 | E44: 456.2 | F44: 2042.969 | G44: 90.8 | H44: 21.3 | I44: 24.6 | J44: 3.2 | K44: 27.8 | L44: 139.9 | M44: 1586.769 | N44: 596.1 | O44: 2182.869
B45: 2015 | C45: 1133.2 | D45: 505.469 | E45: 509.8 | F45: 2148.469 | G45: 121.9 | H45: 20.4 | I45: 25.9 | J45: 2.7 | K45: =I45+J45 -> 28.6 | L45: =G45+H45+K45 -> 170.9 | M45: 1638.669 | N45: 680.7 | O45: 2319.369
B46: 2016 | C46: 1111.9 | D46: 505.469 | E46: 497 | F46: =SUM(C46:E46) -> 2114.369 | G46: 99.5 | H46: 18.7 | I46: 30.3 | J46: 18 | K46: =I46+J46 -> 48.3 | L46: =G46+H46+K46 -> 166.5 | M46: 1617.369 | N46: 663.5 | O46: =M46+N46 -> 2280.869
B47: 2017 | C47: 1133.2 | D47: 505.469 | E47: 520 | F47: 2158.669 | G47: 105 | H47: 21 | I47: 26 | J47: 18 | K47: =I47+J47 -> 44 | L47: =G47+H47+K47 -> 170 | M47: =C47+D47 -> 1638.669 | N47: =E47+L47 -> 690 | O47: =M47+N47 -> 2328.669 | P47: Note:
B48: 2018 | C48: 1133.2 | D48: 505.469 | E48: 520 | F48: 2158.669 | G48: 105 | H48: 21 | I48: 26 | J48: 18 | K48: =I48+J48 -> 44 | L48: 170 | M48: 1638.669 | N48: 690 | O48: 2328.669 | P48: The 2016 values are assumed below. Chair will modify accordignly.
B49: 2019 | C49: 1133.2 | D49: 505.469 | E49: 520 | F49: 2158.669 | G49: 105 | H49: 21 | I49: 26 | J49: 18 | K49: 44 | L49: 170 | M49: 1638.669 | N49: 690 | O49: 2328.669 | P49: and update cell formatting
B50: 2020 | C50: 1133.2 | D50: 505.469 | E50: 520 | F50: 2158.669 | G50: 105 | H50: 21 | I50: 26 | J50: 18 | K50: 44 | L50: 170 | M50: 1638.669 | N50: 690 | O50: 2328.669
B51: 2021 | C51: 1133.2 | D51: 505.469 | E51: 520 | F51: 2158.669 | G51: 105 | H51: 21 | I51: 26 | J51: 18 | K51: 44 | L51: 170 | M51: 1638.669 | N51: 690 | O51: 2328.669
B52: 2022 | C52: 1133.2 | D52: 505.469 | E52: 520 | F52: 2158.669 | G52: 105 | H52: 21 | I52: 26 | J52: 18 | K52: 44 | L52: 170 | M52: 1638.669 | N52: 690 | O52: 2328.669
B53: 2023 | C53: 1133.2 | D53: 505.469 | E53: 520 | F53: 2158.669 | G53: 105 | H53: 21 | I53: 26 | J53: 18 | K53: 44 | L53: 170 | M53: 1638.669 | N53: 690 | O53: 2328.669
B54: 2024 | C54: 1133.2 | D54: 505.469 | E54: 520 | F54: 2158.669 | G54: 105 | H54: 21 | I54: 26 | J54: 18 | K54: 44 | L54: 170 | M54: 1638.669 | N54: 690 | O54: 2328.669
B55: 2025 | C55: 1133.2 | D55: 505.469 | E55: 520 | F55: 2158.669 | G55: 105 | H55: 21 | I55: 26 | J55: 18 | K55: 44 | L55: 170 | M55: 1638.669 | N55: 690 | O55: 2328.669
B56: 2026 | C56: 1133.2 | D56: 505.469 | E56: 520 | F56: 2158.669 | G56: 105 | H56: 21 | I56: 26 | J56: 18 | K56: 44 | L56: 170 | M56: 1638.669 | N56: 690 | O56: 2328.669
B57: 2027 | C57: 1133.2 | D57: 505.469 | E57: 520 | F57: 2158.669 | G57: 105 | H57: 21 | I57: 26 | J57: 18 | K57: 44 | L57: 170 | M57: 1638.669 | N57: 690 | O57: 2328.669
B58: 2028 | C58: 1133.2 | D58: 505.469 | E58: 520 | F58: 2158.669 | G58: 105 | H58: 21 | I58: 26 | J58: 18 | K58: 44 | L58: 170 | M58: 1638.669 | N58: 690 | O58: 2328.669
B59: 2029 | C59: 1133.2 | D59: 505.469 | E59: 520 | F59: 2158.669 | G59: 105 | H59: 21 | I59: 26 | J59: 18 | K59: 44 | L59: 170 | M59: 1638.669 | N59: 690 | O59: 2328.669
B60: 2030 | C60: 1133.2 | D60: 505.469 | E60: 520 | F60: 2158.669 | G60: 105 | H60: 21 | I60: 26 | J60: 18 | K60: 44 | L60: 170 | M60: 1638.669 | N60: 690 | O60: 2328.669
B61: 2031 | C61: 1133.2 | D61: 505.469 | E61: 520 | F61: 2158.669 | G61: 105 | H61: 21 | I61: 26 | J61: 18 | K61: 44 | L61: 170 | M61: 1638.669 | N61: 690 | O61: 2328.669
B62: 2032 | C62: 1133.2 | D62: 505.469 | E62: 520 | F62: 2158.669 | G62: 105 | H62: 21 | I62: 26 | J62: 18 | K62: 44 | L62: 170 | M62: 1638.669 | N62: 690 | O62: 2328.669
B63: 2033 | C63: 1133.2 | D63: 505.469 | E63: 520 | F63: 2158.669 | G63: 105 | H63: 21 | I63: 26 | J63: 18 | K63: 44 | L63: 170 | M63: 1638.669 | N63: 690 | O63: 2328.669
B64: 2034 | C64: 1133.2 | D64: 505.469 | E64: 520 | F64: 2158.669 | G64: 105 | H64: 21 | I64: 26 | J64: 18 | K64: 44 | L64: 170 | M64: 1638.669 | N64: 690 | O64: 2328.669
B65: 2035 | C65: 1133.2 | D65: 505.469 | E65: 520 | F65: 2158.669 | G65: 105 | H65: 21 | I65: 26 | J65: 18 | K65: 44 | L65: 170 | M65: 1638.669 | N65: 690 | O65: 2328.669
B66: 2036 | C66: 1133.2 | D66: 505.469 | E66: 520 | F66: 2158.669 | G66: 105 | H66: 21 | I66: 26 | J66: 18 | K66: 44 | L66: 170 | M66: 1638.669 | N66: 690 | O66: 2328.669
B67: 2037 | C67: 1133.2 | D67: 505.469 | E67: 520 | F67: 2158.669 | G67: 105 | H67: 21 | I67: 26 | J67: 18 | K67: 44 | L67: 170 | M67: 1638.669 | N67: 690 | O67: 2328.669
B68: 2038 | C68: 1133.2 | D68: 505.469 | E68: 520 | F68: 2158.669 | G68: 105 | H68: 21 | I68: 26 | J68: 18 | K68: 44 | L68: 170 | M68: 1638.669 | N68: 690 | O68: 2328.669
B69: 2039 | C69: 1133.2 | D69: 505.469 | E69: 520 | F69: 2158.669 | G69: 105 | H69: 21 | I69: 26 | J69: 18 | K69: 44 | L69: 170 | M69: 1638.669 | N69: 690 | O69: 2328.669
B70: 2040 | C70: 1133.2 | D70: 505.469 | E70: 520 | F70: 2158.669 | G70: 105 | H70: 21 | I70: 26 | J70: 18 | K70: 44 | L70: 170 | M70: 1638.669 | N70: 690 | O70: 2328.669
B71: 2041 | C71: 1133.2 | D71: 505.469 | E71: 520 | F71: 2158.669 | G71: 105 | H71: 21 | I71: 26 | J71: 18 | K71: 44 | L71: 170 | M71: 1638.669 | N71: 690 | O71: 2328.669
B72: 2042 | C72: 1133.2 | D72: 505.469 | E72: 520 | F72: 2158.669 | G72: 105 | H72: 21 | I72: 26 | J72: 18 | K72: 44 | L72: 170 | M72: 1638.669 | N72: 690 | O72: 2328.669
B73: 2043 | C73: 1133.2 | D73: 505.469 | E73: 520 | F73: 2158.669 | G73: 105 | H73: 21 | I73: 26 | J73: 18 | K73: 44 | L73: 170 | M73: 1638.669 | N73: 690 | O73: 2328.669
B74: 2044 | C74: 1133.2 | D74: 505.469 | E74: 520 | F74: 2158.669 | G74: 105 | H74: 21 | I74: 26 | J74: 18 | K74: 44 | L74: 170 | M74: 1638.669 | N74: 690 | O74: 2328.669
B75: 2045 | C75: 1133.2 | D75: 505.469 | E75: 520 | F75: 2158.669 | G75: 105 | H75: 21 | I75: 26 | J75: 18 | K75: 44 | L75: 170 | M75: 1638.669 | N75: 690 | O75: 2328.669
B76: 2046 | C76: 1133.2 | D76: 505.469 | E76: 520 | F76: 2158.669 | G76: 105 | H76: 21 | I76: 26 | J76: 18 | K76: 44 | L76: 170 | M76: 1638.669 | N76: 690 | O76: 2328.669
B77: 2047 | C77: 1133.2 | D77: 505.469 | E77: 520 | F77: 2158.669 | G77: 105 | H77: 21 | I77: 26 | J77: 18 | K77: 44 | L77: 170 | M77: 1638.669 | N77: 690 | O77: 2328.669
B78: 2048 | C78: 1133.2 | D78: 505.469 | E78: 520 | F78: 2158.669 | G78: 105 | H78: 21 | I78: 26 | J78: 18 | K78: 44 | L78: 170 | M78: 1638.669 | N78: 690 | O78: 2328.669
B79: 2049 | C79: 1133.2 | D79: 505.469 | E79: 520 | F79: 2158.669 | G79: 105 | H79: 21 | I79: 26 | J79: 18 | K79: 44 | L79: 170 | M79: 1638.669 | N79: 690 | O79: 2328.669
B80: 2050 | C80: 1133.2 | D80: 505.469 | E80: 520 | F80: 2158.669 | G80: 105 | H80: 21 | I80: 26 | J80: 18 | K80: 44 | L80: 170 | M80: 1638.669 | N80: 690 | O80: 2328.669

Sheet 5. TNC Parameters
A1: PARAMETERS | D1: TNC | F1: Excel Toolkit for Mitigation Analysis for Low-Carbon Development Planning | Q1: XLMT-Energy Industries v17.1
C3: Grid emission factor, combined margin
E4: Default | G4: Chair
C5: wind/PV | D5: CP1 | E5: =G5 -> 0.9661 | G5: 0.9661
C6: wind/PV | D6: CP2 | E6: =G6 -> 0.9661 | G6: 0.9661 | H6: not used
C7: wind/PV | D7: CP3 | E7: 0.9661 | G7: 0.9661
C9: Other | D9: CP1 | E9: 0.915 | G9: 0.915
C10: Other | D10: CP2 | E10: 0.864 | G10: 0.864
C11: Other | D11: CP3 | E11: 0.864 | G11: 0.864

Sheet 5. UD1 Parameters
A1: PARAMETERS | D1: UD1 | F1: Excel Toolkit for Mitigation Analysis for Low-Carbon Development Planning | Q1: XLMT-Energy Industries v17.1
C3: Grid emission factor, combined margin
E4: Default | G4: User-Defined 1
C5: wind/PV | D5: CP1 | E5: ='5. TNC Parameters'!G5 -> 0.9661 | G5: 0.9661
C6: wind/PV | D6: CP2 | E6: ='5. TNC Parameters'!G6 -> 0.9661 | G6: 0.9661 | H6: not used
C7: wind/PV | D7: CP3 | E7: ='5. TNC Parameters'!G7 -> 0.9661 | G7: 0.9661
C9: Other | D9: CP1 | E9: ='5. TNC Parameters'!G9 -> 0.915 | G9: 0.915
C10: Other | D10: CP2 | E10: ='5. TNC Parameters'!G10 -> 0.864 | G10: 0.864
C11: Other | D11: CP3 | E11: ='5. TNC Parameters'!G11 -> 0.864 | G11: 0.864

Sheet 5. UD2 Parameters
A1: PARAMETERS | D1: UD2 | F1: Excel Toolkit for Mitigation Analysis for Low-Carbon Development Planning | Q1: XLMT-Energy Industries v17.1
C3: Grid emission factor, combined margin
E4: Default | G4: User-Defined 2
C5: wind/PV | D5: CP1 | E5: ='5. TNC Parameters'!E5 -> 0.9661 | G5: 0.9661
C6: wind/PV | D6: CP2 | E6: ='5. TNC Parameters'!E6 -> 0.9661 | G6: 0.9661 | H6: not used
C7: wind/PV | D7: CP3 | E7: ='5. TNC Parameters'!E7 -> 0.9661 | G7: 0.9661
C9: Other | D9: CP1 | E9: ='5. TNC Parameters'!E9 -> 0.915 | G9: 0.915
C10: Other | D10: CP2 | E10: ='5. TNC Parameters'!E10 -> 0.864 | G10: 0.864
C11: Other | D11: CP3 | E11: ='5. TNC Parameters'!E11 -> 0.864 | G11: 0.864

Sheet 6. TNC Assumptions
A1: ASSUMPTIONS | E1: TNC | G1: Excel Toolkit for Mitigation Analysis for Low-Carbon Development Planning | T1: XLMT-Energy Industries v17.1
B3: Supply-side: Existing Renewables | L3: Supply-side: Power to Grid - Projected Renewables (pre-2030) | AC3: pre-2030 | AD3: 2030+ | AE3: 2030+ | AG3: Demand-Side
A4: TNC | B4: Existing RE | C4: Existing RE | D4: Existing RE | E4: Existing RE | F4: Existing RE | G4: Existing RE | H4: Existing RE | I4: Existing RE | J4: Existing RE | L4: Projected RE | M4: Projected RE | N4: Projected RE | O4: Projected RE | P4: Projected RE | Q4: Projected RE | R4: Projected RE | S4: Projected RE | T4: Projected RE | U4: Projected RE | V4: Projected RE | W4: Projected RE | X4: Projected RE | Y4: Projected RE | Z4: Projected RE | AA4: Projected RE | AB4: Projected RE | AC4: Projected RE | AD4: Projected RE | AE4: Projected RE | AG4: Modelled BAU | AH4: EE
A5: Year | B5: Biomass (Bagasse) | C5: Hydro | D5: LFG | E5: PV | F5: Wind | G5: WTE | H5: Ocean | I5: Other Sources | J5: SUM Total Existing RE | L5: pre30-LFG | M5: pre30-Hydro | N5: Wind Farm Aerowatt | O5: Wind Farm Plaines Sophie | P5: Wind Farm Others | Q5: SUM Total Projected Wind | R5: PV Solar Farm: 5X2 MW | S5: PV Solar Farm: 15 MW | T5: PV Solar Farm:: 15 MW | U5: PV Solar Farm: 15 MW | V5: PV Solar Farm: 1-9 MW | W5: Total Rooftop Solar PV | X5: SUM Total Projected Solar PV | Y5: Total Projected WTE | Z5: Total Projected Ocean | AA5: Total Projected Biomass | AB5: Total Projected Other Sources | AC5: SUM Total Projected RE 2030 | AD5: Total New Increment (2030+) | AE5: SUM Total Projected RE 2030+ | AG5: BAU (without existing RE) | AH5: EE
A6: 2014 | B6: ='4. Data'!E44 -> 456.2 | C6: ='4. Data'!G44 -> 90.8 | D6: ='4. Data'!H44 -> 21.3 | E6: ='4. Data'!I44 -> 24.6 | F6: ='4. Data'!J44 -> 3.2 | G6: 0 | H6: 0 | I6: 0 | J6: =SUM(B6:I6) -> 596.1 | L6: 0 | M6: 0 | N6: 0 | O6: 0 | P6: 0 | Q6: =SUM(N6:P6) -> 0 | R6: 0 | S6: 0 | T6: 0 | U6: 0 | V6: 0 | W6: 0 | X6: =SUM(R6:W6) -> 0 | Y6: 0 | Z6: 0 | AA6: 0 | AB6: 0 | AC6: =Q6+X6+Y6+AA6+AB6 -> 0 | AD6: 0 | AE6: =AC6+AD6 -> 0 | AG6: 3019 | AH6: 0
A7: =A6+1 -> 2015 | B7: ='4. Data'!E45 -> 509.8 | C7: ='4. Data'!G45 -> 121.9 | D7: ='4. Data'!H45 -> 20.4 | E7: ='4. Data'!I45 -> 25.9 | F7: ='4. Data'!J45 -> 2.7 | G7: 0 | H7: 0 | I7: 0 | J7: =SUM(B7:I7) -> 680.7 | L7: 0 | M7: 0 | N7: 0 | O7: 0 | P7: 0 | Q7: =SUM(N7:O7) -> 0 | R7: 0 | S7: 0 | T7: 0 | U7: 0 | V7: 0 | W7: 0 | X7: =SUM(R7:V7) -> 0 | Y7: 0 | Z7: 0 | AA7: 0 | AB7: 0 | AC7: 0 | AD7: 0 | AE7: =AC7+AD7 -> 0 | AG7: 3138 | AH7: 33
A8: =A7+1 -> 2016 | B8: ='4. Data'!E46 -> 497 | C8: ='4. Data'!G46 -> 99.5 | D8: ='4. Data'!H46 -> 18.7 | E8: ='4. Data'!I46 -> 30.3 | F8: ='4. Data'!J46 -> 18 | G8: 0 | H8: 0 | I8: 0 | J8: 663.5 | L8: 0 | M8: 0 | N8: 0 | O8: 0 | P8: 0 | Q8: 0 | R8: 0 | S8: 0 | T8: 0 | U8: 0 | V8: 0 | W8: 0 | X8: 0 | Y8: 0 | Z8: 0 | AA8: 0 | AB8: 0 | AC8: 0 | AD8: 0 | AE8: 0 | AG8: 3276 | AH8: 73.6
A9: 2017 | B9: ='4. Data'!E47 -> 520 | C9: ='4. Data'!G47 -> 105 | D9: ='4. Data'!H47 -> 21 | E9: 30.3 | F9: ='4. Data'!J47 -> 18 | G9: 0 | H9: 0 | I9: 0 | J9: 694.3 | L9: 0 | M9: 0 | N9: 14 | O9: 26 | P9: 0 | Q9: 40 | R9: 16 | S9: 0 | T9: 0 | U9: 0 | V9: 0 | W9: 0 | X9: 16 | Y9: 0 | Z9: 0 | AA9: 0 | AB9: 0 | AC9: 56 | AD9: 0 | AE9: 56 | AG9: 3417 | AH9: 114.2
A10: 2018 | B10: ='4. Data'!E48 -> 520 | C10: ='4. Data'!G48 -> 105 | D10: ='4. Data'!H48 -> 21 | E10: 30.3 | F10: ='4. Data'!J48 -> 18 | G10: 0 | H10: 0 | I10: 0 | J10: 694.3 | L10: 0 | M10: 0 | N10: 14 | O10: 52 | P10: 0 | Q10: 66 | R10: 16 | S10: 25 | T10: 0 | U10: 0 | V10: 0 | W10: 0 | X10: 41 | Y10: 0 | Z10: 0 | AA10: 0 | AB10: 0 | AC10: 107 | AD10: 0 | AE10: 107 | AG10: 3540 | AH10: 154.8
A11: 2019 | B11: ='4. Data'!E49 -> 520 | C11: ='4. Data'!G49 -> 105 | D11: ='4. Data'!H49 -> 21 | E11: 30.3 | F11: ='4. Data'!J49 -> 18 | G11: 0 | H11: 0 | I11: 0 | J11: 694.3 | L11: 0 | M11: 0 | N11: 14 | O11: 52 | P11: 0 | Q11: 66 | R11: 16 | S11: 25 | T11: 25 | U11: 0 | V11: 0 | W11: 0 | X11: 66 | Y11: 240 | Z11: 0 | AA11: 0 | AB11: 0 | AC11: 372 | AD11: 0 | AE11: 372 | AG11: 3660 | AH11: 195.4
A12: 2020 | B12: ='4. Data'!E50 -> 520 | C12: ='4. Data'!G50 -> 105 | D12: ='4. Data'!H50 -> 21 | E12: 30.3 | F12: ='4. Data'!J50 -> 18 | G12: 0 | H12: 0 | I12: 0 | J12: 694.3 | L12: 0 | M12: 0 | N12: 14 | O12: 52 | P12: 0 | Q12: 66 | R12: 16 | S12: 25 | T12: 25 | U12: 25 | V12: 32 | W12: 0 | X12: 123 | Y12: 240 | Z12: 0 | AA12: 0 | AB12: 0 | AC12: 429 | AD12: 0 | AE12: 429 | AG12: 3781 | AH12: 236
A13: 2021 | B13: ='4. Data'!E51 -> 520 | C13: ='4. Data'!G51 -> 105 | D13: ='4. Data'!H51 -> 21 | E13: 30.3 | F13: ='4. Data'!J51 -> 18 | G13: 0 | H13: 0 | I13: 0 | J13: 694.3 | L13: 0 | M13: 0 | N13: 14 | O13: 52 | P13: 0 | Q13: 66 | R13: 16 | S13: 25 | T13: 25 | U13: 25 | V13: 32 | W13: 0 | X13: 123 | Y13: 240 | Z13: 0 | AA13: 120 | AB13: 0 | AC13: 549 | AD13: 0 | AE13: 549 | AG13: 3874 | AH13: 289.2
A14: 2022 | B14: ='4. Data'!E52 -> 520 | C14: ='4. Data'!G52 -> 105 | D14: ='4. Data'!H52 -> 21 | E14: 30.3 | F14: ='4. Data'!J52 -> 18 | G14: 0 | H14: 0 | I14: 0 | J14: 694.3 | L14: 0 | M14: 0 | N14: 14 | O14: 52 | P14: 0 | Q14: 66 | R14: 16 | S14: 25 | T14: 25 | U14: 25 | V14: 32 | W14: 0 | X14: 123 | Y14: 240 | Z14: 0 | AA14: 120 | AB14: 0 | AC14: 549 | AD14: 0 | AE14: 549 | AG14: 3967 | AH14: 342.4
A15: 2023 | B15: ='4. Data'!E53 -> 520 | C15: ='4. Data'!G53 -> 105 | D15: ='4. Data'!H53 -> 21 | E15: 30.3 | F15: ='4. Data'!J53 -> 18 | G15: 0 | H15: 0 | I15: 0 | J15: 694.3 | L15: 0 | M15: 0 | N15: 14 | O15: 52 | P15: 0 | Q15: 66 | R15: 16 | S15: 25 | T15: 25 | U15: 25 | V15: 32 | W15: 0 | X15: 123 | Y15: 240 | Z15: 0 | AA15: 120 | AB15: 0 | AC15: 549 | AD15: 0 | AE15: 549 | AG15: 4062 | AH15: 395.6
A16: 2024 | B16: ='4. Data'!E54 -> 520 | C16: ='4. Data'!G54 -> 105 | D16: ='4. Data'!H54 -> 21 | E16: 30.3 | F16: ='4. Data'!J54 -> 18 | G16: 0 | H16: 0 | I16: 0 | J16: 694.3 | L16: 0 | M16: 0 | N16: 14 | O16: 52 | P16: 0 | Q16: 66 | R16: 16 | S16: 25 | T16: 25 | U16: 25 | V16: 32 | W16: 0 | X16: 123 | Y16: 240 | Z16: 0 | AA16: 120 | AB16: 0 | AC16: 549 | AD16: 0 | AE16: 549 | AG16: 4161 | AH16: 448.8
A17: 2025 | B17: ='4. Data'!E55 -> 520 | C17: ='4. Data'!G55 -> 105 | D17: ='4. Data'!H55 -> 21 | E17: 30.3 | F17: ='4. Data'!J55 -> 18 | G17: 0 | H17: 0 | I17: 0 | J17: 694.3 | L17: 0 | M17: 0 | N17: 14 | O17: 52 | P17: 0 | Q17: 66 | R17: 16 | S17: 25 | T17: 25 | U17: 25 | V17: 32 | W17: 0 | X17: 123 | Y17: 240 | Z17: 0 | AA17: 120 | AB17: 0 | AC17: 549 | AD17: 0 | AE17: 549 | AG17: 4264 | AH17: 502
A18: 2026 | B18: ='4. Data'!E56 -> 520 | C18: ='4. Data'!G56 -> 105 | D18: ='4. Data'!H56 -> 21 | E18: 30.3 | F18: ='4. Data'!J56 -> 18 | G18: 0 | H18: 0 | I18: 0 | J18: 694.3 | L18: 0 | M18: 0 | N18: 14 | O18: 52 | P18: 0 | Q18: 66 | R18: 16 | S18: 25 | T18: 25 | U18: 25 | V18: 32 | W18: 0 | X18: 123 | Y18: 240 | Z18: 0 | AA18: 120 | AB18: 0 | AC18: 549 | AD18: 0 | AE18: 549 | AG18: 4366 | AH18: 571.6
A19: 2027 | B19: ='4. Data'!E57 -> 520 | C19: ='4. Data'!G57 -> 105 | D19: ='4. Data'!H57 -> 21 | E19: 30.3 | F19: ='4. Data'!J57 -> 18 | G19: 0 | H19: 0 | I19: 0 | J19: 694.3 | L19: 0 | M19: 0 | N19: 14 | O19: 52 | P19: 0 | Q19: 66 | R19: 16 | S19: 25 | T19: 25 | U19: 25 | V19: 32 | W19: 0 | X19: 123 | Y19: 240 | Z19: 0 | AA19: 120 | AB19: 0 | AC19: 549 | AD19: 0 | AE19: 549 | AG19: 4440 | AH19: 641.2
A20: 2028 | B20: ='4. Data'!E58 -> 520 | C20: ='4. Data'!G58 -> 105 | D20: ='4. Data'!H58 -> 21 | E20: 30.3 | F20: ='4. Data'!J58 -> 18 | G20: 0 | H20: 0 | I20: 0 | J20: 694.3 | L20: 0 | M20: 0 | N20: 14 | O20: 52 | P20: 0 | Q20: 66 | R20: 16 | S20: 25 | T20: 25 | U20: 25 | V20: 32 | W20: 0 | X20: 123 | Y20: 240 | Z20: 0 | AA20: 120 | AB20: 0 | AC20: 549 | AD20: 0 | AE20: 549 | AG20: 4509 | AH20: 710.8
A21: 2029 | B21: ='4. Data'!E59 -> 520 | C21: ='4. Data'!G59 -> 105 | D21: ='4. Data'!H59 -> 21 | E21: 30.3 | F21: ='4. Data'!J59 -> 18 | G21: 0 | H21: 0 | I21: 0 | J21: 694.3 | L21: 0 | M21: 0 | N21: 14 | O21: 52 | P21: 0 | Q21: 66 | R21: 16 | S21: 25 | T21: 25 | U21: 25 | V21: 32 | W21: 0 | X21: 123 | Y21: 240 | Z21: 0 | AA21: 120 | AB21: 0 | AC21: 549 | AD21: 0 | AE21: 549 | AG21: 4577 | AH21: 780.4
A22: 2030 | B22: ='4. Data'!E60 -> 520 | C22: ='4. Data'!G60 -> 105 | D22: ='4. Data'!H60 -> 21 | E22: 30.3 | F22: ='4. Data'!J60 -> 18 | G22: 0 | H22: 0 | I22: 0 | J22: 694.3 | L22: 0 | M22: 0 | N22: 14 | O22: 52 | P22: 0 | Q22: 66 | R22: 16 | S22: 25 | T22: 25 | U22: 25 | V22: 32 | W22: 0 | X22: 123 | Y22: 240 | Z22: 0 | AA22: 120 | AB22: 0 | AC22: 549 | AD22: 80 | AE22: 629 | AG22: 4645 | AH22: 850
A23: 2031 | B23: ='4. Data'!E61 -> 520 | C23: ='4. Data'!G61 -> 105 | D23: ='4. Data'!H61 -> 21 | E23: 30.3 | F23: ='4. Data'!J61 -> 18 | G23: 0 | H23: 0 | I23: 0 | J23: 694.3 | L23: 0 | M23: 0 | N23: 14 | O23: 52 | P23: 0 | Q23: 66 | R23: 16 | S23: 25 | T23: 25 | U23: 25 | V23: 32 | W23: 0 | X23: 123 | Y23: 240 | Z23: 0 | AA23: 120 | AB23: 0 | AC23: 549 | AD23: 80 | AE23: 629 | AG23: 4713 | AH23: 935
A24: =A23+1 -> 2032 | B24: ='4. Data'!E62 -> 520 | C24: ='4. Data'!G62 -> 105 | D24: ='4. Data'!H62 -> 21 | E24: 30.3 | F24: ='4. Data'!J62 -> 18 | G24: 0 | H24: 0 | I24: 0 | J24: 694.3 | L24: 0 | M24: 0 | N24: 14 | O24: 52 | P24: 0 | Q24: 66 | R24: 16 | S24: 25 | T24: 25 | U24: 25 | V24: 32 | W24: 0 | X24: 123 | Y24: 240 | Z24: 0 | AA24: 120 | AB24: 0 | AC24: 549 | AD24: 80 | AE24: 629 | AG24: 4783 | AH24: 1020
A25: 2033 | B25: ='4. Data'!E63 -> 520 | C25: ='4. Data'!G63 -> 105 | D25: ='4. Data'!H63 -> 21 | E25: 30.3 | F25: ='4. Data'!J63 -> 18 | G25: 0 | H25: 0 | I25: 0 | J25: 694.3 | L25: 0 | M25: 0 | N25: 14 | O25: 52 | P25: 0 | Q25: 66 | R25: 16 | S25: 25 | T25: 25 | U25: 25 | V25: 32 | W25: 0 | X25: 123 | Y25: 240 | Z25: 0 | AA25: 120 | AB25: 0 | AC25: 549 | AD25: 80 | AE25: 629 | AG25: 4853 | AH25: 1105
A26: 2034 | B26: ='4. Data'!E64 -> 520 | C26: ='4. Data'!G64 -> 105 | D26: ='4. Data'!H64 -> 21 | E26: 30.3 | F26: ='4. Data'!J64 -> 18 | G26: 0 | H26: 0 | I26: 0 | J26: 694.3 | L26: 0 | M26: 0 | N26: 14 | O26: 52 | P26: 0 | Q26: 66 | R26: 16 | S26: 25 | T26: 25 | U26: 25 | V26: 32 | W26: 0 | X26: 123 | Y26: 240 | Z26: 0 | AA26: 120 | AB26: 0 | AC26: 549 | AD26: 80 | AE26: 629 | AG26: 4925 | AH26: 1190
A27: 2035 | B27: ='4. Data'!E65 -> 520 | C27: ='4. Data'!G65 -> 105 | D27: ='4. Data'!H65 -> 21 | E27: 30.3 | F27: ='4. Data'!J65 -> 18 | G27: 0 | H27: 0 | I27: 0 | J27: 694.3 | L27: 0 | M27: 0 | N27: 14 | O27: 52 | P27: 0 | Q27: 66 | R27: 16 | S27: 25 | T27: 25 | U27: 25 | V27: 32 | W27: 0 | X27: 123 | Y27: 240 | Z27: 0 | AA27: 120 | AB27: 0 | AC27: 549 | AD27: 80 | AE27: 629 | AG27: 4953.02 | AH27: 1275
A28: 2036 | B28: ='4. Data'!E66 -> 520 | C28: ='4. Data'!G66 -> 105 | D28: ='4. Data'!H66 -> 21 | E28: 30.3 | F28: ='4. Data'!J66 -> 18 | G28: 0 | H28: 0 | I28: 0 | J28: 694.3 | L28: 0 | M28: 0 | N28: 14 | O28: 52 | P28: 0 | Q28: 66 | R28: 16 | S28: 25 | T28: 25 | U28: 25 | V28: 32 | W28: 0 | X28: 123 | Y28: 240 | Z28: 0 | AA28: 120 | AB28: 0 | AC28: 549 | AD28: 90 | AE28: 639 | AG28: 4935.92 | AH28: 1365
A29: 2037 | B29: ='4. Data'!E67 -> 520 | C29: ='4. Data'!G67 -> 105 | D29: ='4. Data'!H67 -> 21 | E29: 30.3 | F29: ='4. Data'!J67 -> 18 | G29: 0 | H29: 0 | I29: 0 | J29: 694.3 | L29: 0 | M29: 0 | N29: 14 | O29: 52 | P29: 0 | Q29: 66 | R29: 16 | S29: 25 | T29: 25 | U29: 25 | V29: 32 | W29: 0 | X29: 123 | Y29: 240 | Z29: 0 | AA29: 120 | AB29: 0 | AC29: 549 | AD29: 90 | AE29: 639 | AG29: 4944.72 | AH29: 1455
A30: 2038 | B30: ='4. Data'!E68 -> 520 | C30: ='4. Data'!G68 -> 105 | D30: ='4. Data'!H68 -> 21 | E30: 30.3 | F30: ='4. Data'!J68 -> 18 | G30: 0 | H30: 0 | I30: 0 | J30: 694.3 | L30: 0 | M30: 0 | N30: 14 | O30: 52 | P30: 0 | Q30: 66 | R30: 16 | S30: 25 | T30: 25 | U30: 25 | V30: 32 | W30: 0 | X30: 123 | Y30: 240 | Z30: 0 | AA30: 120 | AB30: 0 | AC30: 549 | AD30: 90 | AE30: 639 | AG30: 4953.52 | AH30: 1545
A31: 2039 | B31: ='4. Data'!E69 -> 520 | C31: ='4. Data'!G69 -> 105 | D31: ='4. Data'!H69 -> 21 | E31: 30.3 | F31: ='4. Data'!J69 -> 18 | G31: 0 | H31: 0 | I31: 0 | J31: 694.3 | L31: 0 | M31: 0 | N31: 14 | O31: 52 | P31: 0 | Q31: 66 | R31: 16 | S31: 25 | T31: 25 | U31: 25 | V31: 32 | W31: 0 | X31: 123 | Y31: 240 | Z31: 0 | AA31: 120 | AB31: 0 | AC31: 549 | AD31: 90 | AE31: 639 | AG31: 4962.32 | AH31: 1635
A32: 2040 | B32: ='4. Data'!E70 -> 520 | C32: ='4. Data'!G70 -> 105 | D32: ='4. Data'!H70 -> 21 | E32: 30.3 | F32: ='4. Data'!J70 -> 18 | G32: 0 | H32: 0 | I32: 0 | J32: 694.3 | L32: 0 | M32: 0 | N32: 14 | O32: 52 | P32: 0 | Q32: 66 | R32: 16 | S32: 25 | T32: 25 | U32: 25 | V32: 32 | W32: 0 | X32: 123 | Y32: 240 | Z32: 0 | AA32: 120 | AB32: 0 | AC32: 549 | AD32: 90 | AE32: 639 | AG32: 4971.12 | AH32: 1725
A33: 2041 | B33: ='4. Data'!E71 -> 520 | C33: ='4. Data'!G71 -> 105 | D33: ='4. Data'!H71 -> 21 | E33: 30.3 | F33: ='4. Data'!J71 -> 18 | G33: 0 | H33: 0 | I33: 0 | J33: 694.3 | L33: 0 | M33: 0 | N33: 14 | O33: 52 | P33: 0 | Q33: 66 | R33: 16 | S33: 25 | T33: 25 | U33: 25 | V33: 32 | W33: 0 | X33: 123 | Y33: 240 | Z33: 0 | AA33: 120 | AB33: 0 | AC33: 549 | AD33: 120 | AE33: 669 | AG33: 5019.32 | AH33: 1805
A34: 2042 | B34: ='4. Data'!E72 -> 520 | C34: ='4. Data'!G72 -> 105 | D34: ='4. Data'!H72 -> 21 | E34: 30.3 | F34: ='4. Data'!J72 -> 18 | G34: 0 | H34: 0 | I34: 0 | J34: 694.3 | L34: 0 | M34: 0 | N34: 14 | O34: 52 | P34: 0 | Q34: 66 | R34: 16 | S34: 25 | T34: 25 | U34: 25 | V34: 32 | W34: 0 | X34: 123 | Y34: 240 | Z34: 0 | AA34: 120 | AB34: 0 | AC34: 549 | AD34: 120 | AE34: 669 | AG34: 5067.52 | AH34: 1885
A35: 2043 | B35: ='4. Data'!E73 -> 520 | C35: ='4. Data'!G73 -> 105 | D35: ='4. Data'!H73 -> 21 | E35: 30.3 | F35: ='4. Data'!J73 -> 18 | G35: 0 | H35: 0 | I35: 0 | J35: 694.3 | L35: 0 | M35: 0 | N35: 14 | O35: 52 | P35: 0 | Q35: 66 | R35: 16 | S35: 25 | T35: 25 | U35: 25 | V35: 32 | W35: 0 | X35: 123 | Y35: 240 | Z35: 0 | AA35: 120 | AB35: 0 | AC35: 549 | AD35: 150 | AE35: 699 | AG35: 5115.72 | AH35: 1965
A36: 2044 | B36: ='4. Data'!E74 -> 520 | C36: ='4. Data'!G74 -> 105 | D36: ='4. Data'!H74 -> 21 | E36: 30.3 | F36: ='4. Data'!J74 -> 18 | G36: 0 | H36: 0 | I36: 0 | J36: 694.3 | L36: 0 | M36: 0 | N36: 14 | O36: 52 | P36: 0 | Q36: 66 | R36: 16 | S36: 25 | T36: 25 | U36: 25 | V36: 32 | W36: 0 | X36: 123 | Y36: 240 | Z36: 0 | AA36: 120 | AB36: 0 | AC36: 549 | AD36: 150 | AE36: 699 | AG36: 5163.92 | AH36: 2045
A37: 2045 | B37: ='4. Data'!E75 -> 520 | C37: ='4. Data'!G75 -> 105 | D37: ='4. Data'!H75 -> 21 | E37: 30.3 | F37: ='4. Data'!J75 -> 18 | G37: 0 | H37: 0 | I37: 0 | J37: 694.3 | L37: 0 | M37: 0 | N37: 14 | O37: 52 | P37: 0 | Q37: 66 | R37: 16 | S37: 25 | T37: 25 | U37: 25 | V37: 32 | W37: 0 | X37: 123 | Y37: 240 | Z37: 0 | AA37: 120 | AB37: 0 | AC37: 549 | AD37: 160 | AE37: 709 | AG37: 5212.12 | AH37: 2125
A38: 2046 | B38: ='4. Data'!E76 -> 520 | C38: ='4. Data'!G76 -> 105 | D38: ='4. Data'!H76 -> 21 | E38: 30.3 | F38: ='4. Data'!J76 -> 18 | G38: 0 | H38: 0 | I38: 0 | J38: 694.3 | L38: 0 | M38: 0 | N38: 14 | O38: 52 | P38: 0 | Q38: 66 | R38: 16 | S38: 25 | T38: 25 | U38: 25 | V38: 32 | W38: 0 | X38: 123 | Y38: 240 | Z38: 0 | AA38: 120 | AB38: 0 | AC38: 549 | AD38: =AD37 -> 160 | AE38: 709 | AG38: 5260.52 | AH38: 2190
A39: 2047 | B39: ='4. Data'!E77 -> 520 | C39: ='4. Data'!G77 -> 105 | D39: ='4. Data'!H77 -> 21 | E39: 30.3 | F39: ='4. Data'!J77 -> 18 | G39: 0 | H39: 0 | I39: 0 | J39: 694.3 | L39: 0 | M39: 0 | N39: 14 | O39: 52 | P39: 0 | Q39: 66 | R39: 16 | S39: 25 | T39: 25 | U39: 25 | V39: 32 | W39: 0 | X39: 123 | Y39: 240 | Z39: 0 | AA39: 120 | AB39: 0 | AC39: 549 | AD39: 180 | AE39: 729 | AG39: 5308.92 | AH39: 2255
A40: 2048 | B40: ='4. Data'!E78 -> 520 | C40: ='4. Data'!G78 -> 105 | D40: ='4. Data'!H78 -> 21 | E40: 30.3 | F40: ='4. Data'!J78 -> 18 | G40: 0 | H40: 0 | I40: 0 | J40: 694.3 | L40: 0 | M40: 0 | N40: 14 | O40: 52 | P40: 0 | Q40: 66 | R40: 16 | S40: 25 | T40: 25 | U40: 25 | V40: 32 | W40: 0 | X40: 123 | Y40: 240 | Z40: 0 | AA40: 120 | AB40: 0 | AC40: 549 | AD40: 210 | AE40: 759 | AG40: 5357.32 | AH40: 2320
A41: 2049 | B41: ='4. Data'!E79 -> 520 | C41: ='4. Data'!G79 -> 105 | D41: ='4. Data'!H79 -> 21 | E41: 30.3 | F41: ='4. Data'!J79 -> 18 | G41: 0 | H41: 0 | I41: 0 | J41: 694.3 | L41: 0 | M41: 0 | N41: 14 | O41: 52 | P41: 0 | Q41: 66 | R41: 16 | S41: 25 | T41: 25 | U41: 25 | V41: 32 | W41: 0 | X41: 123 | Y41: 240 | Z41: 0 | AA41: 120 | AB41: 0 | AC41: 549 | AD41: 230 | AE41: 779 | AG41: 5405.72 | AH41: 2385
A42: 2050 | B42: ='4. Data'!E80 -> 520 | C42: ='4. Data'!G80 -> 105 | D42: ='4. Data'!H80 -> 21 | E42: 30.3 | F42: ='4. Data'!J80 -> 18 | G42: 0 | H42: 0 | I42: 0 | J42: 694.3 | L42: 0 | M42: 0 | N42: 14 | O42: 52 | P42: 0 | Q42: 66 | R42: 16 | S42: 25 | T42: 25 | U42: 25 | V42: 32 | W42: 0 | X42: 123 | Y42: 240 | Z42: 0 | AA42: 120 | AB42: 0 | AC42: 549 | AD42: 270 | AE42: 819 | AG42: 5454.12 | AH42: 2450

Sheet 6. UD1 Assumptions
A1: ASSUMPTIONS | E1: UD1 | G1: Excel Toolkit for Mitigation Analysis for Low-Carbon Development Planning | T1: XLMT-Energy Industries v17.1
B3: Supply-side: Existing Renewables | L3: Supply-side: Power to Grid - Projected Renewables (pre-2030) | AC3: pre-2030 | AD3: 2030+ | AE3: 2030+ | AG3: Demand-Side
A4: UD1 | B4: Existing RE | C4: Existing RE | D4: Existing RE | E4: Existing RE | F4: Existing RE | G4: Existing RE | H4: Existing RE | I4: Existing RE | J4: Existing RE | L4: Projected RE | M4: Projected RE | N4: Projected RE | O4: Projected RE | P4: Projected RE | Q4: Projected RE | R4: Projected RE | S4: Projected RE | T4: Projected RE | U4: Projected RE | V4: Projected RE | W4: Projected RE | X4: Projected RE | Y4: Projected RE | Z4: Projected RE | AA4: Projected RE | AB4: Projected RE | AC4: Projected RE | AD4: Projected RE | AE4: Projected RE | AG4: Modelled BAU | AH4: EE
A5: Year | B5: Biomass (Bagasse) | C5: Hydro | D5: LFG | E5: PV | F5: Wind | G5: WTE | H5: Ocean | I5: Other Sources | J5: SUM Total Existing RE | L5: pre30-LPG | M5: pre30-Hydro | N5: Wind Farm Aerowatt | O5: Wind Farm Plaines Sophie | P5: Wind Fram Others | Q5: SUM Total Projected Wind | R5: PV Solar Farm: 5X2 MW | S5: PV Solar Farm: 15 MW | T5: PV Solar Farm: 15 MW | U5: PV Solar Farm: 15 MW | V5: PV Solar Farm: 1-9 MW | W5: Total Rooftop Solar PV | X5: SUM Total Projected Solar PV | Y5: Total Projected WTE | Z5: Total Projected Ocean | AA5: Total Projected Biomass | AB5: Total Projected Other Sources | AC5: SUM Total Projected RE 2030 | AD5: Total New Increment (2030+) | AE5: SUM Total Projected RE 2030+ | AG5: BAU (without existing RE) | AH5: EE
A6: 2014 | B6: ='4. Data'!E44 -> 456.2 | C6: ='4. Data'!G44 -> 90.8 | D6: ='4. Data'!H44 -> 21.3 | E6: ='4. Data'!I44 -> 24.6 | F6: ='4. Data'!J44 -> 3.2 | G6: 0 | H6: 0 | I6: 0 | J6: =SUM(B6:I6) -> 596.1 | L6: 0 | M6: 0 | N6: 0 | O6: 0 | P6: 0 | Q6: =SUM(N6:P6) -> 0 | R6: 0 | S6: 0 | T6: 0 | U6: 0 | V6: 0 | W6: 0 | X6: =SUM(R6:W6) -> 0 | Y6: 0 | Z6: 0 | AA6: 0 | AB6: 0 | AC6: =Q6+X6+Y6+AA6+AB6 -> 0 | AD6: 0 | AE6: =AC6+AD6 -> 0 | AG6: 3019 | AH6: 0
A7: =A6+1 -> 2015 | B7: ='4. Data'!E45 -> 509.8 | C7: ='4. Data'!G45 -> 121.9 | D7: ='4. Data'!H45 -> 20.4 | E7: ='4. Data'!I45 -> 25.9 | F7: ='4. Data'!J45 -> 2.7 | G7: 0 | H7: 0 | I7: 0 | J7: =SUM(B7:I7) -> 680.7 | L7: 0 | M7: 0 | N7: 0 | O7: 0 | P7: 0 | Q7: =SUM(N7:O7) -> 0 | R7: 0 | S7: 0 | T7: 0 | U7: 0 | V7: 0 | W7: 0 | X7: =SUM(R7:V7) -> 0 | Y7: 0 | Z7: 0 | AA7: 0 | AB7: 0 | AC7: 0 | AD7: 0 | AE7: =AC7+AD7 -> 0 | AG7: 3138 | AH7: 33
A8: =A7+1 -> 2016 | B8: ='4. Data'!E46 -> 497 | C8: ='4. Data'!G46 -> 99.5 | D8: ='4. Data'!H46 -> 18.7 | E8: ='4. Data'!I46 -> 30.3 | F8: 2.7 | G8: 0 | H8: 0 | I8: 0 | J8: 648.2 | L8: 0 | M8: 0 | N8: 0 | O8: 0 | P8: 0 | Q8: 0 | R8: 0 | S8: 0 | T8: 0 | U8: 0 | V8: 0 | W8: 0 | X8: 0 | Y8: 0 | Z8: 0 | AA8: 0 | AB8: 0 | AC8: 0 | AD8: 0 | AE8: 0 | AG8: 3276 | AH8: 73.6
A9: 2017 | B9: 520 | C9: 105 | D9: 21 | E9: 30.3 | F9: 2.7 | G9: 0 | H9: 0 | I9: 0 | J9: 679 | L9: 0 | M9: 0 | N9: 14 | O9: 26 | P9: 0 | Q9: 40 | R9: 16 | S9: 0 | T9: 0 | U9: 0 | V9: 0 | W9: 0 | X9: 16 | Y9: 0 | Z9: 0 | AA9: 0 | AB9: 0 | AC9: 56 | AD9: 0 | AE9: 56 | AG9: 3417 | AH9: 114.2
A10: 2018 | B10: 520 | C10: 105 | D10: 21 | E10: 30.3 | F10: 2.7 | G10: 0 | H10: 0 | I10: 0 | J10: 679 | L10: 0 | M10: 0 | N10: 14 | O10: 52 | P10: 0 | Q10: 66 | R10: 16 | S10: 25 | T10: 0 | U10: 0 | V10: 0 | W10: 0 | X10: 41 | Y10: 0 | Z10: 0 | AA10: 0 | AB10: 0 | AC10: 107 | AD10: 0 | AE10: 107 | AG10: 3540 | AH10: 154.8
A11: 2019 | B11: 520 | C11: 105 | D11: 21 | E11: 30.3 | F11: 2.7 | G11: 0 | H11: 0 | I11: 0 | J11: 679 | L11: 0 | M11: 0 | N11: 14 | O11: 52 | P11: 0 | Q11: 66 | R11: 16 | S11: 25 | T11: 25 | U11: 0 | V11: 0 | W11: 0 | X11: 66 | Y11: 240 | Z11: 0 | AA11: 0 | AB11: 0 | AC11: 372 | AD11: 0 | AE11: 372 | AG11: 3660 | AH11: 195.4
A12: 2020 | B12: 520 | C12: 105 | D12: 21 | E12: 30.3 | F12: 2.7 | G12: 0 | H12: 0 | I12: 0 | J12: 679 | L12: 0 | M12: 0 | N12: 14 | O12: 52 | P12: 0 | Q12: 66 | R12: 16 | S12: 25 | T12: 25 | U12: 25 | V12: 32 | W12: 0 | X12: 123 | Y12: 240 | Z12: 0 | AA12: 0 | AB12: 0 | AC12: 429 | AD12: 0 | AE12: 429 | AG12: 3781 | AH12: 236
A13: 2021 | B13: 520 | C13: 105 | D13: 21 | E13: 30.3 | F13: 2.7 | G13: 0 | H13: 0 | I13: 0 | J13: 679 | L13: 0 | M13: 0 | N13: 14 | O13: 52 | P13: 0 | Q13: 66 | R13: 16 | S13: 25 | T13: 25 | U13: 25 | V13: 32 | W13: 0 | X13: 123 | Y13: 240 | Z13: 0 | AA13: 120 | AB13: 0 | AC13: 549 | AD13: 0 | AE13: 549 | AG13: 3874 | AH13: 289.2
A14: 2022 | B14: 520 | C14: 105 | D14: 21 | E14: 30.3 | F14: 2.7 | G14: 0 | H14: 0 | I14: 0 | J14: 679 | L14: 0 | M14: 0 | N14: 14 | O14: 52 | P14: 0 | Q14: 66 | R14: 16 | S14: 25 | T14: 25 | U14: 25 | V14: 32 | W14: 0 | X14: 123 | Y14: 240 | Z14: 0 | AA14: 120 | AB14: 0 | AC14: 549 | AD14: 0 | AE14: 549 | AG14: 3967 | AH14: 342.4
A15: 2023 | B15: 520 | C15: 105 | D15: 21 | E15: 30.3 | F15: 2.7 | G15: 0 | H15: 0 | I15: 0 | J15: 679 | L15: 0 | M15: 0 | N15: 14 | O15: 52 | P15: 0 | Q15: 66 | R15: 16 | S15: 25 | T15: 25 | U15: 25 | V15: 32 | W15: 0 | X15: 123 | Y15: 240 | Z15: 0 | AA15: 120 | AB15: 0 | AC15: 549 | AD15: 0 | AE15: 549 | AG15: 4062 | AH15: 395.6
A16: 2024 | B16: 520 | C16: 105 | D16: 21 | E16: 30.3 | F16: 2.7 | G16: 0 | H16: 0 | I16: 0 | J16: 679 | L16: 0 | M16: 0 | N16: 14 | O16: 52 | P16: 0 | Q16: 66 | R16: 16 | S16: 25 | T16: 25 | U16: 25 | V16: 32 | W16: 0 | X16: 123 | Y16: 240 | Z16: 0 | AA16: 120 | AB16: 0 | AC16: 549 | AD16: 0 | AE16: 549 | AG16: 4161 | AH16: 448.8
A17: 2025 | B17: 520 | C17: 105 | D17: 21 | E17: 30.3 | F17: 2.7 | G17: 0 | H17: 0 | I17: 0 | J17: 679 | L17: 0 | M17: 0 | N17: 14 | O17: 52 | P17: 0 | Q17: 66 | R17: 16 | S17: 25 | T17: 25 | U17: 25 | V17: 32 | W17: 0 | X17: 123 | Y17: 240 | Z17: 0 | AA17: 120 | AB17: 0 | AC17: 549 | AD17: 0 | AE17: 549 | AG17: 4264 | AH17: 502
A18: 2026 | B18: 520 | C18: 105 | D18: 21 | E18: 30.3 | F18: 2.7 | G18: 0 | H18: 0 | I18: 0 | J18: 679 | L18: 0 | M18: 0 | N18: 14 | O18: 52 | P18: 0 | Q18: 66 | R18: 16 | S18: 25 | T18: 25 | U18: 25 | V18: 32 | W18: 0 | X18: 123 | Y18: 240 | Z18: 0 | AA18: 120 | AB18: 0 | AC18: 549 | AD18: 0 | AE18: 549 | AG18: 4366 | AH18: 571.6
A19: 2027 | B19: 520 | C19: 105 | D19: 21 | E19: 30.3 | F19: 2.7 | G19: 0 | H19: 0 | I19: 0 | J19: 679 | L19: 0 | M19: 0 | N19: 14 | O19: 52 | P19: 0 | Q19: 66 | R19: 16 | S19: 25 | T19: 25 | U19: 25 | V19: 32 | W19: 0 | X19: 123 | Y19: 240 | Z19: 0 | AA19: 120 | AB19: 0 | AC19: 549 | AD19: 0 | AE19: 549 | AG19: 4440 | AH19: 641.2
A20: 2028 | B20: 520 | C20: 105 | D20: 21 | E20: 30.3 | F20: 2.7 | G20: 0 | H20: 0 | I20: 0 | J20: 679 | L20: 0 | M20: 0 | N20: 14 | O20: 52 | P20: 0 | Q20: 66 | R20: 16 | S20: 25 | T20: 25 | U20: 25 | V20: 32 | W20: 0 | X20: 123 | Y20: 240 | Z20: 0 | AA20: 120 | AB20: 0 | AC20: 549 | AD20: 0 | AE20: 549 | AG20: 4509 | AH20: 710.8
A21: 2029 | B21: 520 | C21: 105 | D21: 21 | E21: 30.3 | F21: 2.7 | G21: 0 | H21: 0 | I21: 0 | J21: 679 | L21: 0 | M21: 0 | N21: 14 | O21: 52 | P21: 0 | Q21: 66 | R21: 16 | S21: 25 | T21: 25 | U21: 25 | V21: 32 | W21: 0 | X21: 123 | Y21: 240 | Z21: 0 | AA21: 120 | AB21: 0 | AC21: 549 | AD21: 0 | AE21: 549 | AG21: 4577 | AH21: 780.4
A22: 2030 | B22: 520 | C22: 105 | D22: 21 | E22: 30.3 | F22: 2.7 | G22: 0 | H22: 0 | I22: 0 | J22: 679 | L22: 0 | M22: 0 | N22: 14 | O22: 52 | P22: 0 | Q22: 66 | R22: 16 | S22: 25 | T22: 25 | U22: 25 | V22: 32 | W22: 0 | X22: 123 | Y22: 240 | Z22: 0 | AA22: 120 | AB22: 0 | AC22: 549 | AD22: 80 | AE22: 629 | AG22: 4645 | AH22: 850
A23: 2031 | B23: 520 | C23: 105 | D23: 21 | E23: 30.3 | F23: 2.7 | G23: 0 | H23: 0 | I23: 0 | J23: 679 | L23: 0 | M23: 0 | N23: 14 | O23: 52 | P23: 0 | Q23: 66 | R23: 16 | S23: 25 | T23: 25 | U23: 25 | V23: 32 | W23: 0 | X23: 123 | Y23: 240 | Z23: 0 | AA23: 120 | AB23: 0 | AC23: 549 | AD23: 80 | AE23: 629 | AG23: 4713 | AH23: 935
A24: =A23+1 -> 2032 | B24: 520 | C24: 105 | D24: 21 | E24: 30.3 | F24: 2.7 | G24: 0 | H24: 0 | I24: 0 | J24: 679 | L24: 0 | M24: 0 | N24: 14 | O24: 52 | P24: 0 | Q24: 66 | R24: 16 | S24: 25 | T24: 25 | U24: 25 | V24: 32 | W24: 0 | X24: 123 | Y24: 240 | Z24: 0 | AA24: 120 | AB24: 0 | AC24: 549 | AD24: 80 | AE24: 629 | AG24: 4783 | AH24: 1020
A25: 2033 | B25: 520 | C25: 105 | D25: 21 | E25: 30.3 | F25: 2.7 | G25: 0 | H25: 0 | I25: 0 | J25: 679 | L25: 0 | M25: 0 | N25: 14 | O25: 52 | P25: 0 | Q25: 66 | R25: 16 | S25: 25 | T25: 25 | U25: 25 | V25: 32 | W25: 0 | X25: 123 | Y25: 240 | Z25: 0 | AA25: 120 | AB25: 0 | AC25: 549 | AD25: 80 | AE25: 629 | AG25: 4853 | AH25: 1105
A26: 2034 | B26: 520 | C26: 105 | D26: 21 | E26: 30.3 | F26: 2.7 | G26: 0 | H26: 0 | I26: 0 | J26: 679 | L26: 0 | M26: 0 | N26: 14 | O26: 52 | P26: 0 | Q26: 66 | R26: 16 | S26: 25 | T26: 25 | U26: 25 | V26: 32 | W26: 0 | X26: 123 | Y26: 240 | Z26: 0 | AA26: 120 | AB26: 0 | AC26: 549 | AD26: 80 | AE26: 629 | AG26: 4925 | AH26: 1190
A27: 2035 | B27: 520 | C27: 105 | D27: 21 | E27: 30.3 | F27: 2.7 | G27: 0 | H27: 0 | I27: 0 | J27: 679 | L27: 0 | M27: 0 | N27: 14 | O27: 52 | P27: 0 | Q27: 66 | R27: 16 | S27: 25 | T27: 25 | U27: 25 | V27: 32 | W27: 0 | X27: 123 | Y27: 240 | Z27: 0 | AA27: 120 | AB27: 0 | AC27: 549 | AD27: 80 | AE27: 629 | AG27: 4953.02 | AH27: 1275
A28: 2036 | B28: 520 | C28: 105 | D28: 21 | E28: 30.3 | F28: 2.7 | G28: 0 | H28: 0 | I28: 0 | J28: 679 | L28: 0 | M28: 0 | N28: 14 | O28: 52 | P28: 0 | Q28: 66 | R28: 16 | S28: 25 | T28: 25 | U28: 25 | V28: 32 | W28: 0 | X28: 123 | Y28: 240 | Z28: 0 | AA28: 120 | AB28: 0 | AC28: 549 | AD28: 90 | AE28: 639 | AG28: 4935.92 | AH28: 1365
A29: 2037 | B29: 520 | C29: 105 | D29: 21 | E29: 30.3 | F29: 2.7 | G29: 0 | H29: 0 | I29: 0 | J29: 679 | L29: 0 | M29: 0 | N29: 14 | O29: 52 | P29: 0 | Q29: 66 | R29: 16 | S29: 25 | T29: 25 | U29: 25 | V29: 32 | W29: 0 | X29: 123 | Y29: 240 | Z29: 0 | AA29: 120 | AB29: 0 | AC29: 549 | AD29: 90 | AE29: 639 | AG29: 4944.72 | AH29: 1455
A30: 2038 | B30: 520 | C30: 105 | D30: 21 | E30: 30.3 | F30: 2.7 | G30: 0 | H30: 0 | I30: 0 | J30: 679 | L30: 0 | M30: 0 | N30: 14 | O30: 52 | P30: 0 | Q30: 66 | R30: 16 | S30: 25 | T30: 25 | U30: 25 | V30: 32 | W30: 0 | X30: 123 | Y30: 240 | Z30: 0 | AA30: 120 | AB30: 0 | AC30: 549 | AD30: 90 | AE30: 639 | AG30: 4953.52 | AH30: 1545
A31: 2039 | B31: 520 | C31: 105 | D31: 21 | E31: 30.3 | F31: 2.7 | G31: 0 | H31: 0 | I31: 0 | J31: 679 | L31: 0 | M31: 0 | N31: 14 | O31: 52 | P31: 0 | Q31: 66 | R31: 16 | S31: 25 | T31: 25 | U31: 25 | V31: 32 | W31: 0 | X31: 123 | Y31: 240 | Z31: 0 | AA31: 120 | AB31: 0 | AC31: 549 | AD31: 90 | AE31: 639 | AG31: 4962.32 | AH31: 1635
A32: 2040 | B32: 520 | C32: 105 | D32: 21 | E32: 30.3 | F32: 2.7 | G32: 0 | H32: 0 | I32: 0 | J32: 679 | L32: 0 | M32: 0 | N32: 14 | O32: 52 | P32: 0 | Q32: 66 | R32: 16 | S32: 25 | T32: 25 | U32: 25 | V32: 32 | W32: 0 | X32: 123 | Y32: 240 | Z32: 0 | AA32: 120 | AB32: 0 | AC32: 549 | AD32: 90 | AE32: 639 | AG32: 4971.12 | AH32: 1725
A33: 2041 | B33: 520 | C33: 105 | D33: 21 | E33: 30.3 | F33: 2.7 | G33: 0 | H33: 0 | I33: 0 | J33: 679 | L33: 0 | M33: 0 | N33: 14 | O33: 52 | P33: 0 | Q33: 66 | R33: 16 | S33: 25 | T33: 25 | U33: 25 | V33: 32 | W33: 0 | X33: 123 | Y33: 240 | Z33: 0 | AA33: 120 | AB33: 0 | AC33: 549 | AD33: 120 | AE33: 669 | AG33: 5019.32 | AH33: 1805
A34: 2042 | B34: 520 | C34: 105 | D34: 21 | E34: 30.3 | F34: 2.7 | G34: 0 | H34: 0 | I34: 0 | J34: 679 | L34: 0 | M34: 0 | N34: 14 | O34: 52 | P34: 0 | Q34: 66 | R34: 16 | S34: 25 | T34: 25 | U34: 25 | V34: 32 | W34: 0 | X34: 123 | Y34: 240 | Z34: 0 | AA34: 120 | AB34: 0 | AC34: 549 | AD34: 120 | AE34: 669 | AG34: 5067.52 | AH34: 1885
A35: 2043 | B35: 520 | C35: 105 | D35: 21 | E35: 30.3 | F35: 2.7 | G35: 0 | H35: 0 | I35: 0 | J35: 679 | L35: 0 | M35: 0 | N35: 14 | O35: 52 | P35: 0 | Q35: 66 | R35: 16 | S35: 25 | T35: 25 | U35: 25 | V35: 32 | W35: 0 | X35: 123 | Y35: 240 | Z35: 0 | AA35: 120 | AB35: 0 | AC35: 549 | AD35: 150 | AE35: 699 | AG35: 5115.72 | AH35: 1965
A36: 2044 | B36: 520 | C36: 105 | D36: 21 | E36: 30.3 | F36: 2.7 | G36: 0 | H36: 0 | I36: 0 | J36: 679 | L36: 0 | M36: 0 | N36: 14 | O36: 52 | P36: 0 | Q36: 66 | R36: 16 | S36: 25 | T36: 25 | U36: 25 | V36: 32 | W36: 0 | X36: 123 | Y36: 240 | Z36: 0 | AA36: 120 | AB36: 0 | AC36: 549 | AD36: 150 | AE36: 699 | AG36: 5163.92 | AH36: 2045
A37: 2045 | B37: 520 | C37: 105 | D37: 21 | E37: 30.3 | F37: 2.7 | G37: 0 | H37: 0 | I37: 0 | J37: 679 | L37: 0 | M37: 0 | N37: 14 | O37: 52 | P37: 0 | Q37: 66 | R37: 16 | S37: 25 | T37: 25 | U37: 25 | V37: 32 | W37: 0 | X37: 123 | Y37: 240 | Z37: 0 | AA37: 120 | AB37: 0 | AC37: 549 | AD37: 160 | AE37: 709 | AG37: 5212.12 | AH37: 2125
A38: 2046 | B38: 520 | C38: 105 | D38: 21 | E38: 30.3 | F38: 2.7 | G38: 0 | H38: 0 | I38: 0 | J38: 679 | L38: 0 | M38: 0 | N38: 14 | O38: 52 | P38: 0 | Q38: 66 | R38: 16 | S38: 25 | T38: 25 | U38: 25 | V38: 32 | W38: 0 | X38: 123 | Y38: 240 | Z38: 0 | AA38: 120 | AB38: 0 | AC38: 549 | AD38: =AD37 -> 160 | AE38: 709 | AG38: 5260.52 | AH38: 2190
A39: 2047 | B39: 520 | C39: 105 | D39: 21 | E39: 30.3 | F39: 2.7 | G39: 0 | H39: 0 | I39: 0 | J39: 679 | L39: 0 | M39: 0 | N39: 14 | O39: 52 | P39: 0 | Q39: 66 | R39: 16 | S39: 25 | T39: 25 | U39: 25 | V39: 32 | W39: 0 | X39: 123 | Y39: 240 | Z39: 0 | AA39: 120 | AB39: 0 | AC39: 549 | AD39: 180 | AE39: 729 | AG39: 5308.92 | AH39: 2255
A40: 2048 | B40: 520 | C40: 105 | D40: 21 | E40: 30.3 | F40: 2.7 | G40: 0 | H40: 0 | I40: 0 | J40: 679 | L40: 0 | M40: 0 | N40: 14 | O40: 52 | P40: 0 | Q40: 66 | R40: 16 | S40: 25 | T40: 25 | U40: 25 | V40: 32 | W40: 0 | X40: 123 | Y40: 240 | Z40: 0 | AA40: 120 | AB40: 0 | AC40: 549 | AD40: 210 | AE40: 759 | AG40: 5357.32 | AH40: 2320
A41: 2049 | B41: 520 | C41: 105 | D41: 21 | E41: 30.3 | F41: 2.7 | G41: 0 | H41: 0 | I41: 0 | J41: 679 | L41: 0 | M41: 0 | N41: 14 | O41: 52 | P41: 0 | Q41: 66 | R41: 16 | S41: 25 | T41: 25 | U41: 25 | V41: 32 | W41: 0 | X41: 123 | Y41: 240 | Z41: 0 | AA41: 120 | AB41: 0 | AC41: 549 | AD41: 230 | AE41: 779 | AG41: 5405.72 | AH41: 2385
A42: 2050 | B42: 520 | C42: 105 | D42: 21 | E42: 30.3 | F42: 2.7 | G42: 0 | H42: 0 | I42: 0 | J42: 679 | L42: 0 | M42: 0 | N42: 14 | O42: 52 | P42: 0 | Q42: 66 | R42: 16 | S42: 25 | T42: 25 | U42: 25 | V42: 32 | W42: 0 | X42: 123 | Y42: 240 | Z42: 0 | AA42: 120 | AB42: 0 | AC42: 549 | AD42: 270 | AE42: 819 | AG42: 5454.12 | AH42: 2450

Sheet 6. UD2 Assumptions
A1: ASSUMPTIONS | E1: UD2 | G1: Excel Toolkit for Mitigation Analysis for Low-Carbon Development Planning | T1: XLMT-Energy Industries v17.1
B3: Supply-side: Existing Renewables | L3: Supply-side: Power to Grid - Projected Renewables (pre-2030) | AC3: pre-2030 | AD3: 2030+ | AE3: 2030+ | AG3: Demand-Side
A4: UD2 | B4: Existing RE | C4: Existing RE | D4: Existing RE | E4: Existing RE | F4: Existing RE | G4: Existing RE | H4: Existing RE | I4: Existing RE | J4: Existing RE | L4: Projected RE | M4: Projected RE | N4: Projected RE | O4: Projected RE | P4: Projected RE | Q4: Projected RE | R4: Projected RE | S4: Projected RE | T4: Projected RE | U4: Projected RE | V4: Projected RE | W4: Projected RE | X4: Projected RE | Y4: Projected RE | Z4: Projected RE | AA4: Projected RE | AB4: Projected RE | AC4: Projected RE | AD4: Projected RE | AE4: Projected RE | AG4: Modelled BAU | AH4: EE
A5: Year | B5: Biomass (Bagasse) | C5: Hydro | D5: LFG | E5: PV | F5: Wind | G5: WTE | H5: Ocean | I5: Other Sources | J5: SUM Total Existing RE | L5: pre30-LPG | M5: re30-Hydro | N5: Wind Farm Aerowatt | O5: Wind Farm Plaines Sophie | P5: Wind Fram Others | Q5: SUM Total Projected Wind | R5: PV Solar Farm: 5X2 MW | S5: PV Solar Farm: 15 MW | T5: PV Solar Farm:: 15 MW | U5: PV Solar Farm: 15 MW | V5: PV Solar Farm: 1-9 MW | W5: Total Rooftop Solar PV | X5: SUM Total Projected Solar PV | Y5: Total Projected WTE | Z5: Total Projected Ocean | AA5: Total Projected Biomass | AB5: Total Projected Other Sources | AC5: Total Projected RE 2030 | AD5: Total New Increment (2030+) | AE5: Total Projected RE 2030+ | AG5: BAU (without existing RE) | AH5: EE
A6: 2014 | B6: 520 | C6: 105 | D6: 21 | E6: 26 | F6: 0 | G6: 0 | H6: 0 | I6: 0 | J6: =SUM(B6:I6) -> 672 | L6: 0 | M6: 0 | N6: 0 | O6: 0 | P6: 0 | Q6: =SUM(N6:P6) -> 0 | R6: 0 | S6: 0 | T6: 0 | U6: 0 | V6: 0 | W6: 0 | X6: =SUM(R6:W6) -> 0 | Y6: 0 | Z6: 0 | AA6: 0 | AB6: 0 | AC6: =Q6+X6+Y6+AA6+AB6 -> 0 | AD6: 0 | AE6: =AC6+AD6 -> 0 | AG6: 3019 | AH6: 0
A7: =A6+1 -> 2015 | B7: 520 | C7: 105 | D7: 21 | E7: 26 | F7: 0 | G7: 0 | H7: 0 | I7: 0 | J7: =SUM(B7:I7) -> 672 | L7: 0 | M7: 0 | N7: 0 | O7: 0 | P7: 0 | Q7: =SUM(N7:O7) -> 0 | R7: 0 | S7: 0 | T7: 0 | U7: 0 | V7: 0 | W7: 0 | X7: =SUM(R7:V7) -> 0 | Y7: 0 | Z7: 0 | AA7: 0 | AB7: 0 | AC7: 0 | AD7: 0 | AE7: =AC7+AD7 -> 0 | AG7: 3138 | AH7: 33
A8: =A7+1 -> 2016 | B8: 520 | C8: 105 | D8: 21 | E8: 26 | F8: 0 | G8: 0 | H8: 0 | I8: 0 | J8: 672 | L8: 0 | M8: 0 | N8: 14 | O8: 0 | P8: 0 | Q8: 14 | R8: 0 | S8: 0 | T8: 0 | U8: 0 | V8: 0 | W8: 0 | X8: 0 | Y8: 0 | Z8: 0 | AA8: 0 | AB8: 0 | AC8: 14 | AD8: 0 | AE8: 14 | AG8: 3276 | AH8: 73.6
A9: 2017 | B9: 520 | C9: 105 | D9: 21 | E9: 26 | F9: 0 | G9: 0 | H9: 0 | I9: 0 | J9: 672 | L9: 0 | M9: 0 | N9: 14 | O9: 26 | P9: 0 | Q9: 40 | R9: 16 | S9: 0 | T9: 0 | U9: 0 | V9: 0 | W9: 0 | X9: 16 | Y9: 0 | Z9: 0 | AA9: 0 | AB9: 0 | AC9: 56 | AD9: 0 | AE9: 56 | AG9: 3417 | AH9: 114.2
A10: 2018 | B10: 520 | C10: 105 | D10: 21 | E10: 26 | F10: 0 | G10: 0 | H10: 0 | I10: 0 | J10: 672 | L10: 0 | M10: 0 | N10: 14 | O10: 52 | P10: 0 | Q10: 66 | R10: 16 | S10: 25 | T10: 0 | U10: 0 | V10: 0 | W10: 0 | X10: 41 | Y10: 0 | Z10: 0 | AA10: 0 | AB10: 0 | AC10: 107 | AD10: 0 | AE10: 107 | AG10: 3540 | AH10: 154.8
A11: 2019 | B11: 520 | C11: 105 | D11: 21 | E11: 26 | F11: 0 | G11: 0 | H11: 0 | I11: 0 | J11: 672 | L11: 0 | M11: 0 | N11: 14 | O11: 52 | P11: 0 | Q11: 66 | R11: 16 | S11: 25 | T11: 25 | U11: 0 | V11: 0 | W11: 0 | X11: 66 | Y11: 240 | Z11: 0 | AA11: 0 | AB11: 0 | AC11: 372 | AD11: 0 | AE11: 372 | AG11: 3660 | AH11: 195.4
A12: 2020 | B12: 520 | C12: 105 | D12: 21 | E12: 26 | F12: 0 | G12: 0 | H12: 0 | I12: 0 | J12: 672 | L12: 0 | M12: 0 | N12: 14 | O12: 52 | P12: 0 | Q12: 66 | R12: 16 | S12: 25 | T12: 25 | U12: 25 | V12: 32 | W12: 0 | X12: 123 | Y12: 240 | Z12: 0 | AA12: 0 | AB12: 0 | AC12: 429 | AD12: 0 | AE12: 429 | AG12: 3781 | AH12: 236
A13: 2021 | B13: 520 | C13: 105 | D13: 21 | E13: 26 | F13: 0 | G13: 0 | H13: 0 | I13: 0 | J13: 672 | L13: 0 | M13: 0 | N13: 14 | O13: 52 | P13: 0 | Q13: 66 | R13: 16 | S13: 25 | T13: 25 | U13: 25 | V13: 32 | W13: 0 | X13: 123 | Y13: 240 | Z13: 0 | AA13: 120 | AB13: 0 | AC13: 549 | AD13: 0 | AE13: 549 | AG13: 3874 | AH13: 289.2
A14: 2022 | B14: 520 | C14: 105 | D14: 21 | E14: 26 | F14: 0 | G14: 0 | H14: 0 | I14: 0 | J14: 672 | L14: 0 | M14: 0 | N14: 14 | O14: 52 | P14: 0 | Q14: 66 | R14: 16 | S14: 25 | T14: 25 | U14: 25 | V14: 32 | W14: 0 | X14: 123 | Y14: 240 | Z14: 0 | AA14: 120 | AB14: 0 | AC14: 549 | AD14: 0 | AE14: 549 | AG14: 3967 | AH14: 342.4
A15: 2023 | B15: 520 | C15: 105 | D15: 21 | E15: 26 | F15: 0 | G15: 0 | H15: 0 | I15: 0 | J15: 672 | L15: 0 | M15: 0 | N15: 14 | O15: 52 | P15: 0 | Q15: 66 | R15: 16 | S15: 25 | T15: 25 | U15: 25 | V15: 32 | W15: 0 | X15: 123 | Y15: 240 | Z15: 0 | AA15: 120 | AB15: 0 | AC15: 549 | AD15: 0 | AE15: 549 | AG15: 4062 | AH15: 395.6
A16: 2024 | B16: 520 | C16: 105 | D16: 21 | E16: 26 | F16: 0 | G16: 0 | H16: 0 | I16: 0 | J16: 672 | L16: 0 | M16: 0 | N16: 14 | O16: 52 | P16: 0 | Q16: 66 | R16: 16 | S16: 25 | T16: 25 | U16: 25 | V16: 32 | W16: 0 | X16: 123 | Y16: 240 | Z16: 0 | AA16: 120 | AB16: 0 | AC16: 549 | AD16: 0 | AE16: 549 | AG16: 4161 | AH16: 448.8
A17: 2025 | B17: 520 | C17: 105 | D17: 21 | E17: 26 | F17: 0 | G17: 0 | H17: 0 | I17: 0 | J17: 672 | L17: 0 | M17: 0 | N17: 14 | O17: 52 | P17: 0 | Q17: 66 | R17: 16 | S17: 25 | T17: 25 | U17: 25 | V17: 32 | W17: 0 | X17: 123 | Y17: 240 | Z17: 0 | AA17: 120 | AB17: 0 | AC17: 549 | AD17: 0 | AE17: 549 | AG17: 4264 | AH17: 502
A18: 2026 | B18: 520 | C18: 105 | D18: 21 | E18: 26 | F18: 0 | G18: 0 | H18: 0 | I18: 0 | J18: 672 | L18: 0 | M18: 0 | N18: 14 | O18: 52 | P18: 0 | Q18: 66 | R18: 16 | S18: 25 | T18: 25 | U18: 25 | V18: 32 | W18: 0 | X18: 123 | Y18: 240 | Z18: 0 | AA18: 120 | AB18: 0 | AC18: 549 | AD18: 0 | AE18: 549 | AG18: 4366 | AH18: 571.6
A19: 2027 | B19: 520 | C19: 105 | D19: 21 | E19: 26 | F19: 0 | G19: 0 | H19: 0 | I19: 0 | J19: 672 | L19: 0 | M19: 0 | N19: 14 | O19: 52 | P19: 0 | Q19: 66 | R19: 16 | S19: 25 | T19: 25 | U19: 25 | V19: 32 | W19: 0 | X19: 123 | Y19: 240 | Z19: 0 | AA19: 120 | AB19: 0 | AC19: 549 | AD19: 0 | AE19: 549 | AG19: 4440 | AH19: 641.2
A20: 2028 | B20: 520 | C20: 105 | D20: 21 | E20: 26 | F20: 0 | G20: 0 | H20: 0 | I20: 0 | J20: 672 | L20: 0 | M20: 0 | N20: 14 | O20: 52 | P20: 0 | Q20: 66 | R20: 16 | S20: 25 | T20: 25 | U20: 25 | V20: 32 | W20: 0 | X20: 123 | Y20: 240 | Z20: 0 | AA20: 120 | AB20: 0 | AC20: 549 | AD20: 0 | AE20: 549 | AG20: 4509 | AH20: 710.8
A21: 2029 | B21: 520 | C21: 105 | D21: 21 | E21: 26 | F21: 0 | G21: 0 | H21: 0 | I21: 0 | J21: 672 | L21: 0 | M21: 0 | N21: 14 | O21: 52 | P21: 0 | Q21: 66 | R21: 16 | S21: 25 | T21: 25 | U21: 25 | V21: 32 | W21: 0 | X21: 123 | Y21: 240 | Z21: 0 | AA21: 120 | AB21: 0 | AC21: 549 | AD21: 0 | AE21: 549 | AG21: 4577 | AH21: 780.4
A22: 2030 | B22: 520 | C22: 105 | D22: 21 | E22: 26 | F22: 0 | G22: 0 | H22: 0 | I22: 0 | J22: 672 | L22: 0 | M22: 0 | N22: 14 | O22: 52 | P22: 0 | Q22: 66 | R22: 16 | S22: 25 | T22: 25 | U22: 25 | V22: 32 | W22: 0 | X22: 123 | Y22: 240 | Z22: 0 | AA22: 120 | AB22: 0 | AC22: 549 | AD22: 80 | AE22: 629 | AG22: 4645 | AH22: 850
A23: 2031 | B23: 520 | C23: 105 | D23: 21 | E23: 26 | F23: 0 | G23: 0 | H23: 0 | I23: 0 | J23: 672 | L23: 0 | M23: 0 | N23: 14 | O23: 52 | P23: 0 | Q23: 66 | R23: 16 | S23: 25 | T23: 25 | U23: 25 | V23: 32 | W23: 0 | X23: 123 | Y23: 240 | Z23: 0 | AA23: 120 | AB23: 0 | AC23: 549 | AD23: 80 | AE23: 629 | AG23: 4713 | AH23: 935
A24: =A23+1 -> 2032 | B24: 520 | C24: 105 | D24: 21 | E24: 26 | F24: 0 | G24: 0 | H24: 0 | I24: 0 | J24: 672 | L24: 0 | M24: 0 | N24: 14 | O24: 52 | P24: 0 | Q24: 66 | R24: 16 | S24: 25 | T24: 25 | U24: 25 | V24: 32 | W24: 0 | X24: 123 | Y24: 240 | Z24: 0 | AA24: 120 | AB24: 0 | AC24: 549 | AD24: 80 | AE24: 629 | AG24: 4783 | AH24: 1020
A25: 2033 | B25: 520 | C25: 105 | D25: 21 | E25: 26 | F25: 0 | G25: 0 | H25: 0 | I25: 0 | J25: 672 | L25: 0 | M25: 0 | N25: 14 | O25: 52 | P25: 0 | Q25: 66 | R25: 16 | S25: 25 | T25: 25 | U25: 25 | V25: 32 | W25: 0 | X25: 123 | Y25: 240 | Z25: 0 | AA25: 120 | AB25: 0 | AC25: 549 | AD25: 80 | AE25: 629 | AG25: 4853 | AH25: 1105
A26: 2034 | B26: 520 | C26: 105 | D26: 21 | E26: 26 | F26: 0 | G26: 0 | H26: 0 | I26: 0 | J26: 672 | L26: 0 | M26: 0 | N26: 14 | O26: 52 | P26: 0 | Q26: 66 | R26: 16 | S26: 25 | T26: 25 | U26: 25 | V26: 32 | W26: 0 | X26: 123 | Y26: 240 | Z26: 0 | AA26: 120 | AB26: 0 | AC26: 549 | AD26: 80 | AE26: 629 | AG26: 4925 | AH26: 1190
A27: 2035 | B27: 520 | C27: 105 | D27: 21 | E27: 26 | F27: 0 | G27: 0 | H27: 0 | I27: 0 | J27: 672 | L27: 0 | M27: 0 | N27: 14 | O27: 52 | P27: 0 | Q27: 66 | R27: 16 | S27: 25 | T27: 25 | U27: 25 | V27: 32 | W27: 0 | X27: 123 | Y27: 240 | Z27: 0 | AA27: 120 | AB27: 0 | AC27: 549 | AD27: 80 | AE27: 629 | AG27: 4953.02 | AH27: 1275
A28: 2036 | B28: 520 | C28: 105 | D28: 21 | E28: 26 | F28: 0 | G28: 0 | H28: 0 | I28: 0 | J28: 672 | L28: 0 | M28: 0 | N28: 14 | O28: 52 | P28: 0 | Q28: 66 | R28: 16 | S28: 25 | T28: 25 | U28: 25 | V28: 32 | W28: 0 | X28: 123 | Y28: 240 | Z28: 0 | AA28: 120 | AB28: 0 | AC28: 549 | AD28: 90 | AE28: 639 | AG28: 4935.92 | AH28: 1365
A29: 2037 | B29: 520 | C29: 105 | D29: 21 | E29: 26 | F29: 0 | G29: 0 | H29: 0 | I29: 0 | J29: 672 | L29: 0 | M29: 0 | N29: 14 | O29: 52 | P29: 0 | Q29: 66 | R29: 16 | S29: 25 | T29: 25 | U29: 25 | V29: 32 | W29: 0 | X29: 123 | Y29: 240 | Z29: 0 | AA29: 120 | AB29: 0 | AC29: 549 | AD29: 90 | AE29: 639 | AG29: 4944.72 | AH29: 1455
A30: 2038 | B30: 520 | C30: 105 | D30: 21 | E30: 26 | F30: 0 | G30: 0 | H30: 0 | I30: 0 | J30: 672 | L30: 0 | M30: 0 | N30: 14 | O30: 52 | P30: 0 | Q30: 66 | R30: 16 | S30: 25 | T30: 25 | U30: 25 | V30: 32 | W30: 0 | X30: 123 | Y30: 240 | Z30: 0 | AA30: 120 | AB30: 0 | AC30: 549 | AD30: 90 | AE30: 639 | AG30: 4953.52 | AH30: 1545
A31: 2039 | B31: 520 | C31: 105 | D31: 21 | E31: 26 | F31: 0 | G31: 0 | H31: 0 | I31: 0 | J31: 672 | L31: 0 | M31: 0 | N31: 14 | O31: 52 | P31: 0 | Q31: 66 | R31: 16 | S31: 25 | T31: 25 | U31: 25 | V31: 32 | W31: 0 | X31: 123 | Y31: 240 | Z31: 0 | AA31: 120 | AB31: 0 | AC31: 549 | AD31: 90 | AE31: 639 | AG31: 4962.32 | AH31: 1635
A32: 2040 | B32: 520 | C32: 105 | D32: 21 | E32: 26 | F32: 0 | G32: 0 | H32: 0 | I32: 0 | J32: 672 | L32: 0 | M32: 0 | N32: 14 | O32: 52 | P32: 0 | Q32: 66 | R32: 16 | S32: 25 | T32: 25 | U32: 25 | V32: 32 | W32: 0 | X32: 123 | Y32: 240 | Z32: 0 | AA32: 120 | AB32: 0 | AC32: 549 | AD32: 90 | AE32: 639 | AG32: 4971.12 | AH32: 1725
A33: 2041 | B33: 520 | C33: 105 | D33: 21 | E33: 26 | F33: 0 | G33: 0 | H33: 0 | I33: 0 | J33: 672 | L33: 0 | M33: 0 | N33: 14 | O33: 52 | P33: 0 | Q33: 66 | R33: 16 | S33: 25 | T33: 25 | U33: 25 | V33: 32 | W33: 0 | X33: 123 | Y33: 240 | Z33: 0 | AA33: 120 | AB33: 0 | AC33: 549 | AD33: 120 | AE33: 669 | AG33: 5019.32 | AH33: 1805
A34: 2042 | B34: 520 | C34: 105 | D34: 21 | E34: 26 | F34: 0 | G34: 0 | H34: 0 | I34: 0 | J34: 672 | L34: 0 | M34: 0 | N34: 14 | O34: 52 | P34: 0 | Q34: 66 | R34: 16 | S34: 25 | T34: 25 | U34: 25 | V34: 32 | W34: 0 | X34: 123 | Y34: 240 | Z34: 0 | AA34: 120 | AB34: 0 | AC34: 549 | AD34: 120 | AE34: 669 | AG34: 5067.52 | AH34: 1885
A35: 2043 | B35: 520 | C35: 105 | D35: 21 | E35: 26 | F35: 0 | G35: 0 | H35: 0 | I35: 0 | J35: 672 | L35: 0 | M35: 0 | N35: 14 | O35: 52 | P35: 0 | Q35: 66 | R35: 16 | S35: 25 | T35: 25 | U35: 25 | V35: 32 | W35: 0 | X35: 123 | Y35: 240 | Z35: 0 | AA35: 120 | AB35: 0 | AC35: 549 | AD35: 150 | AE35: 699 | AG35: 5115.72 | AH35: 1965
A36: 2044 | B36: 520 | C36: 105 | D36: 21 | E36: 26 | F36: 0 | G36: 0 | H36: 0 | I36: 0 | J36: 672 | L36: 0 | M36: 0 | N36: 14 | O36: 52 | P36: 0 | Q36: 66 | R36: 16 | S36: 25 | T36: 25 | U36: 25 | V36: 32 | W36: 0 | X36: 123 | Y36: 240 | Z36: 0 | AA36: 120 | AB36: 0 | AC36: 549 | AD36: 150 | AE36: 699 | AG36: 5163.92 | AH36: 2045
A37: 2045 | B37: 520 | C37: 105 | D37: 21 | E37: 26 | F37: 0 | G37: 0 | H37: 0 | I37: 0 | J37: 672 | L37: 0 | M37: 0 | N37: 14 | O37: 52 | P37: 0 | Q37: 66 | R37: 16 | S37: 25 | T37: 25 | U37: 25 | V37: 32 | W37: 0 | X37: 123 | Y37: 240 | Z37: 0 | AA37: 120 | AB37: 0 | AC37: 549 | AD37: 160 | AE37: 709 | AG37: 5212.12 | AH37: 2125
A38: 2046 | B38: 520 | C38: 105 | D38: 21 | E38: 26 | F38: 0 | G38: 0 | H38: 0 | I38: 0 | J38: 672 | L38: 0 | M38: 0 | N38: 14 | O38: 52 | P38: 0 | Q38: 66 | R38: 16 | S38: 25 | T38: 25 | U38: 25 | V38: 32 | W38: 0 | X38: 123 | Y38: 240 | Z38: 0 | AA38: 120 | AB38: 0 | AC38: 549 | AD38: =AD37 -> 160 | AE38: 709 | AG38: 5260.52 | AH38: 2190
A39: 2047 | B39: 520 | C39: 105 | D39: 21 | E39: 26 | F39: 0 | G39: 0 | H39: 0 | I39: 0 | J39: 672 | L39: 0 | M39: 0 | N39: 14 | O39: 52 | P39: 0 | Q39: 66 | R39: 16 | S39: 25 | T39: 25 | U39: 25 | V39: 32 | W39: 0 | X39: 123 | Y39: 240 | Z39: 0 | AA39: 120 | AB39: 0 | AC39: 549 | AD39: 180 | AE39: 729 | AG39: 5308.92 | AH39: 2255
A40: 2048 | B40: 520 | C40: 105 | D40: 21 | E40: 26 | F40: 0 | G40: 0 | H40: 0 | I40: 0 | J40: 672 | L40: 0 | M40: 0 | N40: 14 | O40: 52 | P40: 0 | Q40: 66 | R40: 16 | S40: 25 | T40: 25 | U40: 25 | V40: 32 | W40: 0 | X40: 123 | Y40: 240 | Z40: 0 | AA40: 120 | AB40: 0 | AC40: 549 | AD40: 210 | AE40: 759 | AG40: 5357.32 | AH40: 2320
A41: 2049 | B41: 520 | C41: 105 | D41: 21 | E41: 26 | F41: 0 | G41: 0 | H41: 0 | I41: 0 | J41: 672 | L41: 0 | M41: 0 | N41: 14 | O41: 52 | P41: 0 | Q41: 66 | R41: 16 | S41: 25 | T41: 25 | U41: 25 | V41: 32 | W41: 0 | X41: 123 | Y41: 240 | Z41: 0 | AA41: 120 | AB41: 0 | AC41: 549 | AD41: 230 | AE41: 779 | AG41: 5405.72 | AH41: 2385
A42: 2050 | B42: 520 | C42: 105 | D42: 21 | E42: 26 | F42: 0 | G42: 0 | H42: 0 | I42: 0 | J42: 672 | L42: 0 | M42: 0 | N42: 14 | O42: 52 | P42: 0 | Q42: 66 | R42: 16 | S42: 25 | T42: 25 | U42: 25 | V42: 32 | W42: 0 | X42: 123 | Y42: 240 | Z42: 0 | AA42: 120 | AB42: 0 | AC42: 549 | AD42: 270 | AE42: 819 | AG42: 5454.12 | AH42: 2450

Sheet 7. Calculations
A1: Free worksheet for User calculations | Q1: XLMT-Energy Industries v17.1

Sheet Report
A1: Report | C1: Excel Toolkit for Mitigation Analysis for Low-Carbon Development Planning | N1: XLMT-Energy Industries v17.1
B4: User Name: | C4: RR
B7: Project Code: | C7: P!
B10: Project Detail: | C10: TNC Plot

Sheet ChartPlotLegend
A1: Time Series Plots | E1: Excel Toolkit for Mitigation Analysis for Low-Carbon Development Planning | I1: XLMT-Energy Industries v17.1
O2: Year | P2: TNC 37:BAU | Q2: TNC 38:SC1 | R2: TNC 39:SC2 | S2: TNC 40:SC3 | T2: TNC 41:SC4 | U2: TNC 42:SC5 | V2: TNC 43:SC6 | W2: Sparkline
G3: Legend Code | H3: Scenario | I3: Definition | O3: 2014 | P3: 2340.76369 | Q3: 2340.76369 | R3: 2340.76369 | S3: 2340.76369 | T3: 2340.76369 | U3: 2340.76369 | V3: 2340.76369
G4: TNC 37: | H4: BAU | I4: GHG Emissions (Gg CO2e) | O4: 2015 | P4: 2373.99753 | Q4: 2343.80253 | R4: 2343.80253 | S4: 2343.80253 | T4: 2343.80253 | U4: 2343.80253 | V4: 2343.80253
G5: TNC 38: | H5: SC1 | I5: GHG Emissions with EE (Gg CO2e) | O5: 2016 | P5: 2523.93625 | Q5: 2456.59225 | R5: 2456.59225 | S5: 2456.59225 | T5: 2456.59225 | U5: 2456.59225 | V5: 2456.59225
G6: TNC 39: | H6: SC2 | I6: GHG Emissions with EE and Wind (Gg CO2e) | O6: 2017 | P6: 2630.40047 | Q6: 2525.90747 | R6: 2487.26347 | S6: 2471.80587 | T6: 2471.80587 | U6: 2471.80587 | V6: 2471.80587
G7: TNC 40: | H7: SC3 | I7: GHG Emissions with EE, Wind and Solar (Gg CO2e) | O7: 2018 | P7: 2749.23077 | Q7: 2607.58877 | R7: 2543.82617 | S7: 2504.21607 | T7: 2504.21607 | U7: 2504.21607 | V7: 2504.21607
G8: TNC 41: | H8: SC4 | I8: GHG Emissions with EE, Wind, Solar and WTE (Gg CO2e) | O8: 2019 | P8: 2865.16277 | Q8: 2686.37177 | R8: 2622.60917 | S8: 2558.84657 | T8: 2339.24657 | U8: 2339.24657 | V8: 2339.24657
G9: TNC 42: | H9: SC5 | I9: GHG Emissions with EE, Wind, Solar, WTE, and Biomass (Gg CO2e) | O9: 2020 | P9: 2982.06087 | Q9: 2766.12087 | R9: 2702.35827 | S9: 2583.52797 | T9: 2363.92797 | U9: 2363.92797 | V9: 2363.92797
F10: Observations: | G10: TNC 43: | H10: SC6 | I10: GHG Emissions with EE, Wind, Solar, WTE, Biomass, and added RE 2030+ (Gg CO2e) | O10: 2021 | P10: 3071.90817 | Q10: 2807.29017 | R10: 2743.52757 | S10: 2624.69727 | T10: 2405.09727 | U10: 2301.41727 | V10: 2301.41727
O11: 2022 | P11: 3161.75547 | Q11: 2848.45947 | R11: 2784.69687 | S11: 2665.86657 | T11: 2446.26657 | U11: 2342.58657 | V11: 2342.58657
O12: 2023 | P12: 3253.53497 | Q12: 2891.56097 | R12: 2827.79837 | S12: 2708.96807 | T12: 2489.36807 | U12: 2385.68807 | V12: 2385.68807
O13: 2024 | P13: 3349.17887 | Q13: 2938.52687 | R13: 2874.76427 | S13: 2755.93397 | T13: 2536.33397 | U13: 2432.65397 | V13: 2432.65397
O14: 2025 | P14: 3448.68717 | Q14: 2989.35717 | R14: 2925.59457 | S14: 2806.76427 | T14: 2587.16427 | U14: 2483.48427 | V14: 2483.48427
O15: 2026 | P15: 3547.22937 | Q15: 3053.36697 | R15: 2989.60437 | S15: 2870.77407 | T15: 2651.17407 | U15: 2547.49407 | V15: 2547.49407
O16: 2027 | P16: 3618.72077 | Q16: 3064.72397 | R16: 3000.96137 | S16: 2882.13107 | T16: 2662.53107 | U16: 2558.85107 | V16: 2558.85107
O17: 2028 | P17: 3685.38167 | Q17: 3071.25047 | R17: 3007.48787 | S17: 2888.65757 | T17: 2669.05757 | U17: 2565.37757 | V17: 2565.37757
O18: 2029 | P18: 3751.07647 | Q18: 3076.81087 | R18: 3013.04827 | S18: 2894.21797 | T18: 2674.61797 | U18: 2570.93797 | V18: 2570.93797
O19: 2030 | P19: 3816.77127 | Q19: 3082.37127 | R19: 3018.60867 | S19: 2899.77837 | T19: 2692.41837 | U19: 2588.73837 | V19: 2511.45037
O20: 2031 | P20: 3882.46607 | Q20: 3074.62607 | R20: 3010.86347 | S20: 2892.03317 | T20: 2684.67317 | U20: 2580.99317 | V20: 2503.70517
O21: 2032 | P21: 3950.09307 | Q21: 3068.81307 | R21: 3005.05047 | S21: 2886.22017 | T21: 2678.86017 | U21: 2575.18017 | V21: 2497.89217
O22: 2033 | P22: 4017.72007 | Q22: 3063.00007 | R22: 2999.23747 | S22: 2880.40717 | T22: 2673.04717 | U22: 2569.36717 | V22: 2492.07917
O23: 2034 | P23: 4087.27927 | Q23: 3059.11927 | R23: 2995.35667 | S23: 2876.52637 | T23: 2669.16637 | U23: 2565.48637 | V23: 2488.19837
O24: 2035 | P24: 4114.349392 | Q24: 3012.749392 | R24: 2948.986792 | S24: 2830.156492 | T24: 2622.796492 | U24: 2519.116492 | V24: 2441.828492
O25: 2036 | P25: 4097.829082 | Q25: 2918.469082 | R25: 2854.706482 | S25: 2735.876182 | T25: 2528.516182 | U25: 2424.836182 | V25: 2337.887182
O26: 2037 | P26: 4106.330762 | Q26: 2849.210762 | R26: 2785.448162 | S26: 2666.617862 | T26: 2459.257862 | U26: 2355.577862 | V26: 2268.628862
O27: 2038 | P27: 4114.832442 | Q27: 2779.952442 | R27: 2716.189842 | S27: 2597.359542 | T27: 2389.999542 | U27: 2286.319542 | V27: 2199.370542
O28: 2039 | P28: 4123.334122 | Q28: 2710.694122 | R28: 2646.931522 | S28: 2528.101222 | T28: 2320.741222 | U28: 2217.061222 | V28: 2130.112222
O29: 2040 | P29: 4131.835802 | Q29: 2641.435802 | R29: 2577.673202 | S29: 2458.842902 | T29: 2251.482902 | U29: 2147.802902 | V29: 2060.853902
O30: 2041 | P30: 4178.401822 | Q30: 2618.881822 | R30: 2555.119222 | S30: 2436.288922 | T30: 2228.928922 | U30: 2125.248922 | V30: 2009.316922
O31: 2042 | P31: 4224.967842 | Q31: 2596.327842 | R31: 2532.565242 | S31: 2413.734942 | T31: 2206.374942 | U31: 2102.694942 | V31: 1986.762942
O32: 2043 | P32: 4271.533862 | Q32: 2573.773862 | R32: 2510.011262 | S32: 2391.180962 | T32: 2183.820962 | U32: 2080.140962 | V32: 1935.225962
O33: 2044 | P33: 4318.099882 | Q33: 2551.219882 | R33: 2487.457282 | S33: 2368.626982 | T33: 2161.266982 | U33: 2057.586982 | V33: 1912.671982
O34: 2045 | P34: 4364.665902 | Q34: 2528.665902 | R34: 2464.903302 | S34: 2346.073002 | T34: 2138.713002 | U34: 2035.033002 | V34: 1880.457002
O35: 2046 | P35: 4411.425142 | Q35: 2519.265142 | R35: 2455.502542 | S35: 2336.672242 | T35: 2129.312242 | U35: 2025.632242 | V35: 1871.056242
O36: 2047 | P36: 4458.184382 | Q36: 2509.864382 | R36: 2446.101782 | S36: 2327.271482 | T36: 2119.911482 | U36: 2016.231482 | V36: 1842.333482
O37: 2048 | P37: 4504.943622 | Q37: 2500.463622 | R37: 2436.701022 | S37: 2317.870722 | T37: 2110.510722 | U37: 2006.830722 | V37: 1803.949722
O38: 2049 | P38: 4551.702862 | Q38: 2491.062862 | R38: 2427.300262 | S38: 2308.469962 | T38: 2101.109962 | U38: 1997.429962 | V38: 1775.226962
O39: 2050 | P39: 4598.462102 | Q39: 2481.662102 | R39: 2417.899502 | S39: 2299.069202 | T39: 2091.709202 | U39: 1988.029202 | V39: 1727.182202

Sheet RadarPlot
A1: Radar Plot | E1: Excel Toolkit for Mitigation Analysis for Low-Carbon Development Planning | I1: XLMT-Energy Industries v17.1
N2: Year | O2: TNC 40:SC3 | P2: TNC 41:SC4
G3: Legend Code | H3: Scenario | I3: Definition | N3: 2014 | O3: 2340.76369 | P3: 2340.76369
G4: TNC 40: | H4: SC3 | I4: GHG Emissions with EE, Wind and Solar (Gg CO2e) | N4: 2015 | O4: 2343.80253 | P4: 2343.80253
G5: TNC 41: | H5: SC4 | I5: GHG Emissions with EE, Wind, Solar and WTE (Gg CO2e) | N5: 2016 | O5: 2456.59225 | P5: 2456.59225
G6: Ratio = | H6: (TNC 41:/TNC 40:) | N6: 2017 | O6: 2471.80587 | P6: 2471.80587
N7: 2018 | O7: 2504.21607 | P7: 2504.21607
N8: 2019 | O8: 2558.84657 | P8: 2339.24657
N9: 2020 | O9: 2583.52797 | P9: 2363.92797
F10: Observations: | N10: 2021 | O10: 2624.69727 | P10: 2405.09727
F11: Radar Plot | N11: 2022 | O11: 2665.86657 | P11: 2446.26657
N12: 2023 | O12: 2708.96807 | P12: 2489.36807
N13: 2024 | O13: 2755.93397 | P13: 2536.33397
N14: 2025 | O14: 2806.76427 | P14: 2587.16427
N15: 2026 | O15: 2870.77407 | P15: 2651.17407
N16: 2027 | O16: 2882.13107 | P16: 2662.53107
N17: 2028 | O17: 2888.65757 | P17: 2669.05757
N18: 2029 | O18: 2894.21797 | P18: 2674.61797
N19: 2030 | O19: 2899.77837 | P19: 2692.41837
N20: 2031 | O20: 2892.03317 | P20: 2684.67317
N21: 2032 | O21: 2886.22017 | P21: 2678.86017
N22: 2033 | O22: 2880.40717 | P22: 2673.04717
N23: 2034 | O23: 2876.52637 | P23: 2669.16637
N24: 2035 | O24: 2830.156492 | P24: 2622.796492
N25: 2036 | O25: 2735.876182 | P25: 2528.516182
N26: 2037 | O26: 2666.617862 | P26: 2459.257862
N27: 2038 | O27: 2597.359542 | P27: 2389.999542
N28: 2039 | O28: 2528.101222 | P28: 2320.741222
N29: 2040 | O29: 2458.842902 | P29: 2251.482902
N30: 2041 | O30: 2436.288922 | P30: 2228.928922
N31: 2042 | O31: 2413.734942 | P31: 2206.374942
N32: 2043 | O32: 2391.180962 | P32: 2183.820962
N33: 2044 | O33: 2368.626982 | P33: 2161.266982
N34: 2045 | O34: 2346.073002 | P34: 2138.713002
N35: 2046 | O35: 2336.672242 | P35: 2129.312242
N36: 2047 | O36: 2327.271482 | P36: 2119.911482
N37: 2048 | O37: 2317.870722 | P37: 2110.510722
N38: 2049 | O38: 2308.469962 | P38: 2101.109962
N39: 2050 | O39: 2299.069202 | P39: 2091.709202

Sheet DiffPlot
A1: Percentage Change Plots | F1: Excel Toolkit for Mitigation Analysis for Low-Carbon Development Planning | I1: XLMT-Energy Industries v17.1

Sheet ...

Sheet Radar Ratio (hidden)
A1: Variable 1 | B1: Variable 2 | C1: Ratio | D1: R1 | E1: R2 | F1: R3 | G1: R4 | H1: R5
A2: 2340.76369 | B2: 2340.76369 | C2: =B2/A2 -> 1 | D2: 0.125 | E2: 0.5 | F2: 1 | G2: 1.5 | H2: 2.15
A3: 2343.80253 | B3: 2343.80253 | C3: =B3/A3 -> 1 | D3: 0.125 | E3: 0.5 | F3: 1 | G3: 1.5 | H3: 2.15
A4: 2456.59225 | B4: 2456.59225 | C4: 1 | D4: 0.125 | E4: 0.5 | F4: 1 | G4: 1.5 | H4: 2.15
A5: 2471.80587 | B5: 2471.80587 | C5: 1 | D5: 0.125 | E5: 0.5 | F5: 1 | G5: 1.5 | H5: 2.15
A6: 2504.21607 | B6: 2504.21607 | C6: 1 | D6: 0.125 | E6: 0.5 | F6: 1 | G6: 1.5 | H6: 2.15
A7: 2558.84657 | B7: 2339.24657 | C7: 0.9141800831 | D7: 0.125 | E7: 0.5 | F7: 1 | G7: 1.5 | H7: 2.15
A8: 2583.52797 | B8: 2363.92797 | C8: 0.9149999526 | D8: 0.125 | E8: 0.5 | F8: 1 | G8: 1.5 | H8: 2.15
A9: 2624.69727 | B9: 2405.09727 | C9: 0.9163332082 | D9: 0.125 | E9: 0.5 | F9: 1 | G9: 1.5 | H9: 2.15
A10: 2665.86657 | B10: 2446.26657 | C10: 0.9176252846 | D10: 0.125 | E10: 0.5 | F10: 1 | G10: 1.5 | H10: 2.15
A11: 2708.96807 | B11: 2489.36807 | C11: 0.9189359216 | D11: 0.125 | E11: 0.5 | F11: 1 | G11: 1.5 | H11: 2.15
A12: 2755.93397 | B12: 2536.33397 | C12: 0.9203173943 | D12: 0.125 | E12: 0.5 | F12: 1 | G12: 1.5 | H12: 2.15
A13: 2806.76427 | B13: 2587.16427 | C13: 0.9217604405 | D13: 0.125 | E13: 0.5 | F13: 1 | G13: 1.5 | H13: 2.15
A14: 2870.77407 | B14: 2651.17407 | C14: 0.9235049521 | D14: 0.125 | E14: 0.5 | F14: 1 | G14: 1.5 | H14: 2.15
A15: 2882.13107 | B15: 2662.53107 | C15: 0.9238063798 | D15: 0.125 | E15: 0.5 | F15: 1 | G15: 1.5 | H15: 2.15
A16: 2888.65757 | B16: 2669.05757 | C16: 0.9239785282 | D16: 0.125 | E16: 0.5 | F16: 1 | G16: 1.5 | H16: 2.15
A17: 2894.21797 | B17: 2674.61797 | C17: 0.9241245814 | D17: 0.125 | E17: 0.5 | F17: 1 | G17: 1.5 | H17: 2.15
A18: 2899.77837 | B18: 2692.41837 | C18: 0.9284910867 | D18: 0.125 | E18: 0.5 | F18: 1 | G18: 1.5 | H18: 2.15
A19: 2892.03317 | B19: 2684.67317 | C19: 0.9282995776 | D19: 0.125 | E19: 0.5 | F19: 1 | G19: 1.5 | H19: 2.15
A20: 2886.22017 | B20: 2678.86017 | C20: 0.9281551691 | D20: 0.125 | E20: 0.5 | F20: 1 | G20: 1.5 | H20: 2.15
A21: 2880.40717 | B21: 2673.04717 | C21: 0.9280101778 | D21: 0.125 | E21: 0.5 | F21: 1 | G21: 1.5 | H21: 2.15
A22: 2876.52637 | B22: 2669.16637 | C22: 0.9279130544 | D22: 0.125 | E22: 0.5 | F22: 1 | G22: 1.5 | H22: 2.15
A23: 2830.156492 | B23: 2622.796492 | C23: 0.9267319667 | D23: 0.125 | E23: 0.5 | F23: 1 | G23: 1.5 | H23: 2.15
A24: 2735.876182 | B24: 2528.516182 | C24: 0.9242070963 | D24: 0.125 | E24: 0.5 | F24: 1 | G24: 1.5 | H24: 2.15
A25: 2666.617862 | B25: 2459.257862 | C25: 0.9222385768 | D25: 0.125 | E25: 0.5 | F25: 1 | G25: 1.5 | H25: 2.15
A26: 2597.359542 | B26: 2389.999542 | C26: 0.9201650766 | D26: 0.125 | E26: 0.5 | F26: 1 | G26: 1.5 | H26: 2.15
A27: 2528.101222 | B27: 2320.741222 | C27: 0.9179779677 | D27: 0.125 | E27: 0.5 | F27: 1 | G27: 1.5 | H27: 2.15
A28: 2458.842902 | B28: 2251.482902 | C28: 0.9156676501 | D28: 0.125 | E28: 0.5 | F28: 1 | G28: 1.5 | H28: 2.15
A29: 2436.288922 | B29: 2228.928922 | C29: 0.9148869421 | D29: 0.125 | E29: 0.5 | F29: 1 | G29: 1.5 | H29: 2.15
A30: 2413.734942 | B30: 2206.374942 | C30: 0.9140916443 | D30: 0.125 | E30: 0.5 | F30: 1 | G30: 1.5 | H30: 2.15
A31: 2391.180962 | B31: 2183.820962 | C31: 0.9132813437 | D31: 0.125 | E31: 0.5 | F31: 1 | G31: 1.5 | H31: 2.15
A32: 2368.626982 | B32: 2161.266982 | C32: 0.9124556118 | D32: 0.125 | E32: 0.5 | F32: 1 | G32: 1.5 | H32: 2.15
A33: 2346.073002 | B33: 2138.713002 | C33: 0.9116140036 | D33: 0.125 | E33: 0.5 | F33: 1 | G33: 1.5 | H33: 2.15
A34: 2336.672242 | B34: 2129.312242 | C34: 0.9112584143 | D34: 0.125 | E34: 0.5 | F34: 1 | G34: 1.5 | H34: 2.15
A35: 2327.271482 | B35: 2119.911482 | C35: 0.9108999523 | D35: 0.125 | E35: 0.5 | F35: 1 | G35: 1.5 | H35: 2.15
A36: 2317.870722 | B36: 2110.510722 | C36: 0.9105385827 | D36: 0.125 | E36: 0.5 | F36: 1 | G36: 1.5 | H36: 2.15
A37: 2308.469962 | B37: 2101.109962 | C37: 0.9101742698 | D37: 0.125 | E37: 0.5 | F37: 1 | G37: 1.5 | H37: 2.15
A38: 2299.069202 | B38: 2091.709202 | C38: 0.9098069776 | D38: 0.125 | E38: 0.5 | F38: 1 | G38: 1.5 | H38: 2.15

Sheet Diff (hidden)
A1: Variable1 | B1: Variable2 | C1: % change
A2: 2340.76369 | B2: 2340.76369 | C2: =(B2-A2)*100/A2 -> 0
A3: 2373.99753 | B3: 2343.80253 | C3: =(B3-A3)*100/A3 -> -1.271905283
A4: 2523.93625 | B4: 2456.59225 | C4: -2.668213193
A5: 2630.40047 | B5: 2525.90747 | C5: -3.972512976
A6: 2749.23077 | B6: 2607.58877 | C6: -5.152059316
A7: 2865.16277 | B7: 2686.37177 | C7: -6.240169036
A8: 2982.06087 | B8: 2766.12087 | C8: -7.241300879
A9: 3071.90817 | B9: 2807.29017 | C9: -8.614124686
A10: 3161.75547 | B10: 2848.45947 | C10: -9.908925689
A11: 3253.53497 | B11: 2891.56097 | C11: -11.12556045
A12: 3349.17887 | B12: 2938.52687 | C12: -12.26127406
A13: 3448.68717 | B13: 2989.35717 | C13: -13.31898132
A14: 3547.22937 | B14: 3053.36697 | C14: -13.92248283
A15: 3618.72077 | B15: 3064.72397 | C15: -15.30918894
A16: 3685.38167 | B16: 3071.25047 | C16: -16.66397825
A17: 3751.07647 | B17: 3076.81087 | C17: -17.97525605
A18: 3816.77127 | B18: 3082.37127 | C18: -19.24139405
A19: 3882.46607 | B19: 3074.62607 | C19: -20.80739369
A20: 3950.09307 | B20: 3068.81307 | C20: -22.3103604
A21: 4017.72007 | B21: 3063.00007 | C21: -23.76273069
A22: 4087.27927 | B22: 3059.11927 | C22: -25.15511988
A23: 4114.349392 | B23: 3012.749392 | C23: -26.7745856
A24: 4097.829082 | B24: 2918.469082 | C24: -28.7801169
A25: 4106.330762 | B25: 2849.210762 | C25: -30.6141924
A26: 4114.832442 | B26: 2779.952442 | C26: -32.44068911
A27: 4123.334122 | B27: 2710.694122 | C27: -34.25965392
A28: 4131.835802 | B28: 2641.435802 | C28: -36.0711333
A29: 4178.401822 | B29: 2618.881822 | C29: -37.32336109
A30: 4224.967842 | B30: 2596.327842 | C30: -38.54798571
A31: 4271.533862 | B31: 2573.773862 | C31: -39.7459099
A32: 4318.099882 | B32: 2551.219882 | C32: -40.91799746
A33: 4364.665902 | B33: 2528.665902 | C33: -42.06507534
A34: 4411.425142 | B34: 2519.265142 | C34: -42.89226132
A35: 4458.184382 | B35: 2509.864382 | C35: -43.70209559
A36: 4504.943622 | B36: 2500.463622 | C36: -44.49511843
A37: 4551.702862 | B37: 2491.062862 | C37: -45.27184798
A38: 4598.462102 | B38: 2481.662102 | C38: -46.03278124

Sheet 8. LIST (hidden)
A3: 1 | B3: Existing RE: Biomass (GWh)
A4: 2 | B4: Existing RE: Hydro (GWh)
A5: 3 | B5: Existing RE: LFG (GWh)
A6: 4 | B6: Existing RE: Solar PV (GWh)
A7: 5 | B7: Existing RE: Wind (GWh)
A8: 6 | B8: Existing RE: WTE (GWh)
A9: 7 | B9: Existing RE: Ocean (GWh)
A10: 8 | B10: Existing RE: Other Sources (GWh)
A11: 9 | B11: Existing RE: TOTAL (GWh)
A12: 10 | B12: Projected RE: Biomass (GWh)
A13: 11 | B13: Projected RE: Hydro (GWh)
A14: 12 | B14: Projected RE: LFG (GWh)
A15: 13 | B15: Projected RE: Solar PV (GWh)
A16: 14 | B16: Projected RE: Wind (GWh)
A17: 15 | B17: Projected RE: WTE (GWh)
A18: 16 | B18: Projected RE: Ocean (GWh)
A19: 17 | B19: Projected RE: Other Sources (GWh)
A20: 18 | B20: Projected RE: TOTAL 2030 (GWh)
A21: 19 | B21: Projected RE: TOTAL 2030+ (GWh)
A22: 20 | B22: BAU: Modelled Demand-Side Modelled (GWh)
A23: 21 | B23: EE Estimated (GWh)
A24: 22 | B24: BAU: Baseline (BAU - Existing RE) (GWh)
A25: 23 | B25: Sc1: Energy Consumed thru' EE (GWh)
A26: 24 | B26: Sc2: Energy Consumed thru' EE and Wind (GWh)
A27: 25 | B27: Sc3: Energy Consumed thru' EE, Wind and Solar (GWh)
A28: 26 | B28: Sc4: Energy Consumed thru' EE, Wind, Solar, and WTE (GWh)
A29: 27 | B29: Sc5: Energy Consumed thru' EE, Wind, Solar, WTE and Biomass (GWh)
A30: 28 | B30: Sc6: Energy Consumed thru' EE, Wind, Solar, WTE, Biomass and RE2030+ (GWh)
A31: 29 | B31: BAU: GHG Emissions (Gg CO2e)
A32: 30 | B32: Sc1: GHG Emission Reduction with EE (Gg CO2e)
A33: 31 | B33: Sc2: GHG Emission Reduction with EE and Wind (Gg CO2e)
A34: 32 | B34: Sc3: GHG Emission Reduction with EE, Wind and Solar (Gg CO2e)
A35: 33 | B35: Sc4: GHG Emission Reduction with EE, Wind, Solar and WTE (Gg CO2e)
A36: 34 | B36: Sc5: GHG Emission Reduction with EE, Wind, Solar, WTE, and Biomass (Gg CO2e)
A37: 35 | B37: Sc6: GHG Emission Reduction with EE, Wind, Solar, WTE, Biomass, and added RE 2030+ (Gg CO2e)
A38: 36 | B38: GHG Emission Reduction - Supply side RE 2030 (Gg CO2e)
A39: 37 | B39: BAU: GHG Emissions (Gg CO2e)
A40: 38 | B40: Sc1: GHG Emissions with EE (Gg CO2e)
A41: 39 | B41: Sc2: GHG Emissions with EE and Wind (Gg CO2e)
A42: 40 | B42: Sc3: GHG Emissions with EE, Wind and Solar (Gg CO2e)
A43: 41 | B43: Sc4: GHG Emissions with EE, Wind, Solar and WTE (Gg CO2e)
A44: 42 | B44: Sc5: GHG Emissions with EE, Wind, Solar, WTE, and Biomass (Gg CO2e)
A45: 43 | B45: Sc6: GHG Emissions with EE, Wind, Solar, WTE, Biomass, and added RE 2030+ (Gg CO2e)

Sheet All TNC Plots (hidden)
A1: YEAR | B1: Existing RE: Biomass (GWh) | C1: Existing RE: Hydro (GWh) | D1: Existing RE: LFG (GWh) | E1: Existing RE: Solar PV (GWh) | F1: Existing RE: Wind (GWh) | G1: Existing RE: WTE (GWh) | H1: Existing RE: Ocean (GWh) | I1: Existing RE: Other Sources (GWh) | J1: Existing RE: TOTAL (GWh) | K1: Projected RE: Biomass (GWh) | L1: Projected RE: Hydro (GWh) | M1: Projected RE: LFG (GWh) | N1: Projected RE: Solar PV (GWh) | O1: Projected RE: Wind (GWh) | P1: Projected RE: WTE (GWh) | Q1: Projected RE: Ocean (GWh) | R1: Projected RE: Other Sources (GWh) | S1: Projected RE: TOTAL 2030 (GWh) | T1: Projected RE: TOTAL 2030+ (GWh) | U1: Demand-Side Modelled (GWh) | V1: EE Estimated (GWh) | W1: Baseline (BAU - Existing RE) (GWh) | X1: Energy Consumed thru' EE (GWh) | Y1: Energy Consumed thru' EE and Wind (GWh) | Z1: Energy Consumed thru' EE, Wind and Solar (GWh) | AA1: Energy Consumed thru' EE, Wind, Solar, and WTE (GWh) | AB1: Energy Consumed thru' EE, Wind, Solar, WTE and Biomass (GWh) | AC1: Energy Consumed thru' EE, Wind, Solar, WTE, Biomass and RE2030+ (GWh) | AD1: GHG Emissions (Gg CO2e) | AE1: GHG Emission Reduction with EE (Gg CO2e) | AF1: GHG Emission Reduction and Wind (Gg CO2e) | AG1: GHG Emission Reduction, Wind and Solar (Gg CO2e) | AH1: GHG Emission Reduction, Wind, Solar and WTE (Gg CO2e) | AI1: GHG Emission Reduction, Wind, Solar, WTE, and Biomass (Gg CO2e) | AJ1: GHG Emission Reduction, Wind, Solar, WTE, Biomass, and added RE 2030+ (Gg CO2e) | AK1: GHG Emission Reduction - Supply side RE 2030 (Gg CO2e) | AL1: GHG Emissions (Gg CO2e) | AM1: GHG Emissions with EE (Gg CO2e) | AN1: GHG Emissions with EE and Wind (Gg CO2e) | AO1: GHG Emissions with EE, Wind and Solar (Gg CO2e) | AP1: GHG Emissions with EE, Wind, Solar and WTE (Gg CO2e) | AQ1: GHG Emissions with EE, Wind, Solar, WTE, and Biomass (Gg CO2e) | AR1: GHG Emissions with EE, Wind, Solar, WTE, Biomass, and added RE 2030+ (Gg CO2e) | AS1: Combined Existing and Projected Biomass (GWh) | AT1: Combined Existing and Projected Hydro (GWh) | AU1: Combined Existing and Projected LFG (GWh) | AV1: Combined Existing and Projected Solar PV (GWh) | AW1: Combined Existing and Projected Wind (GWh) | AX1: Combined Existing and Projected WTE (GWh) | AY1: Combined Existing and Projected Ocean (GWh) | AZ1: Combined Existing and Projected Other Sources (GWh) | BA1: Combined Existing and Projected RE (GWh) | BB1: Combined Existing and Projected RE2030+ (GWh)
A2: TNC | B2: DATA | C2: DATA | D2: DATA | E2: DATA | F2: DATA | G2: DATA | H2: DATA | I2: DATA | J2: DATA | K2: DATA | L2: DATA | M2: DATA | N2: DATA | O2: DATA | P2: DATA | Q2: DATA | R2: DATA | S2: DATA | T2: DATA | U2: BAU | V2: BAU | W2: BAU | X2: SC1 | Y2: SC2 | Z2: SC3 | AA2: SC4 | AB2: SC5 | AC2: SC6 | AD2: BAU | AE2: SC1 | AF2: SC2 | AG2: SC3 | AH2: SC4 | AI2: SC5 | AJ2: SC6 | AK2: OTHER | AL2: BAU | AM2: SC1 | AN2: SC2 | AO2: SC3 | AP2: SC4 | AQ2: SC5 | AR2: SC6 | AS2: DATA+ | AT2: DATA+ | AU2: DATA+ | AV2: DATA+ | AW2: DATA+ | AX2: DATA+ | AY2: DATA+ | AZ2: DATA+ | BA2: DATA+ | BB2: DATA+
B3: 1 | C3: 2 | D3: 3 | E3: 4 | F3: 5 | G3: 6 | H3: 7 | I3: 8 | J3: 9 | K3: 10 | L3: 11 | M3: 12 | N3: 13 | O3: 14 | P3: 15 | Q3: 16 | R3: 17 | S3: 18 | T3: 19 | U3: 20 | V3: 21 | W3: 22 | X3: 23 | Y3: 24 | Z3: 25 | AA3: 26 | AB3: 27 | AC3: 28 | AD3: 29 | AE3: 30 | AF3: 31 | AG3: 32 | AH3: 33 | AI3: 34 | AJ3: 35 | AK3: 36 | AL3: 37 | AM3: 38 | AN3: 39 | AO3: 40 | AP3: 41 | AQ3: 42 | AR3: 43 | AS3: 44 | AT3: 45 | AU3: 46 | AV3: 47 | AW3: 48 | AX3: 49 | AY3: 50 | AZ3: 51 | BA3: 52 | BB3: 53
A4: ='TNC Scenarios'!A6 -> 2014 | B4: ='TNC Scenarios'!B6 -> 456.2 | C4: ='TNC Scenarios'!C6 -> 90.8 | D4: ='TNC Scenarios'!D6 -> 21.3 | E4: ='TNC Scenarios'!E6 -> 24.6 | F4: ='TNC Scenarios'!F6 -> 3.2 | G4: ='TNC Scenarios'!G6 -> 0 | H4: ='TNC Scenarios'!H6 -> 0 | I4: ='TNC Scenarios'!I6 -> 0 | J4: ='TNC Scenarios'!J6 -> 592.9 | K4: ='TNC Scenarios'!L6 -> 0 | L4: ='TNC Scenarios'!M6 -> 0 | M4: ='TNC Scenarios'!N6 -> 0 | N4: ='TNC Scenarios'!O6 -> 0 | O4: ='TNC Scenarios'!P6 -> 0 | P4: ='TNC Scenarios'!Q6 -> 0 | Q4: ='TNC Scenarios'!R6 -> 0 | R4: ='TNC Scenarios'!S6 -> 0 | S4: ='TNC Scenarios'!T6 -> 0 | T4: ='TNC Scenarios'!U6 -> 0 | U4: ='TNC Scenarios'!W6 -> 3019 | V4: ='TNC Scenarios'!AB6 -> 0 | W4: ='TNC Scenarios'!AI6 -> 2422.9 | X4: ='TNC Scenarios'!AU6 -> 2422.9 | Y4: ='TNC Scenarios'!AV6 -> 2422.9 | Z4: ='TNC Scenarios'!AW6 -> 2422.9 | AA4: ='TNC Scenarios'!AX6 -> 2422.9 | AB4: ='TNC Scenarios'!AY6 -> 2422.9 | AC4: ='TNC Scenarios'!AZ6 -> 2422.9 | AD4: ='TNC Scenarios'!BB6 -> 2340.76369 | AE4: ='TNC Scenarios'!BC6 -> 0 | AF4: ='TNC Scenarios'!BD6 -> 0 | AG4: ='TNC Scenarios'!BE6 -> 0 | AH4: ='TNC Scenarios'!BF6 -> 0 | AI4: ='TNC Scenarios'!BG6 -> 0 | AJ4: ='TNC Scenarios'!BH6 -> 0 | AK4: ='TNC Scenarios'!BI6 -> 0 | AL4: ='TNC Scenarios'!BK6 -> 2340.76369 | AM4: ='TNC Scenarios'!BL6 -> 2340.76369 | AN4: ='TNC Scenarios'!BM6 -> 2340.76369 | AO4: ='TNC Scenarios'!BN6 -> 2340.76369 | AP4: ='TNC Scenarios'!BO6 -> 2340.76369 | AQ4: ='TNC Scenarios'!BP6 -> 2340.76369 | AR4: ='TNC Scenarios'!BQ6 -> 2340.76369 | AS4: =B4+K4 -> 456.2 | AT4: =C4+L4 -> 90.8 | AU4: 21.3 | AV4: 24.6 | AW4: 3.2 | AX4: 0 | AY4: 0 | AZ4: 0 | BA4: 592.9 | BB4: =J4+T4 -> 592.9
A5: ='TNC Scenarios'!A7 -> 2015 | B5: ='TNC Scenarios'!B7 -> 509.8 | C5: ='TNC Scenarios'!C7 -> 121.9 | D5: ='TNC Scenarios'!D7 -> 20.4 | E5: ='TNC Scenarios'!E7 -> 25.9 | F5: ='TNC Scenarios'!F7 -> 2.7 | G5: ='TNC Scenarios'!G7 -> 0 | H5: ='TNC Scenarios'!H7 -> 0 | I5: ='TNC Scenarios'!I7 -> 0 | J5: ='TNC Scenarios'!J7 -> 678 | K5: ='TNC Scenarios'!L7 -> 0 | L5: ='TNC Scenarios'!M7 -> 0 | M5: ='TNC Scenarios'!N7 -> 0 | N5: ='TNC Scenarios'!O7 -> 0 | O5: ='TNC Scenarios'!P7 -> 0 | P5: ='TNC Scenarios'!Q7 -> 0 | Q5: ='TNC Scenarios'!R7 -> 0 | R5: ='TNC Scenarios'!S7 -> 0 | S5: ='TNC Scenarios'!T7 -> 0 | T5: ='TNC Scenarios'!U7 -> 0 | U5: ='TNC Scenarios'!W7 -> 3138 | V5: ='TNC Scenarios'!AB7 -> 33 | W5: ='TNC Scenarios'!AI7 -> 2457.3 | X5: ='TNC Scenarios'!AU7 -> 2424.3 | Y5: ='TNC Scenarios'!AV7 -> 2424.3 | Z5: ='TNC Scenarios'!AW7 -> 2424.3 | AA5: ='TNC Scenarios'!AX7 -> 2424.3 | AB5: ='TNC Scenarios'!AY7 -> 2424.3 | AC5: ='TNC Scenarios'!AZ7 -> 2424.3 | AD5: ='TNC Scenarios'!BB7 -> 2373.99753 | AE5: ='TNC Scenarios'!BC7 -> 30.195 | AF5: ='TNC Scenarios'!BD7 -> 0 | AG5: ='TNC Scenarios'!BE7 -> 0 | AH5: ='TNC Scenarios'!BF7 -> 0 | AI5: ='TNC Scenarios'!BG7 -> 0 | AJ5: ='TNC Scenarios'!BH7 -> 0 | AK5: ='TNC Scenarios'!BI7 -> 0 | AL5: ='TNC Scenarios'!BK7 -> 2373.99753 | AM5: ='TNC Scenarios'!BL7 -> 2343.80253 | AN5: ='TNC Scenarios'!BM7 -> 2343.80253 | AO5: ='TNC Scenarios'!BN7 -> 2343.80253 | AP5: ='TNC Scenarios'!BO7 -> 2343.80253 | AQ5: ='TNC Scenarios'!BP7 -> 2343.80253 | AR5: ='TNC Scenarios'!BQ7 -> 2343.80253 | AS5: =B5+K5 -> 509.8 | AT5: =C5+L5 -> 121.9 | AU5: =D5+M5 -> 20.4 | AV5: =E5+N5 -> 25.9 | AW5: =F5+O5 -> 2.7 | AX5: =G5+P5 -> 0 | AY5: =H5+Q5 -> 0 | AZ5: =I5+R5 -> 0 | BA5: =J5+S5 -> 678 | BB5: =J5+T5 -> 678
A6: ='TNC Scenarios'!A8 -> 2016 | B6: ='TNC Scenarios'!B8 -> 497 | C6: ='TNC Scenarios'!C8 -> 99.5 | D6: ='TNC Scenarios'!D8 -> 18.7 | E6: ='TNC Scenarios'!E8 -> 30.3 | F6: ='TNC Scenarios'!F8 -> 18 | G6: ='TNC Scenarios'!G8 -> 0 | H6: ='TNC Scenarios'!H8 -> 0 | I6: ='TNC Scenarios'!I8 -> 0 | J6: ='TNC Scenarios'!J8 -> 645.5 | K6: ='TNC Scenarios'!L8 -> 0 | L6: ='TNC Scenarios'!M8 -> 0 | M6: ='TNC Scenarios'!N8 -> 0 | N6: ='TNC Scenarios'!O8 -> 0 | O6: ='TNC Scenarios'!P8 -> 0 | P6: ='TNC Scenarios'!Q8 -> 0 | Q6: ='TNC Scenarios'!R8 -> 0 | R6: ='TNC Scenarios'!S8 -> 0 | S6: ='TNC Scenarios'!T8 -> 0 | T6: ='TNC Scenarios'!U8 -> 0 | U6: ='TNC Scenarios'!W8 -> 3276 | V6: ='TNC Scenarios'!AB8 -> 73.6 | W6: ='TNC Scenarios'!AI8 -> 2612.5 | X6: ='TNC Scenarios'!AU8 -> 2538.9 | Y6: ='TNC Scenarios'!AV8 -> 2538.9 | Z6: ='TNC Scenarios'!AW8 -> 2538.9 | AA6: ='TNC Scenarios'!AX8 -> 2538.9 | AB6: ='TNC Scenarios'!AY8 -> 2538.9 | AC6: ='TNC Scenarios'!AZ8 -> 2538.9 | AD6: ='TNC Scenarios'!BB8 -> 2523.93625 | AE6: ='TNC Scenarios'!BC8 -> 67.344 | AF6: ='TNC Scenarios'!BD8 -> 0 | AG6: ='TNC Scenarios'!BE8 -> 0 | AH6: ='TNC Scenarios'!BF8 -> 0 | AI6: ='TNC Scenarios'!BG8 -> 0 | AJ6: ='TNC Scenarios'!BH8 -> 0 | AK6: ='TNC Scenarios'!BI8 -> 0 | AL6: ='TNC Scenarios'!BK8 -> 2523.93625 | AM6: ='TNC Scenarios'!BL8 -> 2456.59225 | AN6: ='TNC Scenarios'!BM8 -> 2456.59225 | AO6: ='TNC Scenarios'!BN8 -> 2456.59225 | AP6: ='TNC Scenarios'!BO8 -> 2456.59225 | AQ6: ='TNC Scenarios'!BP8 -> 2456.59225 | AR6: ='TNC Scenarios'!BQ8 -> 2456.59225 | AS6: 497 | AT6: 99.5 | AU6: 18.7 | AV6: 30.3 | AW6: 18 | AX6: 0 | AY6: 0 | AZ6: 0 | BA6: 645.5 | BB6: 645.5
A7: ='TNC Scenarios'!A9 -> 2017 | B7: ='TNC Scenarios'!B9 -> 520 | C7: ='TNC Scenarios'!C9 -> 105 | D7: ='TNC Scenarios'!D9 -> 21 | E7: ='TNC Scenarios'!E9 -> 30.3 | F7: ='TNC Scenarios'!F9 -> 18 | G7: ='TNC Scenarios'!G9 -> 0 | H7: ='TNC Scenarios'!H9 -> 0 | I7: ='TNC Scenarios'!I9 -> 0 | J7: ='TNC Scenarios'!J9 -> 676.3 | K7: ='TNC Scenarios'!L9 -> 0 | L7: ='TNC Scenarios'!M9 -> 0 | M7: ='TNC Scenarios'!N9 -> 0 | N7: ='TNC Scenarios'!O9 -> 16 | O7: ='TNC Scenarios'!P9 -> 40 | P7: ='TNC Scenarios'!Q9 -> 0 | Q7: ='TNC Scenarios'!R9 -> 0 | R7: ='TNC Scenarios'!S9 -> 0 | S7: ='TNC Scenarios'!T9 -> 56 | T7: ='TNC Scenarios'!U9 -> 56 | U7: ='TNC Scenarios'!W9 -> 3417 | V7: ='TNC Scenarios'!AB9 -> 114.2 | W7: ='TNC Scenarios'!AI9 -> 2722.7 | X7: ='TNC Scenarios'!AU9 -> 2608.5 | Y7: ='TNC Scenarios'!AV9 -> 2568.5 | Z7: ='TNC Scenarios'!AW9 -> 2552.5 | AA7: ='TNC Scenarios'!AX9 -> 2552.5 | AB7: ='TNC Scenarios'!AY9 -> 2552.5 | AC7: ='TNC Scenarios'!AZ9 -> 2552.5 | AD7: ='TNC Scenarios'!BB9 -> 2630.40047 | AE7: ='TNC Scenarios'!BC9 -> 104.493 | AF7: ='TNC Scenarios'!BD9 -> 38.644 | AG7: ='TNC Scenarios'!BE9 -> 15.4576 | AH7: ='TNC Scenarios'!BF9 -> 0 | AI7: ='TNC Scenarios'!BG9 -> 0 | AJ7: ='TNC Scenarios'!BH9 -> 0 | AK7: ='TNC Scenarios'!BI9 -> 0 | AL7: ='TNC Scenarios'!BK9 -> 2630.40047 | AM7: ='TNC Scenarios'!BL9 -> 2525.90747 | AN7: ='TNC Scenarios'!BM9 -> 2487.26347 | AO7: ='TNC Scenarios'!BN9 -> 2471.80587 | AP7: ='TNC Scenarios'!BO9 -> 2471.80587 | AQ7: ='TNC Scenarios'!BP9 -> 2471.80587 | AR7: ='TNC Scenarios'!BQ9 -> 2471.80587 | AS7: 520 | AT7: 105 | AU7: 21 | AV7: 46.3 | AW7: 58 | AX7: 0 | AY7: 0 | AZ7: 0 | BA7: 732.3 | BB7: 732.3
A8: ='TNC Scenarios'!A10 -> 2018 | B8: ='TNC Scenarios'!B10 -> 520 | C8: ='TNC Scenarios'!C10 -> 105 | D8: ='TNC Scenarios'!D10 -> 21 | E8: ='TNC Scenarios'!E10 -> 30.3 | F8: ='TNC Scenarios'!F10 -> 18 | G8: ='TNC Scenarios'!G10 -> 0 | H8: ='TNC Scenarios'!H10 -> 0 | I8: ='TNC Scenarios'!I10 -> 0 | J8: ='TNC Scenarios'!J10 -> 676.3 | K8: ='TNC Scenarios'!L10 -> 0 | L8: ='TNC Scenarios'!M10 -> 0 | M8: ='TNC Scenarios'!N10 -> 0 | N8: ='TNC Scenarios'!O10 -> 41 | O8: ='TNC Scenarios'!P10 -> 66 | P8: ='TNC Scenarios'!Q10 -> 0 | Q8: ='TNC Scenarios'!R10 -> 0 | R8: ='TNC Scenarios'!S10 -> 0 | S8: ='TNC Scenarios'!T10 -> 107 | T8: ='TNC Scenarios'!U10 -> 107 | U8: ='TNC Scenarios'!W10 -> 3540 | V8: ='TNC Scenarios'!AB10 -> 154.8 | W8: ='TNC Scenarios'!AI10 -> 2845.7 | X8: ='TNC Scenarios'!AU10 -> 2690.9 | Y8: ='TNC Scenarios'!AV10 -> 2624.9 | Z8: ='TNC Scenarios'!AW10 -> 2583.9 | AA8: ='TNC Scenarios'!AX10 -> 2583.9 | AB8: ='TNC Scenarios'!AY10 -> 2583.9 | AC8: ='TNC Scenarios'!AZ10 -> 2583.9 | AD8: ='TNC Scenarios'!BB10 -> 2749.23077 | AE8: ='TNC Scenarios'!BC10 -> 141.642 | AF8: ='TNC Scenarios'!BD10 -> 63.7626 | AG8: ='TNC Scenarios'!BE10 -> 39.6101 | AH8: ='TNC Scenarios'!BF10 -> 0 | AI8: ='TNC Scenarios'!BG10 -> 0 | AJ8: ='TNC Scenarios'!BH10 -> 0 | AK8: ='TNC Scenarios'!BI10 -> 0 | AL8: ='TNC Scenarios'!BK10 -> 2749.23077 | AM8: ='TNC Scenarios'!BL10 -> 2607.58877 | AN8: ='TNC Scenarios'!BM10 -> 2543.82617 | AO8: ='TNC Scenarios'!BN10 -> 2504.21607 | AP8: ='TNC Scenarios'!BO10 -> 2504.21607 | AQ8: ='TNC Scenarios'!BP10 -> 2504.21607 | AR8: ='TNC Scenarios'!BQ10 -> 2504.21607 | AS8: 520 | AT8: 105 | AU8: 21 | AV8: 71.3 | AW8: 84 | AX8: 0 | AY8: 0 | AZ8: 0 | BA8: 783.3 | BB8: 783.3
A9: ='TNC Scenarios'!A11 -> 2019 | B9: ='TNC Scenarios'!B11 -> 520 | C9: ='TNC Scenarios'!C11 -> 105 | D9: ='TNC Scenarios'!D11 -> 21 | E9: ='TNC Scenarios'!E11 -> 30.3 | F9: ='TNC Scenarios'!F11 -> 18 | G9: ='TNC Scenarios'!G11 -> 0 | H9: ='TNC Scenarios'!H11 -> 0 | I9: ='TNC Scenarios'!I11 -> 0 | J9: ='TNC Scenarios'!J11 -> 676.3 | K9: ='TNC Scenarios'!L11 -> 0 | L9: ='TNC Scenarios'!M11 -> 0 | M9: ='TNC Scenarios'!N11 -> 0 | N9: ='TNC Scenarios'!O11 -> 66 | O9: ='TNC Scenarios'!P11 -> 66 | P9: ='TNC Scenarios'!Q11 -> 240 | Q9: ='TNC Scenarios'!R11 -> 0 | R9: ='TNC Scenarios'!S11 -> 0 | S9: ='TNC Scenarios'!T11 -> 372 | T9: ='TNC Scenarios'!U11 -> 372 | U9: ='TNC Scenarios'!W11 -> 3660 | V9: ='TNC Scenarios'!AB11 -> 195.4 | W9: ='TNC Scenarios'!AI11 -> 2965.7 | X9: ='TNC Scenarios'!AU11 -> 2770.3 | Y9: ='TNC Scenarios'!AV11 -> 2704.3 | Z9: ='TNC Scenarios'!AW11 -> 2638.3 | AA9: ='TNC Scenarios'!AX11 -> 2398.3 | AB9: ='TNC Scenarios'!AY11 -> 2398.3 | AC9: ='TNC Scenarios'!AZ11 -> 2398.3 | AD9: ='TNC Scenarios'!BB11 -> 2865.16277 | AE9: ='TNC Scenarios'!BC11 -> 178.791 | AF9: ='TNC Scenarios'!BD11 -> 63.7626 | AG9: ='TNC Scenarios'!BE11 -> 63.7626 | AH9: ='TNC Scenarios'!BF11 -> 219.6 | AI9: ='TNC Scenarios'!BG11 -> 0 | AJ9: ='TNC Scenarios'!BH11 -> 0 | AK9: ='TNC Scenarios'!BI11 -> 0 | AL9: ='TNC Scenarios'!BK11 -> 2865.16277 | AM9: ='TNC Scenarios'!BL11 -> 2686.37177 | AN9: ='TNC Scenarios'!BM11 -> 2622.60917 | AO9: ='TNC Scenarios'!BN11 -> 2558.84657 | AP9: ='TNC Scenarios'!BO11 -> 2339.24657 | AQ9: ='TNC Scenarios'!BP11 -> 2339.24657 | AR9: ='TNC Scenarios'!BQ11 -> 2339.24657 | AS9: 520 | AT9: 105 | AU9: 21 | AV9: 96.3 | AW9: 84 | AX9: 240 | AY9: 0 | AZ9: 0 | BA9: 1048.3 | BB9: 1048.3
A10: ='TNC Scenarios'!A12 -> 2020 | B10: ='TNC Scenarios'!B12 -> 520 | C10: ='TNC Scenarios'!C12 -> 105 | D10: ='TNC Scenarios'!D12 -> 21 | E10: ='TNC Scenarios'!E12 -> 30.3 | F10: ='TNC Scenarios'!F12 -> 18 | G10: ='TNC Scenarios'!G12 -> 0 | H10: ='TNC Scenarios'!H12 -> 0 | I10: ='TNC Scenarios'!I12 -> 0 | J10: ='TNC Scenarios'!J12 -> 676.3 | K10: ='TNC Scenarios'!L12 -> 0 | L10: ='TNC Scenarios'!M12 -> 0 | M10: ='TNC Scenarios'!N12 -> 0 | N10: ='TNC Scenarios'!O12 -> 123 | O10: ='TNC Scenarios'!P12 -> 66 | P10: ='TNC Scenarios'!Q12 -> 240 | Q10: ='TNC Scenarios'!R12 -> 0 | R10: ='TNC Scenarios'!S12 -> 0 | S10: ='TNC Scenarios'!T12 -> 429 | T10: ='TNC Scenarios'!U12 -> 429 | U10: ='TNC Scenarios'!W12 -> 3781 | V10: ='TNC Scenarios'!AB12 -> 236 | W10: ='TNC Scenarios'!AI12 -> 3086.7 | X10: ='TNC Scenarios'!AU12 -> 2850.7 | Y10: ='TNC Scenarios'!AV12 -> 2784.7 | Z10: ='TNC Scenarios'!AW12 -> 2661.7 | AA10: ='TNC Scenarios'!AX12 -> 2421.7 | AB10: ='TNC Scenarios'!AY12 -> 2421.7 | AC10: ='TNC Scenarios'!AZ12 -> 2421.7 | AD10: ='TNC Scenarios'!BB12 -> 2982.06087 | AE10: ='TNC Scenarios'!BC12 -> 215.94 | AF10: ='TNC Scenarios'!BD12 -> 63.7626 | AG10: ='TNC Scenarios'!BE12 -> 118.8303 | AH10: ='TNC Scenarios'!BF12 -> 219.6 | AI10: ='TNC Scenarios'!BG12 -> 0 | AJ10: ='TNC Scenarios'!BH12 -> 0 | AK10: ='TNC Scenarios'!BI12 -> 402.1929 | AL10: ='TNC Scenarios'!BK12 -> 2982.06087 | AM10: ='TNC Scenarios'!BL12 -> 2766.12087 | AN10: ='TNC Scenarios'!BM12 -> 2702.35827 | AO10: ='TNC Scenarios'!BN12 -> 2583.52797 | AP10: ='TNC Scenarios'!BO12 -> 2363.92797 | AQ10: ='TNC Scenarios'!BP12 -> 2363.92797 | AR10: ='TNC Scenarios'!BQ12 -> 2363.92797 | AS10: 520 | AT10: 105 | AU10: 21 | AV10: 153.3 | AW10: 84 | AX10: 240 | AY10: 0 | AZ10: 0 | BA10: 1105.3 | BB10: 1105.3
A11: ='TNC Scenarios'!A13 -> 2021 | B11: ='TNC Scenarios'!B13 -> 520 | C11: ='TNC Scenarios'!C13 -> 105 | D11: ='TNC Scenarios'!D13 -> 21 | E11: ='TNC Scenarios'!E13 -> 30.3 | F11: ='TNC Scenarios'!F13 -> 18 | G11: ='TNC Scenarios'!G13 -> 0 | H11: ='TNC Scenarios'!H13 -> 0 | I11: ='TNC Scenarios'!I13 -> 0 | J11: ='TNC Scenarios'!J13 -> 676.3 | K11: ='TNC Scenarios'!L13 -> 120 | L11: ='TNC Scenarios'!M13 -> 0 | M11: ='TNC Scenarios'!N13 -> 0 | N11: ='TNC Scenarios'!O13 -> 123 | O11: ='TNC Scenarios'!P13 -> 66 | P11: ='TNC Scenarios'!Q13 -> 240 | Q11: ='TNC Scenarios'!R13 -> 0 | R11: ='TNC Scenarios'!S13 -> 0 | S11: ='TNC Scenarios'!T13 -> 549 | T11: ='TNC Scenarios'!U13 -> 549 | U11: ='TNC Scenarios'!W13 -> 3874 | V11: ='TNC Scenarios'!AB13 -> 289.2 | W11: ='TNC Scenarios'!AI13 -> 3179.7 | X11: ='TNC Scenarios'!AU13 -> 2890.5 | Y11: ='TNC Scenarios'!AV13 -> 2824.5 | Z11: ='TNC Scenarios'!AW13 -> 2701.5 | AA11: ='TNC Scenarios'!AX13 -> 2461.5 | AB11: ='TNC Scenarios'!AY13 -> 2341.5 | AC11: ='TNC Scenarios'!AZ13 -> 2341.5 | AD11: ='TNC Scenarios'!BB13 -> 3071.90817 | AE11: ='TNC Scenarios'!BC13 -> 264.618 | AF11: ='TNC Scenarios'!BD13 -> 63.7626 | AG11: ='TNC Scenarios'!BE13 -> 118.8303 | AH11: ='TNC Scenarios'!BF13 -> 219.6 | AI11: ='TNC Scenarios'!BG13 -> 103.68 | AJ11: ='TNC Scenarios'!BH13 -> 0 | AK11: ='TNC Scenarios'!BI13 -> 505.8729 | AL11: ='TNC Scenarios'!BK13 -> 3071.90817 | AM11: ='TNC Scenarios'!BL13 -> 2807.29017 | AN11: ='TNC Scenarios'!BM13 -> 2743.52757 | AO11: ='TNC Scenarios'!BN13 -> 2624.69727 | AP11: ='TNC Scenarios'!BO13 -> 2405.09727 | AQ11: ='TNC Scenarios'!BP13 -> 2301.41727 | AR11: ='TNC Scenarios'!BQ13 -> 2301.41727 | AS11: 640 | AT11: 105 | AU11: 21 | AV11: 153.3 | AW11: 84 | AX11: 240 | AY11: 0 | AZ11: 0 | BA11: 1225.3 | BB11: 1225.3
A12: ='TNC Scenarios'!A14 -> 2022 | B12: ='TNC Scenarios'!B14 -> 520 | C12: ='TNC Scenarios'!C14 -> 105 | D12: ='TNC Scenarios'!D14 -> 21 | E12: ='TNC Scenarios'!E14 -> 30.3 | F12: ='TNC Scenarios'!F14 -> 18 | G12: ='TNC Scenarios'!G14 -> 0 | H12: ='TNC Scenarios'!H14 -> 0 | I12: ='TNC Scenarios'!I14 -> 0 | J12: ='TNC Scenarios'!J14 -> 676.3 | K12: ='TNC Scenarios'!L14 -> 120 | L12: ='TNC Scenarios'!M14 -> 0 | M12: ='TNC Scenarios'!N14 -> 0 | N12: ='TNC Scenarios'!O14 -> 123 | O12: ='TNC Scenarios'!P14 -> 66 | P12: ='TNC Scenarios'!Q14 -> 240 | Q12: ='TNC Scenarios'!R14 -> 0 | R12: ='TNC Scenarios'!S14 -> 0 | S12: ='TNC Scenarios'!T14 -> 549 | T12: ='TNC Scenarios'!U14 -> 549 | U12: ='TNC Scenarios'!W14 -> 3967 | V12: ='TNC Scenarios'!AB14 -> 342.4 | W12: ='TNC Scenarios'!AI14 -> 3272.7 | X12: ='TNC Scenarios'!AU14 -> 2930.3 | Y12: ='TNC Scenarios'!AV14 -> 2864.3 | Z12: ='TNC Scenarios'!AW14 -> 2741.3 | AA12: ='TNC Scenarios'!AX14 -> 2501.3 | AB12: ='TNC Scenarios'!AY14 -> 2381.3 | AC12: ='TNC Scenarios'!AZ14 -> 2381.3 | AD12: ='TNC Scenarios'!BB14 -> 3161.75547 | AE12: ='TNC Scenarios'!BC14 -> 313.296 | AF12: ='TNC Scenarios'!BD14 -> 63.7626 | AG12: ='TNC Scenarios'!BE14 -> 118.8303 | AH12: ='TNC Scenarios'!BF14 -> 219.6 | AI12: ='TNC Scenarios'!BG14 -> 103.68 | AJ12: ='TNC Scenarios'!BH14 -> 0 | AK12: ='TNC Scenarios'!BI14 -> 505.8729 | AL12: ='TNC Scenarios'!BK14 -> 3161.75547 | AM12: ='TNC Scenarios'!BL14 -> 2848.45947 | AN12: ='TNC Scenarios'!BM14 -> 2784.69687 | AO12: ='TNC Scenarios'!BN14 -> 2665.86657 | AP12: ='TNC Scenarios'!BO14 -> 2446.26657 | AQ12: ='TNC Scenarios'!BP14 -> 2342.58657 | AR12: ='TNC Scenarios'!BQ14 -> 2342.58657 | AS12: 640 | AT12: 105 | AU12: 21 | AV12: 153.3 | AW12: 84 | AX12: 240 | AY12: 0 | AZ12: 0 | BA12: 1225.3 | BB12: 1225.3
A13: ='TNC Scenarios'!A15 -> 2023 | B13: ='TNC Scenarios'!B15 -> 520 | C13: ='TNC Scenarios'!C15 -> 105 | D13: ='TNC Scenarios'!D15 -> 21 | E13: ='TNC Scenarios'!E15 -> 30.3 | F13: ='TNC Scenarios'!F15 -> 18 | G13: ='TNC Scenarios'!G15 -> 0 | H13: ='TNC Scenarios'!H15 -> 0 | I13: ='TNC Scenarios'!I15 -> 0 | J13: ='TNC Scenarios'!J15 -> 676.3 | K13: ='TNC Scenarios'!L15 -> 120 | L13: ='TNC Scenarios'!M15 -> 0 | M13: ='TNC Scenarios'!N15 -> 0 | N13: ='TNC Scenarios'!O15 -> 123 | O13: ='TNC Scenarios'!P15 -> 66 | P13: ='TNC Scenarios'!Q15 -> 240 | Q13: ='TNC Scenarios'!R15 -> 0 | R13: ='TNC Scenarios'!S15 -> 0 | S13: ='TNC Scenarios'!T15 -> 549 | T13: ='TNC Scenarios'!U15 -> 549 | U13: ='TNC Scenarios'!W15 -> 4062 | V13: ='TNC Scenarios'!AB15 -> 395.6 | W13: ='TNC Scenarios'!AI15 -> 3367.7 | X13: ='TNC Scenarios'!AU15 -> 2972.1 | Y13: ='TNC Scenarios'!AV15 -> 2906.1 | Z13: ='TNC Scenarios'!AW15 -> 2783.1 | AA13: ='TNC Scenarios'!AX15 -> 2543.1 | AB13: ='TNC Scenarios'!AY15 -> 2423.1 | AC13: ='TNC Scenarios'!AZ15 -> 2423.1 | AD13: ='TNC Scenarios'!BB15 -> 3253.53497 | AE13: ='TNC Scenarios'!BC15 -> 361.974 | AF13: ='TNC Scenarios'!BD15 -> 63.7626 | AG13: ='TNC Scenarios'!BE15 -> 118.8303 | AH13: ='TNC Scenarios'!BF15 -> 219.6 | AI13: ='TNC Scenarios'!BG15 -> 103.68 | AJ13: ='TNC Scenarios'!BH15 -> 0 | AK13: ='TNC Scenarios'!BI15 -> 505.8729 | AL13: ='TNC Scenarios'!BK15 -> 3253.53497 | AM13: ='TNC Scenarios'!BL15 -> 2891.56097 | AN13: ='TNC Scenarios'!BM15 -> 2827.79837 | AO13: ='TNC Scenarios'!BN15 -> 2708.96807 | AP13: ='TNC Scenarios'!BO15 -> 2489.36807 | AQ13: ='TNC Scenarios'!BP15 -> 2385.68807 | AR13: ='TNC Scenarios'!BQ15 -> 2385.68807 | AS13: 640 | AT13: 105 | AU13: 21 | AV13: 153.3 | AW13: 84 | AX13: 240 | AY13: 0 | AZ13: 0 | BA13: 1225.3 | BB13: 1225.3
A14: ='TNC Scenarios'!A16 -> 2024 | B14: ='TNC Scenarios'!B16 -> 520 | C14: ='TNC Scenarios'!C16 -> 105 | D14: ='TNC Scenarios'!D16 -> 21 | E14: ='TNC Scenarios'!E16 -> 30.3 | F14: ='TNC Scenarios'!F16 -> 18 | G14: ='TNC Scenarios'!G16 -> 0 | H14: ='TNC Scenarios'!H16 -> 0 | I14: ='TNC Scenarios'!I16 -> 0 | J14: ='TNC Scenarios'!J16 -> 676.3 | K14: ='TNC Scenarios'!L16 -> 120 | L14: ='TNC Scenarios'!M16 -> 0 | M14: ='TNC Scenarios'!N16 -> 0 | N14: ='TNC Scenarios'!O16 -> 123 | O14: ='TNC Scenarios'!P16 -> 66 | P14: ='TNC Scenarios'!Q16 -> 240 | Q14: ='TNC Scenarios'!R16 -> 0 | R14: ='TNC Scenarios'!S16 -> 0 | S14: ='TNC Scenarios'!T16 -> 549 | T14: ='TNC Scenarios'!U16 -> 549 | U14: ='TNC Scenarios'!W16 -> 4161 | V14: ='TNC Scenarios'!AB16 -> 448.8 | W14: ='TNC Scenarios'!AI16 -> 3466.7 | X14: ='TNC Scenarios'!AU16 -> 3017.9 | Y14: ='TNC Scenarios'!AV16 -> 2951.9 | Z14: ='TNC Scenarios'!AW16 -> 2828.9 | AA14: ='TNC Scenarios'!AX16 -> 2588.9 | AB14: ='TNC Scenarios'!AY16 -> 2468.9 | AC14: ='TNC Scenarios'!AZ16 -> 2468.9 | AD14: ='TNC Scenarios'!BB16 -> 3349.17887 | AE14: ='TNC Scenarios'!BC16 -> 410.652 | AF14: ='TNC Scenarios'!BD16 -> 63.7626 | AG14: ='TNC Scenarios'!BE16 -> 118.8303 | AH14: ='TNC Scenarios'!BF16 -> 219.6 | AI14: ='TNC Scenarios'!BG16 -> 103.68 | AJ14: ='TNC Scenarios'!BH16 -> 0 | AK14: ='TNC Scenarios'!BI16 -> 505.8729 | AL14: ='TNC Scenarios'!BK16 -> 3349.17887 | AM14: ='TNC Scenarios'!BL16 -> 2938.52687 | AN14: ='TNC Scenarios'!BM16 -> 2874.76427 | AO14: ='TNC Scenarios'!BN16 -> 2755.93397 | AP14: ='TNC Scenarios'!BO16 -> 2536.33397 | AQ14: ='TNC Scenarios'!BP16 -> 2432.65397 | AR14: ='TNC Scenarios'!BQ16 -> 2432.65397 | AS14: 640 | AT14: 105 | AU14: 21 | AV14: 153.3 | AW14: 84 | AX14: 240 | AY14: 0 | AZ14: 0 | BA14: 1225.3 | BB14: 1225.3
A15: ='TNC Scenarios'!A17 -> 2025 | B15: ='TNC Scenarios'!B17 -> 520 | C15: ='TNC Scenarios'!C17 -> 105 | D15: ='TNC Scenarios'!D17 -> 21 | E15: ='TNC Scenarios'!E17 -> 30.3 | F15: ='TNC Scenarios'!F17 -> 18 | G15: ='TNC Scenarios'!G17 -> 0 | H15: ='TNC Scenarios'!H17 -> 0 | I15: ='TNC Scenarios'!I17 -> 0 | J15: ='TNC Scenarios'!J17 -> 676.3 | K15: ='TNC Scenarios'!L17 -> 120 | L15: ='TNC Scenarios'!M17 -> 0 | M15: ='TNC Scenarios'!N17 -> 0 | N15: ='TNC Scenarios'!O17 -> 123 | O15: ='TNC Scenarios'!P17 -> 66 | P15: ='TNC Scenarios'!Q17 -> 240 | Q15: ='TNC Scenarios'!R17 -> 0 | R15: ='TNC Scenarios'!S17 -> 0 | S15: ='TNC Scenarios'!T17 -> 549 | T15: ='TNC Scenarios'!U17 -> 549 | U15: ='TNC Scenarios'!W17 -> 4264 | V15: ='TNC Scenarios'!AB17 -> 502 | W15: ='TNC Scenarios'!AI17 -> 3569.7 | X15: ='TNC Scenarios'!AU17 -> 3067.7 | Y15: ='TNC Scenarios'!AV17 -> 3001.7 | Z15: ='TNC Scenarios'!AW17 -> 2878.7 | AA15: ='TNC Scenarios'!AX17 -> 2638.7 | AB15: ='TNC Scenarios'!AY17 -> 2518.7 | AC15: ='TNC Scenarios'!AZ17 -> 2518.7 | AD15: ='TNC Scenarios'!BB17 -> 3448.68717 | AE15: ='TNC Scenarios'!BC17 -> 459.33 | AF15: ='TNC Scenarios'!BD17 -> 63.7626 | AG15: ='TNC Scenarios'!BE17 -> 118.8303 | AH15: ='TNC Scenarios'!BF17 -> 219.6 | AI15: ='TNC Scenarios'!BG17 -> 103.68 | AJ15: ='TNC Scenarios'!BH17 -> 0 | AK15: ='TNC Scenarios'!BI17 -> 505.8729 | AL15: ='TNC Scenarios'!BK17 -> 3448.68717 | AM15: ='TNC Scenarios'!BL17 -> 2989.35717 | AN15: ='TNC Scenarios'!BM17 -> 2925.59457 | AO15: ='TNC Scenarios'!BN17 -> 2806.76427 | AP15: ='TNC Scenarios'!BO17 -> 2587.16427 | AQ15: ='TNC Scenarios'!BP17 -> 2483.48427 | AR15: ='TNC Scenarios'!BQ17 -> 2483.48427 | AS15: 640 | AT15: 105 | AU15: 21 | AV15: 153.3 | AW15: 84 | AX15: 240 | AY15: 0 | AZ15: 0 | BA15: 1225.3 | BB15: 1225.3
A16: ='TNC Scenarios'!A18 -> 2026 | B16: ='TNC Scenarios'!B18 -> 520 | C16: ='TNC Scenarios'!C18 -> 105 | D16: ='TNC Scenarios'!D18 -> 21 | E16: ='TNC Scenarios'!E18 -> 30.3 | F16: ='TNC Scenarios'!F18 -> 18 | G16: ='TNC Scenarios'!G18 -> 0 | H16: ='TNC Scenarios'!H18 -> 0 | I16: ='TNC Scenarios'!I18 -> 0 | J16: ='TNC Scenarios'!J18 -> 676.3 | K16: ='TNC Scenarios'!L18 -> 120 | L16: ='TNC Scenarios'!M18 -> 0 | M16: ='TNC Scenarios'!N18 -> 0 | N16: ='TNC Scenarios'!O18 -> 123 | O16: ='TNC Scenarios'!P18 -> 66 | P16: ='TNC Scenarios'!Q18 -> 240 | Q16: ='TNC Scenarios'!R18 -> 0 | R16: ='TNC Scenarios'!S18 -> 0 | S16: ='TNC Scenarios'!T18 -> 549 | T16: ='TNC Scenarios'!U18 -> 549 | U16: ='TNC Scenarios'!W18 -> 4366 | V16: ='TNC Scenarios'!AB18 -> 571.6 | W16: ='TNC Scenarios'!AI18 -> 3671.7 | X16: ='TNC Scenarios'!AU18 -> 3100.1 | Y16: ='TNC Scenarios'!AV18 -> 3034.1 | Z16: ='TNC Scenarios'!AW18 -> 2911.1 | AA16: ='TNC Scenarios'!AX18 -> 2671.1 | AB16: ='TNC Scenarios'!AY18 -> 2551.1 | AC16: ='TNC Scenarios'!AZ18 -> 2551.1 | AD16: ='TNC Scenarios'!BB18 -> 3547.22937 | AE16: ='TNC Scenarios'!BC18 -> 493.8624 | AF16: ='TNC Scenarios'!BD18 -> 63.7626 | AG16: ='TNC Scenarios'!BE18 -> 118.8303 | AH16: ='TNC Scenarios'!BF18 -> 219.6 | AI16: ='TNC Scenarios'!BG18 -> 103.68 | AJ16: ='TNC Scenarios'!BH18 -> 0 | AK16: ='TNC Scenarios'!BI18 -> 505.8729 | AL16: ='TNC Scenarios'!BK18 -> 3547.22937 | AM16: ='TNC Scenarios'!BL18 -> 3053.36697 | AN16: ='TNC Scenarios'!BM18 -> 2989.60437 | AO16: ='TNC Scenarios'!BN18 -> 2870.77407 | AP16: ='TNC Scenarios'!BO18 -> 2651.17407 | AQ16: ='TNC Scenarios'!BP18 -> 2547.49407 | AR16: ='TNC Scenarios'!BQ18 -> 2547.49407 | AS16: 640 | AT16: 105 | AU16: 21 | AV16: 153.3 | AW16: 84 | AX16: 240 | AY16: 0 | AZ16: 0 | BA16: 1225.3 | BB16: 1225.3
A17: ='TNC Scenarios'!A19 -> 2027 | B17: ='TNC Scenarios'!B19 -> 520 | C17: ='TNC Scenarios'!C19 -> 105 | D17: ='TNC Scenarios'!D19 -> 21 | E17: ='TNC Scenarios'!E19 -> 30.3 | F17: ='TNC Scenarios'!F19 -> 18 | G17: ='TNC Scenarios'!G19 -> 0 | H17: ='TNC Scenarios'!H19 -> 0 | I17: ='TNC Scenarios'!I19 -> 0 | J17: ='TNC Scenarios'!J19 -> 676.3 | K17: ='TNC Scenarios'!L19 -> 120 | L17: ='TNC Scenarios'!M19 -> 0 | M17: ='TNC Scenarios'!N19 -> 0 | N17: ='TNC Scenarios'!O19 -> 123 | O17: ='TNC Scenarios'!P19 -> 66 | P17: ='TNC Scenarios'!Q19 -> 240 | Q17: ='TNC Scenarios'!R19 -> 0 | R17: ='TNC Scenarios'!S19 -> 0 | S17: ='TNC Scenarios'!T19 -> 549 | T17: ='TNC Scenarios'!U19 -> 549 | U17: ='TNC Scenarios'!W19 -> 4440 | V17: ='TNC Scenarios'!AB19 -> 641.2 | W17: ='TNC Scenarios'!AI19 -> 3745.7 | X17: ='TNC Scenarios'!AU19 -> 3104.5 | Y17: ='TNC Scenarios'!AV19 -> 3038.5 | Z17: ='TNC Scenarios'!AW19 -> 2915.5 | AA17: ='TNC Scenarios'!AX19 -> 2675.5 | AB17: ='TNC Scenarios'!AY19 -> 2555.5 | AC17: ='TNC Scenarios'!AZ19 -> 2555.5 | AD17: ='TNC Scenarios'!BB19 -> 3618.72077 | AE17: ='TNC Scenarios'!BC19 -> 553.9968 | AF17: ='TNC Scenarios'!BD19 -> 63.7626 | AG17: ='TNC Scenarios'!BE19 -> 118.8303 | AH17: ='TNC Scenarios'!BF19 -> 219.6 | AI17: ='TNC Scenarios'!BG19 -> 103.68 | AJ17: ='TNC Scenarios'!BH19 -> 0 | AK17: ='TNC Scenarios'!BI19 -> 505.8729 | AL17: ='TNC Scenarios'!BK19 -> 3618.72077 | AM17: ='TNC Scenarios'!BL19 -> 3064.72397 | AN17: ='TNC Scenarios'!BM19 -> 3000.96137 | AO17: ='TNC Scenarios'!BN19 -> 2882.13107 | AP17: ='TNC Scenarios'!BO19 -> 2662.53107 | AQ17: ='TNC Scenarios'!BP19 -> 2558.85107 | AR17: ='TNC Scenarios'!BQ19 -> 2558.85107 | AS17: 640 | AT17: 105 | AU17: 21 | AV17: 153.3 | AW17: 84 | AX17: 240 | AY17: 0 | AZ17: 0 | BA17: 1225.3 | BB17: 1225.3
A18: ='TNC Scenarios'!A20 -> 2028 | B18: ='TNC Scenarios'!B20 -> 520 | C18: ='TNC Scenarios'!C20 -> 105 | D18: ='TNC Scenarios'!D20 -> 21 | E18: ='TNC Scenarios'!E20 -> 30.3 | F18: ='TNC Scenarios'!F20 -> 18 | G18: ='TNC Scenarios'!G20 -> 0 | H18: ='TNC Scenarios'!H20 -> 0 | I18: ='TNC Scenarios'!I20 -> 0 | J18: ='TNC Scenarios'!J20 -> 676.3 | K18: ='TNC Scenarios'!L20 -> 120 | L18: ='TNC Scenarios'!M20 -> 0 | M18: ='TNC Scenarios'!N20 -> 0 | N18: ='TNC Scenarios'!O20 -> 123 | O18: ='TNC Scenarios'!P20 -> 66 | P18: ='TNC Scenarios'!Q20 -> 240 | Q18: ='TNC Scenarios'!R20 -> 0 | R18: ='TNC Scenarios'!S20 -> 0 | S18: ='TNC Scenarios'!T20 -> 549 | T18: ='TNC Scenarios'!U20 -> 549 | U18: ='TNC Scenarios'!W20 -> 4509 | V18: ='TNC Scenarios'!AB20 -> 710.8 | W18: ='TNC Scenarios'!AI20 -> 3814.7 | X18: ='TNC Scenarios'!AU20 -> 3103.9 | Y18: ='TNC Scenarios'!AV20 -> 3037.9 | Z18: ='TNC Scenarios'!AW20 -> 2914.9 | AA18: ='TNC Scenarios'!AX20 -> 2674.9 | AB18: ='TNC Scenarios'!AY20 -> 2554.9 | AC18: ='TNC Scenarios'!AZ20 -> 2554.9 | AD18: ='TNC Scenarios'!BB20 -> 3685.38167 | AE18: ='TNC Scenarios'!BC20 -> 614.1312 | AF18: ='TNC Scenarios'!BD20 -> 63.7626 | AG18: ='TNC Scenarios'!BE20 -> 118.8303 | AH18: ='TNC Scenarios'!BF20 -> 219.6 | AI18: ='TNC Scenarios'!BG20 -> 103.68 | AJ18: ='TNC Scenarios'!BH20 -> 0 | AK18: ='TNC Scenarios'!BI20 -> 505.8729 | AL18: ='TNC Scenarios'!BK20 -> 3685.38167 | AM18: ='TNC Scenarios'!BL20 -> 3071.25047 | AN18: ='TNC Scenarios'!BM20 -> 3007.48787 | AO18: ='TNC Scenarios'!BN20 -> 2888.65757 | AP18: ='TNC Scenarios'!BO20 -> 2669.05757 | AQ18: ='TNC Scenarios'!BP20 -> 2565.37757 | AR18: ='TNC Scenarios'!BQ20 -> 2565.37757 | AS18: 640 | AT18: 105 | AU18: 21 | AV18: 153.3 | AW18: 84 | AX18: 240 | AY18: 0 | AZ18: 0 | BA18: 1225.3 | BB18: 1225.3
A19: ='TNC Scenarios'!A21 -> 2029 | B19: ='TNC Scenarios'!B21 -> 520 | C19: ='TNC Scenarios'!C21 -> 105 | D19: ='TNC Scenarios'!D21 -> 21 | E19: ='TNC Scenarios'!E21 -> 30.3 | F19: ='TNC Scenarios'!F21 -> 18 | G19: ='TNC Scenarios'!G21 -> 0 | H19: ='TNC Scenarios'!H21 -> 0 | I19: ='TNC Scenarios'!I21 -> 0 | J19: ='TNC Scenarios'!J21 -> 676.3 | K19: ='TNC Scenarios'!L21 -> 120 | L19: ='TNC Scenarios'!M21 -> 0 | M19: ='TNC Scenarios'!N21 -> 0 | N19: ='TNC Scenarios'!O21 -> 123 | O19: ='TNC Scenarios'!P21 -> 66 | P19: ='TNC Scenarios'!Q21 -> 240 | Q19: ='TNC Scenarios'!R21 -> 0 | R19: ='TNC Scenarios'!S21 -> 0 | S19: ='TNC Scenarios'!T21 -> 549 | T19: ='TNC Scenarios'!U21 -> 549 | U19: ='TNC Scenarios'!W21 -> 4577 | V19: ='TNC Scenarios'!AB21 -> 780.4 | W19: ='TNC Scenarios'!AI21 -> 3882.7 | X19: ='TNC Scenarios'!AU21 -> 3102.3 | Y19: ='TNC Scenarios'!AV21 -> 3036.3 | Z19: ='TNC Scenarios'!AW21 -> 2913.3 | AA19: ='TNC Scenarios'!AX21 -> 2673.3 | AB19: ='TNC Scenarios'!AY21 -> 2553.3 | AC19: ='TNC Scenarios'!AZ21 -> 2553.3 | AD19: ='TNC Scenarios'!BB21 -> 3751.07647 | AE19: ='TNC Scenarios'!BC21 -> 674.2656 | AF19: ='TNC Scenarios'!BD21 -> 63.7626 | AG19: ='TNC Scenarios'!BE21 -> 118.8303 | AH19: ='TNC Scenarios'!BF21 -> 219.6 | AI19: ='TNC Scenarios'!BG21 -> 103.68 | AJ19: ='TNC Scenarios'!BH21 -> 0 | AK19: ='TNC Scenarios'!BI21 -> 505.8729 | AL19: ='TNC Scenarios'!BK21 -> 3751.07647 | AM19: ='TNC Scenarios'!BL21 -> 3076.81087 | AN19: ='TNC Scenarios'!BM21 -> 3013.04827 | AO19: ='TNC Scenarios'!BN21 -> 2894.21797 | AP19: ='TNC Scenarios'!BO21 -> 2674.61797 | AQ19: ='TNC Scenarios'!BP21 -> 2570.93797 | AR19: ='TNC Scenarios'!BQ21 -> 2570.93797 | AS19: 640 | AT19: 105 | AU19: 21 | AV19: 153.3 | AW19: 84 | AX19: 240 | AY19: 0 | AZ19: 0 | BA19: 1225.3 | BB19: 1225.3
A20: ='TNC Scenarios'!A22 -> 2030 | B20: ='TNC Scenarios'!B22 -> 520 | C20: ='TNC Scenarios'!C22 -> 105 | D20: ='TNC Scenarios'!D22 -> 21 | E20: ='TNC Scenarios'!E22 -> 30.3 | F20: ='TNC Scenarios'!F22 -> 18 | G20: ='TNC Scenarios'!G22 -> 0 | H20: ='TNC Scenarios'!H22 -> 0 | I20: ='TNC Scenarios'!I22 -> 0 | J20: ='TNC Scenarios'!J22 -> 676.3 | K20: ='TNC Scenarios'!L22 -> 120 | L20: ='TNC Scenarios'!M22 -> 0 | M20: ='TNC Scenarios'!N22 -> 0 | N20: ='TNC Scenarios'!O22 -> 123 | O20: ='TNC Scenarios'!P22 -> 66 | P20: ='TNC Scenarios'!Q22 -> 240 | Q20: ='TNC Scenarios'!R22 -> 0 | R20: ='TNC Scenarios'!S22 -> 0 | S20: ='TNC Scenarios'!T22 -> 549 | T20: ='TNC Scenarios'!U22 -> 629 | U20: ='TNC Scenarios'!W22 -> 4645 | V20: ='TNC Scenarios'!AB22 -> 850 | W20: ='TNC Scenarios'!AI22 -> 3950.7 | X20: ='TNC Scenarios'!AU22 -> 3100.7 | Y20: ='TNC Scenarios'!AV22 -> 3034.7 | Z20: ='TNC Scenarios'!AW22 -> 2911.7 | AA20: ='TNC Scenarios'!AX22 -> 2671.7 | AB20: ='TNC Scenarios'!AY22 -> 2551.7 | AC20: ='TNC Scenarios'!AZ22 -> 2471.7 | AD20: ='TNC Scenarios'!BB22 -> 3816.77127 | AE20: ='TNC Scenarios'!BC22 -> 734.4 | AF20: ='TNC Scenarios'!BD22 -> 63.7626 | AG20: ='TNC Scenarios'!BE22 -> 118.8303 | AH20: ='TNC Scenarios'!BF22 -> 207.36 | AI20: ='TNC Scenarios'!BG22 -> 103.68 | AJ20: ='TNC Scenarios'!BH22 -> 77.288 | AK20: ='TNC Scenarios'!BI22 -> 493.6329 | AL20: ='TNC Scenarios'!BK22 -> 3816.77127 | AM20: ='TNC Scenarios'!BL22 -> 3082.37127 | AN20: ='TNC Scenarios'!BM22 -> 3018.60867 | AO20: ='TNC Scenarios'!BN22 -> 2899.77837 | AP20: ='TNC Scenarios'!BO22 -> 2692.41837 | AQ20: ='TNC Scenarios'!BP22 -> 2588.73837 | AR20: ='TNC Scenarios'!BQ22 -> 2511.45037 | AS20: 640 | AT20: 105 | AU20: 21 | AV20: 153.3 | AW20: 84 | AX20: 240 | AY20: 0 | AZ20: 0 | BA20: 1225.3 | BB20: 1305.3
A21: ='TNC Scenarios'!A23 -> 2031 | B21: ='TNC Scenarios'!B23 -> 520 | C21: ='TNC Scenarios'!C23 -> 105 | D21: ='TNC Scenarios'!D23 -> 21 | E21: ='TNC Scenarios'!E23 -> 30.3 | F21: ='TNC Scenarios'!F23 -> 18 | G21: ='TNC Scenarios'!G23 -> 0 | H21: ='TNC Scenarios'!H23 -> 0 | I21: ='TNC Scenarios'!I23 -> 0 | J21: ='TNC Scenarios'!J23 -> 676.3 | K21: ='TNC Scenarios'!L23 -> 120 | L21: ='TNC Scenarios'!M23 -> 0 | M21: ='TNC Scenarios'!N23 -> 0 | N21: ='TNC Scenarios'!O23 -> 123 | O21: ='TNC Scenarios'!P23 -> 66 | P21: ='TNC Scenarios'!Q23 -> 240 | Q21: ='TNC Scenarios'!R23 -> 0 | R21: ='TNC Scenarios'!S23 -> 0 | S21: ='TNC Scenarios'!T23 -> 549 | T21: ='TNC Scenarios'!U23 -> 629 | U21: ='TNC Scenarios'!W23 -> 4713 | V21: ='TNC Scenarios'!AB23 -> 935 | W21: ='TNC Scenarios'!AI23 -> 4018.7 | X21: ='TNC Scenarios'!AU23 -> 3083.7 | Y21: ='TNC Scenarios'!AV23 -> 3017.7 | Z21: ='TNC Scenarios'!AW23 -> 2894.7 | AA21: ='TNC Scenarios'!AX23 -> 2654.7 | AB21: ='TNC Scenarios'!AY23 -> 2534.7 | AC21: ='TNC Scenarios'!AZ23 -> 2454.7 | AD21: ='TNC Scenarios'!BB23 -> 3882.46607 | AE21: ='TNC Scenarios'!BC23 -> 807.84 | AF21: ='TNC Scenarios'!BD23 -> 63.7626 | AG21: ='TNC Scenarios'!BE23 -> 118.8303 | AH21: ='TNC Scenarios'!BF23 -> 207.36 | AI21: ='TNC Scenarios'!BG23 -> 103.68 | AJ21: ='TNC Scenarios'!BH23 -> 77.288 | AK21: ='TNC Scenarios'!BI23 -> 493.6329 | AL21: ='TNC Scenarios'!BK23 -> 3882.46607 | AM21: ='TNC Scenarios'!BL23 -> 3074.62607 | AN21: ='TNC Scenarios'!BM23 -> 3010.86347 | AO21: ='TNC Scenarios'!BN23 -> 2892.03317 | AP21: ='TNC Scenarios'!BO23 -> 2684.67317 | AQ21: ='TNC Scenarios'!BP23 -> 2580.99317 | AR21: ='TNC Scenarios'!BQ23 -> 2503.70517 | AS21: 640 | AT21: 105 | AU21: 21 | AV21: 153.3 | AW21: 84 | AX21: 240 | AY21: 0 | AZ21: 0 | BA21: 1225.3 | BB21: 1305.3
A22: ='TNC Scenarios'!A24 -> 2032 | B22: ='TNC Scenarios'!B24 -> 520 | C22: ='TNC Scenarios'!C24 -> 105 | D22: ='TNC Scenarios'!D24 -> 21 | E22: ='TNC Scenarios'!E24 -> 30.3 | F22: ='TNC Scenarios'!F24 -> 18 | G22: ='TNC Scenarios'!G24 -> 0 | H22: ='TNC Scenarios'!H24 -> 0 | I22: ='TNC Scenarios'!I24 -> 0 | J22: ='TNC Scenarios'!J24 -> 676.3 | K22: ='TNC Scenarios'!L24 -> 120 | L22: ='TNC Scenarios'!M24 -> 0 | M22: ='TNC Scenarios'!N24 -> 0 | N22: ='TNC Scenarios'!O24 -> 123 | O22: ='TNC Scenarios'!P24 -> 66 | P22: ='TNC Scenarios'!Q24 -> 240 | Q22: ='TNC Scenarios'!R24 -> 0 | R22: ='TNC Scenarios'!S24 -> 0 | S22: ='TNC Scenarios'!T24 -> 549 | T22: ='TNC Scenarios'!U24 -> 629 | U22: ='TNC Scenarios'!W24 -> 4783 | V22: ='TNC Scenarios'!AB24 -> 1020 | W22: ='TNC Scenarios'!AI24 -> 4088.7 | X22: ='TNC Scenarios'!AU24 -> 3068.7 | Y22: ='TNC Scenarios'!AV24 -> 3002.7 | Z22: ='TNC Scenarios'!AW24 -> 2879.7 | AA22: ='TNC Scenarios'!AX24 -> 2639.7 | AB22: ='TNC Scenarios'!AY24 -> 2519.7 | AC22: ='TNC Scenarios'!AZ24 -> 2439.7 | AD22: ='TNC Scenarios'!BB24 -> 3950.09307 | AE22: ='TNC Scenarios'!BC24 -> 881.28 | AF22: ='TNC Scenarios'!BD24 -> 63.7626 | AG22: ='TNC Scenarios'!BE24 -> 118.8303 | AH22: ='TNC Scenarios'!BF24 -> 207.36 | AI22: ='TNC Scenarios'!BG24 -> 103.68 | AJ22: ='TNC Scenarios'!BH24 -> 77.288 | AK22: ='TNC Scenarios'!BI24 -> 493.6329 | AL22: ='TNC Scenarios'!BK24 -> 3950.09307 | AM22: ='TNC Scenarios'!BL24 -> 3068.81307 | AN22: ='TNC Scenarios'!BM24 -> 3005.05047 | AO22: ='TNC Scenarios'!BN24 -> 2886.22017 | AP22: ='TNC Scenarios'!BO24 -> 2678.86017 | AQ22: ='TNC Scenarios'!BP24 -> 2575.18017 | AR22: ='TNC Scenarios'!BQ24 -> 2497.89217 | AS22: 640 | AT22: 105 | AU22: 21 | AV22: 153.3 | AW22: 84 | AX22: 240 | AY22: 0 | AZ22: 0 | BA22: 1225.3 | BB22: 1305.3
A23: ='TNC Scenarios'!A25 -> 2033 | B23: ='TNC Scenarios'!B25 -> 520 | C23: ='TNC Scenarios'!C25 -> 105 | D23: ='TNC Scenarios'!D25 -> 21 | E23: ='TNC Scenarios'!E25 -> 30.3 | F23: ='TNC Scenarios'!F25 -> 18 | G23: ='TNC Scenarios'!G25 -> 0 | H23: ='TNC Scenarios'!H25 -> 0 | I23: ='TNC Scenarios'!I25 -> 0 | J23: ='TNC Scenarios'!J25 -> 676.3 | K23: ='TNC Scenarios'!L25 -> 120 | L23: ='TNC Scenarios'!M25 -> 0 | M23: ='TNC Scenarios'!N25 -> 0 | N23: ='TNC Scenarios'!O25 -> 123 | O23: ='TNC Scenarios'!P25 -> 66 | P23: ='TNC Scenarios'!Q25 -> 240 | Q23: ='TNC Scenarios'!R25 -> 0 | R23: ='TNC Scenarios'!S25 -> 0 | S23: ='TNC Scenarios'!T25 -> 549 | T23: ='TNC Scenarios'!U25 -> 629 | U23: ='TNC Scenarios'!W25 -> 4853 | V23: ='TNC Scenarios'!AB25 -> 1105 | W23: ='TNC Scenarios'!AI25 -> 4158.7 | X23: ='TNC Scenarios'!AU25 -> 3053.7 | Y23: ='TNC Scenarios'!AV25 -> 2987.7 | Z23: ='TNC Scenarios'!AW25 -> 2864.7 | AA23: ='TNC Scenarios'!AX25 -> 2624.7 | AB23: ='TNC Scenarios'!AY25 -> 2504.7 | AC23: ='TNC Scenarios'!AZ25 -> 2424.7 | AD23: ='TNC Scenarios'!BB25 -> 4017.72007 | AE23: ='TNC Scenarios'!BC25 -> 954.72 | AF23: ='TNC Scenarios'!BD25 -> 63.7626 | AG23: ='TNC Scenarios'!BE25 -> 118.8303 | AH23: ='TNC Scenarios'!BF25 -> 207.36 | AI23: ='TNC Scenarios'!BG25 -> 103.68 | AJ23: ='TNC Scenarios'!BH25 -> 77.288 | AK23: ='TNC Scenarios'!BI25 -> 493.6329 | AL23: ='TNC Scenarios'!BK25 -> 4017.72007 | AM23: ='TNC Scenarios'!BL25 -> 3063.00007 | AN23: ='TNC Scenarios'!BM25 -> 2999.23747 | AO23: ='TNC Scenarios'!BN25 -> 2880.40717 | AP23: ='TNC Scenarios'!BO25 -> 2673.04717 | AQ23: ='TNC Scenarios'!BP25 -> 2569.36717 | AR23: ='TNC Scenarios'!BQ25 -> 2492.07917 | AS23: 640 | AT23: 105 | AU23: 21 | AV23: 153.3 | AW23: 84 | AX23: 240 | AY23: 0 | AZ23: 0 | BA23: 1225.3 | BB23: 1305.3
A24: ='TNC Scenarios'!A26 -> 2034 | B24: ='TNC Scenarios'!B26 -> 520 | C24: ='TNC Scenarios'!C26 -> 105 | D24: ='TNC Scenarios'!D26 -> 21 | E24: ='TNC Scenarios'!E26 -> 30.3 | F24: ='TNC Scenarios'!F26 -> 18 | G24: ='TNC Scenarios'!G26 -> 0 | H24: ='TNC Scenarios'!H26 -> 0 | I24: ='TNC Scenarios'!I26 -> 0 | J24: ='TNC Scenarios'!J26 -> 676.3 | K24: ='TNC Scenarios'!L26 -> 120 | L24: ='TNC Scenarios'!M26 -> 0 | M24: ='TNC Scenarios'!N26 -> 0 | N24: ='TNC Scenarios'!O26 -> 123 | O24: ='TNC Scenarios'!P26 -> 66 | P24: ='TNC Scenarios'!Q26 -> 240 | Q24: ='TNC Scenarios'!R26 -> 0 | R24: ='TNC Scenarios'!S26 -> 0 | S24: ='TNC Scenarios'!T26 -> 549 | T24: ='TNC Scenarios'!U26 -> 629 | U24: ='TNC Scenarios'!W26 -> 4925 | V24: ='TNC Scenarios'!AB26 -> 1190 | W24: ='TNC Scenarios'!AI26 -> 4230.7 | X24: ='TNC Scenarios'!AU26 -> 3040.7 | Y24: ='TNC Scenarios'!AV26 -> 2974.7 | Z24: ='TNC Scenarios'!AW26 -> 2851.7 | AA24: ='TNC Scenarios'!AX26 -> 2611.7 | AB24: ='TNC Scenarios'!AY26 -> 2491.7 | AC24: ='TNC Scenarios'!AZ26 -> 2411.7 | AD24: ='TNC Scenarios'!BB26 -> 4087.27927 | AE24: ='TNC Scenarios'!BC26 -> 1028.16 | AF24: ='TNC Scenarios'!BD26 -> 63.7626 | AG24: ='TNC Scenarios'!BE26 -> 118.8303 | AH24: ='TNC Scenarios'!BF26 -> 207.36 | AI24: ='TNC Scenarios'!BG26 -> 103.68 | AJ24: ='TNC Scenarios'!BH26 -> 77.288 | AK24: ='TNC Scenarios'!BI26 -> 493.6329 | AL24: ='TNC Scenarios'!BK26 -> 4087.27927 | AM24: ='TNC Scenarios'!BL26 -> 3059.11927 | AN24: ='TNC Scenarios'!BM26 -> 2995.35667 | AO24: ='TNC Scenarios'!BN26 -> 2876.52637 | AP24: ='TNC Scenarios'!BO26 -> 2669.16637 | AQ24: ='TNC Scenarios'!BP26 -> 2565.48637 | AR24: ='TNC Scenarios'!BQ26 -> 2488.19837 | AS24: 640 | AT24: 105 | AU24: 21 | AV24: 153.3 | AW24: 84 | AX24: 240 | AY24: 0 | AZ24: 0 | BA24: 1225.3 | BB24: 1305.3
A25: ='TNC Scenarios'!A27 -> 2035 | B25: ='TNC Scenarios'!B27 -> 520 | C25: ='TNC Scenarios'!C27 -> 105 | D25: ='TNC Scenarios'!D27 -> 21 | E25: ='TNC Scenarios'!E27 -> 30.3 | F25: ='TNC Scenarios'!F27 -> 18 | G25: ='TNC Scenarios'!G27 -> 0 | H25: ='TNC Scenarios'!H27 -> 0 | I25: ='TNC Scenarios'!I27 -> 0 | J25: ='TNC Scenarios'!J27 -> 676.3 | K25: ='TNC Scenarios'!L27 -> 120 | L25: ='TNC Scenarios'!M27 -> 0 | M25: ='TNC Scenarios'!N27 -> 0 | N25: ='TNC Scenarios'!O27 -> 123 | O25: ='TNC Scenarios'!P27 -> 66 | P25: ='TNC Scenarios'!Q27 -> 240 | Q25: ='TNC Scenarios'!R27 -> 0 | R25: ='TNC Scenarios'!S27 -> 0 | S25: ='TNC Scenarios'!T27 -> 549 | T25: ='TNC Scenarios'!U27 -> 629 | U25: ='TNC Scenarios'!W27 -> 4953.02 | V25: ='TNC Scenarios'!AB27 -> 1275 | W25: ='TNC Scenarios'!AI27 -> 4258.72 | X25: ='TNC Scenarios'!AU27 -> 2983.72 | Y25: ='TNC Scenarios'!AV27 -> 2917.72 | Z25: ='TNC Scenarios'!AW27 -> 2794.72 | AA25: ='TNC Scenarios'!AX27 -> 2554.72 | AB25: ='TNC Scenarios'!AY27 -> 2434.72 | AC25: ='TNC Scenarios'!AZ27 -> 2354.72 | AD25: ='TNC Scenarios'!BB27 -> 4114.349392 | AE25: ='TNC Scenarios'!BC27 -> 1101.6 | AF25: ='TNC Scenarios'!BD27 -> 63.7626 | AG25: ='TNC Scenarios'!BE27 -> 118.8303 | AH25: ='TNC Scenarios'!BF27 -> 207.36 | AI25: ='TNC Scenarios'!BG27 -> 103.68 | AJ25: ='TNC Scenarios'!BH27 -> 77.288 | AK25: ='TNC Scenarios'!BI27 -> 493.6329 | AL25: ='TNC Scenarios'!BK27 -> 4114.349392 | AM25: ='TNC Scenarios'!BL27 -> 3012.749392 | AN25: ='TNC Scenarios'!BM27 -> 2948.986792 | AO25: ='TNC Scenarios'!BN27 -> 2830.156492 | AP25: ='TNC Scenarios'!BO27 -> 2622.796492 | AQ25: ='TNC Scenarios'!BP27 -> 2519.116492 | AR25: ='TNC Scenarios'!BQ27 -> 2441.828492 | AS25: 640 | AT25: 105 | AU25: 21 | AV25: 153.3 | AW25: 84 | AX25: 240 | AY25: 0 | AZ25: 0 | BA25: 1225.3 | BB25: 1305.3
A26: ='TNC Scenarios'!A28 -> 2036 | B26: ='TNC Scenarios'!B28 -> 520 | C26: ='TNC Scenarios'!C28 -> 105 | D26: ='TNC Scenarios'!D28 -> 21 | E26: ='TNC Scenarios'!E28 -> 30.3 | F26: ='TNC Scenarios'!F28 -> 18 | G26: ='TNC Scenarios'!G28 -> 0 | H26: ='TNC Scenarios'!H28 -> 0 | I26: ='TNC Scenarios'!I28 -> 0 | J26: ='TNC Scenarios'!J28 -> 676.3 | K26: ='TNC Scenarios'!L28 -> 120 | L26: ='TNC Scenarios'!M28 -> 0 | M26: ='TNC Scenarios'!N28 -> 0 | N26: ='TNC Scenarios'!O28 -> 123 | O26: ='TNC Scenarios'!P28 -> 66 | P26: ='TNC Scenarios'!Q28 -> 240 | Q26: ='TNC Scenarios'!R28 -> 0 | R26: ='TNC Scenarios'!S28 -> 0 | S26: ='TNC Scenarios'!T28 -> 549 | T26: ='TNC Scenarios'!U28 -> 639 | U26: ='TNC Scenarios'!W28 -> 4935.92 | V26: ='TNC Scenarios'!AB28 -> 1365 | W26: ='TNC Scenarios'!AI28 -> 4241.62 | X26: ='TNC Scenarios'!AU28 -> 2876.62 | Y26: ='TNC Scenarios'!AV28 -> 2810.62 | Z26: ='TNC Scenarios'!AW28 -> 2687.62 | AA26: ='TNC Scenarios'!AX28 -> 2447.62 | AB26: ='TNC Scenarios'!AY28 -> 2327.62 | AC26: ='TNC Scenarios'!AZ28 -> 2237.62 | AD26: ='TNC Scenarios'!BB28 -> 4097.829082 | AE26: ='TNC Scenarios'!BC28 -> 1179.36 | AF26: ='TNC Scenarios'!BD28 -> 63.7626 | AG26: ='TNC Scenarios'!BE28 -> 118.8303 | AH26: ='TNC Scenarios'!BF28 -> 207.36 | AI26: ='TNC Scenarios'!BG28 -> 103.68 | AJ26: ='TNC Scenarios'!BH28 -> 86.949 | AK26: ='TNC Scenarios'!BI28 -> 493.6329 | AL26: ='TNC Scenarios'!BK28 -> 4097.829082 | AM26: ='TNC Scenarios'!BL28 -> 2918.469082 | AN26: ='TNC Scenarios'!BM28 -> 2854.706482 | AO26: ='TNC Scenarios'!BN28 -> 2735.876182 | AP26: ='TNC Scenarios'!BO28 -> 2528.516182 | AQ26: ='TNC Scenarios'!BP28 -> 2424.836182 | AR26: ='TNC Scenarios'!BQ28 -> 2337.887182 | AS26: 640 | AT26: 105 | AU26: 21 | AV26: 153.3 | AW26: 84 | AX26: 240 | AY26: 0 | AZ26: 0 | BA26: 1225.3 | BB26: 1315.3
A27: ='TNC Scenarios'!A29 -> 2037 | B27: ='TNC Scenarios'!B29 -> 520 | C27: ='TNC Scenarios'!C29 -> 105 | D27: ='TNC Scenarios'!D29 -> 21 | E27: ='TNC Scenarios'!E29 -> 30.3 | F27: ='TNC Scenarios'!F29 -> 18 | G27: ='TNC Scenarios'!G29 -> 0 | H27: ='TNC Scenarios'!H29 -> 0 | I27: ='TNC Scenarios'!I29 -> 0 | J27: ='TNC Scenarios'!J29 -> 676.3 | K27: ='TNC Scenarios'!L29 -> 120 | L27: ='TNC Scenarios'!M29 -> 0 | M27: ='TNC Scenarios'!N29 -> 0 | N27: ='TNC Scenarios'!O29 -> 123 | O27: ='TNC Scenarios'!P29 -> 66 | P27: ='TNC Scenarios'!Q29 -> 240 | Q27: ='TNC Scenarios'!R29 -> 0 | R27: ='TNC Scenarios'!S29 -> 0 | S27: ='TNC Scenarios'!T29 -> 549 | T27: ='TNC Scenarios'!U29 -> 639 | U27: ='TNC Scenarios'!W29 -> 4944.72 | V27: ='TNC Scenarios'!AB29 -> 1455 | W27: ='TNC Scenarios'!AI29 -> 4250.42 | X27: ='TNC Scenarios'!AU29 -> 2795.42 | Y27: ='TNC Scenarios'!AV29 -> 2729.42 | Z27: ='TNC Scenarios'!AW29 -> 2606.42 | AA27: ='TNC Scenarios'!AX29 -> 2366.42 | AB27: ='TNC Scenarios'!AY29 -> 2246.42 | AC27: ='TNC Scenarios'!AZ29 -> 2156.42 | AD27: ='TNC Scenarios'!BB29 -> 4106.330762 | AE27: ='TNC Scenarios'!BC29 -> 1257.12 | AF27: ='TNC Scenarios'!BD29 -> 63.7626 | AG27: ='TNC Scenarios'!BE29 -> 118.8303 | AH27: ='TNC Scenarios'!BF29 -> 207.36 | AI27: ='TNC Scenarios'!BG29 -> 103.68 | AJ27: ='TNC Scenarios'!BH29 -> 86.949 | AK27: ='TNC Scenarios'!BI29 -> 493.6329 | AL27: ='TNC Scenarios'!BK29 -> 4106.330762 | AM27: ='TNC Scenarios'!BL29 -> 2849.210762 | AN27: ='TNC Scenarios'!BM29 -> 2785.448162 | AO27: ='TNC Scenarios'!BN29 -> 2666.617862 | AP27: ='TNC Scenarios'!BO29 -> 2459.257862 | AQ27: ='TNC Scenarios'!BP29 -> 2355.577862 | AR27: ='TNC Scenarios'!BQ29 -> 2268.628862 | AS27: 640 | AT27: 105 | AU27: 21 | AV27: 153.3 | AW27: 84 | AX27: 240 | AY27: 0 | AZ27: 0 | BA27: 1225.3 | BB27: 1315.3
A28: ='TNC Scenarios'!A30 -> 2038 | B28: ='TNC Scenarios'!B30 -> 520 | C28: ='TNC Scenarios'!C30 -> 105 | D28: ='TNC Scenarios'!D30 -> 21 | E28: ='TNC Scenarios'!E30 -> 30.3 | F28: ='TNC Scenarios'!F30 -> 18 | G28: ='TNC Scenarios'!G30 -> 0 | H28: ='TNC Scenarios'!H30 -> 0 | I28: ='TNC Scenarios'!I30 -> 0 | J28: ='TNC Scenarios'!J30 -> 676.3 | K28: ='TNC Scenarios'!L30 -> 120 | L28: ='TNC Scenarios'!M30 -> 0 | M28: ='TNC Scenarios'!N30 -> 0 | N28: ='TNC Scenarios'!O30 -> 123 | O28: ='TNC Scenarios'!P30 -> 66 | P28: ='TNC Scenarios'!Q30 -> 240 | Q28: ='TNC Scenarios'!R30 -> 0 | R28: ='TNC Scenarios'!S30 -> 0 | S28: ='TNC Scenarios'!T30 -> 549 | T28: ='TNC Scenarios'!U30 -> 639 | U28: ='TNC Scenarios'!W30 -> 4953.52 | V28: ='TNC Scenarios'!AB30 -> 1545 | W28: ='TNC Scenarios'!AI30 -> 4259.22 | X28: ='TNC Scenarios'!AU30 -> 2714.22 | Y28: ='TNC Scenarios'!AV30 -> 2648.22 | Z28: ='TNC Scenarios'!AW30 -> 2525.22 | AA28: ='TNC Scenarios'!AX30 -> 2285.22 | AB28: ='TNC Scenarios'!AY30 -> 2165.22 | AC28: ='TNC Scenarios'!AZ30 -> 2075.22 | AD28: ='TNC Scenarios'!BB30 -> 4114.832442 | AE28: ='TNC Scenarios'!BC30 -> 1334.88 | AF28: ='TNC Scenarios'!BD30 -> 63.7626 | AG28: ='TNC Scenarios'!BE30 -> 118.8303 | AH28: ='TNC Scenarios'!BF30 -> 207.36 | AI28: ='TNC Scenarios'!BG30 -> 103.68 | AJ28: ='TNC Scenarios'!BH30 -> 86.949 | AK28: ='TNC Scenarios'!BI30 -> 493.6329 | AL28: ='TNC Scenarios'!BK30 -> 4114.832442 | AM28: ='TNC Scenarios'!BL30 -> 2779.952442 | AN28: ='TNC Scenarios'!BM30 -> 2716.189842 | AO28: ='TNC Scenarios'!BN30 -> 2597.359542 | AP28: ='TNC Scenarios'!BO30 -> 2389.999542 | AQ28: ='TNC Scenarios'!BP30 -> 2286.319542 | AR28: ='TNC Scenarios'!BQ30 -> 2199.370542 | AS28: 640 | AT28: 105 | AU28: 21 | AV28: 153.3 | AW28: 84 | AX28: 240 | AY28: 0 | AZ28: 0 | BA28: 1225.3 | BB28: 1315.3
A29: ='TNC Scenarios'!A31 -> 2039 | B29: ='TNC Scenarios'!B31 -> 520 | C29: ='TNC Scenarios'!C31 -> 105 | D29: ='TNC Scenarios'!D31 -> 21 | E29: ='TNC Scenarios'!E31 -> 30.3 | F29: ='TNC Scenarios'!F31 -> 18 | G29: ='TNC Scenarios'!G31 -> 0 | H29: ='TNC Scenarios'!H31 -> 0 | I29: ='TNC Scenarios'!I31 -> 0 | J29: ='TNC Scenarios'!J31 -> 676.3 | K29: ='TNC Scenarios'!L31 -> 120 | L29: ='TNC Scenarios'!M31 -> 0 | M29: ='TNC Scenarios'!N31 -> 0 | N29: ='TNC Scenarios'!O31 -> 123 | O29: ='TNC Scenarios'!P31 -> 66 | P29: ='TNC Scenarios'!Q31 -> 240 | Q29: ='TNC Scenarios'!R31 -> 0 | R29: ='TNC Scenarios'!S31 -> 0 | S29: ='TNC Scenarios'!T31 -> 549 | T29: ='TNC Scenarios'!U31 -> 639 | U29: ='TNC Scenarios'!W31 -> 4962.32 | V29: ='TNC Scenarios'!AB31 -> 1635 | W29: ='TNC Scenarios'!AI31 -> 4268.02 | X29: ='TNC Scenarios'!AU31 -> 2633.02 | Y29: ='TNC Scenarios'!AV31 -> 2567.02 | Z29: ='TNC Scenarios'!AW31 -> 2444.02 | AA29: ='TNC Scenarios'!AX31 -> 2204.02 | AB29: ='TNC Scenarios'!AY31 -> 2084.02 | AC29: ='TNC Scenarios'!AZ31 -> 1994.02 | AD29: ='TNC Scenarios'!BB31 -> 4123.334122 | AE29: ='TNC Scenarios'!BC31 -> 1412.64 | AF29: ='TNC Scenarios'!BD31 -> 63.7626 | AG29: ='TNC Scenarios'!BE31 -> 118.8303 | AH29: ='TNC Scenarios'!BF31 -> 207.36 | AI29: ='TNC Scenarios'!BG31 -> 103.68 | AJ29: ='TNC Scenarios'!BH31 -> 86.949 | AK29: ='TNC Scenarios'!BI31 -> 493.6329 | AL29: ='TNC Scenarios'!BK31 -> 4123.334122 | AM29: ='TNC Scenarios'!BL31 -> 2710.694122 | AN29: ='TNC Scenarios'!BM31 -> 2646.931522 | AO29: ='TNC Scenarios'!BN31 -> 2528.101222 | AP29: ='TNC Scenarios'!BO31 -> 2320.741222 | AQ29: ='TNC Scenarios'!BP31 -> 2217.061222 | AR29: ='TNC Scenarios'!BQ31 -> 2130.112222 | AS29: 640 | AT29: 105 | AU29: 21 | AV29: 153.3 | AW29: 84 | AX29: 240 | AY29: 0 | AZ29: 0 | BA29: 1225.3 | BB29: 1315.3
A30: ='TNC Scenarios'!A32 -> 2040 | B30: ='TNC Scenarios'!B32 -> 520 | C30: ='TNC Scenarios'!C32 -> 105 | D30: ='TNC Scenarios'!D32 -> 21 | E30: ='TNC Scenarios'!E32 -> 30.3 | F30: ='TNC Scenarios'!F32 -> 18 | G30: ='TNC Scenarios'!G32 -> 0 | H30: ='TNC Scenarios'!H32 -> 0 | I30: ='TNC Scenarios'!I32 -> 0 | J30: ='TNC Scenarios'!J32 -> 676.3 | K30: ='TNC Scenarios'!L32 -> 120 | L30: ='TNC Scenarios'!M32 -> 0 | M30: ='TNC Scenarios'!N32 -> 0 | N30: ='TNC Scenarios'!O32 -> 123 | O30: ='TNC Scenarios'!P32 -> 66 | P30: ='TNC Scenarios'!Q32 -> 240 | Q30: ='TNC Scenarios'!R32 -> 0 | R30: ='TNC Scenarios'!S32 -> 0 | S30: ='TNC Scenarios'!T32 -> 549 | T30: ='TNC Scenarios'!U32 -> 639 | U30: ='TNC Scenarios'!W32 -> 4971.12 | V30: ='TNC Scenarios'!AB32 -> 1725 | W30: ='TNC Scenarios'!AI32 -> 4276.82 | X30: ='TNC Scenarios'!AU32 -> 2551.82 | Y30: ='TNC Scenarios'!AV32 -> 2485.82 | Z30: ='TNC Scenarios'!AW32 -> 2362.82 | AA30: ='TNC Scenarios'!AX32 -> 2122.82 | AB30: ='TNC Scenarios'!AY32 -> 2002.82 | AC30: ='TNC Scenarios'!AZ32 -> 1912.82 | AD30: ='TNC Scenarios'!BB32 -> 4131.835802 | AE30: ='TNC Scenarios'!BC32 -> 1490.4 | AF30: ='TNC Scenarios'!BD32 -> 63.7626 | AG30: ='TNC Scenarios'!BE32 -> 118.8303 | AH30: ='TNC Scenarios'!BF32 -> 207.36 | AI30: ='TNC Scenarios'!BG32 -> 103.68 | AJ30: ='TNC Scenarios'!BH32 -> 86.949 | AK30: ='TNC Scenarios'!BI32 -> 493.6329 | AL30: ='TNC Scenarios'!BK32 -> 4131.835802 | AM30: ='TNC Scenarios'!BL32 -> 2641.435802 | AN30: ='TNC Scenarios'!BM32 -> 2577.673202 | AO30: ='TNC Scenarios'!BN32 -> 2458.842902 | AP30: ='TNC Scenarios'!BO32 -> 2251.482902 | AQ30: ='TNC Scenarios'!BP32 -> 2147.802902 | AR30: ='TNC Scenarios'!BQ32 -> 2060.853902 | AS30: 640 | AT30: 105 | AU30: 21 | AV30: 153.3 | AW30: 84 | AX30: 240 | AY30: 0 | AZ30: 0 | BA30: 1225.3 | BB30: 1315.3
A31: ='TNC Scenarios'!A33 -> 2041 | B31: ='TNC Scenarios'!B33 -> 520 | C31: ='TNC Scenarios'!C33 -> 105 | D31: ='TNC Scenarios'!D33 -> 21 | E31: ='TNC Scenarios'!E33 -> 30.3 | F31: ='TNC Scenarios'!F33 -> 18 | G31: ='TNC Scenarios'!G33 -> 0 | H31: ='TNC Scenarios'!H33 -> 0 | I31: ='TNC Scenarios'!I33 -> 0 | J31: ='TNC Scenarios'!J33 -> 676.3 | K31: ='TNC Scenarios'!L33 -> 120 | L31: ='TNC Scenarios'!M33 -> 0 | M31: ='TNC Scenarios'!N33 -> 0 | N31: ='TNC Scenarios'!O33 -> 123 | O31: ='TNC Scenarios'!P33 -> 66 | P31: ='TNC Scenarios'!Q33 -> 240 | Q31: ='TNC Scenarios'!R33 -> 0 | R31: ='TNC Scenarios'!S33 -> 0 | S31: ='TNC Scenarios'!T33 -> 549 | T31: ='TNC Scenarios'!U33 -> 669 | U31: ='TNC Scenarios'!W33 -> 5019.32 | V31: ='TNC Scenarios'!AB33 -> 1805 | W31: ='TNC Scenarios'!AI33 -> 4325.02 | X31: ='TNC Scenarios'!AU33 -> 2520.02 | Y31: ='TNC Scenarios'!AV33 -> 2454.02 | Z31: ='TNC Scenarios'!AW33 -> 2331.02 | AA31: ='TNC Scenarios'!AX33 -> 2091.02 | AB31: ='TNC Scenarios'!AY33 -> 1971.02 | AC31: ='TNC Scenarios'!AZ33 -> 1851.02 | AD31: ='TNC Scenarios'!BB33 -> 4178.401822 | AE31: ='TNC Scenarios'!BC33 -> 1559.52 | AF31: ='TNC Scenarios'!BD33 -> 63.7626 | AG31: ='TNC Scenarios'!BE33 -> 118.8303 | AH31: ='TNC Scenarios'!BF33 -> 207.36 | AI31: ='TNC Scenarios'!BG33 -> 103.68 | AJ31: ='TNC Scenarios'!BH33 -> 115.932 | AK31: ='TNC Scenarios'!BI33 -> 493.6329 | AL31: ='TNC Scenarios'!BK33 -> 4178.401822 | AM31: ='TNC Scenarios'!BL33 -> 2618.881822 | AN31: ='TNC Scenarios'!BM33 -> 2555.119222 | AO31: ='TNC Scenarios'!BN33 -> 2436.288922 | AP31: ='TNC Scenarios'!BO33 -> 2228.928922 | AQ31: ='TNC Scenarios'!BP33 -> 2125.248922 | AR31: ='TNC Scenarios'!BQ33 -> 2009.316922 | AS31: 640 | AT31: 105 | AU31: 21 | AV31: 153.3 | AW31: 84 | AX31: 240 | AY31: 0 | AZ31: 0 | BA31: 1225.3 | BB31: 1345.3
A32: ='TNC Scenarios'!A34 -> 2042 | B32: ='TNC Scenarios'!B34 -> 520 | C32: ='TNC Scenarios'!C34 -> 105 | D32: ='TNC Scenarios'!D34 -> 21 | E32: ='TNC Scenarios'!E34 -> 30.3 | F32: ='TNC Scenarios'!F34 -> 18 | G32: ='TNC Scenarios'!G34 -> 0 | H32: ='TNC Scenarios'!H34 -> 0 | I32: ='TNC Scenarios'!I34 -> 0 | J32: ='TNC Scenarios'!J34 -> 676.3 | K32: ='TNC Scenarios'!L34 -> 120 | L32: ='TNC Scenarios'!M34 -> 0 | M32: ='TNC Scenarios'!N34 -> 0 | N32: ='TNC Scenarios'!O34 -> 123 | O32: ='TNC Scenarios'!P34 -> 66 | P32: ='TNC Scenarios'!Q34 -> 240 | Q32: ='TNC Scenarios'!R34 -> 0 | R32: ='TNC Scenarios'!S34 -> 0 | S32: ='TNC Scenarios'!T34 -> 549 | T32: ='TNC Scenarios'!U34 -> 669 | U32: ='TNC Scenarios'!W34 -> 5067.52 | V32: ='TNC Scenarios'!AB34 -> 1885 | W32: ='TNC Scenarios'!AI34 -> 4373.22 | X32: ='TNC Scenarios'!AU34 -> 2488.22 | Y32: ='TNC Scenarios'!AV34 -> 2422.22 | Z32: ='TNC Scenarios'!AW34 -> 2299.22 | AA32: ='TNC Scenarios'!AX34 -> 2059.22 | AB32: ='TNC Scenarios'!AY34 -> 1939.22 | AC32: ='TNC Scenarios'!AZ34 -> 1819.22 | AD32: ='TNC Scenarios'!BB34 -> 4224.967842 | AE32: ='TNC Scenarios'!BC34 -> 1628.64 | AF32: ='TNC Scenarios'!BD34 -> 63.7626 | AG32: ='TNC Scenarios'!BE34 -> 118.8303 | AH32: ='TNC Scenarios'!BF34 -> 207.36 | AI32: ='TNC Scenarios'!BG34 -> 103.68 | AJ32: ='TNC Scenarios'!BH34 -> 115.932 | AK32: ='TNC Scenarios'!BI34 -> 493.6329 | AL32: ='TNC Scenarios'!BK34 -> 4224.967842 | AM32: ='TNC Scenarios'!BL34 -> 2596.327842 | AN32: ='TNC Scenarios'!BM34 -> 2532.565242 | AO32: ='TNC Scenarios'!BN34 -> 2413.734942 | AP32: ='TNC Scenarios'!BO34 -> 2206.374942 | AQ32: ='TNC Scenarios'!BP34 -> 2102.694942 | AR32: ='TNC Scenarios'!BQ34 -> 1986.762942 | AS32: 640 | AT32: 105 | AU32: 21 | AV32: 153.3 | AW32: 84 | AX32: 240 | AY32: 0 | AZ32: 0 | BA32: 1225.3 | BB32: 1345.3
A33: ='TNC Scenarios'!A35 -> 2043 | B33: ='TNC Scenarios'!B35 -> 520 | C33: ='TNC Scenarios'!C35 -> 105 | D33: ='TNC Scenarios'!D35 -> 21 | E33: ='TNC Scenarios'!E35 -> 30.3 | F33: ='TNC Scenarios'!F35 -> 18 | G33: ='TNC Scenarios'!G35 -> 0 | H33: ='TNC Scenarios'!H35 -> 0 | I33: ='TNC Scenarios'!I35 -> 0 | J33: ='TNC Scenarios'!J35 -> 676.3 | K33: ='TNC Scenarios'!L35 -> 120 | L33: ='TNC Scenarios'!M35 -> 0 | M33: ='TNC Scenarios'!N35 -> 0 | N33: ='TNC Scenarios'!O35 -> 123 | O33: ='TNC Scenarios'!P35 -> 66 | P33: ='TNC Scenarios'!Q35 -> 240 | Q33: ='TNC Scenarios'!R35 -> 0 | R33: ='TNC Scenarios'!S35 -> 0 | S33: ='TNC Scenarios'!T35 -> 549 | T33: ='TNC Scenarios'!U35 -> 699 | U33: ='TNC Scenarios'!W35 -> 5115.72 | V33: ='TNC Scenarios'!AB35 -> 1965 | W33: ='TNC Scenarios'!AI35 -> 4421.42 | X33: ='TNC Scenarios'!AU35 -> 2456.42 | Y33: ='TNC Scenarios'!AV35 -> 2390.42 | Z33: ='TNC Scenarios'!AW35 -> 2267.42 | AA33: ='TNC Scenarios'!AX35 -> 2027.42 | AB33: ='TNC Scenarios'!AY35 -> 1907.42 | AC33: ='TNC Scenarios'!AZ35 -> 1757.42 | AD33: ='TNC Scenarios'!BB35 -> 4271.533862 | AE33: ='TNC Scenarios'!BC35 -> 1697.76 | AF33: ='TNC Scenarios'!BD35 -> 63.7626 | AG33: ='TNC Scenarios'!BE35 -> 118.8303 | AH33: ='TNC Scenarios'!BF35 -> 207.36 | AI33: ='TNC Scenarios'!BG35 -> 103.68 | AJ33: ='TNC Scenarios'!BH35 -> 144.915 | AK33: ='TNC Scenarios'!BI35 -> 493.6329 | AL33: ='TNC Scenarios'!BK35 -> 4271.533862 | AM33: ='TNC Scenarios'!BL35 -> 2573.773862 | AN33: ='TNC Scenarios'!BM35 -> 2510.011262 | AO33: ='TNC Scenarios'!BN35 -> 2391.180962 | AP33: ='TNC Scenarios'!BO35 -> 2183.820962 | AQ33: ='TNC Scenarios'!BP35 -> 2080.140962 | AR33: ='TNC Scenarios'!BQ35 -> 1935.225962 | AS33: 640 | AT33: 105 | AU33: 21 | AV33: 153.3 | AW33: 84 | AX33: 240 | AY33: 0 | AZ33: 0 | BA33: 1225.3 | BB33: 1375.3
A34: ='TNC Scenarios'!A36 -> 2044 | B34: ='TNC Scenarios'!B36 -> 520 | C34: ='TNC Scenarios'!C36 -> 105 | D34: ='TNC Scenarios'!D36 -> 21 | E34: ='TNC Scenarios'!E36 -> 30.3 | F34: ='TNC Scenarios'!F36 -> 18 | G34: ='TNC Scenarios'!G36 -> 0 | H34: ='TNC Scenarios'!H36 -> 0 | I34: ='TNC Scenarios'!I36 -> 0 | J34: ='TNC Scenarios'!J36 -> 676.3 | K34: ='TNC Scenarios'!L36 -> 120 | L34: ='TNC Scenarios'!M36 -> 0 | M34: ='TNC Scenarios'!N36 -> 0 | N34: ='TNC Scenarios'!O36 -> 123 | O34: ='TNC Scenarios'!P36 -> 66 | P34: ='TNC Scenarios'!Q36 -> 240 | Q34: ='TNC Scenarios'!R36 -> 0 | R34: ='TNC Scenarios'!S36 -> 0 | S34: ='TNC Scenarios'!T36 -> 549 | T34: ='TNC Scenarios'!U36 -> 699 | U34: ='TNC Scenarios'!W36 -> 5163.92 | V34: ='TNC Scenarios'!AB36 -> 2045 | W34: ='TNC Scenarios'!AI36 -> 4469.62 | X34: ='TNC Scenarios'!AU36 -> 2424.62 | Y34: ='TNC Scenarios'!AV36 -> 2358.62 | Z34: ='TNC Scenarios'!AW36 -> 2235.62 | AA34: ='TNC Scenarios'!AX36 -> 1995.62 | AB34: ='TNC Scenarios'!AY36 -> 1875.62 | AC34: ='TNC Scenarios'!AZ36 -> 1725.62 | AD34: ='TNC Scenarios'!BB36 -> 4318.099882 | AE34: ='TNC Scenarios'!BC36 -> 1766.88 | AF34: ='TNC Scenarios'!BD36 -> 63.7626 | AG34: ='TNC Scenarios'!BE36 -> 118.8303 | AH34: ='TNC Scenarios'!BF36 -> 207.36 | AI34: ='TNC Scenarios'!BG36 -> 103.68 | AJ34: ='TNC Scenarios'!BH36 -> 144.915 | AK34: ='TNC Scenarios'!BI36 -> 493.6329 | AL34: ='TNC Scenarios'!BK36 -> 4318.099882 | AM34: ='TNC Scenarios'!BL36 -> 2551.219882 | AN34: ='TNC Scenarios'!BM36 -> 2487.457282 | AO34: ='TNC Scenarios'!BN36 -> 2368.626982 | AP34: ='TNC Scenarios'!BO36 -> 2161.266982 | AQ34: ='TNC Scenarios'!BP36 -> 2057.586982 | AR34: ='TNC Scenarios'!BQ36 -> 1912.671982 | AS34: 640 | AT34: 105 | AU34: 21 | AV34: 153.3 | AW34: 84 | AX34: 240 | AY34: 0 | AZ34: 0 | BA34: 1225.3 | BB34: 1375.3
A35: ='TNC Scenarios'!A37 -> 2045 | B35: ='TNC Scenarios'!B37 -> 520 | C35: ='TNC Scenarios'!C37 -> 105 | D35: ='TNC Scenarios'!D37 -> 21 | E35: ='TNC Scenarios'!E37 -> 30.3 | F35: ='TNC Scenarios'!F37 -> 18 | G35: ='TNC Scenarios'!G37 -> 0 | H35: ='TNC Scenarios'!H37 -> 0 | I35: ='TNC Scenarios'!I37 -> 0 | J35: ='TNC Scenarios'!J37 -> 676.3 | K35: ='TNC Scenarios'!L37 -> 120 | L35: ='TNC Scenarios'!M37 -> 0 | M35: ='TNC Scenarios'!N37 -> 0 | N35: ='TNC Scenarios'!O37 -> 123 | O35: ='TNC Scenarios'!P37 -> 66 | P35: ='TNC Scenarios'!Q37 -> 240 | Q35: ='TNC Scenarios'!R37 -> 0 | R35: ='TNC Scenarios'!S37 -> 0 | S35: ='TNC Scenarios'!T37 -> 549 | T35: ='TNC Scenarios'!U37 -> 709 | U35: ='TNC Scenarios'!W37 -> 5212.12 | V35: ='TNC Scenarios'!AB37 -> 2125 | W35: ='TNC Scenarios'!AI37 -> 4517.82 | X35: ='TNC Scenarios'!AU37 -> 2392.82 | Y35: ='TNC Scenarios'!AV37 -> 2326.82 | Z35: ='TNC Scenarios'!AW37 -> 2203.82 | AA35: ='TNC Scenarios'!AX37 -> 1963.82 | AB35: ='TNC Scenarios'!AY37 -> 1843.82 | AC35: ='TNC Scenarios'!AZ37 -> 1683.82 | AD35: ='TNC Scenarios'!BB37 -> 4364.665902 | AE35: ='TNC Scenarios'!BC37 -> 1836 | AF35: ='TNC Scenarios'!BD37 -> 63.7626 | AG35: ='TNC Scenarios'!BE37 -> 118.8303 | AH35: ='TNC Scenarios'!BF37 -> 207.36 | AI35: ='TNC Scenarios'!BG37 -> 103.68 | AJ35: ='TNC Scenarios'!BH37 -> 154.576 | AK35: ='TNC Scenarios'!BI37 -> 493.6329 | AL35: ='TNC Scenarios'!BK37 -> 4364.665902 | AM35: ='TNC Scenarios'!BL37 -> 2528.665902 | AN35: ='TNC Scenarios'!BM37 -> 2464.903302 | AO35: ='TNC Scenarios'!BN37 -> 2346.073002 | AP35: ='TNC Scenarios'!BO37 -> 2138.713002 | AQ35: ='TNC Scenarios'!BP37 -> 2035.033002 | AR35: ='TNC Scenarios'!BQ37 -> 1880.457002 | AS35: 640 | AT35: 105 | AU35: 21 | AV35: 153.3 | AW35: 84 | AX35: 240 | AY35: 0 | AZ35: 0 | BA35: 1225.3 | BB35: 1385.3
A36: ='TNC Scenarios'!A38 -> 2046 | B36: ='TNC Scenarios'!B38 -> 520 | C36: ='TNC Scenarios'!C38 -> 105 | D36: ='TNC Scenarios'!D38 -> 21 | E36: ='TNC Scenarios'!E38 -> 30.3 | F36: ='TNC Scenarios'!F38 -> 18 | G36: ='TNC Scenarios'!G38 -> 0 | H36: ='TNC Scenarios'!H38 -> 0 | I36: ='TNC Scenarios'!I38 -> 0 | J36: ='TNC Scenarios'!J38 -> 676.3 | K36: ='TNC Scenarios'!L38 -> 120 | L36: ='TNC Scenarios'!M38 -> 0 | M36: ='TNC Scenarios'!N38 -> 0 | N36: ='TNC Scenarios'!O38 -> 123 | O36: ='TNC Scenarios'!P38 -> 66 | P36: ='TNC Scenarios'!Q38 -> 240 | Q36: ='TNC Scenarios'!R38 -> 0 | R36: ='TNC Scenarios'!S38 -> 0 | S36: ='TNC Scenarios'!T38 -> 549 | T36: ='TNC Scenarios'!U38 -> 709 | U36: ='TNC Scenarios'!W38 -> 5260.52 | V36: ='TNC Scenarios'!AB38 -> 2190 | W36: ='TNC Scenarios'!AI38 -> 4566.22 | X36: ='TNC Scenarios'!AU38 -> 2376.22 | Y36: ='TNC Scenarios'!AV38 -> 2310.22 | Z36: ='TNC Scenarios'!AW38 -> 2187.22 | AA36: ='TNC Scenarios'!AX38 -> 1947.22 | AB36: ='TNC Scenarios'!AY38 -> 1827.22 | AC36: ='TNC Scenarios'!AZ38 -> 1667.22 | AD36: ='TNC Scenarios'!BB38 -> 4411.425142 | AE36: ='TNC Scenarios'!BC38 -> 1892.16 | AF36: ='TNC Scenarios'!BD38 -> 63.7626 | AG36: ='TNC Scenarios'!BE38 -> 118.8303 | AH36: ='TNC Scenarios'!BF38 -> 207.36 | AI36: ='TNC Scenarios'!BG38 -> 103.68 | AJ36: ='TNC Scenarios'!BH38 -> 154.576 | AK36: ='TNC Scenarios'!BI38 -> 493.6329 | AL36: ='TNC Scenarios'!BK38 -> 4411.425142 | AM36: ='TNC Scenarios'!BL38 -> 2519.265142 | AN36: ='TNC Scenarios'!BM38 -> 2455.502542 | AO36: ='TNC Scenarios'!BN38 -> 2336.672242 | AP36: ='TNC Scenarios'!BO38 -> 2129.312242 | AQ36: ='TNC Scenarios'!BP38 -> 2025.632242 | AR36: ='TNC Scenarios'!BQ38 -> 1871.056242 | AS36: 640 | AT36: 105 | AU36: 21 | AV36: 153.3 | AW36: 84 | AX36: 240 | AY36: 0 | AZ36: 0 | BA36: 1225.3 | BB36: 1385.3
A37: ='TNC Scenarios'!A39 -> 2047 | B37: ='TNC Scenarios'!B39 -> 520 | C37: ='TNC Scenarios'!C39 -> 105 | D37: ='TNC Scenarios'!D39 -> 21 | E37: ='TNC Scenarios'!E39 -> 30.3 | F37: ='TNC Scenarios'!F39 -> 18 | G37: ='TNC Scenarios'!G39 -> 0 | H37: ='TNC Scenarios'!H39 -> 0 | I37: ='TNC Scenarios'!I39 -> 0 | J37: ='TNC Scenarios'!J39 -> 676.3 | K37: ='TNC Scenarios'!L39 -> 120 | L37: ='TNC Scenarios'!M39 -> 0 | M37: ='TNC Scenarios'!N39 -> 0 | N37: ='TNC Scenarios'!O39 -> 123 | O37: ='TNC Scenarios'!P39 -> 66 | P37: ='TNC Scenarios'!Q39 -> 240 | Q37: ='TNC Scenarios'!R39 -> 0 | R37: ='TNC Scenarios'!S39 -> 0 | S37: ='TNC Scenarios'!T39 -> 549 | T37: ='TNC Scenarios'!U39 -> 729 | U37: ='TNC Scenarios'!W39 -> 5308.92 | V37: ='TNC Scenarios'!AB39 -> 2255 | W37: ='TNC Scenarios'!AI39 -> 4614.62 | X37: ='TNC Scenarios'!AU39 -> 2359.62 | Y37: ='TNC Scenarios'!AV39 -> 2293.62 | Z37: ='TNC Scenarios'!AW39 -> 2170.62 | AA37: ='TNC Scenarios'!AX39 -> 1930.62 | AB37: ='TNC Scenarios'!AY39 -> 1810.62 | AC37: ='TNC Scenarios'!AZ39 -> 1630.62 | AD37: ='TNC Scenarios'!BB39 -> 4458.184382 | AE37: ='TNC Scenarios'!BC39 -> 1948.32 | AF37: ='TNC Scenarios'!BD39 -> 63.7626 | AG37: ='TNC Scenarios'!BE39 -> 118.8303 | AH37: ='TNC Scenarios'!BF39 -> 207.36 | AI37: ='TNC Scenarios'!BG39 -> 103.68 | AJ37: ='TNC Scenarios'!BH39 -> 173.898 | AK37: ='TNC Scenarios'!BI39 -> 493.6329 | AL37: ='TNC Scenarios'!BK39 -> 4458.184382 | AM37: ='TNC Scenarios'!BL39 -> 2509.864382 | AN37: ='TNC Scenarios'!BM39 -> 2446.101782 | AO37: ='TNC Scenarios'!BN39 -> 2327.271482 | AP37: ='TNC Scenarios'!BO39 -> 2119.911482 | AQ37: ='TNC Scenarios'!BP39 -> 2016.231482 | AR37: ='TNC Scenarios'!BQ39 -> 1842.333482 | AS37: 640 | AT37: 105 | AU37: 21 | AV37: 153.3 | AW37: 84 | AX37: 240 | AY37: 0 | AZ37: 0 | BA37: 1225.3 | BB37: 1405.3
A38: ='TNC Scenarios'!A40 -> 2048 | B38: ='TNC Scenarios'!B40 -> 520 | C38: ='TNC Scenarios'!C40 -> 105 | D38: ='TNC Scenarios'!D40 -> 21 | E38: ='TNC Scenarios'!E40 -> 30.3 | F38: ='TNC Scenarios'!F40 -> 18 | G38: ='TNC Scenarios'!G40 -> 0 | H38: ='TNC Scenarios'!H40 -> 0 | I38: ='TNC Scenarios'!I40 -> 0 | J38: ='TNC Scenarios'!J40 -> 676.3 | K38: ='TNC Scenarios'!L40 -> 120 | L38: ='TNC Scenarios'!M40 -> 0 | M38: ='TNC Scenarios'!N40 -> 0 | N38: ='TNC Scenarios'!O40 -> 123 | O38: ='TNC Scenarios'!P40 -> 66 | P38: ='TNC Scenarios'!Q40 -> 240 | Q38: ='TNC Scenarios'!R40 -> 0 | R38: ='TNC Scenarios'!S40 -> 0 | S38: ='TNC Scenarios'!T40 -> 549 | T38: ='TNC Scenarios'!U40 -> 759 | U38: ='TNC Scenarios'!W40 -> 5357.32 | V38: ='TNC Scenarios'!AB40 -> 2320 | W38: ='TNC Scenarios'!AI40 -> 4663.02 | X38: ='TNC Scenarios'!AU40 -> 2343.02 | Y38: ='TNC Scenarios'!AV40 -> 2277.02 | Z38: ='TNC Scenarios'!AW40 -> 2154.02 | AA38: ='TNC Scenarios'!AX40 -> 1914.02 | AB38: ='TNC Scenarios'!AY40 -> 1794.02 | AC38: ='TNC Scenarios'!AZ40 -> 1584.02 | AD38: ='TNC Scenarios'!BB40 -> 4504.943622 | AE38: ='TNC Scenarios'!BC40 -> 2004.48 | AF38: ='TNC Scenarios'!BD40 -> 63.7626 | AG38: ='TNC Scenarios'!BE40 -> 118.8303 | AH38: ='TNC Scenarios'!BF40 -> 207.36 | AI38: ='TNC Scenarios'!BG40 -> 103.68 | AJ38: ='TNC Scenarios'!BH40 -> 202.881 | AK38: ='TNC Scenarios'!BI40 -> 493.6329 | AL38: ='TNC Scenarios'!BK40 -> 4504.943622 | AM38: ='TNC Scenarios'!BL40 -> 2500.463622 | AN38: ='TNC Scenarios'!BM40 -> 2436.701022 | AO38: ='TNC Scenarios'!BN40 -> 2317.870722 | AP38: ='TNC Scenarios'!BO40 -> 2110.510722 | AQ38: ='TNC Scenarios'!BP40 -> 2006.830722 | AR38: ='TNC Scenarios'!BQ40 -> 1803.949722 | AS38: 640 | AT38: 105 | AU38: 21 | AV38: 153.3 | AW38: 84 | AX38: 240 | AY38: 0 | AZ38: 0 | BA38: 1225.3 | BB38: 1435.3
A39: ='TNC Scenarios'!A41 -> 2049 | B39: ='TNC Scenarios'!B41 -> 520 | C39: ='TNC Scenarios'!C41 -> 105 | D39: ='TNC Scenarios'!D41 -> 21 | E39: ='TNC Scenarios'!E41 -> 30.3 | F39: ='TNC Scenarios'!F41 -> 18 | G39: ='TNC Scenarios'!G41 -> 0 | H39: ='TNC Scenarios'!H41 -> 0 | I39: ='TNC Scenarios'!I41 -> 0 | J39: ='TNC Scenarios'!J41 -> 676.3 | K39: ='TNC Scenarios'!L41 -> 120 | L39: ='TNC Scenarios'!M41 -> 0 | M39: ='TNC Scenarios'!N41 -> 0 | N39: ='TNC Scenarios'!O41 -> 123 | O39: ='TNC Scenarios'!P41 -> 66 | P39: ='TNC Scenarios'!Q41 -> 240 | Q39: ='TNC Scenarios'!R41 -> 0 | R39: ='TNC Scenarios'!S41 -> 0 | S39: ='TNC Scenarios'!T41 -> 549 | T39: ='TNC Scenarios'!U41 -> 779 | U39: ='TNC Scenarios'!W41 -> 5405.72 | V39: ='TNC Scenarios'!AB41 -> 2385 | W39: ='TNC Scenarios'!AI41 -> 4711.42 | X39: ='TNC Scenarios'!AU41 -> 2326.42 | Y39: ='TNC Scenarios'!AV41 -> 2260.42 | Z39: ='TNC Scenarios'!AW41 -> 2137.42 | AA39: ='TNC Scenarios'!AX41 -> 1897.42 | AB39: ='TNC Scenarios'!AY41 -> 1777.42 | AC39: ='TNC Scenarios'!AZ41 -> 1547.42 | AD39: ='TNC Scenarios'!BB41 -> 4551.702862 | AE39: ='TNC Scenarios'!BC41 -> 2060.64 | AF39: ='TNC Scenarios'!BD41 -> 63.7626 | AG39: ='TNC Scenarios'!BE41 -> 118.8303 | AH39: ='TNC Scenarios'!BF41 -> 207.36 | AI39: ='TNC Scenarios'!BG41 -> 103.68 | AJ39: ='TNC Scenarios'!BH41 -> 222.203 | AK39: ='TNC Scenarios'!BI41 -> 493.6329 | AL39: ='TNC Scenarios'!BK41 -> 4551.702862 | AM39: ='TNC Scenarios'!BL41 -> 2491.062862 | AN39: ='TNC Scenarios'!BM41 -> 2427.300262 | AO39: ='TNC Scenarios'!BN41 -> 2308.469962 | AP39: ='TNC Scenarios'!BO41 -> 2101.109962 | AQ39: ='TNC Scenarios'!BP41 -> 1997.429962 | AR39: ='TNC Scenarios'!BQ41 -> 1775.226962 | AS39: 640 | AT39: 105 | AU39: 21 | AV39: 153.3 | AW39: 84 | AX39: 240 | AY39: 0 | AZ39: 0 | BA39: 1225.3 | BB39: 1455.3
A40: ='TNC Scenarios'!A42 -> 2050 | B40: ='TNC Scenarios'!B42 -> 520 | C40: ='TNC Scenarios'!C42 -> 105 | D40: ='TNC Scenarios'!D42 -> 21 | E40: ='TNC Scenarios'!E42 -> 30.3 | F40: ='TNC Scenarios'!F42 -> 18 | G40: ='TNC Scenarios'!G42 -> 0 | H40: ='TNC Scenarios'!H42 -> 0 | I40: ='TNC Scenarios'!I42 -> 0 | J40: ='TNC Scenarios'!J42 -> 676.3 | K40: ='TNC Scenarios'!L42 -> 120 | L40: ='TNC Scenarios'!M42 -> 0 | M40: ='TNC Scenarios'!N42 -> 0 | N40: ='TNC Scenarios'!O42 -> 123 | O40: ='TNC Scenarios'!P42 -> 66 | P40: ='TNC Scenarios'!Q42 -> 240 | Q40: ='TNC Scenarios'!R42 -> 0 | R40: ='TNC Scenarios'!S42 -> 0 | S40: ='TNC Scenarios'!T42 -> 549 | T40: ='TNC Scenarios'!U42 -> 819 | U40: ='TNC Scenarios'!W42 -> 5454.12 | V40: ='TNC Scenarios'!AB42 -> 2450 | W40: ='TNC Scenarios'!AI42 -> 4759.82 | X40: ='TNC Scenarios'!AU42 -> 2309.82 | Y40: ='TNC Scenarios'!AV42 -> 2243.82 | Z40: ='TNC Scenarios'!AW42 -> 2120.82 | AA40: ='TNC Scenarios'!AX42 -> 1880.82 | AB40: ='TNC Scenarios'!AY42 -> 1760.82 | AC40: ='TNC Scenarios'!AZ42 -> 1490.82 | AD40: ='TNC Scenarios'!BB42 -> 4598.462102 | AE40: ='TNC Scenarios'!BC42 -> 2116.8 | AF40: ='TNC Scenarios'!BD42 -> 63.7626 | AG40: ='TNC Scenarios'!BE42 -> 118.8303 | AH40: ='TNC Scenarios'!BF42 -> 207.36 | AI40: ='TNC Scenarios'!BG42 -> 103.68 | AJ40: ='TNC Scenarios'!BH42 -> 260.847 | AK40: ='TNC Scenarios'!BI42 -> 493.6329 | AL40: ='TNC Scenarios'!BK42 -> 4598.462102 | AM40: ='TNC Scenarios'!BL42 -> 2481.662102 | AN40: ='TNC Scenarios'!BM42 -> 2417.899502 | AO40: ='TNC Scenarios'!BN42 -> 2299.069202 | AP40: ='TNC Scenarios'!BO42 -> 2091.709202 | AQ40: ='TNC Scenarios'!BP42 -> 1988.029202 | AR40: ='TNC Scenarios'!BQ42 -> 1727.182202 | AS40: 640 | AT40: 105 | AU40: 21 | AV40: 153.3 | AW40: 84 | AX40: 240 | AY40: 0 | AZ40: 0 | BA40: 1225.3 | BB40: 1495.3

Sheet All UD1 Plots (hidden)
A1: YEAR | B1: Existing RE: Biomass (GWh) | C1: Existing RE: Hydro (GWh) | D1: Existing RE: LFG (GWh) | E1: Existing RE: Solar PV (GWh) | F1: Existing RE: Wind (GWh) | G1: Existing RE: WTE (GWh) | H1: Existing RE: Ocean (GWh) | I1: Existing RE: Other Sources (GWh) | J1: Existing RE: TOTAL (GWh) | K1: Projected RE: Biomass (GWh) | L1: Projected RE: Hydro (GWh) | M1: Projected RE: LFG (GWh) | N1: Projected RE: Solar PV (GWh) | O1: Projected RE: Wind (GWh) | P1: Projected RE: WTE (GWh) | Q1: Projected RE: Ocean (GWh) | R1: Projected RE: Other Sources (GWh) | S1: Projected RE: TOTAL 2030 (GWh) | T1: Projected RE: TOTAL 2030+ (GWh) | U1: Demand-Side Modelled (GWh) | V1: EE Estimated (GWh) | W1: Baseline (BAU - Existing RE) (GWh) | X1: Energy Consumed thru' EE (GWh) | Y1: Energy Consumed thru' EE and Wind (GWh) | Z1: Energy Consumed thru' EE, Wind and Solar (GWh) | AA1: Energy Consumed thru' EE, Wind, Solar, and WTE (GWh) | AB1: Energy Consumed thru' EE, Wind, Solar, WTE and Biomass (GWh) | AC1: Energy Consumed thru' EE, Wind, Solar, WTE, Biomass and RE2030+ (GWh) | AD1: GHG Emissions (Gg CO2e) | AE1: GHG Emission Reduction with EE (Gg CO2e) | AF1: GHG Emission Reduction and Wind (Gg CO2e) | AG1: GHG Emission Reduction, Wind and Solar (Gg CO2e) | AH1: GHG Emission Reduction, Wind, Solar and WTE (Gg CO2e) | AI1: GHG Emission Reduction, Wind, Solar, WTE, and Biomass (Gg CO2e) | AJ1: GHG Emission Reduction, Wind, Solar, WTE, Biomass, and added RE 2030+ (Gg CO2e) | AK1: GHG Emission Reduction - Supply side RE 2030 (Gg CO2e) | AL1: GHG Emissions (Gg CO2e) | AM1: GHG Emissions with EE (Gg CO2e) | AN1: GHG Emissions with EE and Wind (Gg CO2e) | AO1: GHG Emissions with EE, Wind and Solar (Gg CO2e) | AP1: GHG Emissions with EE, Wind, Solar and WTE (Gg CO2e) | AQ1: GHG Emissions with EE, Wind, Solar, WTE, and Biomass (Gg CO2e) | AR1: GHG Emissions with EE, Wind, Solar, WTE, Biomass, and added RE 2030+ (Gg CO2e) | AS1: Combined Existing and Projected Biomass (GWh) | AT1: Combined Existing and Projected Hydro (GWh) | AU1: Combined Existing and Projected LFG (GWh) | AV1: Combined Existing and Projected Solar PV (GWh) | AW1: Combined Existing and Projected Wind (GWh) | AX1: Combined Existing and Projected WTE (GWh) | AY1: Combined Existing and Projected Ocean (GWh) | AZ1: Combined Existing and Projected Other Sources (GWh) | BA1: Combined Existing and Projected RE (GWh) | BB1: Combined Existing and Projected RE2030+ (GWh)
A2: UD1 | B2: DATA | C2: DATA | D2: DATA | E2: DATA | F2: DATA | G2: DATA | H2: DATA | I2: DATA | J2: DATA | K2: DATA | L2: DATA | M2: DATA | N2: DATA | O2: DATA | P2: DATA | Q2: DATA | R2: DATA | S2: DATA | T2: DATA | U2: BAU | V2: BAU | W2: BAU | X2: SC1 | Y2: SC2 | Z2: SC3 | AA2: SC4 | AB2: SC5 | AC2: SC6 | AD2: BAU | AE2: SC1 | AF2: SC2 | AG2: SC3 | AH2: SC4 | AI2: SC5 | AJ2: SC6 | AK2: OTHER | AL2: BAU | AM2: SC1 | AN2: SC2 | AO2: SC3 | AP2: SC4 | AQ2: SC5 | AR2: SC6 | AS2: DATA+ | AT2: DATA+ | AU2: DATA+ | AV2: DATA+ | AW2: DATA+ | AX2: DATA+ | AY2: DATA+ | AZ2: DATA+ | BA2: DATA+ | BB2: DATA+
B3: 1 | C3: 2 | D3: 3 | E3: 4 | F3: 5 | G3: 6 | H3: 7 | I3: 8 | J3: 9 | K3: 10 | L3: 11 | M3: 12 | N3: 13 | O3: 14 | P3: 15 | Q3: 16 | R3: 17 | S3: 18 | T3: 19 | U3: 20 | V3: 21 | W3: 22 | X3: 23 | Y3: 24 | Z3: 25 | AA3: 26 | AB3: 27 | AC3: 28 | AD3: 29 | AE3: 30 | AF3: 31 | AG3: 32 | AH3: 33 | AI3: 34 | AJ3: 35 | AK3: 36 | AL3: 37 | AM3: 38 | AN3: 39 | AO3: 40 | AP3: 41 | AQ3: 42 | AR3: 43 | AS3: 44 | AT3: 45 | AU3: 46 | AV3: 47 | AW3: 48 | AX3: 49 | AY3: 50 | AZ3: 51 | BA3: 52 | BB3: 53
A4: ='UD1 Scenarios'!A6 -> 2014 | B4: ='UD1 Scenarios'!B6 -> 456.2 | C4: ='UD1 Scenarios'!C6 -> 90.8 | D4: ='UD1 Scenarios'!D6 -> 21.3 | E4: ='UD1 Scenarios'!E6 -> 24.6 | F4: ='UD1 Scenarios'!F6 -> 3.2 | G4: ='UD1 Scenarios'!G6 -> 0 | H4: ='UD1 Scenarios'!H6 -> 0 | I4: ='UD1 Scenarios'!I6 -> 0 | J4: ='UD1 Scenarios'!J6 -> 592.9 | K4: ='UD1 Scenarios'!L6 -> 0 | L4: ='UD1 Scenarios'!M6 -> 0 | M4: ='UD1 Scenarios'!N6 -> 0 | N4: ='UD1 Scenarios'!O6 -> 0 | O4: ='UD1 Scenarios'!P6 -> 0 | P4: ='UD1 Scenarios'!Q6 -> 0 | Q4: ='UD1 Scenarios'!R6 -> 0 | R4: ='UD1 Scenarios'!S6 -> 0 | S4: ='UD1 Scenarios'!T6 -> 0 | T4: ='UD1 Scenarios'!U6 -> 0 | U4: ='UD1 Scenarios'!W6 -> 3019 | V4: ='UD1 Scenarios'!AB6 -> 0 | W4: ='UD1 Scenarios'!AI6 -> 2422.9 | X4: ='UD1 Scenarios'!AU6 -> 2422.9 | Y4: ='UD1 Scenarios'!AV6 -> 2422.9 | Z4: ='UD1 Scenarios'!AW6 -> 2422.9 | AA4: ='UD1 Scenarios'!AX6 -> 2422.9 | AB4: ='UD1 Scenarios'!AY6 -> 2422.9 | AC4: ='UD1 Scenarios'!AZ6 -> 2422.9 | AD4: ='UD1 Scenarios'!BB6 -> 2340.76369 | AE4: ='UD1 Scenarios'!BC6 -> 0 | AF4: ='UD1 Scenarios'!BD6 -> 0 | AG4: ='UD1 Scenarios'!BE6 -> 0 | AH4: ='UD1 Scenarios'!BF6 -> 0 | AI4: ='UD1 Scenarios'!BG6 -> 0 | AJ4: ='UD1 Scenarios'!BH6 -> 0 | AK4: ='UD1 Scenarios'!BI6 -> 0 | AL4: ='UD1 Scenarios'!BK6 -> 2340.76369 | AM4: ='UD1 Scenarios'!BL6 -> 2340.76369 | AN4: ='UD1 Scenarios'!BM6 -> 2340.76369 | AO4: ='UD1 Scenarios'!BN6 -> 2340.76369 | AP4: ='UD1 Scenarios'!BO6 -> 2340.76369 | AQ4: ='UD1 Scenarios'!BP6 -> 2340.76369 | AR4: ='UD1 Scenarios'!BQ6 -> 2340.76369 | AS4: =B4+K4 -> 456.2 | AT4: =C4+L4 -> 90.8 | AU4: 21.3 | AV4: 24.6 | AW4: 3.2 | AX4: 0 | AY4: 0 | AZ4: 0 | BA4: 592.9 | BB4: =J4+T4 -> 592.9
A5: ='UD1 Scenarios'!A7 -> 2015 | B5: ='UD1 Scenarios'!B7 -> 509.8 | C5: ='UD1 Scenarios'!C7 -> 121.9 | D5: ='UD1 Scenarios'!D7 -> 20.4 | E5: ='UD1 Scenarios'!E7 -> 25.9 | F5: ='UD1 Scenarios'!F7 -> 2.7 | G5: ='UD1 Scenarios'!G7 -> 0 | H5: ='UD1 Scenarios'!H7 -> 0 | I5: ='UD1 Scenarios'!I7 -> 0 | J5: ='UD1 Scenarios'!J7 -> 678 | K5: ='UD1 Scenarios'!L7 -> 0 | L5: ='UD1 Scenarios'!M7 -> 0 | M5: ='UD1 Scenarios'!N7 -> 0 | N5: ='UD1 Scenarios'!O7 -> 0 | O5: ='UD1 Scenarios'!P7 -> 0 | P5: ='UD1 Scenarios'!Q7 -> 0 | Q5: ='UD1 Scenarios'!R7 -> 0 | R5: ='UD1 Scenarios'!S7 -> 0 | S5: ='UD1 Scenarios'!T7 -> 0 | T5: ='UD1 Scenarios'!U7 -> 0 | U5: ='UD1 Scenarios'!W7 -> 3138 | V5: ='UD1 Scenarios'!AB7 -> 33 | W5: ='UD1 Scenarios'!AI7 -> 2457.3 | X5: ='UD1 Scenarios'!AU7 -> 2424.3 | Y5: ='UD1 Scenarios'!AV7 -> 2424.3 | Z5: ='UD1 Scenarios'!AW7 -> 2424.3 | AA5: ='UD1 Scenarios'!AX7 -> 2424.3 | AB5: ='UD1 Scenarios'!AY7 -> 2424.3 | AC5: ='UD1 Scenarios'!AZ7 -> 2424.3 | AD5: ='UD1 Scenarios'!BB7 -> 2373.99753 | AE5: ='UD1 Scenarios'!BC7 -> 30.195 | AF5: ='UD1 Scenarios'!BD7 -> 0 | AG5: ='UD1 Scenarios'!BE7 -> 0 | AH5: ='UD1 Scenarios'!BF7 -> 0 | AI5: ='UD1 Scenarios'!BG7 -> 0 | AJ5: ='UD1 Scenarios'!BH7 -> 0 | AK5: ='UD1 Scenarios'!BI7 -> 0 | AL5: ='UD1 Scenarios'!BK7 -> 2373.99753 | AM5: ='UD1 Scenarios'!BL7 -> 2343.80253 | AN5: ='UD1 Scenarios'!BM7 -> 2343.80253 | AO5: ='UD1 Scenarios'!BN7 -> 2343.80253 | AP5: ='UD1 Scenarios'!BO7 -> 2343.80253 | AQ5: ='UD1 Scenarios'!BP7 -> 2343.80253 | AR5: ='UD1 Scenarios'!BQ7 -> 2343.80253 | AS5: =B5+K5 -> 509.8 | AT5: =C5+L5 -> 121.9 | AU5: =D5+M5 -> 20.4 | AV5: =E5+N5 -> 25.9 | AW5: =F5+O5 -> 2.7 | AX5: =G5+P5 -> 0 | AY5: =H5+Q5 -> 0 | AZ5: =I5+R5 -> 0 | BA5: =J5+S5 -> 678 | BB5: =J5+T5 -> 678
A6: ='UD1 Scenarios'!A8 -> 2016 | B6: ='UD1 Scenarios'!B8 -> 497 | C6: ='UD1 Scenarios'!C8 -> 99.5 | D6: ='UD1 Scenarios'!D8 -> 18.7 | E6: ='UD1 Scenarios'!E8 -> 30.3 | F6: ='UD1 Scenarios'!F8 -> 2.7 | G6: ='UD1 Scenarios'!G8 -> 0 | H6: ='UD1 Scenarios'!H8 -> 0 | I6: ='UD1 Scenarios'!I8 -> 0 | J6: ='UD1 Scenarios'!J8 -> 645.5 | K6: ='UD1 Scenarios'!L8 -> 0 | L6: ='UD1 Scenarios'!M8 -> 0 | M6: ='UD1 Scenarios'!N8 -> 0 | N6: ='UD1 Scenarios'!O8 -> 0 | O6: ='UD1 Scenarios'!P8 -> 0 | P6: ='UD1 Scenarios'!Q8 -> 0 | Q6: ='UD1 Scenarios'!R8 -> 0 | R6: ='UD1 Scenarios'!S8 -> 0 | S6: ='UD1 Scenarios'!T8 -> 0 | T6: ='UD1 Scenarios'!U8 -> 0 | U6: ='UD1 Scenarios'!W8 -> 3276 | V6: ='UD1 Scenarios'!AB8 -> 73.6 | W6: ='UD1 Scenarios'!AI8 -> 2627.8 | X6: ='UD1 Scenarios'!AU8 -> 2554.2 | Y6: ='UD1 Scenarios'!AV8 -> 2554.2 | Z6: ='UD1 Scenarios'!AW8 -> 2554.2 | AA6: ='UD1 Scenarios'!AX8 -> 2554.2 | AB6: ='UD1 Scenarios'!AY8 -> 2554.2 | AC6: ='UD1 Scenarios'!AZ8 -> 2554.2 | AD6: ='UD1 Scenarios'!BB8 -> 2538.71758 | AE6: ='UD1 Scenarios'!BC8 -> 67.344 | AF6: ='UD1 Scenarios'!BD8 -> 0 | AG6: ='UD1 Scenarios'!BE8 -> 0 | AH6: ='UD1 Scenarios'!BF8 -> 0 | AI6: ='UD1 Scenarios'!BG8 -> 0 | AJ6: ='UD1 Scenarios'!BH8 -> 0 | AK6: ='UD1 Scenarios'!BI8 -> 0 | AL6: ='UD1 Scenarios'!BK8 -> 2538.71758 | AM6: ='UD1 Scenarios'!BL8 -> 2471.37358 | AN6: ='UD1 Scenarios'!BM8 -> 2471.37358 | AO6: ='UD1 Scenarios'!BN8 -> 2471.37358 | AP6: ='UD1 Scenarios'!BO8 -> 2471.37358 | AQ6: ='UD1 Scenarios'!BP8 -> 2471.37358 | AR6: ='UD1 Scenarios'!BQ8 -> 2471.37358 | AS6: 497 | AT6: 99.5 | AU6: 18.7 | AV6: 30.3 | AW6: 2.7 | AX6: 0 | AY6: 0 | AZ6: 0 | BA6: 645.5 | BB6: 645.5
A7: ='UD1 Scenarios'!A9 -> 2017 | B7: ='UD1 Scenarios'!B9 -> 520 | C7: ='UD1 Scenarios'!C9 -> 105 | D7: ='UD1 Scenarios'!D9 -> 21 | E7: ='UD1 Scenarios'!E9 -> 30.3 | F7: ='UD1 Scenarios'!F9 -> 2.7 | G7: ='UD1 Scenarios'!G9 -> 0 | H7: ='UD1 Scenarios'!H9 -> 0 | I7: ='UD1 Scenarios'!I9 -> 0 | J7: ='UD1 Scenarios'!J9 -> 676.3 | K7: ='UD1 Scenarios'!L9 -> 0 | L7: ='UD1 Scenarios'!M9 -> 0 | M7: ='UD1 Scenarios'!N9 -> 0 | N7: ='UD1 Scenarios'!O9 -> 16 | O7: ='UD1 Scenarios'!P9 -> 40 | P7: ='UD1 Scenarios'!Q9 -> 0 | Q7: ='UD1 Scenarios'!R9 -> 0 | R7: ='UD1 Scenarios'!S9 -> 0 | S7: ='UD1 Scenarios'!T9 -> 56 | T7: ='UD1 Scenarios'!U9 -> 56 | U7: ='UD1 Scenarios'!W9 -> 3417 | V7: ='UD1 Scenarios'!AB9 -> 114.2 | W7: ='UD1 Scenarios'!AI9 -> 2738 | X7: ='UD1 Scenarios'!AU9 -> 2623.8 | Y7: ='UD1 Scenarios'!AV9 -> 2583.8 | Z7: ='UD1 Scenarios'!AW9 -> 2567.8 | AA7: ='UD1 Scenarios'!AX9 -> 2567.8 | AB7: ='UD1 Scenarios'!AY9 -> 2567.8 | AC7: ='UD1 Scenarios'!AZ9 -> 2567.8 | AD7: ='UD1 Scenarios'!BB9 -> 2645.1818 | AE7: ='UD1 Scenarios'!BC9 -> 104.493 | AF7: ='UD1 Scenarios'!BD9 -> 38.644 | AG7: ='UD1 Scenarios'!BE9 -> 15.4576 | AH7: ='UD1 Scenarios'!BF9 -> 0 | AI7: ='UD1 Scenarios'!BG9 -> 0 | AJ7: ='UD1 Scenarios'!BH9 -> 0 | AK7: ='UD1 Scenarios'!BI9 -> 0 | AL7: ='UD1 Scenarios'!BK9 -> 2645.1818 | AM7: ='UD1 Scenarios'!BL9 -> 2540.6888 | AN7: ='UD1 Scenarios'!BM9 -> 2502.0448 | AO7: ='UD1 Scenarios'!BN9 -> 2486.5872 | AP7: ='UD1 Scenarios'!BO9 -> 2486.5872 | AQ7: ='UD1 Scenarios'!BP9 -> 2486.5872 | AR7: ='UD1 Scenarios'!BQ9 -> 2486.5872 | AS7: 520 | AT7: 105 | AU7: 21 | AV7: 46.3 | AW7: 42.7 | AX7: 0 | AY7: 0 | AZ7: 0 | BA7: 732.3 | BB7: 732.3
A8: ='UD1 Scenarios'!A10 -> 2018 | B8: ='UD1 Scenarios'!B10 -> 520 | C8: ='UD1 Scenarios'!C10 -> 105 | D8: ='UD1 Scenarios'!D10 -> 21 | E8: ='UD1 Scenarios'!E10 -> 30.3 | F8: ='UD1 Scenarios'!F10 -> 2.7 | G8: ='UD1 Scenarios'!G10 -> 0 | H8: ='UD1 Scenarios'!H10 -> 0 | I8: ='UD1 Scenarios'!I10 -> 0 | J8: ='UD1 Scenarios'!J10 -> 676.3 | K8: ='UD1 Scenarios'!L10 -> 0 | L8: ='UD1 Scenarios'!M10 -> 0 | M8: ='UD1 Scenarios'!N10 -> 0 | N8: ='UD1 Scenarios'!O10 -> 41 | O8: ='UD1 Scenarios'!P10 -> 66 | P8: ='UD1 Scenarios'!Q10 -> 0 | Q8: ='UD1 Scenarios'!R10 -> 0 | R8: ='UD1 Scenarios'!S10 -> 0 | S8: ='UD1 Scenarios'!T10 -> 107 | T8: ='UD1 Scenarios'!U10 -> 107 | U8: ='UD1 Scenarios'!W10 -> 3540 | V8: ='UD1 Scenarios'!AB10 -> 154.8 | W8: ='UD1 Scenarios'!AI10 -> 2861 | X8: ='UD1 Scenarios'!AU10 -> 2706.2 | Y8: ='UD1 Scenarios'!AV10 -> 2640.2 | Z8: ='UD1 Scenarios'!AW10 -> 2599.2 | AA8: ='UD1 Scenarios'!AX10 -> 2599.2 | AB8: ='UD1 Scenarios'!AY10 -> 2599.2 | AC8: ='UD1 Scenarios'!AZ10 -> 2599.2 | AD8: ='UD1 Scenarios'!BB10 -> 2764.0121 | AE8: ='UD1 Scenarios'!BC10 -> 141.642 | AF8: ='UD1 Scenarios'!BD10 -> 63.7626 | AG8: ='UD1 Scenarios'!BE10 -> 39.6101 | AH8: ='UD1 Scenarios'!BF10 -> 0 | AI8: ='UD1 Scenarios'!BG10 -> 0 | AJ8: ='UD1 Scenarios'!BH10 -> 0 | AK8: ='UD1 Scenarios'!BI10 -> 0 | AL8: ='UD1 Scenarios'!BK10 -> 2764.0121 | AM8: ='UD1 Scenarios'!BL10 -> 2622.3701 | AN8: ='UD1 Scenarios'!BM10 -> 2558.6075 | AO8: ='UD1 Scenarios'!BN10 -> 2518.9974 | AP8: ='UD1 Scenarios'!BO10 -> 2518.9974 | AQ8: ='UD1 Scenarios'!BP10 -> 2518.9974 | AR8: ='UD1 Scenarios'!BQ10 -> 2518.9974 | AS8: 520 | AT8: 105 | AU8: 21 | AV8: 71.3 | AW8: 68.7 | AX8: 0 | AY8: 0 | AZ8: 0 | BA8: 783.3 | BB8: 783.3
A9: ='UD1 Scenarios'!A11 -> 2019 | B9: ='UD1 Scenarios'!B11 -> 520 | C9: ='UD1 Scenarios'!C11 -> 105 | D9: ='UD1 Scenarios'!D11 -> 21 | E9: ='UD1 Scenarios'!E11 -> 30.3 | F9: ='UD1 Scenarios'!F11 -> 2.7 | G9: ='UD1 Scenarios'!G11 -> 0 | H9: ='UD1 Scenarios'!H11 -> 0 | I9: ='UD1 Scenarios'!I11 -> 0 | J9: ='UD1 Scenarios'!J11 -> 676.3 | K9: ='UD1 Scenarios'!L11 -> 0 | L9: ='UD1 Scenarios'!M11 -> 0 | M9: ='UD1 Scenarios'!N11 -> 0 | N9: ='UD1 Scenarios'!O11 -> 66 | O9: ='UD1 Scenarios'!P11 -> 66 | P9: ='UD1 Scenarios'!Q11 -> 240 | Q9: ='UD1 Scenarios'!R11 -> 0 | R9: ='UD1 Scenarios'!S11 -> 0 | S9: ='UD1 Scenarios'!T11 -> 372 | T9: ='UD1 Scenarios'!U11 -> 372 | U9: ='UD1 Scenarios'!W11 -> 3660 | V9: ='UD1 Scenarios'!AB11 -> 195.4 | W9: ='UD1 Scenarios'!AI11 -> 2981 | X9: ='UD1 Scenarios'!AU11 -> 2785.6 | Y9: ='UD1 Scenarios'!AV11 -> 2719.6 | Z9: ='UD1 Scenarios'!AW11 -> 2653.6 | AA9: ='UD1 Scenarios'!AX11 -> 2413.6 | AB9: ='UD1 Scenarios'!AY11 -> 2413.6 | AC9: ='UD1 Scenarios'!AZ11 -> 2413.6 | AD9: ='UD1 Scenarios'!BB11 -> 2879.9441 | AE9: ='UD1 Scenarios'!BC11 -> 178.791 | AF9: ='UD1 Scenarios'!BD11 -> 63.7626 | AG9: ='UD1 Scenarios'!BE11 -> 63.7626 | AH9: ='UD1 Scenarios'!BF11 -> 219.6 | AI9: ='UD1 Scenarios'!BG11 -> 0 | AJ9: ='UD1 Scenarios'!BH11 -> 0 | AK9: ='UD1 Scenarios'!BI11 -> 0 | AL9: ='UD1 Scenarios'!BK11 -> 2879.9441 | AM9: ='UD1 Scenarios'!BL11 -> 2701.1531 | AN9: ='UD1 Scenarios'!BM11 -> 2637.3905 | AO9: ='UD1 Scenarios'!BN11 -> 2573.6279 | AP9: ='UD1 Scenarios'!BO11 -> 2354.0279 | AQ9: ='UD1 Scenarios'!BP11 -> 2354.0279 | AR9: ='UD1 Scenarios'!BQ11 -> 2354.0279 | AS9: 520 | AT9: 105 | AU9: 21 | AV9: 96.3 | AW9: 68.7 | AX9: 240 | AY9: 0 | AZ9: 0 | BA9: 1048.3 | BB9: 1048.3
A10: ='UD1 Scenarios'!A12 -> 2020 | B10: ='UD1 Scenarios'!B12 -> 520 | C10: ='UD1 Scenarios'!C12 -> 105 | D10: ='UD1 Scenarios'!D12 -> 21 | E10: ='UD1 Scenarios'!E12 -> 30.3 | F10: ='UD1 Scenarios'!F12 -> 2.7 | G10: ='UD1 Scenarios'!G12 -> 0 | H10: ='UD1 Scenarios'!H12 -> 0 | I10: ='UD1 Scenarios'!I12 -> 0 | J10: ='UD1 Scenarios'!J12 -> 676.3 | K10: ='UD1 Scenarios'!L12 -> 0 | L10: ='UD1 Scenarios'!M12 -> 0 | M10: ='UD1 Scenarios'!N12 -> 0 | N10: ='UD1 Scenarios'!O12 -> 123 | O10: ='UD1 Scenarios'!P12 -> 66 | P10: ='UD1 Scenarios'!Q12 -> 240 | Q10: ='UD1 Scenarios'!R12 -> 0 | R10: ='UD1 Scenarios'!S12 -> 0 | S10: ='UD1 Scenarios'!T12 -> 429 | T10: ='UD1 Scenarios'!U12 -> 429 | U10: ='UD1 Scenarios'!W12 -> 3781 | V10: ='UD1 Scenarios'!AB12 -> 236 | W10: ='UD1 Scenarios'!AI12 -> 3102 | X10: ='UD1 Scenarios'!AU12 -> 2866 | Y10: ='UD1 Scenarios'!AV12 -> 2800 | Z10: ='UD1 Scenarios'!AW12 -> 2677 | AA10: ='UD1 Scenarios'!AX12 -> 2437 | AB10: ='UD1 Scenarios'!AY12 -> 2437 | AC10: ='UD1 Scenarios'!AZ12 -> 2437 | AD10: ='UD1 Scenarios'!BB12 -> 2996.8422 | AE10: ='UD1 Scenarios'!BC12 -> 215.94 | AF10: ='UD1 Scenarios'!BD12 -> 63.7626 | AG10: ='UD1 Scenarios'!BE12 -> 118.8303 | AH10: ='UD1 Scenarios'!BF12 -> 219.6 | AI10: ='UD1 Scenarios'!BG12 -> 0 | AJ10: ='UD1 Scenarios'!BH12 -> 0 | AK10: ='UD1 Scenarios'!BI12 -> 402.1929 | AL10: ='UD1 Scenarios'!BK12 -> 2996.8422 | AM10: ='UD1 Scenarios'!BL12 -> 2780.9022 | AN10: ='UD1 Scenarios'!BM12 -> 2717.1396 | AO10: ='UD1 Scenarios'!BN12 -> 2598.3093 | AP10: ='UD1 Scenarios'!BO12 -> 2378.7093 | AQ10: ='UD1 Scenarios'!BP12 -> 2378.7093 | AR10: ='UD1 Scenarios'!BQ12 -> 2378.7093 | AS10: 520 | AT10: 105 | AU10: 21 | AV10: 153.3 | AW10: 68.7 | AX10: 240 | AY10: 0 | AZ10: 0 | BA10: 1105.3 | BB10: 1105.3
A11: ='UD1 Scenarios'!A13 -> 2021 | B11: ='UD1 Scenarios'!B13 -> 520 | C11: ='UD1 Scenarios'!C13 -> 105 | D11: ='UD1 Scenarios'!D13 -> 21 | E11: ='UD1 Scenarios'!E13 -> 30.3 | F11: ='UD1 Scenarios'!F13 -> 2.7 | G11: ='UD1 Scenarios'!G13 -> 0 | H11: ='UD1 Scenarios'!H13 -> 0 | I11: ='UD1 Scenarios'!I13 -> 0 | J11: ='UD1 Scenarios'!J13 -> 676.3 | K11: ='UD1 Scenarios'!L13 -> 120 | L11: ='UD1 Scenarios'!M13 -> 0 | M11: ='UD1 Scenarios'!N13 -> 0 | N11: ='UD1 Scenarios'!O13 -> 123 | O11: ='UD1 Scenarios'!P13 -> 66 | P11: ='UD1 Scenarios'!Q13 -> 240 | Q11: ='UD1 Scenarios'!R13 -> 0 | R11: ='UD1 Scenarios'!S13 -> 0 | S11: ='UD1 Scenarios'!T13 -> 549 | T11: ='UD1 Scenarios'!U13 -> 549 | U11: ='UD1 Scenarios'!W13 -> 3874 | V11: ='UD1 Scenarios'!AB13 -> 289.2 | W11: ='UD1 Scenarios'!AI13 -> 3195 | X11: ='UD1 Scenarios'!AU13 -> 2905.8 | Y11: ='UD1 Scenarios'!AV13 -> 2839.8 | Z11: ='UD1 Scenarios'!AW13 -> 2716.8 | AA11: ='UD1 Scenarios'!AX13 -> 2476.8 | AB11: ='UD1 Scenarios'!AY13 -> 2356.8 | AC11: ='UD1 Scenarios'!AZ13 -> 2356.8 | AD11: ='UD1 Scenarios'!BB13 -> 3086.6895 | AE11: ='UD1 Scenarios'!BC13 -> 264.618 | AF11: ='UD1 Scenarios'!BD13 -> 63.7626 | AG11: ='UD1 Scenarios'!BE13 -> 118.8303 | AH11: ='UD1 Scenarios'!BF13 -> 219.6 | AI11: ='UD1 Scenarios'!BG13 -> 103.68 | AJ11: ='UD1 Scenarios'!BH13 -> 0 | AK11: ='UD1 Scenarios'!BI13 -> 505.8729 | AL11: ='UD1 Scenarios'!BK13 -> 3086.6895 | AM11: ='UD1 Scenarios'!BL13 -> 2822.0715 | AN11: ='UD1 Scenarios'!BM13 -> 2758.3089 | AO11: ='UD1 Scenarios'!BN13 -> 2639.4786 | AP11: ='UD1 Scenarios'!BO13 -> 2419.8786 | AQ11: ='UD1 Scenarios'!BP13 -> 2316.1986 | AR11: ='UD1 Scenarios'!BQ13 -> 2316.1986 | AS11: 640 | AT11: 105 | AU11: 21 | AV11: 153.3 | AW11: 68.7 | AX11: 240 | AY11: 0 | AZ11: 0 | BA11: 1225.3 | BB11: 1225.3
A12: ='UD1 Scenarios'!A14 -> 2022 | B12: ='UD1 Scenarios'!B14 -> 520 | C12: ='UD1 Scenarios'!C14 -> 105 | D12: ='UD1 Scenarios'!D14 -> 21 | E12: ='UD1 Scenarios'!E14 -> 30.3 | F12: ='UD1 Scenarios'!F14 -> 2.7 | G12: ='UD1 Scenarios'!G14 -> 0 | H12: ='UD1 Scenarios'!H14 -> 0 | I12: ='UD1 Scenarios'!I14 -> 0 | J12: ='UD1 Scenarios'!J14 -> 676.3 | K12: ='UD1 Scenarios'!L14 -> 120 | L12: ='UD1 Scenarios'!M14 -> 0 | M12: ='UD1 Scenarios'!N14 -> 0 | N12: ='UD1 Scenarios'!O14 -> 123 | O12: ='UD1 Scenarios'!P14 -> 66 | P12: ='UD1 Scenarios'!Q14 -> 240 | Q12: ='UD1 Scenarios'!R14 -> 0 | R12: ='UD1 Scenarios'!S14 -> 0 | S12: ='UD1 Scenarios'!T14 -> 549 | T12: ='UD1 Scenarios'!U14 -> 549 | U12: ='UD1 Scenarios'!W14 -> 3967 | V12: ='UD1 Scenarios'!AB14 -> 342.4 | W12: ='UD1 Scenarios'!AI14 -> 3288 | X12: ='UD1 Scenarios'!AU14 -> 2945.6 | Y12: ='UD1 Scenarios'!AV14 -> 2879.6 | Z12: ='UD1 Scenarios'!AW14 -> 2756.6 | AA12: ='UD1 Scenarios'!AX14 -> 2516.6 | AB12: ='UD1 Scenarios'!AY14 -> 2396.6 | AC12: ='UD1 Scenarios'!AZ14 -> 2396.6 | AD12: ='UD1 Scenarios'!BB14 -> 3176.5368 | AE12: ='UD1 Scenarios'!BC14 -> 313.296 | AF12: ='UD1 Scenarios'!BD14 -> 63.7626 | AG12: ='UD1 Scenarios'!BE14 -> 118.8303 | AH12: ='UD1 Scenarios'!BF14 -> 219.6 | AI12: ='UD1 Scenarios'!BG14 -> 103.68 | AJ12: ='UD1 Scenarios'!BH14 -> 0 | AK12: ='UD1 Scenarios'!BI14 -> 505.8729 | AL12: ='UD1 Scenarios'!BK14 -> 3176.5368 | AM12: ='UD1 Scenarios'!BL14 -> 2863.2408 | AN12: ='UD1 Scenarios'!BM14 -> 2799.4782 | AO12: ='UD1 Scenarios'!BN14 -> 2680.6479 | AP12: ='UD1 Scenarios'!BO14 -> 2461.0479 | AQ12: ='UD1 Scenarios'!BP14 -> 2357.3679 | AR12: ='UD1 Scenarios'!BQ14 -> 2357.3679 | AS12: 640 | AT12: 105 | AU12: 21 | AV12: 153.3 | AW12: 68.7 | AX12: 240 | AY12: 0 | AZ12: 0 | BA12: 1225.3 | BB12: 1225.3
A13: ='UD1 Scenarios'!A15 -> 2023 | B13: ='UD1 Scenarios'!B15 -> 520 | C13: ='UD1 Scenarios'!C15 -> 105 | D13: ='UD1 Scenarios'!D15 -> 21 | E13: ='UD1 Scenarios'!E15 -> 30.3 | F13: ='UD1 Scenarios'!F15 -> 2.7 | G13: ='UD1 Scenarios'!G15 -> 0 | H13: ='UD1 Scenarios'!H15 -> 0 | I13: ='UD1 Scenarios'!I15 -> 0 | J13: ='UD1 Scenarios'!J15 -> 676.3 | K13: ='UD1 Scenarios'!L15 -> 120 | L13: ='UD1 Scenarios'!M15 -> 0 | M13: ='UD1 Scenarios'!N15 -> 0 | N13: ='UD1 Scenarios'!O15 -> 123 | O13: ='UD1 Scenarios'!P15 -> 66 | P13: ='UD1 Scenarios'!Q15 -> 240 | Q13: ='UD1 Scenarios'!R15 -> 0 | R13: ='UD1 Scenarios'!S15 -> 0 | S13: ='UD1 Scenarios'!T15 -> 549 | T13: ='UD1 Scenarios'!U15 -> 549 | U13: ='UD1 Scenarios'!W15 -> 4062 | V13: ='UD1 Scenarios'!AB15 -> 395.6 | W13: ='UD1 Scenarios'!AI15 -> 3383 | X13: ='UD1 Scenarios'!AU15 -> 2987.4 | Y13: ='UD1 Scenarios'!AV15 -> 2921.4 | Z13: ='UD1 Scenarios'!AW15 -> 2798.4 | AA13: ='UD1 Scenarios'!AX15 -> 2558.4 | AB13: ='UD1 Scenarios'!AY15 -> 2438.4 | AC13: ='UD1 Scenarios'!AZ15 -> 2438.4 | AD13: ='UD1 Scenarios'!BB15 -> 3268.3163 | AE13: ='UD1 Scenarios'!BC15 -> 361.974 | AF13: ='UD1 Scenarios'!BD15 -> 63.7626 | AG13: ='UD1 Scenarios'!BE15 -> 118.8303 | AH13: ='UD1 Scenarios'!BF15 -> 219.6 | AI13: ='UD1 Scenarios'!BG15 -> 103.68 | AJ13: ='UD1 Scenarios'!BH15 -> 0 | AK13: ='UD1 Scenarios'!BI15 -> 505.8729 | AL13: ='UD1 Scenarios'!BK15 -> 3268.3163 | AM13: ='UD1 Scenarios'!BL15 -> 2906.3423 | AN13: ='UD1 Scenarios'!BM15 -> 2842.5797 | AO13: ='UD1 Scenarios'!BN15 -> 2723.7494 | AP13: ='UD1 Scenarios'!BO15 -> 2504.1494 | AQ13: ='UD1 Scenarios'!BP15 -> 2400.4694 | AR13: ='UD1 Scenarios'!BQ15 -> 2400.4694 | AS13: 640 | AT13: 105 | AU13: 21 | AV13: 153.3 | AW13: 68.7 | AX13: 240 | AY13: 0 | AZ13: 0 | BA13: 1225.3 | BB13: 1225.3
A14: ='UD1 Scenarios'!A16 -> 2024 | B14: ='UD1 Scenarios'!B16 -> 520 | C14: ='UD1 Scenarios'!C16 -> 105 | D14: ='UD1 Scenarios'!D16 -> 21 | E14: ='UD1 Scenarios'!E16 -> 30.3 | F14: ='UD1 Scenarios'!F16 -> 2.7 | G14: ='UD1 Scenarios'!G16 -> 0 | H14: ='UD1 Scenarios'!H16 -> 0 | I14: ='UD1 Scenarios'!I16 -> 0 | J14: ='UD1 Scenarios'!J16 -> 676.3 | K14: ='UD1 Scenarios'!L16 -> 120 | L14: ='UD1 Scenarios'!M16 -> 0 | M14: ='UD1 Scenarios'!N16 -> 0 | N14: ='UD1 Scenarios'!O16 -> 123 | O14: ='UD1 Scenarios'!P16 -> 66 | P14: ='UD1 Scenarios'!Q16 -> 240 | Q14: ='UD1 Scenarios'!R16 -> 0 | R14: ='UD1 Scenarios'!S16 -> 0 | S14: ='UD1 Scenarios'!T16 -> 549 | T14: ='UD1 Scenarios'!U16 -> 549 | U14: ='UD1 Scenarios'!W16 -> 4161 | V14: ='UD1 Scenarios'!AB16 -> 448.8 | W14: ='UD1 Scenarios'!AI16 -> 3482 | X14: ='UD1 Scenarios'!AU16 -> 3033.2 | Y14: ='UD1 Scenarios'!AV16 -> 2967.2 | Z14: ='UD1 Scenarios'!AW16 -> 2844.2 | AA14: ='UD1 Scenarios'!AX16 -> 2604.2 | AB14: ='UD1 Scenarios'!AY16 -> 2484.2 | AC14: ='UD1 Scenarios'!AZ16 -> 2484.2 | AD14: ='UD1 Scenarios'!BB16 -> 3363.9602 | AE14: ='UD1 Scenarios'!BC16 -> 410.652 | AF14: ='UD1 Scenarios'!BD16 -> 63.7626 | AG14: ='UD1 Scenarios'!BE16 -> 118.8303 | AH14: ='UD1 Scenarios'!BF16 -> 219.6 | AI14: ='UD1 Scenarios'!BG16 -> 103.68 | AJ14: ='UD1 Scenarios'!BH16 -> 0 | AK14: ='UD1 Scenarios'!BI16 -> 505.8729 | AL14: ='UD1 Scenarios'!BK16 -> 3363.9602 | AM14: ='UD1 Scenarios'!BL16 -> 2953.3082 | AN14: ='UD1 Scenarios'!BM16 -> 2889.5456 | AO14: ='UD1 Scenarios'!BN16 -> 2770.7153 | AP14: ='UD1 Scenarios'!BO16 -> 2551.1153 | AQ14: ='UD1 Scenarios'!BP16 -> 2447.4353 | AR14: ='UD1 Scenarios'!BQ16 -> 2447.4353 | AS14: 640 | AT14: 105 | AU14: 21 | AV14: 153.3 | AW14: 68.7 | AX14: 240 | AY14: 0 | AZ14: 0 | BA14: 1225.3 | BB14: 1225.3
A15: ='UD1 Scenarios'!A17 -> 2025 | B15: ='UD1 Scenarios'!B17 -> 520 | C15: ='UD1 Scenarios'!C17 -> 105 | D15: ='UD1 Scenarios'!D17 -> 21 | E15: ='UD1 Scenarios'!E17 -> 30.3 | F15: ='UD1 Scenarios'!F17 -> 2.7 | G15: ='UD1 Scenarios'!G17 -> 0 | H15: ='UD1 Scenarios'!H17 -> 0 | I15: ='UD1 Scenarios'!I17 -> 0 | J15: ='UD1 Scenarios'!J17 -> 676.3 | K15: ='UD1 Scenarios'!L17 -> 120 | L15: ='UD1 Scenarios'!M17 -> 0 | M15: ='UD1 Scenarios'!N17 -> 0 | N15: ='UD1 Scenarios'!O17 -> 123 | O15: ='UD1 Scenarios'!P17 -> 66 | P15: ='UD1 Scenarios'!Q17 -> 240 | Q15: ='UD1 Scenarios'!R17 -> 0 | R15: ='UD1 Scenarios'!S17 -> 0 | S15: ='UD1 Scenarios'!T17 -> 549 | T15: ='UD1 Scenarios'!U17 -> 549 | U15: ='UD1 Scenarios'!W17 -> 4264 | V15: ='UD1 Scenarios'!AB17 -> 502 | W15: ='UD1 Scenarios'!AI17 -> 3585 | X15: ='UD1 Scenarios'!AU17 -> 3083 | Y15: ='UD1 Scenarios'!AV17 -> 3017 | Z15: ='UD1 Scenarios'!AW17 -> 2894 | AA15: ='UD1 Scenarios'!AX17 -> 2654 | AB15: ='UD1 Scenarios'!AY17 -> 2534 | AC15: ='UD1 Scenarios'!AZ17 -> 2534 | AD15: ='UD1 Scenarios'!BB17 -> 3463.4685 | AE15: ='UD1 Scenarios'!BC17 -> 459.33 | AF15: ='UD1 Scenarios'!BD17 -> 63.7626 | AG15: ='UD1 Scenarios'!BE17 -> 118.8303 | AH15: ='UD1 Scenarios'!BF17 -> 219.6 | AI15: ='UD1 Scenarios'!BG17 -> 103.68 | AJ15: ='UD1 Scenarios'!BH17 -> 0 | AK15: ='UD1 Scenarios'!BI17 -> 505.8729 | AL15: ='UD1 Scenarios'!BK17 -> 3463.4685 | AM15: ='UD1 Scenarios'!BL17 -> 3004.1385 | AN15: ='UD1 Scenarios'!BM17 -> 2940.3759 | AO15: ='UD1 Scenarios'!BN17 -> 2821.5456 | AP15: ='UD1 Scenarios'!BO17 -> 2601.9456 | AQ15: ='UD1 Scenarios'!BP17 -> 2498.2656 | AR15: ='UD1 Scenarios'!BQ17 -> 2498.2656 | AS15: 640 | AT15: 105 | AU15: 21 | AV15: 153.3 | AW15: 68.7 | AX15: 240 | AY15: 0 | AZ15: 0 | BA15: 1225.3 | BB15: 1225.3
A16: ='UD1 Scenarios'!A18 -> 2026 | B16: ='UD1 Scenarios'!B18 -> 520 | C16: ='UD1 Scenarios'!C18 -> 105 | D16: ='UD1 Scenarios'!D18 -> 21 | E16: ='UD1 Scenarios'!E18 -> 30.3 | F16: ='UD1 Scenarios'!F18 -> 2.7 | G16: ='UD1 Scenarios'!G18 -> 0 | H16: ='UD1 Scenarios'!H18 -> 0 | I16: ='UD1 Scenarios'!I18 -> 0 | J16: ='UD1 Scenarios'!J18 -> 676.3 | K16: ='UD1 Scenarios'!L18 -> 120 | L16: ='UD1 Scenarios'!M18 -> 0 | M16: ='UD1 Scenarios'!N18 -> 0 | N16: ='UD1 Scenarios'!O18 -> 123 | O16: ='UD1 Scenarios'!P18 -> 66 | P16: ='UD1 Scenarios'!Q18 -> 240 | Q16: ='UD1 Scenarios'!R18 -> 0 | R16: ='UD1 Scenarios'!S18 -> 0 | S16: ='UD1 Scenarios'!T18 -> 549 | T16: ='UD1 Scenarios'!U18 -> 549 | U16: ='UD1 Scenarios'!W18 -> 4366 | V16: ='UD1 Scenarios'!AB18 -> 571.6 | W16: ='UD1 Scenarios'!AI18 -> 3687 | X16: ='UD1 Scenarios'!AU18 -> 3115.4 | Y16: ='UD1 Scenarios'!AV18 -> 3049.4 | Z16: ='UD1 Scenarios'!AW18 -> 2926.4 | AA16: ='UD1 Scenarios'!AX18 -> 2686.4 | AB16: ='UD1 Scenarios'!AY18 -> 2566.4 | AC16: ='UD1 Scenarios'!AZ18 -> 2566.4 | AD16: ='UD1 Scenarios'!BB18 -> 3562.0107 | AE16: ='UD1 Scenarios'!BC18 -> 493.8624 | AF16: ='UD1 Scenarios'!BD18 -> 63.7626 | AG16: ='UD1 Scenarios'!BE18 -> 118.8303 | AH16: ='UD1 Scenarios'!BF18 -> 219.6 | AI16: ='UD1 Scenarios'!BG18 -> 103.68 | AJ16: ='UD1 Scenarios'!BH18 -> 0 | AK16: ='UD1 Scenarios'!BI18 -> 505.8729 | AL16: ='UD1 Scenarios'!BK18 -> 3562.0107 | AM16: ='UD1 Scenarios'!BL18 -> 3068.1483 | AN16: ='UD1 Scenarios'!BM18 -> 3004.3857 | AO16: ='UD1 Scenarios'!BN18 -> 2885.5554 | AP16: ='UD1 Scenarios'!BO18 -> 2665.9554 | AQ16: ='UD1 Scenarios'!BP18 -> 2562.2754 | AR16: ='UD1 Scenarios'!BQ18 -> 2562.2754 | AS16: 640 | AT16: 105 | AU16: 21 | AV16: 153.3 | AW16: 68.7 | AX16: 240 | AY16: 0 | AZ16: 0 | BA16: 1225.3 | BB16: 1225.3
A17: ='UD1 Scenarios'!A19 -> 2027 | B17: ='UD1 Scenarios'!B19 -> 520 | C17: ='UD1 Scenarios'!C19 -> 105 | D17: ='UD1 Scenarios'!D19 -> 21 | E17: ='UD1 Scenarios'!E19 -> 30.3 | F17: ='UD1 Scenarios'!F19 -> 2.7 | G17: ='UD1 Scenarios'!G19 -> 0 | H17: ='UD1 Scenarios'!H19 -> 0 | I17: ='UD1 Scenarios'!I19 -> 0 | J17: ='UD1 Scenarios'!J19 -> 676.3 | K17: ='UD1 Scenarios'!L19 -> 120 | L17: ='UD1 Scenarios'!M19 -> 0 | M17: ='UD1 Scenarios'!N19 -> 0 | N17: ='UD1 Scenarios'!O19 -> 123 | O17: ='UD1 Scenarios'!P19 -> 66 | P17: ='UD1 Scenarios'!Q19 -> 240 | Q17: ='UD1 Scenarios'!R19 -> 0 | R17: ='UD1 Scenarios'!S19 -> 0 | S17: ='UD1 Scenarios'!T19 -> 549 | T17: ='UD1 Scenarios'!U19 -> 549 | U17: ='UD1 Scenarios'!W19 -> 4440 | V17: ='UD1 Scenarios'!AB19 -> 641.2 | W17: ='UD1 Scenarios'!AI19 -> 3761 | X17: ='UD1 Scenarios'!AU19 -> 3119.8 | Y17: ='UD1 Scenarios'!AV19 -> 3053.8 | Z17: ='UD1 Scenarios'!AW19 -> 2930.8 | AA17: ='UD1 Scenarios'!AX19 -> 2690.8 | AB17: ='UD1 Scenarios'!AY19 -> 2570.8 | AC17: ='UD1 Scenarios'!AZ19 -> 2570.8 | AD17: ='UD1 Scenarios'!BB19 -> 3633.5021 | AE17: ='UD1 Scenarios'!BC19 -> 553.9968 | AF17: ='UD1 Scenarios'!BD19 -> 63.7626 | AG17: ='UD1 Scenarios'!BE19 -> 118.8303 | AH17: ='UD1 Scenarios'!BF19 -> 219.6 | AI17: ='UD1 Scenarios'!BG19 -> 103.68 | AJ17: ='UD1 Scenarios'!BH19 -> 0 | AK17: ='UD1 Scenarios'!BI19 -> 505.8729 | AL17: ='UD1 Scenarios'!BK19 -> 3633.5021 | AM17: ='UD1 Scenarios'!BL19 -> 3079.5053 | AN17: ='UD1 Scenarios'!BM19 -> 3015.7427 | AO17: ='UD1 Scenarios'!BN19 -> 2896.9124 | AP17: ='UD1 Scenarios'!BO19 -> 2677.3124 | AQ17: ='UD1 Scenarios'!BP19 -> 2573.6324 | AR17: ='UD1 Scenarios'!BQ19 -> 2573.6324 | AS17: 640 | AT17: 105 | AU17: 21 | AV17: 153.3 | AW17: 68.7 | AX17: 240 | AY17: 0 | AZ17: 0 | BA17: 1225.3 | BB17: 1225.3
A18: ='UD1 Scenarios'!A20 -> 2028 | B18: ='UD1 Scenarios'!B20 -> 520 | C18: ='UD1 Scenarios'!C20 -> 105 | D18: ='UD1 Scenarios'!D20 -> 21 | E18: ='UD1 Scenarios'!E20 -> 30.3 | F18: ='UD1 Scenarios'!F20 -> 2.7 | G18: ='UD1 Scenarios'!G20 -> 0 | H18: ='UD1 Scenarios'!H20 -> 0 | I18: ='UD1 Scenarios'!I20 -> 0 | J18: ='UD1 Scenarios'!J20 -> 676.3 | K18: ='UD1 Scenarios'!L20 -> 120 | L18: ='UD1 Scenarios'!M20 -> 0 | M18: ='UD1 Scenarios'!N20 -> 0 | N18: ='UD1 Scenarios'!O20 -> 123 | O18: ='UD1 Scenarios'!P20 -> 66 | P18: ='UD1 Scenarios'!Q20 -> 240 | Q18: ='UD1 Scenarios'!R20 -> 0 | R18: ='UD1 Scenarios'!S20 -> 0 | S18: ='UD1 Scenarios'!T20 -> 549 | T18: ='UD1 Scenarios'!U20 -> 549 | U18: ='UD1 Scenarios'!W20 -> 4509 | V18: ='UD1 Scenarios'!AB20 -> 710.8 | W18: ='UD1 Scenarios'!AI20 -> 3830 | X18: ='UD1 Scenarios'!AU20 -> 3119.2 | Y18: ='UD1 Scenarios'!AV20 -> 3053.2 | Z18: ='UD1 Scenarios'!AW20 -> 2930.2 | AA18: ='UD1 Scenarios'!AX20 -> 2690.2 | AB18: ='UD1 Scenarios'!AY20 -> 2570.2 | AC18: ='UD1 Scenarios'!AZ20 -> 2570.2 | AD18: ='UD1 Scenarios'!BB20 -> 3700.163 | AE18: ='UD1 Scenarios'!BC20 -> 614.1312 | AF18: ='UD1 Scenarios'!BD20 -> 63.7626 | AG18: ='UD1 Scenarios'!BE20 -> 118.8303 | AH18: ='UD1 Scenarios'!BF20 -> 219.6 | AI18: ='UD1 Scenarios'!BG20 -> 103.68 | AJ18: ='UD1 Scenarios'!BH20 -> 0 | AK18: ='UD1 Scenarios'!BI20 -> 505.8729 | AL18: ='UD1 Scenarios'!BK20 -> 3700.163 | AM18: ='UD1 Scenarios'!BL20 -> 3086.0318 | AN18: ='UD1 Scenarios'!BM20 -> 3022.2692 | AO18: ='UD1 Scenarios'!BN20 -> 2903.4389 | AP18: ='UD1 Scenarios'!BO20 -> 2683.8389 | AQ18: ='UD1 Scenarios'!BP20 -> 2580.1589 | AR18: ='UD1 Scenarios'!BQ20 -> 2580.1589 | AS18: 640 | AT18: 105 | AU18: 21 | AV18: 153.3 | AW18: 68.7 | AX18: 240 | AY18: 0 | AZ18: 0 | BA18: 1225.3 | BB18: 1225.3
A19: ='UD1 Scenarios'!A21 -> 2029 | B19: ='UD1 Scenarios'!B21 -> 520 | C19: ='UD1 Scenarios'!C21 -> 105 | D19: ='UD1 Scenarios'!D21 -> 21 | E19: ='UD1 Scenarios'!E21 -> 30.3 | F19: ='UD1 Scenarios'!F21 -> 2.7 | G19: ='UD1 Scenarios'!G21 -> 0 | H19: ='UD1 Scenarios'!H21 -> 0 | I19: ='UD1 Scenarios'!I21 -> 0 | J19: ='UD1 Scenarios'!J21 -> 676.3 | K19: ='UD1 Scenarios'!L21 -> 120 | L19: ='UD1 Scenarios'!M21 -> 0 | M19: ='UD1 Scenarios'!N21 -> 0 | N19: ='UD1 Scenarios'!O21 -> 123 | O19: ='UD1 Scenarios'!P21 -> 66 | P19: ='UD1 Scenarios'!Q21 -> 240 | Q19: ='UD1 Scenarios'!R21 -> 0 | R19: ='UD1 Scenarios'!S21 -> 0 | S19: ='UD1 Scenarios'!T21 -> 549 | T19: ='UD1 Scenarios'!U21 -> 549 | U19: ='UD1 Scenarios'!W21 -> 4577 | V19: ='UD1 Scenarios'!AB21 -> 780.4 | W19: ='UD1 Scenarios'!AI21 -> 3898 | X19: ='UD1 Scenarios'!AU21 -> 3117.6 | Y19: ='UD1 Scenarios'!AV21 -> 3051.6 | Z19: ='UD1 Scenarios'!AW21 -> 2928.6 | AA19: ='UD1 Scenarios'!AX21 -> 2688.6 | AB19: ='UD1 Scenarios'!AY21 -> 2568.6 | AC19: ='UD1 Scenarios'!AZ21 -> 2568.6 | AD19: ='UD1 Scenarios'!BB21 -> 3765.8578 | AE19: ='UD1 Scenarios'!BC21 -> 674.2656 | AF19: ='UD1 Scenarios'!BD21 -> 63.7626 | AG19: ='UD1 Scenarios'!BE21 -> 118.8303 | AH19: ='UD1 Scenarios'!BF21 -> 219.6 | AI19: ='UD1 Scenarios'!BG21 -> 103.68 | AJ19: ='UD1 Scenarios'!BH21 -> 0 | AK19: ='UD1 Scenarios'!BI21 -> 505.8729 | AL19: ='UD1 Scenarios'!BK21 -> 3765.8578 | AM19: ='UD1 Scenarios'!BL21 -> 3091.5922 | AN19: ='UD1 Scenarios'!BM21 -> 3027.8296 | AO19: ='UD1 Scenarios'!BN21 -> 2908.9993 | AP19: ='UD1 Scenarios'!BO21 -> 2689.3993 | AQ19: ='UD1 Scenarios'!BP21 -> 2585.7193 | AR19: ='UD1 Scenarios'!BQ21 -> 2585.7193 | AS19: 640 | AT19: 105 | AU19: 21 | AV19: 153.3 | AW19: 68.7 | AX19: 240 | AY19: 0 | AZ19: 0 | BA19: 1225.3 | BB19: 1225.3
A20: ='UD1 Scenarios'!A22 -> 2030 | B20: ='UD1 Scenarios'!B22 -> 520 | C20: ='UD1 Scenarios'!C22 -> 105 | D20: ='UD1 Scenarios'!D22 -> 21 | E20: ='UD1 Scenarios'!E22 -> 30.3 | F20: ='UD1 Scenarios'!F22 -> 2.7 | G20: ='UD1 Scenarios'!G22 -> 0 | H20: ='UD1 Scenarios'!H22 -> 0 | I20: ='UD1 Scenarios'!I22 -> 0 | J20: ='UD1 Scenarios'!J22 -> 676.3 | K20: ='UD1 Scenarios'!L22 -> 120 | L20: ='UD1 Scenarios'!M22 -> 0 | M20: ='UD1 Scenarios'!N22 -> 0 | N20: ='UD1 Scenarios'!O22 -> 123 | O20: ='UD1 Scenarios'!P22 -> 66 | P20: ='UD1 Scenarios'!Q22 -> 240 | Q20: ='UD1 Scenarios'!R22 -> 0 | R20: ='UD1 Scenarios'!S22 -> 0 | S20: ='UD1 Scenarios'!T22 -> 549 | T20: ='UD1 Scenarios'!U22 -> 629 | U20: ='UD1 Scenarios'!W22 -> 4645 | V20: ='UD1 Scenarios'!AB22 -> 850 | W20: ='UD1 Scenarios'!AI22 -> 3966 | X20: ='UD1 Scenarios'!AU22 -> 3116 | Y20: ='UD1 Scenarios'!AV22 -> 3050 | Z20: ='UD1 Scenarios'!AW22 -> 2927 | AA20: ='UD1 Scenarios'!AX22 -> 2687 | AB20: ='UD1 Scenarios'!AY22 -> 2567 | AC20: ='UD1 Scenarios'!AZ22 -> 2487 | AD20: ='UD1 Scenarios'!BB22 -> 3831.5526 | AE20: ='UD1 Scenarios'!BC22 -> 734.4 | AF20: ='UD1 Scenarios'!BD22 -> 63.7626 | AG20: ='UD1 Scenarios'!BE22 -> 118.8303 | AH20: ='UD1 Scenarios'!BF22 -> 207.36 | AI20: ='UD1 Scenarios'!BG22 -> 103.68 | AJ20: ='UD1 Scenarios'!BH22 -> 77.288 | AK20: ='UD1 Scenarios'!BI22 -> 493.6329 | AL20: ='UD1 Scenarios'!BK22 -> 3831.5526 | AM20: ='UD1 Scenarios'!BL22 -> 3097.1526 | AN20: ='UD1 Scenarios'!BM22 -> 3033.39 | AO20: ='UD1 Scenarios'!BN22 -> 2914.5597 | AP20: ='UD1 Scenarios'!BO22 -> 2707.1997 | AQ20: ='UD1 Scenarios'!BP22 -> 2603.5197 | AR20: ='UD1 Scenarios'!BQ22 -> 2526.2317 | AS20: 640 | AT20: 105 | AU20: 21 | AV20: 153.3 | AW20: 68.7 | AX20: 240 | AY20: 0 | AZ20: 0 | BA20: 1225.3 | BB20: 1305.3
A21: ='UD1 Scenarios'!A23 -> 2031 | B21: ='UD1 Scenarios'!B23 -> 520 | C21: ='UD1 Scenarios'!C23 -> 105 | D21: ='UD1 Scenarios'!D23 -> 21 | E21: ='UD1 Scenarios'!E23 -> 30.3 | F21: ='UD1 Scenarios'!F23 -> 2.7 | G21: ='UD1 Scenarios'!G23 -> 0 | H21: ='UD1 Scenarios'!H23 -> 0 | I21: ='UD1 Scenarios'!I23 -> 0 | J21: ='UD1 Scenarios'!J23 -> 676.3 | K21: ='UD1 Scenarios'!L23 -> 120 | L21: ='UD1 Scenarios'!M23 -> 0 | M21: ='UD1 Scenarios'!N23 -> 0 | N21: ='UD1 Scenarios'!O23 -> 123 | O21: ='UD1 Scenarios'!P23 -> 66 | P21: ='UD1 Scenarios'!Q23 -> 240 | Q21: ='UD1 Scenarios'!R23 -> 0 | R21: ='UD1 Scenarios'!S23 -> 0 | S21: ='UD1 Scenarios'!T23 -> 549 | T21: ='UD1 Scenarios'!U23 -> 629 | U21: ='UD1 Scenarios'!W23 -> 4713 | V21: ='UD1 Scenarios'!AB23 -> 935 | W21: ='UD1 Scenarios'!AI23 -> 4034 | X21: ='UD1 Scenarios'!AU23 -> 3099 | Y21: ='UD1 Scenarios'!AV23 -> 3033 | Z21: ='UD1 Scenarios'!AW23 -> 2910 | AA21: ='UD1 Scenarios'!AX23 -> 2670 | AB21: ='UD1 Scenarios'!AY23 -> 2550 | AC21: ='UD1 Scenarios'!AZ23 -> 2470 | AD21: ='UD1 Scenarios'!BB23 -> 3897.2474 | AE21: ='UD1 Scenarios'!BC23 -> 807.84 | AF21: ='UD1 Scenarios'!BD23 -> 63.7626 | AG21: ='UD1 Scenarios'!BE23 -> 118.8303 | AH21: ='UD1 Scenarios'!BF23 -> 207.36 | AI21: ='UD1 Scenarios'!BG23 -> 103.68 | AJ21: ='UD1 Scenarios'!BH23 -> 77.288 | AK21: ='UD1 Scenarios'!BI23 -> 493.6329 | AL21: ='UD1 Scenarios'!BK23 -> 3897.2474 | AM21: ='UD1 Scenarios'!BL23 -> 3089.4074 | AN21: ='UD1 Scenarios'!BM23 -> 3025.6448 | AO21: ='UD1 Scenarios'!BN23 -> 2906.8145 | AP21: ='UD1 Scenarios'!BO23 -> 2699.4545 | AQ21: ='UD1 Scenarios'!BP23 -> 2595.7745 | AR21: ='UD1 Scenarios'!BQ23 -> 2518.4865 | AS21: 640 | AT21: 105 | AU21: 21 | AV21: 153.3 | AW21: 68.7 | AX21: 240 | AY21: 0 | AZ21: 0 | BA21: 1225.3 | BB21: 1305.3
A22: ='UD1 Scenarios'!A24 -> 2032 | B22: ='UD1 Scenarios'!B24 -> 520 | C22: ='UD1 Scenarios'!C24 -> 105 | D22: ='UD1 Scenarios'!D24 -> 21 | E22: ='UD1 Scenarios'!E24 -> 30.3 | F22: ='UD1 Scenarios'!F24 -> 2.7 | G22: ='UD1 Scenarios'!G24 -> 0 | H22: ='UD1 Scenarios'!H24 -> 0 | I22: ='UD1 Scenarios'!I24 -> 0 | J22: ='UD1 Scenarios'!J24 -> 676.3 | K22: ='UD1 Scenarios'!L24 -> 120 | L22: ='UD1 Scenarios'!M24 -> 0 | M22: ='UD1 Scenarios'!N24 -> 0 | N22: ='UD1 Scenarios'!O24 -> 123 | O22: ='UD1 Scenarios'!P24 -> 66 | P22: ='UD1 Scenarios'!Q24 -> 240 | Q22: ='UD1 Scenarios'!R24 -> 0 | R22: ='UD1 Scenarios'!S24 -> 0 | S22: ='UD1 Scenarios'!T24 -> 549 | T22: ='UD1 Scenarios'!U24 -> 629 | U22: ='UD1 Scenarios'!W24 -> 4783 | V22: ='UD1 Scenarios'!AB24 -> 1020 | W22: ='UD1 Scenarios'!AI24 -> 4104 | X22: ='UD1 Scenarios'!AU24 -> 3084 | Y22: ='UD1 Scenarios'!AV24 -> 3018 | Z22: ='UD1 Scenarios'!AW24 -> 2895 | AA22: ='UD1 Scenarios'!AX24 -> 2655 | AB22: ='UD1 Scenarios'!AY24 -> 2535 | AC22: ='UD1 Scenarios'!AZ24 -> 2455 | AD22: ='UD1 Scenarios'!BB24 -> 3964.8744 | AE22: ='UD1 Scenarios'!BC24 -> 881.28 | AF22: ='UD1 Scenarios'!BD24 -> 63.7626 | AG22: ='UD1 Scenarios'!BE24 -> 118.8303 | AH22: ='UD1 Scenarios'!BF24 -> 207.36 | AI22: ='UD1 Scenarios'!BG24 -> 103.68 | AJ22: ='UD1 Scenarios'!BH24 -> 77.288 | AK22: ='UD1 Scenarios'!BI24 -> 493.6329 | AL22: ='UD1 Scenarios'!BK24 -> 3964.8744 | AM22: ='UD1 Scenarios'!BL24 -> 3083.5944 | AN22: ='UD1 Scenarios'!BM24 -> 3019.8318 | AO22: ='UD1 Scenarios'!BN24 -> 2901.0015 | AP22: ='UD1 Scenarios'!BO24 -> 2693.6415 | AQ22: ='UD1 Scenarios'!BP24 -> 2589.9615 | AR22: ='UD1 Scenarios'!BQ24 -> 2512.6735 | AS22: 640 | AT22: 105 | AU22: 21 | AV22: 153.3 | AW22: 68.7 | AX22: 240 | AY22: 0 | AZ22: 0 | BA22: 1225.3 | BB22: 1305.3
A23: ='UD1 Scenarios'!A25 -> 2033 | B23: ='UD1 Scenarios'!B25 -> 520 | C23: ='UD1 Scenarios'!C25 -> 105 | D23: ='UD1 Scenarios'!D25 -> 21 | E23: ='UD1 Scenarios'!E25 -> 30.3 | F23: ='UD1 Scenarios'!F25 -> 2.7 | G23: ='UD1 Scenarios'!G25 -> 0 | H23: ='UD1 Scenarios'!H25 -> 0 | I23: ='UD1 Scenarios'!I25 -> 0 | J23: ='UD1 Scenarios'!J25 -> 676.3 | K23: ='UD1 Scenarios'!L25 -> 120 | L23: ='UD1 Scenarios'!M25 -> 0 | M23: ='UD1 Scenarios'!N25 -> 0 | N23: ='UD1 Scenarios'!O25 -> 123 | O23: ='UD1 Scenarios'!P25 -> 66 | P23: ='UD1 Scenarios'!Q25 -> 240 | Q23: ='UD1 Scenarios'!R25 -> 0 | R23: ='UD1 Scenarios'!S25 -> 0 | S23: ='UD1 Scenarios'!T25 -> 549 | T23: ='UD1 Scenarios'!U25 -> 629 | U23: ='UD1 Scenarios'!W25 -> 4853 | V23: ='UD1 Scenarios'!AB25 -> 1105 | W23: ='UD1 Scenarios'!AI25 -> 4174 | X23: ='UD1 Scenarios'!AU25 -> 3069 | Y23: ='UD1 Scenarios'!AV25 -> 3003 | Z23: ='UD1 Scenarios'!AW25 -> 2880 | AA23: ='UD1 Scenarios'!AX25 -> 2640 | AB23: ='UD1 Scenarios'!AY25 -> 2520 | AC23: ='UD1 Scenarios'!AZ25 -> 2440 | AD23: ='UD1 Scenarios'!BB25 -> 4032.5014 | AE23: ='UD1 Scenarios'!BC25 -> 954.72 | AF23: ='UD1 Scenarios'!BD25 -> 63.7626 | AG23: ='UD1 Scenarios'!BE25 -> 118.8303 | AH23: ='UD1 Scenarios'!BF25 -> 207.36 | AI23: ='UD1 Scenarios'!BG25 -> 103.68 | AJ23: ='UD1 Scenarios'!BH25 -> 77.288 | AK23: ='UD1 Scenarios'!BI25 -> 493.6329 | AL23: ='UD1 Scenarios'!BK25 -> 4032.5014 | AM23: ='UD1 Scenarios'!BL25 -> 3077.7814 | AN23: ='UD1 Scenarios'!BM25 -> 3014.0188 | AO23: ='UD1 Scenarios'!BN25 -> 2895.1885 | AP23: ='UD1 Scenarios'!BO25 -> 2687.8285 | AQ23: ='UD1 Scenarios'!BP25 -> 2584.1485 | AR23: ='UD1 Scenarios'!BQ25 -> 2506.8605 | AS23: 640 | AT23: 105 | AU23: 21 | AV23: 153.3 | AW23: 68.7 | AX23: 240 | AY23: 0 | AZ23: 0 | BA23: 1225.3 | BB23: 1305.3
A24: ='UD1 Scenarios'!A26 -> 2034 | B24: ='UD1 Scenarios'!B26 -> 520 | C24: ='UD1 Scenarios'!C26 -> 105 | D24: ='UD1 Scenarios'!D26 -> 21 | E24: ='UD1 Scenarios'!E26 -> 30.3 | F24: ='UD1 Scenarios'!F26 -> 2.7 | G24: ='UD1 Scenarios'!G26 -> 0 | H24: ='UD1 Scenarios'!H26 -> 0 | I24: ='UD1 Scenarios'!I26 -> 0 | J24: ='UD1 Scenarios'!J26 -> 676.3 | K24: ='UD1 Scenarios'!L26 -> 120 | L24: ='UD1 Scenarios'!M26 -> 0 | M24: ='UD1 Scenarios'!N26 -> 0 | N24: ='UD1 Scenarios'!O26 -> 123 | O24: ='UD1 Scenarios'!P26 -> 66 | P24: ='UD1 Scenarios'!Q26 -> 240 | Q24: ='UD1 Scenarios'!R26 -> 0 | R24: ='UD1 Scenarios'!S26 -> 0 | S24: ='UD1 Scenarios'!T26 -> 549 | T24: ='UD1 Scenarios'!U26 -> 629 | U24: ='UD1 Scenarios'!W26 -> 4925 | V24: ='UD1 Scenarios'!AB26 -> 1190 | W24: ='UD1 Scenarios'!AI26 -> 4246 | X24: ='UD1 Scenarios'!AU26 -> 3056 | Y24: ='UD1 Scenarios'!AV26 -> 2990 | Z24: ='UD1 Scenarios'!AW26 -> 2867 | AA24: ='UD1 Scenarios'!AX26 -> 2627 | AB24: ='UD1 Scenarios'!AY26 -> 2507 | AC24: ='UD1 Scenarios'!AZ26 -> 2427 | AD24: ='UD1 Scenarios'!BB26 -> 4102.0606 | AE24: ='UD1 Scenarios'!BC26 -> 1028.16 | AF24: ='UD1 Scenarios'!BD26 -> 63.7626 | AG24: ='UD1 Scenarios'!BE26 -> 118.8303 | AH24: ='UD1 Scenarios'!BF26 -> 207.36 | AI24: ='UD1 Scenarios'!BG26 -> 103.68 | AJ24: ='UD1 Scenarios'!BH26 -> 77.288 | AK24: ='UD1 Scenarios'!BI26 -> 493.6329 | AL24: ='UD1 Scenarios'!BK26 -> 4102.0606 | AM24: ='UD1 Scenarios'!BL26 -> 3073.9006 | AN24: ='UD1 Scenarios'!BM26 -> 3010.138 | AO24: ='UD1 Scenarios'!BN26 -> 2891.3077 | AP24: ='UD1 Scenarios'!BO26 -> 2683.9477 | AQ24: ='UD1 Scenarios'!BP26 -> 2580.2677 | AR24: ='UD1 Scenarios'!BQ26 -> 2502.9797 | AS24: 640 | AT24: 105 | AU24: 21 | AV24: 153.3 | AW24: 68.7 | AX24: 240 | AY24: 0 | AZ24: 0 | BA24: 1225.3 | BB24: 1305.3
A25: ='UD1 Scenarios'!A27 -> 2035 | B25: ='UD1 Scenarios'!B27 -> 520 | C25: ='UD1 Scenarios'!C27 -> 105 | D25: ='UD1 Scenarios'!D27 -> 21 | E25: ='UD1 Scenarios'!E27 -> 30.3 | F25: ='UD1 Scenarios'!F27 -> 2.7 | G25: ='UD1 Scenarios'!G27 -> 0 | H25: ='UD1 Scenarios'!H27 -> 0 | I25: ='UD1 Scenarios'!I27 -> 0 | J25: ='UD1 Scenarios'!J27 -> 676.3 | K25: ='UD1 Scenarios'!L27 -> 120 | L25: ='UD1 Scenarios'!M27 -> 0 | M25: ='UD1 Scenarios'!N27 -> 0 | N25: ='UD1 Scenarios'!O27 -> 123 | O25: ='UD1 Scenarios'!P27 -> 66 | P25: ='UD1 Scenarios'!Q27 -> 240 | Q25: ='UD1 Scenarios'!R27 -> 0 | R25: ='UD1 Scenarios'!S27 -> 0 | S25: ='UD1 Scenarios'!T27 -> 549 | T25: ='UD1 Scenarios'!U27 -> 629 | U25: ='UD1 Scenarios'!W27 -> 4953.02 | V25: ='UD1 Scenarios'!AB27 -> 1275 | W25: ='UD1 Scenarios'!AI27 -> 4274.02 | X25: ='UD1 Scenarios'!AU27 -> 2999.02 | Y25: ='UD1 Scenarios'!AV27 -> 2933.02 | Z25: ='UD1 Scenarios'!AW27 -> 2810.02 | AA25: ='UD1 Scenarios'!AX27 -> 2570.02 | AB25: ='UD1 Scenarios'!AY27 -> 2450.02 | AC25: ='UD1 Scenarios'!AZ27 -> 2370.02 | AD25: ='UD1 Scenarios'!BB27 -> 4129.130722 | AE25: ='UD1 Scenarios'!BC27 -> 1101.6 | AF25: ='UD1 Scenarios'!BD27 -> 63.7626 | AG25: ='UD1 Scenarios'!BE27 -> 118.8303 | AH25: ='UD1 Scenarios'!BF27 -> 207.36 | AI25: ='UD1 Scenarios'!BG27 -> 103.68 | AJ25: ='UD1 Scenarios'!BH27 -> 77.288 | AK25: ='UD1 Scenarios'!BI27 -> 493.6329 | AL25: ='UD1 Scenarios'!BK27 -> 4129.130722 | AM25: ='UD1 Scenarios'!BL27 -> 3027.530722 | AN25: ='UD1 Scenarios'!BM27 -> 2963.768122 | AO25: ='UD1 Scenarios'!BN27 -> 2844.937822 | AP25: ='UD1 Scenarios'!BO27 -> 2637.577822 | AQ25: ='UD1 Scenarios'!BP27 -> 2533.897822 | AR25: ='UD1 Scenarios'!BQ27 -> 2456.609822 | AS25: 640 | AT25: 105 | AU25: 21 | AV25: 153.3 | AW25: 68.7 | AX25: 240 | AY25: 0 | AZ25: 0 | BA25: 1225.3 | BB25: 1305.3
A26: ='UD1 Scenarios'!A28 -> 2036 | B26: ='UD1 Scenarios'!B28 -> 520 | C26: ='UD1 Scenarios'!C28 -> 105 | D26: ='UD1 Scenarios'!D28 -> 21 | E26: ='UD1 Scenarios'!E28 -> 30.3 | F26: ='UD1 Scenarios'!F28 -> 2.7 | G26: ='UD1 Scenarios'!G28 -> 0 | H26: ='UD1 Scenarios'!H28 -> 0 | I26: ='UD1 Scenarios'!I28 -> 0 | J26: ='UD1 Scenarios'!J28 -> 676.3 | K26: ='UD1 Scenarios'!L28 -> 120 | L26: ='UD1 Scenarios'!M28 -> 0 | M26: ='UD1 Scenarios'!N28 -> 0 | N26: ='UD1 Scenarios'!O28 -> 123 | O26: ='UD1 Scenarios'!P28 -> 66 | P26: ='UD1 Scenarios'!Q28 -> 240 | Q26: ='UD1 Scenarios'!R28 -> 0 | R26: ='UD1 Scenarios'!S28 -> 0 | S26: ='UD1 Scenarios'!T28 -> 549 | T26: ='UD1 Scenarios'!U28 -> 639 | U26: ='UD1 Scenarios'!W28 -> 4935.92 | V26: ='UD1 Scenarios'!AB28 -> 1365 | W26: ='UD1 Scenarios'!AI28 -> 4256.92 | X26: ='UD1 Scenarios'!AU28 -> 2891.92 | Y26: ='UD1 Scenarios'!AV28 -> 2825.92 | Z26: ='UD1 Scenarios'!AW28 -> 2702.92 | AA26: ='UD1 Scenarios'!AX28 -> 2462.92 | AB26: ='UD1 Scenarios'!AY28 -> 2342.92 | AC26: ='UD1 Scenarios'!AZ28 -> 2252.92 | AD26: ='UD1 Scenarios'!BB28 -> 4112.610412 | AE26: ='UD1 Scenarios'!BC28 -> 1179.36 | AF26: ='UD1 Scenarios'!BD28 -> 63.7626 | AG26: ='UD1 Scenarios'!BE28 -> 118.8303 | AH26: ='UD1 Scenarios'!BF28 -> 207.36 | AI26: ='UD1 Scenarios'!BG28 -> 103.68 | AJ26: ='UD1 Scenarios'!BH28 -> 86.949 | AK26: ='UD1 Scenarios'!BI28 -> 493.6329 | AL26: ='UD1 Scenarios'!BK28 -> 4112.610412 | AM26: ='UD1 Scenarios'!BL28 -> 2933.250412 | AN26: ='UD1 Scenarios'!BM28 -> 2869.487812 | AO26: ='UD1 Scenarios'!BN28 -> 2750.657512 | AP26: ='UD1 Scenarios'!BO28 -> 2543.297512 | AQ26: ='UD1 Scenarios'!BP28 -> 2439.617512 | AR26: ='UD1 Scenarios'!BQ28 -> 2352.668512 | AS26: 640 | AT26: 105 | AU26: 21 | AV26: 153.3 | AW26: 68.7 | AX26: 240 | AY26: 0 | AZ26: 0 | BA26: 1225.3 | BB26: 1315.3
A27: ='UD1 Scenarios'!A29 -> 2037 | B27: ='UD1 Scenarios'!B29 -> 520 | C27: ='UD1 Scenarios'!C29 -> 105 | D27: ='UD1 Scenarios'!D29 -> 21 | E27: ='UD1 Scenarios'!E29 -> 30.3 | F27: ='UD1 Scenarios'!F29 -> 2.7 | G27: ='UD1 Scenarios'!G29 -> 0 | H27: ='UD1 Scenarios'!H29 -> 0 | I27: ='UD1 Scenarios'!I29 -> 0 | J27: ='UD1 Scenarios'!J29 -> 676.3 | K27: ='UD1 Scenarios'!L29 -> 120 | L27: ='UD1 Scenarios'!M29 -> 0 | M27: ='UD1 Scenarios'!N29 -> 0 | N27: ='UD1 Scenarios'!O29 -> 123 | O27: ='UD1 Scenarios'!P29 -> 66 | P27: ='UD1 Scenarios'!Q29 -> 240 | Q27: ='UD1 Scenarios'!R29 -> 0 | R27: ='UD1 Scenarios'!S29 -> 0 | S27: ='UD1 Scenarios'!T29 -> 549 | T27: ='UD1 Scenarios'!U29 -> 639 | U27: ='UD1 Scenarios'!W29 -> 4944.72 | V27: ='UD1 Scenarios'!AB29 -> 1455 | W27: ='UD1 Scenarios'!AI29 -> 4265.72 | X27: ='UD1 Scenarios'!AU29 -> 2810.72 | Y27: ='UD1 Scenarios'!AV29 -> 2744.72 | Z27: ='UD1 Scenarios'!AW29 -> 2621.72 | AA27: ='UD1 Scenarios'!AX29 -> 2381.72 | AB27: ='UD1 Scenarios'!AY29 -> 2261.72 | AC27: ='UD1 Scenarios'!AZ29 -> 2171.72 | AD27: ='UD1 Scenarios'!BB29 -> 4121.112092 | AE27: ='UD1 Scenarios'!BC29 -> 1257.12 | AF27: ='UD1 Scenarios'!BD29 -> 63.7626 | AG27: ='UD1 Scenarios'!BE29 -> 118.8303 | AH27: ='UD1 Scenarios'!BF29 -> 207.36 | AI27: ='UD1 Scenarios'!BG29 -> 103.68 | AJ27: ='UD1 Scenarios'!BH29 -> 86.949 | AK27: ='UD1 Scenarios'!BI29 -> 493.6329 | AL27: ='UD1 Scenarios'!BK29 -> 4121.112092 | AM27: ='UD1 Scenarios'!BL29 -> 2863.992092 | AN27: ='UD1 Scenarios'!BM29 -> 2800.229492 | AO27: ='UD1 Scenarios'!BN29 -> 2681.399192 | AP27: ='UD1 Scenarios'!BO29 -> 2474.039192 | AQ27: ='UD1 Scenarios'!BP29 -> 2370.359192 | AR27: ='UD1 Scenarios'!BQ29 -> 2283.410192 | AS27: 640 | AT27: 105 | AU27: 21 | AV27: 153.3 | AW27: 68.7 | AX27: 240 | AY27: 0 | AZ27: 0 | BA27: 1225.3 | BB27: 1315.3
A28: ='UD1 Scenarios'!A30 -> 2038 | B28: ='UD1 Scenarios'!B30 -> 520 | C28: ='UD1 Scenarios'!C30 -> 105 | D28: ='UD1 Scenarios'!D30 -> 21 | E28: ='UD1 Scenarios'!E30 -> 30.3 | F28: ='UD1 Scenarios'!F30 -> 2.7 | G28: ='UD1 Scenarios'!G30 -> 0 | H28: ='UD1 Scenarios'!H30 -> 0 | I28: ='UD1 Scenarios'!I30 -> 0 | J28: ='UD1 Scenarios'!J30 -> 676.3 | K28: ='UD1 Scenarios'!L30 -> 120 | L28: ='UD1 Scenarios'!M30 -> 0 | M28: ='UD1 Scenarios'!N30 -> 0 | N28: ='UD1 Scenarios'!O30 -> 123 | O28: ='UD1 Scenarios'!P30 -> 66 | P28: ='UD1 Scenarios'!Q30 -> 240 | Q28: ='UD1 Scenarios'!R30 -> 0 | R28: ='UD1 Scenarios'!S30 -> 0 | S28: ='UD1 Scenarios'!T30 -> 549 | T28: ='UD1 Scenarios'!U30 -> 639 | U28: ='UD1 Scenarios'!W30 -> 4953.52 | V28: ='UD1 Scenarios'!AB30 -> 1545 | W28: ='UD1 Scenarios'!AI30 -> 4274.52 | X28: ='UD1 Scenarios'!AU30 -> 2729.52 | Y28: ='UD1 Scenarios'!AV30 -> 2663.52 | Z28: ='UD1 Scenarios'!AW30 -> 2540.52 | AA28: ='UD1 Scenarios'!AX30 -> 2300.52 | AB28: ='UD1 Scenarios'!AY30 -> 2180.52 | AC28: ='UD1 Scenarios'!AZ30 -> 2090.52 | AD28: ='UD1 Scenarios'!BB30 -> 4129.613772 | AE28: ='UD1 Scenarios'!BC30 -> 1334.88 | AF28: ='UD1 Scenarios'!BD30 -> 63.7626 | AG28: ='UD1 Scenarios'!BE30 -> 118.8303 | AH28: ='UD1 Scenarios'!BF30 -> 207.36 | AI28: ='UD1 Scenarios'!BG30 -> 103.68 | AJ28: ='UD1 Scenarios'!BH30 -> 86.949 | AK28: ='UD1 Scenarios'!BI30 -> 493.6329 | AL28: ='UD1 Scenarios'!BK30 -> 4129.613772 | AM28: ='UD1 Scenarios'!BL30 -> 2794.733772 | AN28: ='UD1 Scenarios'!BM30 -> 2730.971172 | AO28: ='UD1 Scenarios'!BN30 -> 2612.140872 | AP28: ='UD1 Scenarios'!BO30 -> 2404.780872 | AQ28: ='UD1 Scenarios'!BP30 -> 2301.100872 | AR28: ='UD1 Scenarios'!BQ30 -> 2214.151872 | AS28: 640 | AT28: 105 | AU28: 21 | AV28: 153.3 | AW28: 68.7 | AX28: 240 | AY28: 0 | AZ28: 0 | BA28: 1225.3 | BB28: 1315.3
A29: ='UD1 Scenarios'!A31 -> 2039 | B29: ='UD1 Scenarios'!B31 -> 520 | C29: ='UD1 Scenarios'!C31 -> 105 | D29: ='UD1 Scenarios'!D31 -> 21 | E29: ='UD1 Scenarios'!E31 -> 30.3 | F29: ='UD1 Scenarios'!F31 -> 2.7 | G29: ='UD1 Scenarios'!G31 -> 0 | H29: ='UD1 Scenarios'!H31 -> 0 | I29: ='UD1 Scenarios'!I31 -> 0 | J29: ='UD1 Scenarios'!J31 -> 676.3 | K29: ='UD1 Scenarios'!L31 -> 120 | L29: ='UD1 Scenarios'!M31 -> 0 | M29: ='UD1 Scenarios'!N31 -> 0 | N29: ='UD1 Scenarios'!O31 -> 123 | O29: ='UD1 Scenarios'!P31 -> 66 | P29: ='UD1 Scenarios'!Q31 -> 240 | Q29: ='UD1 Scenarios'!R31 -> 0 | R29: ='UD1 Scenarios'!S31 -> 0 | S29: ='UD1 Scenarios'!T31 -> 549 | T29: ='UD1 Scenarios'!U31 -> 639 | U29: ='UD1 Scenarios'!W31 -> 4962.32 | V29: ='UD1 Scenarios'!AB31 -> 1635 | W29: ='UD1 Scenarios'!AI31 -> 4283.32 | X29: ='UD1 Scenarios'!AU31 -> 2648.32 | Y29: ='UD1 Scenarios'!AV31 -> 2582.32 | Z29: ='UD1 Scenarios'!AW31 -> 2459.32 | AA29: ='UD1 Scenarios'!AX31 -> 2219.32 | AB29: ='UD1 Scenarios'!AY31 -> 2099.32 | AC29: ='UD1 Scenarios'!AZ31 -> 2009.32 | AD29: ='UD1 Scenarios'!BB31 -> 4138.115452 | AE29: ='UD1 Scenarios'!BC31 -> 1412.64 | AF29: ='UD1 Scenarios'!BD31 -> 63.7626 | AG29: ='UD1 Scenarios'!BE31 -> 118.8303 | AH29: ='UD1 Scenarios'!BF31 -> 207.36 | AI29: ='UD1 Scenarios'!BG31 -> 103.68 | AJ29: ='UD1 Scenarios'!BH31 -> 86.949 | AK29: ='UD1 Scenarios'!BI31 -> 493.6329 | AL29: ='UD1 Scenarios'!BK31 -> 4138.115452 | AM29: ='UD1 Scenarios'!BL31 -> 2725.475452 | AN29: ='UD1 Scenarios'!BM31 -> 2661.712852 | AO29: ='UD1 Scenarios'!BN31 -> 2542.882552 | AP29: ='UD1 Scenarios'!BO31 -> 2335.522552 | AQ29: ='UD1 Scenarios'!BP31 -> 2231.842552 | AR29: ='UD1 Scenarios'!BQ31 -> 2144.893552 | AS29: 640 | AT29: 105 | AU29: 21 | AV29: 153.3 | AW29: 68.7 | AX29: 240 | AY29: 0 | AZ29: 0 | BA29: 1225.3 | BB29: 1315.3
A30: ='UD1 Scenarios'!A32 -> 2040 | B30: ='UD1 Scenarios'!B32 -> 520 | C30: ='UD1 Scenarios'!C32 -> 105 | D30: ='UD1 Scenarios'!D32 -> 21 | E30: ='UD1 Scenarios'!E32 -> 30.3 | F30: ='UD1 Scenarios'!F32 -> 2.7 | G30: ='UD1 Scenarios'!G32 -> 0 | H30: ='UD1 Scenarios'!H32 -> 0 | I30: ='UD1 Scenarios'!I32 -> 0 | J30: ='UD1 Scenarios'!J32 -> 676.3 | K30: ='UD1 Scenarios'!L32 -> 120 | L30: ='UD1 Scenarios'!M32 -> 0 | M30: ='UD1 Scenarios'!N32 -> 0 | N30: ='UD1 Scenarios'!O32 -> 123 | O30: ='UD1 Scenarios'!P32 -> 66 | P30: ='UD1 Scenarios'!Q32 -> 240 | Q30: ='UD1 Scenarios'!R32 -> 0 | R30: ='UD1 Scenarios'!S32 -> 0 | S30: ='UD1 Scenarios'!T32 -> 549 | T30: ='UD1 Scenarios'!U32 -> 639 | U30: ='UD1 Scenarios'!W32 -> 4971.12 | V30: ='UD1 Scenarios'!AB32 -> 1725 | W30: ='UD1 Scenarios'!AI32 -> 4292.12 | X30: ='UD1 Scenarios'!AU32 -> 2567.12 | Y30: ='UD1 Scenarios'!AV32 -> 2501.12 | Z30: ='UD1 Scenarios'!AW32 -> 2378.12 | AA30: ='UD1 Scenarios'!AX32 -> 2138.12 | AB30: ='UD1 Scenarios'!AY32 -> 2018.12 | AC30: ='UD1 Scenarios'!AZ32 -> 1928.12 | AD30: ='UD1 Scenarios'!BB32 -> 4146.617132 | AE30: ='UD1 Scenarios'!BC32 -> 1490.4 | AF30: ='UD1 Scenarios'!BD32 -> 63.7626 | AG30: ='UD1 Scenarios'!BE32 -> 118.8303 | AH30: ='UD1 Scenarios'!BF32 -> 207.36 | AI30: ='UD1 Scenarios'!BG32 -> 103.68 | AJ30: ='UD1 Scenarios'!BH32 -> 86.949 | AK30: ='UD1 Scenarios'!BI32 -> 493.6329 | AL30: ='UD1 Scenarios'!BK32 -> 4146.617132 | AM30: ='UD1 Scenarios'!BL32 -> 2656.217132 | AN30: ='UD1 Scenarios'!BM32 -> 2592.454532 | AO30: ='UD1 Scenarios'!BN32 -> 2473.624232 | AP30: ='UD1 Scenarios'!BO32 -> 2266.264232 | AQ30: ='UD1 Scenarios'!BP32 -> 2162.584232 | AR30: ='UD1 Scenarios'!BQ32 -> 2075.635232 | AS30: 640 | AT30: 105 | AU30: 21 | AV30: 153.3 | AW30: 68.7 | AX30: 240 | AY30: 0 | AZ30: 0 | BA30: 1225.3 | BB30: 1315.3
A31: ='UD1 Scenarios'!A33 -> 2041 | B31: ='UD1 Scenarios'!B33 -> 520 | C31: ='UD1 Scenarios'!C33 -> 105 | D31: ='UD1 Scenarios'!D33 -> 21 | E31: ='UD1 Scenarios'!E33 -> 30.3 | F31: ='UD1 Scenarios'!F33 -> 2.7 | G31: ='UD1 Scenarios'!G33 -> 0 | H31: ='UD1 Scenarios'!H33 -> 0 | I31: ='UD1 Scenarios'!I33 -> 0 | J31: ='UD1 Scenarios'!J33 -> 676.3 | K31: ='UD1 Scenarios'!L33 -> 120 | L31: ='UD1 Scenarios'!M33 -> 0 | M31: ='UD1 Scenarios'!N33 -> 0 | N31: ='UD1 Scenarios'!O33 -> 123 | O31: ='UD1 Scenarios'!P33 -> 66 | P31: ='UD1 Scenarios'!Q33 -> 240 | Q31: ='UD1 Scenarios'!R33 -> 0 | R31: ='UD1 Scenarios'!S33 -> 0 | S31: ='UD1 Scenarios'!T33 -> 549 | T31: ='UD1 Scenarios'!U33 -> 669 | U31: ='UD1 Scenarios'!W33 -> 5019.32 | V31: ='UD1 Scenarios'!AB33 -> 1805 | W31: ='UD1 Scenarios'!AI33 -> 4340.32 | X31: ='UD1 Scenarios'!AU33 -> 2535.32 | Y31: ='UD1 Scenarios'!AV33 -> 2469.32 | Z31: ='UD1 Scenarios'!AW33 -> 2346.32 | AA31: ='UD1 Scenarios'!AX33 -> 2106.32 | AB31: ='UD1 Scenarios'!AY33 -> 1986.32 | AC31: ='UD1 Scenarios'!AZ33 -> 1866.32 | AD31: ='UD1 Scenarios'!BB33 -> 4193.183152 | AE31: ='UD1 Scenarios'!BC33 -> 1559.52 | AF31: ='UD1 Scenarios'!BD33 -> 63.7626 | AG31: ='UD1 Scenarios'!BE33 -> 118.8303 | AH31: ='UD1 Scenarios'!BF33 -> 207.36 | AI31: ='UD1 Scenarios'!BG33 -> 103.68 | AJ31: ='UD1 Scenarios'!BH33 -> 115.932 | AK31: ='UD1 Scenarios'!BI33 -> 493.6329 | AL31: ='UD1 Scenarios'!BK33 -> 4193.183152 | AM31: ='UD1 Scenarios'!BL33 -> 2633.663152 | AN31: ='UD1 Scenarios'!BM33 -> 2569.900552 | AO31: ='UD1 Scenarios'!BN33 -> 2451.070252 | AP31: ='UD1 Scenarios'!BO33 -> 2243.710252 | AQ31: ='UD1 Scenarios'!BP33 -> 2140.030252 | AR31: ='UD1 Scenarios'!BQ33 -> 2024.098252 | AS31: 640 | AT31: 105 | AU31: 21 | AV31: 153.3 | AW31: 68.7 | AX31: 240 | AY31: 0 | AZ31: 0 | BA31: 1225.3 | BB31: 1345.3
A32: ='UD1 Scenarios'!A34 -> 2042 | B32: ='UD1 Scenarios'!B34 -> 520 | C32: ='UD1 Scenarios'!C34 -> 105 | D32: ='UD1 Scenarios'!D34 -> 21 | E32: ='UD1 Scenarios'!E34 -> 30.3 | F32: ='UD1 Scenarios'!F34 -> 2.7 | G32: ='UD1 Scenarios'!G34 -> 0 | H32: ='UD1 Scenarios'!H34 -> 0 | I32: ='UD1 Scenarios'!I34 -> 0 | J32: ='UD1 Scenarios'!J34 -> 676.3 | K32: ='UD1 Scenarios'!L34 -> 120 | L32: ='UD1 Scenarios'!M34 -> 0 | M32: ='UD1 Scenarios'!N34 -> 0 | N32: ='UD1 Scenarios'!O34 -> 123 | O32: ='UD1 Scenarios'!P34 -> 66 | P32: ='UD1 Scenarios'!Q34 -> 240 | Q32: ='UD1 Scenarios'!R34 -> 0 | R32: ='UD1 Scenarios'!S34 -> 0 | S32: ='UD1 Scenarios'!T34 -> 549 | T32: ='UD1 Scenarios'!U34 -> 669 | U32: ='UD1 Scenarios'!W34 -> 5067.52 | V32: ='UD1 Scenarios'!AB34 -> 1885 | W32: ='UD1 Scenarios'!AI34 -> 4388.52 | X32: ='UD1 Scenarios'!AU34 -> 2503.52 | Y32: ='UD1 Scenarios'!AV34 -> 2437.52 | Z32: ='UD1 Scenarios'!AW34 -> 2314.52 | AA32: ='UD1 Scenarios'!AX34 -> 2074.52 | AB32: ='UD1 Scenarios'!AY34 -> 1954.52 | AC32: ='UD1 Scenarios'!AZ34 -> 1834.52 | AD32: ='UD1 Scenarios'!BB34 -> 4239.749172 | AE32: ='UD1 Scenarios'!BC34 -> 1628.64 | AF32: ='UD1 Scenarios'!BD34 -> 63.7626 | AG32: ='UD1 Scenarios'!BE34 -> 118.8303 | AH32: ='UD1 Scenarios'!BF34 -> 207.36 | AI32: ='UD1 Scenarios'!BG34 -> 103.68 | AJ32: ='UD1 Scenarios'!BH34 -> 115.932 | AK32: ='UD1 Scenarios'!BI34 -> 493.6329 | AL32: ='UD1 Scenarios'!BK34 -> 4239.749172 | AM32: ='UD1 Scenarios'!BL34 -> 2611.109172 | AN32: ='UD1 Scenarios'!BM34 -> 2547.346572 | AO32: ='UD1 Scenarios'!BN34 -> 2428.516272 | AP32: ='UD1 Scenarios'!BO34 -> 2221.156272 | AQ32: ='UD1 Scenarios'!BP34 -> 2117.476272 | AR32: ='UD1 Scenarios'!BQ34 -> 2001.544272 | AS32: 640 | AT32: 105 | AU32: 21 | AV32: 153.3 | AW32: 68.7 | AX32: 240 | AY32: 0 | AZ32: 0 | BA32: 1225.3 | BB32: 1345.3
A33: ='UD1 Scenarios'!A35 -> 2043 | B33: ='UD1 Scenarios'!B35 -> 520 | C33: ='UD1 Scenarios'!C35 -> 105 | D33: ='UD1 Scenarios'!D35 -> 21 | E33: ='UD1 Scenarios'!E35 -> 30.3 | F33: ='UD1 Scenarios'!F35 -> 2.7 | G33: ='UD1 Scenarios'!G35 -> 0 | H33: ='UD1 Scenarios'!H35 -> 0 | I33: ='UD1 Scenarios'!I35 -> 0 | J33: ='UD1 Scenarios'!J35 -> 676.3 | K33: ='UD1 Scenarios'!L35 -> 120 | L33: ='UD1 Scenarios'!M35 -> 0 | M33: ='UD1 Scenarios'!N35 -> 0 | N33: ='UD1 Scenarios'!O35 -> 123 | O33: ='UD1 Scenarios'!P35 -> 66 | P33: ='UD1 Scenarios'!Q35 -> 240 | Q33: ='UD1 Scenarios'!R35 -> 0 | R33: ='UD1 Scenarios'!S35 -> 0 | S33: ='UD1 Scenarios'!T35 -> 549 | T33: ='UD1 Scenarios'!U35 -> 699 | U33: ='UD1 Scenarios'!W35 -> 5115.72 | V33: ='UD1 Scenarios'!AB35 -> 1965 | W33: ='UD1 Scenarios'!AI35 -> 4436.72 | X33: ='UD1 Scenarios'!AU35 -> 2471.72 | Y33: ='UD1 Scenarios'!AV35 -> 2405.72 | Z33: ='UD1 Scenarios'!AW35 -> 2282.72 | AA33: ='UD1 Scenarios'!AX35 -> 2042.72 | AB33: ='UD1 Scenarios'!AY35 -> 1922.72 | AC33: ='UD1 Scenarios'!AZ35 -> 1772.72 | AD33: ='UD1 Scenarios'!BB35 -> 4286.315192 | AE33: ='UD1 Scenarios'!BC35 -> 1697.76 | AF33: ='UD1 Scenarios'!BD35 -> 63.7626 | AG33: ='UD1 Scenarios'!BE35 -> 118.8303 | AH33: ='UD1 Scenarios'!BF35 -> 207.36 | AI33: ='UD1 Scenarios'!BG35 -> 103.68 | AJ33: ='UD1 Scenarios'!BH35 -> 144.915 | AK33: ='UD1 Scenarios'!BI35 -> 493.6329 | AL33: ='UD1 Scenarios'!BK35 -> 4286.315192 | AM33: ='UD1 Scenarios'!BL35 -> 2588.555192 | AN33: ='UD1 Scenarios'!BM35 -> 2524.792592 | AO33: ='UD1 Scenarios'!BN35 -> 2405.962292 | AP33: ='UD1 Scenarios'!BO35 -> 2198.602292 | AQ33: ='UD1 Scenarios'!BP35 -> 2094.922292 | AR33: ='UD1 Scenarios'!BQ35 -> 1950.007292 | AS33: 640 | AT33: 105 | AU33: 21 | AV33: 153.3 | AW33: 68.7 | AX33: 240 | AY33: 0 | AZ33: 0 | BA33: 1225.3 | BB33: 1375.3
A34: ='UD1 Scenarios'!A36 -> 2044 | B34: ='UD1 Scenarios'!B36 -> 520 | C34: ='UD1 Scenarios'!C36 -> 105 | D34: ='UD1 Scenarios'!D36 -> 21 | E34: ='UD1 Scenarios'!E36 -> 30.3 | F34: ='UD1 Scenarios'!F36 -> 2.7 | G34: ='UD1 Scenarios'!G36 -> 0 | H34: ='UD1 Scenarios'!H36 -> 0 | I34: ='UD1 Scenarios'!I36 -> 0 | J34: ='UD1 Scenarios'!J36 -> 676.3 | K34: ='UD1 Scenarios'!L36 -> 120 | L34: ='UD1 Scenarios'!M36 -> 0 | M34: ='UD1 Scenarios'!N36 -> 0 | N34: ='UD1 Scenarios'!O36 -> 123 | O34: ='UD1 Scenarios'!P36 -> 66 | P34: ='UD1 Scenarios'!Q36 -> 240 | Q34: ='UD1 Scenarios'!R36 -> 0 | R34: ='UD1 Scenarios'!S36 -> 0 | S34: ='UD1 Scenarios'!T36 -> 549 | T34: ='UD1 Scenarios'!U36 -> 699 | U34: ='UD1 Scenarios'!W36 -> 5163.92 | V34: ='UD1 Scenarios'!AB36 -> 2045 | W34: ='UD1 Scenarios'!AI36 -> 4484.92 | X34: ='UD1 Scenarios'!AU36 -> 2439.92 | Y34: ='UD1 Scenarios'!AV36 -> 2373.92 | Z34: ='UD1 Scenarios'!AW36 -> 2250.92 | AA34: ='UD1 Scenarios'!AX36 -> 2010.92 | AB34: ='UD1 Scenarios'!AY36 -> 1890.92 | AC34: ='UD1 Scenarios'!AZ36 -> 1740.92 | AD34: ='UD1 Scenarios'!BB36 -> 4332.881212 | AE34: ='UD1 Scenarios'!BC36 -> 1766.88 | AF34: ='UD1 Scenarios'!BD36 -> 63.7626 | AG34: ='UD1 Scenarios'!BE36 -> 118.8303 | AH34: ='UD1 Scenarios'!BF36 -> 207.36 | AI34: ='UD1 Scenarios'!BG36 -> 103.68 | AJ34: ='UD1 Scenarios'!BH36 -> 144.915 | AK34: ='UD1 Scenarios'!BI36 -> 493.6329 | AL34: ='UD1 Scenarios'!BK36 -> 4332.881212 | AM34: ='UD1 Scenarios'!BL36 -> 2566.001212 | AN34: ='UD1 Scenarios'!BM36 -> 2502.238612 | AO34: ='UD1 Scenarios'!BN36 -> 2383.408312 | AP34: ='UD1 Scenarios'!BO36 -> 2176.048312 | AQ34: ='UD1 Scenarios'!BP36 -> 2072.368312 | AR34: ='UD1 Scenarios'!BQ36 -> 1927.453312 | AS34: 640 | AT34: 105 | AU34: 21 | AV34: 153.3 | AW34: 68.7 | AX34: 240 | AY34: 0 | AZ34: 0 | BA34: 1225.3 | BB34: 1375.3
A35: ='UD1 Scenarios'!A37 -> 2045 | B35: ='UD1 Scenarios'!B37 -> 520 | C35: ='UD1 Scenarios'!C37 -> 105 | D35: ='UD1 Scenarios'!D37 -> 21 | E35: ='UD1 Scenarios'!E37 -> 30.3 | F35: ='UD1 Scenarios'!F37 -> 2.7 | G35: ='UD1 Scenarios'!G37 -> 0 | H35: ='UD1 Scenarios'!H37 -> 0 | I35: ='UD1 Scenarios'!I37 -> 0 | J35: ='UD1 Scenarios'!J37 -> 676.3 | K35: ='UD1 Scenarios'!L37 -> 120 | L35: ='UD1 Scenarios'!M37 -> 0 | M35: ='UD1 Scenarios'!N37 -> 0 | N35: ='UD1 Scenarios'!O37 -> 123 | O35: ='UD1 Scenarios'!P37 -> 66 | P35: ='UD1 Scenarios'!Q37 -> 240 | Q35: ='UD1 Scenarios'!R37 -> 0 | R35: ='UD1 Scenarios'!S37 -> 0 | S35: ='UD1 Scenarios'!T37 -> 549 | T35: ='UD1 Scenarios'!U37 -> 709 | U35: ='UD1 Scenarios'!W37 -> 5212.12 | V35: ='UD1 Scenarios'!AB37 -> 2125 | W35: ='UD1 Scenarios'!AI37 -> 4533.12 | X35: ='UD1 Scenarios'!AU37 -> 2408.12 | Y35: ='UD1 Scenarios'!AV37 -> 2342.12 | Z35: ='UD1 Scenarios'!AW37 -> 2219.12 | AA35: ='UD1 Scenarios'!AX37 -> 1979.12 | AB35: ='UD1 Scenarios'!AY37 -> 1859.12 | AC35: ='UD1 Scenarios'!AZ37 -> 1699.12 | AD35: ='UD1 Scenarios'!BB37 -> 4379.447232 | AE35: ='UD1 Scenarios'!BC37 -> 1836 | AF35: ='UD1 Scenarios'!BD37 -> 63.7626 | AG35: ='UD1 Scenarios'!BE37 -> 118.8303 | AH35: ='UD1 Scenarios'!BF37 -> 207.36 | AI35: ='UD1 Scenarios'!BG37 -> 103.68 | AJ35: ='UD1 Scenarios'!BH37 -> 154.576 | AK35: ='UD1 Scenarios'!BI37 -> 493.6329 | AL35: ='UD1 Scenarios'!BK37 -> 4379.447232 | AM35: ='UD1 Scenarios'!BL37 -> 2543.447232 | AN35: ='UD1 Scenarios'!BM37 -> 2479.684632 | AO35: ='UD1 Scenarios'!BN37 -> 2360.854332 | AP35: ='UD1 Scenarios'!BO37 -> 2153.494332 | AQ35: ='UD1 Scenarios'!BP37 -> 2049.814332 | AR35: ='UD1 Scenarios'!BQ37 -> 1895.238332 | AS35: 640 | AT35: 105 | AU35: 21 | AV35: 153.3 | AW35: 68.7 | AX35: 240 | AY35: 0 | AZ35: 0 | BA35: 1225.3 | BB35: 1385.3
A36: ='UD1 Scenarios'!A38 -> 2046 | B36: ='UD1 Scenarios'!B38 -> 520 | C36: ='UD1 Scenarios'!C38 -> 105 | D36: ='UD1 Scenarios'!D38 -> 21 | E36: ='UD1 Scenarios'!E38 -> 30.3 | F36: ='UD1 Scenarios'!F38 -> 2.7 | G36: ='UD1 Scenarios'!G38 -> 0 | H36: ='UD1 Scenarios'!H38 -> 0 | I36: ='UD1 Scenarios'!I38 -> 0 | J36: ='UD1 Scenarios'!J38 -> 676.3 | K36: ='UD1 Scenarios'!L38 -> 120 | L36: ='UD1 Scenarios'!M38 -> 0 | M36: ='UD1 Scenarios'!N38 -> 0 | N36: ='UD1 Scenarios'!O38 -> 123 | O36: ='UD1 Scenarios'!P38 -> 66 | P36: ='UD1 Scenarios'!Q38 -> 240 | Q36: ='UD1 Scenarios'!R38 -> 0 | R36: ='UD1 Scenarios'!S38 -> 0 | S36: ='UD1 Scenarios'!T38 -> 549 | T36: ='UD1 Scenarios'!U38 -> 709 | U36: ='UD1 Scenarios'!W38 -> 5260.52 | V36: ='UD1 Scenarios'!AB38 -> 2190 | W36: ='UD1 Scenarios'!AI38 -> 4581.52 | X36: ='UD1 Scenarios'!AU38 -> 2391.52 | Y36: ='UD1 Scenarios'!AV38 -> 2325.52 | Z36: ='UD1 Scenarios'!AW38 -> 2202.52 | AA36: ='UD1 Scenarios'!AX38 -> 1962.52 | AB36: ='UD1 Scenarios'!AY38 -> 1842.52 | AC36: ='UD1 Scenarios'!AZ38 -> 1682.52 | AD36: ='UD1 Scenarios'!BB38 -> 4426.206472 | AE36: ='UD1 Scenarios'!BC38 -> 1892.16 | AF36: ='UD1 Scenarios'!BD38 -> 63.7626 | AG36: ='UD1 Scenarios'!BE38 -> 118.8303 | AH36: ='UD1 Scenarios'!BF38 -> 207.36 | AI36: ='UD1 Scenarios'!BG38 -> 103.68 | AJ36: ='UD1 Scenarios'!BH38 -> 154.576 | AK36: ='UD1 Scenarios'!BI38 -> 493.6329 | AL36: ='UD1 Scenarios'!BK38 -> 4426.206472 | AM36: ='UD1 Scenarios'!BL38 -> 2534.046472 | AN36: ='UD1 Scenarios'!BM38 -> 2470.283872 | AO36: ='UD1 Scenarios'!BN38 -> 2351.453572 | AP36: ='UD1 Scenarios'!BO38 -> 2144.093572 | AQ36: ='UD1 Scenarios'!BP38 -> 2040.413572 | AR36: ='UD1 Scenarios'!BQ38 -> 1885.837572 | AS36: 640 | AT36: 105 | AU36: 21 | AV36: 153.3 | AW36: 68.7 | AX36: 240 | AY36: 0 | AZ36: 0 | BA36: 1225.3 | BB36: 1385.3
A37: ='UD1 Scenarios'!A39 -> 2047 | B37: ='UD1 Scenarios'!B39 -> 520 | C37: ='UD1 Scenarios'!C39 -> 105 | D37: ='UD1 Scenarios'!D39 -> 21 | E37: ='UD1 Scenarios'!E39 -> 30.3 | F37: ='UD1 Scenarios'!F39 -> 2.7 | G37: ='UD1 Scenarios'!G39 -> 0 | H37: ='UD1 Scenarios'!H39 -> 0 | I37: ='UD1 Scenarios'!I39 -> 0 | J37: ='UD1 Scenarios'!J39 -> 676.3 | K37: ='UD1 Scenarios'!L39 -> 120 | L37: ='UD1 Scenarios'!M39 -> 0 | M37: ='UD1 Scenarios'!N39 -> 0 | N37: ='UD1 Scenarios'!O39 -> 123 | O37: ='UD1 Scenarios'!P39 -> 66 | P37: ='UD1 Scenarios'!Q39 -> 240 | Q37: ='UD1 Scenarios'!R39 -> 0 | R37: ='UD1 Scenarios'!S39 -> 0 | S37: ='UD1 Scenarios'!T39 -> 549 | T37: ='UD1 Scenarios'!U39 -> 729 | U37: ='UD1 Scenarios'!W39 -> 5308.92 | V37: ='UD1 Scenarios'!AB39 -> 2255 | W37: ='UD1 Scenarios'!AI39 -> 4629.92 | X37: ='UD1 Scenarios'!AU39 -> 2374.92 | Y37: ='UD1 Scenarios'!AV39 -> 2308.92 | Z37: ='UD1 Scenarios'!AW39 -> 2185.92 | AA37: ='UD1 Scenarios'!AX39 -> 1945.92 | AB37: ='UD1 Scenarios'!AY39 -> 1825.92 | AC37: ='UD1 Scenarios'!AZ39 -> 1645.92 | AD37: ='UD1 Scenarios'!BB39 -> 4472.965712 | AE37: ='UD1 Scenarios'!BC39 -> 1948.32 | AF37: ='UD1 Scenarios'!BD39 -> 63.7626 | AG37: ='UD1 Scenarios'!BE39 -> 118.8303 | AH37: ='UD1 Scenarios'!BF39 -> 207.36 | AI37: ='UD1 Scenarios'!BG39 -> 103.68 | AJ37: ='UD1 Scenarios'!BH39 -> 173.898 | AK37: ='UD1 Scenarios'!BI39 -> 493.6329 | AL37: ='UD1 Scenarios'!BK39 -> 4472.965712 | AM37: ='UD1 Scenarios'!BL39 -> 2524.645712 | AN37: ='UD1 Scenarios'!BM39 -> 2460.883112 | AO37: ='UD1 Scenarios'!BN39 -> 2342.052812 | AP37: ='UD1 Scenarios'!BO39 -> 2134.692812 | AQ37: ='UD1 Scenarios'!BP39 -> 2031.012812 | AR37: ='UD1 Scenarios'!BQ39 -> 1857.114812 | AS37: 640 | AT37: 105 | AU37: 21 | AV37: 153.3 | AW37: 68.7 | AX37: 240 | AY37: 0 | AZ37: 0 | BA37: 1225.3 | BB37: 1405.3
A38: ='UD1 Scenarios'!A40 -> 2048 | B38: ='UD1 Scenarios'!B40 -> 520 | C38: ='UD1 Scenarios'!C40 -> 105 | D38: ='UD1 Scenarios'!D40 -> 21 | E38: ='UD1 Scenarios'!E40 -> 30.3 | F38: ='UD1 Scenarios'!F40 -> 2.7 | G38: ='UD1 Scenarios'!G40 -> 0 | H38: ='UD1 Scenarios'!H40 -> 0 | I38: ='UD1 Scenarios'!I40 -> 0 | J38: ='UD1 Scenarios'!J40 -> 676.3 | K38: ='UD1 Scenarios'!L40 -> 120 | L38: ='UD1 Scenarios'!M40 -> 0 | M38: ='UD1 Scenarios'!N40 -> 0 | N38: ='UD1 Scenarios'!O40 -> 123 | O38: ='UD1 Scenarios'!P40 -> 66 | P38: ='UD1 Scenarios'!Q40 -> 240 | Q38: ='UD1 Scenarios'!R40 -> 0 | R38: ='UD1 Scenarios'!S40 -> 0 | S38: ='UD1 Scenarios'!T40 -> 549 | T38: ='UD1 Scenarios'!U40 -> 759 | U38: ='UD1 Scenarios'!W40 -> 5357.32 | V38: ='UD1 Scenarios'!AB40 -> 2320 | W38: ='UD1 Scenarios'!AI40 -> 4678.32 | X38: ='UD1 Scenarios'!AU40 -> 2358.32 | Y38: ='UD1 Scenarios'!AV40 -> 2292.32 | Z38: ='UD1 Scenarios'!AW40 -> 2169.32 | AA38: ='UD1 Scenarios'!AX40 -> 1929.32 | AB38: ='UD1 Scenarios'!AY40 -> 1809.32 | AC38: ='UD1 Scenarios'!AZ40 -> 1599.32 | AD38: ='UD1 Scenarios'!BB40 -> 4519.724952 | AE38: ='UD1 Scenarios'!BC40 -> 2004.48 | AF38: ='UD1 Scenarios'!BD40 -> 63.7626 | AG38: ='UD1 Scenarios'!BE40 -> 118.8303 | AH38: ='UD1 Scenarios'!BF40 -> 207.36 | AI38: ='UD1 Scenarios'!BG40 -> 103.68 | AJ38: ='UD1 Scenarios'!BH40 -> 202.881 | AK38: ='UD1 Scenarios'!BI40 -> 493.6329 | AL38: ='UD1 Scenarios'!BK40 -> 4519.724952 | AM38: ='UD1 Scenarios'!BL40 -> 2515.244952 | AN38: ='UD1 Scenarios'!BM40 -> 2451.482352 | AO38: ='UD1 Scenarios'!BN40 -> 2332.652052 | AP38: ='UD1 Scenarios'!BO40 -> 2125.292052 | AQ38: ='UD1 Scenarios'!BP40 -> 2021.612052 | AR38: ='UD1 Scenarios'!BQ40 -> 1818.731052 | AS38: 640 | AT38: 105 | AU38: 21 | AV38: 153.3 | AW38: 68.7 | AX38: 240 | AY38: 0 | AZ38: 0 | BA38: 1225.3 | BB38: 1435.3
A39: ='UD1 Scenarios'!A41 -> 2049 | B39: ='UD1 Scenarios'!B41 -> 520 | C39: ='UD1 Scenarios'!C41 -> 105 | D39: ='UD1 Scenarios'!D41 -> 21 | E39: ='UD1 Scenarios'!E41 -> 30.3 | F39: ='UD1 Scenarios'!F41 -> 2.7 | G39: ='UD1 Scenarios'!G41 -> 0 | H39: ='UD1 Scenarios'!H41 -> 0 | I39: ='UD1 Scenarios'!I41 -> 0 | J39: ='UD1 Scenarios'!J41 -> 676.3 | K39: ='UD1 Scenarios'!L41 -> 120 | L39: ='UD1 Scenarios'!M41 -> 0 | M39: ='UD1 Scenarios'!N41 -> 0 | N39: ='UD1 Scenarios'!O41 -> 123 | O39: ='UD1 Scenarios'!P41 -> 66 | P39: ='UD1 Scenarios'!Q41 -> 240 | Q39: ='UD1 Scenarios'!R41 -> 0 | R39: ='UD1 Scenarios'!S41 -> 0 | S39: ='UD1 Scenarios'!T41 -> 549 | T39: ='UD1 Scenarios'!U41 -> 779 | U39: ='UD1 Scenarios'!W41 -> 5405.72 | V39: ='UD1 Scenarios'!AB41 -> 2385 | W39: ='UD1 Scenarios'!AI41 -> 4726.72 | X39: ='UD1 Scenarios'!AU41 -> 2341.72 | Y39: ='UD1 Scenarios'!AV41 -> 2275.72 | Z39: ='UD1 Scenarios'!AW41 -> 2152.72 | AA39: ='UD1 Scenarios'!AX41 -> 1912.72 | AB39: ='UD1 Scenarios'!AY41 -> 1792.72 | AC39: ='UD1 Scenarios'!AZ41 -> 1562.72 | AD39: ='UD1 Scenarios'!BB41 -> 4566.484192 | AE39: ='UD1 Scenarios'!BC41 -> 2060.64 | AF39: ='UD1 Scenarios'!BD41 -> 63.7626 | AG39: ='UD1 Scenarios'!BE41 -> 118.8303 | AH39: ='UD1 Scenarios'!BF41 -> 207.36 | AI39: ='UD1 Scenarios'!BG41 -> 103.68 | AJ39: ='UD1 Scenarios'!BH41 -> 222.203 | AK39: ='UD1 Scenarios'!BI41 -> 493.6329 | AL39: ='UD1 Scenarios'!BK41 -> 4566.484192 | AM39: ='UD1 Scenarios'!BL41 -> 2505.844192 | AN39: ='UD1 Scenarios'!BM41 -> 2442.081592 | AO39: ='UD1 Scenarios'!BN41 -> 2323.251292 | AP39: ='UD1 Scenarios'!BO41 -> 2115.891292 | AQ39: ='UD1 Scenarios'!BP41 -> 2012.211292 | AR39: ='UD1 Scenarios'!BQ41 -> 1790.008292 | AS39: 640 | AT39: 105 | AU39: 21 | AV39: 153.3 | AW39: 68.7 | AX39: 240 | AY39: 0 | AZ39: 0 | BA39: 1225.3 | BB39: 1455.3
A40: ='UD1 Scenarios'!A42 -> 2050 | B40: ='UD1 Scenarios'!B42 -> 520 | C40: ='UD1 Scenarios'!C42 -> 105 | D40: ='UD1 Scenarios'!D42 -> 21 | E40: ='UD1 Scenarios'!E42 -> 30.3 | F40: ='UD1 Scenarios'!F42 -> 2.7 | G40: ='UD1 Scenarios'!G42 -> 0 | H40: ='UD1 Scenarios'!H42 -> 0 | I40: ='UD1 Scenarios'!I42 -> 0 | J40: ='UD1 Scenarios'!J42 -> 676.3 | K40: ='UD1 Scenarios'!L42 -> 120 | L40: ='UD1 Scenarios'!M42 -> 0 | M40: ='UD1 Scenarios'!N42 -> 0 | N40: ='UD1 Scenarios'!O42 -> 123 | O40: ='UD1 Scenarios'!P42 -> 66 | P40: ='UD1 Scenarios'!Q42 -> 240 | Q40: ='UD1 Scenarios'!R42 -> 0 | R40: ='UD1 Scenarios'!S42 -> 0 | S40: ='UD1 Scenarios'!T42 -> 549 | T40: ='UD1 Scenarios'!U42 -> 819 | U40: ='UD1 Scenarios'!W42 -> 5454.12 | V40: ='UD1 Scenarios'!AB42 -> 2450 | W40: ='UD1 Scenarios'!AI42 -> 4775.12 | X40: ='UD1 Scenarios'!AU42 -> 2325.12 | Y40: ='UD1 Scenarios'!AV42 -> 2259.12 | Z40: ='UD1 Scenarios'!AW42 -> 2136.12 | AA40: ='UD1 Scenarios'!AX42 -> 1896.12 | AB40: ='UD1 Scenarios'!AY42 -> 1776.12 | AC40: ='UD1 Scenarios'!AZ42 -> 1506.12 | AD40: ='UD1 Scenarios'!BB42 -> 4613.243432 | AE40: ='UD1 Scenarios'!BC42 -> 2116.8 | AF40: ='UD1 Scenarios'!BD42 -> 63.7626 | AG40: ='UD1 Scenarios'!BE42 -> 118.8303 | AH40: ='UD1 Scenarios'!BF42 -> 207.36 | AI40: ='UD1 Scenarios'!BG42 -> 103.68 | AJ40: ='UD1 Scenarios'!BH42 -> 260.847 | AK40: ='UD1 Scenarios'!BI42 -> 493.6329 | AL40: ='UD1 Scenarios'!BK42 -> 4613.243432 | AM40: ='UD1 Scenarios'!BL42 -> 2496.443432 | AN40: ='UD1 Scenarios'!BM42 -> 2432.680832 | AO40: ='UD1 Scenarios'!BN42 -> 2313.850532 | AP40: ='UD1 Scenarios'!BO42 -> 2106.490532 | AQ40: ='UD1 Scenarios'!BP42 -> 2002.810532 | AR40: ='UD1 Scenarios'!BQ42 -> 1741.963532 | AS40: 640 | AT40: 105 | AU40: 21 | AV40: 153.3 | AW40: 68.7 | AX40: 240 | AY40: 0 | AZ40: 0 | BA40: 1225.3 | BB40: 1495.3

Sheet All UD2 Plots (hidden)
A1: YEAR | B1: Existing RE: Biomass (GWh) | C1: Existing RE: Hydro (GWh) | D1: Existing RE: LFG (GWh) | E1: Existing RE: Solar PV (GWh) | F1: Existing RE: Wind (GWh) | G1: Existing RE: WTE (GWh) | H1: Existing RE: Ocean (GWh) | I1: Existing RE: Other Sources (GWh) | J1: Existing RE: TOTAL (GWh) | K1: Projected RE: Biomass (GWh) | L1: Projected RE: Hydro (GWh) | M1: Projected RE: LFG (GWh) | N1: Projected RE: Solar PV (GWh) | O1: Projected RE: Wind (GWh) | P1: Projected RE: WTE (GWh) | Q1: Projected RE: Ocean (GWh) | R1: Projected RE: Other Sources (GWh) | S1: Projected RE: TOTAL 2030 (GWh) | T1: Projected RE: TOTAL 2030+ (GWh) | U1: Demand-Side Modelled (GWh) | V1: EE Estimated (GWh) | W1: Baseline (BAU - Existing RE) (GWh) | X1: Energy Consumed thru' EE (GWh) | Y1: Energy Consumed thru' EE and Wind (GWh) | Z1: Energy Consumed thru' EE, Wind and Solar (GWh) | AA1: Energy Consumed thru' EE, Wind, Solar, and WTE (GWh) | AB1: Energy Consumed thru' EE, Wind, Solar, WTE and Biomass (GWh) | AC1: Energy Consumed thru' EE, Wind, Solar, WTE, Biomass and RE2030+ (GWh) | AD1: GHG Emissions (Gg CO2e) | AE1: GHG Emission Reduction with EE (Gg CO2e) | AF1: GHG Emission Reduction and Wind (Gg CO2e) | AG1: GHG Emission Reduction, Wind and Solar (Gg CO2e) | AH1: GHG Emission Reduction, Wind, Solar and WTE (Gg CO2e) | AI1: GHG Emission Reduction, Wind, Solar, WTE, and Biomass (Gg CO2e) | AJ1: GHG Emission Reduction, Wind, Solar, WTE, Biomass, and added RE 2030+ (Gg CO2e) | AK1: GHG Emission Reduction - Supply side RE 2030 (Gg CO2e) | AL1: GHG Emissions (Gg CO2e) | AM1: GHG Emissions with EE (Gg CO2e) | AN1: GHG Emissions with EE and Wind (Gg CO2e) | AO1: GHG Emissions with EE, Wind and Solar (Gg CO2e) | AP1: GHG Emissions with EE, Wind, Solar and WTE (Gg CO2e) | AQ1: GHG Emissions with EE, Wind, Solar, WTE, and Biomass (Gg CO2e) | AR1: GHG Emissions with EE, Wind, Solar, WTE, Biomass, and added RE 2030+ (Gg CO2e) | AS1: Combined Existing and Projected Biomass (GWh) | AT1: Combined Existing and Projected Hydro (GWh) | AU1: Combined Existing and Projected LFG (GWh) | AV1: Combined Existing and Projected Solar PV (GWh) | AW1: Combined Existing and Projected Wind (GWh) | AX1: Combined Existing and Projected WTE (GWh) | AY1: Combined Existing and Projected Ocean (GWh) | AZ1: Combined Existing and Projected Other Sources (GWh) | BA1: Combined Existing and Projected RE (GWh) | BB1: Combined Existing and Projected RE2030+ (GWh)
A2: UD2 | B2: DATA | C2: DATA | D2: DATA | E2: DATA | F2: DATA | G2: DATA | H2: DATA | I2: DATA | J2: DATA | K2: DATA | L2: DATA | M2: DATA | N2: DATA | O2: DATA | P2: DATA | Q2: DATA | R2: DATA | S2: DATA | T2: DATA | U2: BAU | V2: BAU | W2: BAU | X2: SC1 | Y2: SC2 | Z2: SC3 | AA2: SC4 | AB2: SC5 | AC2: SC6 | AD2: BAU | AE2: SC1 | AF2: SC2 | AG2: SC3 | AH2: SC4 | AI2: SC5 | AJ2: SC6 | AK2: OTHER | AL2: BAU | AM2: SC1 | AN2: SC2 | AO2: SC3 | AP2: SC4 | AQ2: SC5 | AR2: SC6 | AS2: DATA+ | AT2: DATA+ | AU2: DATA+ | AV2: DATA+ | AW2: DATA+ | AX2: DATA+ | AY2: DATA+ | AZ2: DATA+ | BA2: DATA+ | BB2: DATA+
B3: 1 | C3: 2 | D3: 3 | E3: 4 | F3: 5 | G3: 6 | H3: 7 | I3: 8 | J3: 9 | K3: 10 | L3: 11 | M3: 12 | N3: 13 | O3: 14 | P3: 15 | Q3: 16 | R3: 17 | S3: 18 | T3: 19 | U3: 20 | V3: 21 | W3: 22 | X3: 23 | Y3: 24 | Z3: 25 | AA3: 26 | AB3: 27 | AC3: 28 | AD3: 29 | AE3: 30 | AF3: 31 | AG3: 32 | AH3: 33 | AI3: 34 | AJ3: 35 | AK3: 36 | AL3: 37 | AM3: 38 | AN3: 39 | AO3: 40 | AP3: 41 | AQ3: 42 | AR3: 43 | AS3: 44 | AT3: 45 | AU3: 46 | AV3: 47 | AW3: 48 | AX3: 49 | AY3: 50 | AZ3: 51 | BA3: 52 | BB3: 53
A4: ='UD2 Scenarios'!A6 -> 2014 | B4: ='UD2 Scenarios'!B6 -> 520 | C4: ='UD2 Scenarios'!C6 -> 105 | D4: ='UD2 Scenarios'!D6 -> 21 | E4: ='UD2 Scenarios'!E6 -> 26 | F4: ='UD2 Scenarios'!F6 -> 0 | G4: ='UD2 Scenarios'!G6 -> 0 | H4: ='UD2 Scenarios'!H6 -> 0 | I4: ='UD2 Scenarios'!I6 -> 0 | J4: ='UD2 Scenarios'!J6 -> 672 | K4: ='UD2 Scenarios'!L6 -> 0 | L4: ='UD2 Scenarios'!M6 -> 0 | M4: ='UD2 Scenarios'!N6 -> 0 | N4: ='UD2 Scenarios'!O6 -> 0 | O4: ='UD2 Scenarios'!P6 -> 0 | P4: ='UD2 Scenarios'!Q6 -> 0 | Q4: ='UD2 Scenarios'!R6 -> 0 | R4: ='UD2 Scenarios'!S6 -> 0 | S4: ='UD2 Scenarios'!T6 -> 0 | T4: ='UD2 Scenarios'!U6 -> 0 | U4: ='UD2 Scenarios'!W6 -> 3019 | V4: ='UD2 Scenarios'!AB6 -> 0 | W4: ='UD2 Scenarios'!AI6 -> 2347 | X4: ='UD2 Scenarios'!AU6 -> 2347 | Y4: ='UD2 Scenarios'!AV6 -> 2347 | Z4: ='UD2 Scenarios'!AW6 -> 2347 | AA4: ='UD2 Scenarios'!AX6 -> 2347 | AB4: ='UD2 Scenarios'!AY6 -> 2347 | AC4: ='UD2 Scenarios'!AZ6 -> 2347 | AD4: ='UD2 Scenarios'!BB6 -> 2267.4367 | AE4: ='UD2 Scenarios'!BC6 -> 0 | AF4: ='UD2 Scenarios'!BD6 -> 0 | AG4: ='UD2 Scenarios'!BE6 -> 0 | AH4: ='UD2 Scenarios'!BF6 -> 0 | AI4: ='UD2 Scenarios'!BG6 -> 0 | AJ4: ='UD2 Scenarios'!BH6 -> 0 | AK4: ='UD2 Scenarios'!BI6 -> 0 | AL4: ='UD2 Scenarios'!BK6 -> 2267.4367 | AM4: ='UD2 Scenarios'!BL6 -> 2267.4367 | AN4: ='UD2 Scenarios'!BM6 -> 2267.4367 | AO4: ='UD2 Scenarios'!BN6 -> 2267.4367 | AP4: ='UD2 Scenarios'!BO6 -> 2267.4367 | AQ4: ='UD2 Scenarios'!BP6 -> 2267.4367 | AR4: ='UD2 Scenarios'!BQ6 -> 2267.4367 | AS4: =B4+K4 -> 520 | AT4: =C4+L4 -> 105 | AU4: 21 | AV4: 26 | AW4: 0 | AX4: 0 | AY4: 0 | AZ4: 0 | BA4: 672 | BB4: =J4+T4 -> 672
A5: ='UD2 Scenarios'!A7 -> 2015 | B5: ='UD2 Scenarios'!B7 -> 520 | C5: ='UD2 Scenarios'!C7 -> 105 | D5: ='UD2 Scenarios'!D7 -> 21 | E5: ='UD2 Scenarios'!E7 -> 26 | F5: ='UD2 Scenarios'!F7 -> 0 | G5: ='UD2 Scenarios'!G7 -> 0 | H5: ='UD2 Scenarios'!H7 -> 0 | I5: ='UD2 Scenarios'!I7 -> 0 | J5: ='UD2 Scenarios'!J7 -> 672 | K5: ='UD2 Scenarios'!L7 -> 0 | L5: ='UD2 Scenarios'!M7 -> 0 | M5: ='UD2 Scenarios'!N7 -> 0 | N5: ='UD2 Scenarios'!O7 -> 0 | O5: ='UD2 Scenarios'!P7 -> 0 | P5: ='UD2 Scenarios'!Q7 -> 0 | Q5: ='UD2 Scenarios'!R7 -> 0 | R5: ='UD2 Scenarios'!S7 -> 0 | S5: ='UD2 Scenarios'!T7 -> 0 | T5: ='UD2 Scenarios'!U7 -> 0 | U5: ='UD2 Scenarios'!W7 -> 3138 | V5: ='UD2 Scenarios'!AB7 -> 33 | W5: ='UD2 Scenarios'!AI7 -> 2466 | X5: ='UD2 Scenarios'!AU7 -> 2433 | Y5: ='UD2 Scenarios'!AV7 -> 2433 | Z5: ='UD2 Scenarios'!AW7 -> 2433 | AA5: ='UD2 Scenarios'!AX7 -> 2433 | AB5: ='UD2 Scenarios'!AY7 -> 2433 | AC5: ='UD2 Scenarios'!AZ7 -> 2433 | AD5: ='UD2 Scenarios'!BB7 -> 2382.4026 | AE5: ='UD2 Scenarios'!BC7 -> 30.195 | AF5: ='UD2 Scenarios'!BD7 -> 0 | AG5: ='UD2 Scenarios'!BE7 -> 0 | AH5: ='UD2 Scenarios'!BF7 -> 0 | AI5: ='UD2 Scenarios'!BG7 -> 0 | AJ5: ='UD2 Scenarios'!BH7 -> 0 | AK5: ='UD2 Scenarios'!BI7 -> 0 | AL5: ='UD2 Scenarios'!BK7 -> 2382.4026 | AM5: ='UD2 Scenarios'!BL7 -> 2352.2076 | AN5: ='UD2 Scenarios'!BM7 -> 2352.2076 | AO5: ='UD2 Scenarios'!BN7 -> 2352.2076 | AP5: ='UD2 Scenarios'!BO7 -> 2352.2076 | AQ5: ='UD2 Scenarios'!BP7 -> 2352.2076 | AR5: ='UD2 Scenarios'!BQ7 -> 2352.2076 | AS5: =B5+K5 -> 520 | AT5: =C5+L5 -> 105 | AU5: =D5+M5 -> 21 | AV5: =E5+N5 -> 26 | AW5: =F5+O5 -> 0 | AX5: =G5+P5 -> 0 | AY5: =H5+Q5 -> 0 | AZ5: =I5+R5 -> 0 | BA5: =J5+S5 -> 672 | BB5: =J5+T5 -> 672
A6: ='UD2 Scenarios'!A8 -> 2016 | B6: ='UD2 Scenarios'!B8 -> 520 | C6: ='UD2 Scenarios'!C8 -> 105 | D6: ='UD2 Scenarios'!D8 -> 21 | E6: ='UD2 Scenarios'!E8 -> 26 | F6: ='UD2 Scenarios'!F8 -> 0 | G6: ='UD2 Scenarios'!G8 -> 0 | H6: ='UD2 Scenarios'!H8 -> 0 | I6: ='UD2 Scenarios'!I8 -> 0 | J6: ='UD2 Scenarios'!J8 -> 672 | K6: ='UD2 Scenarios'!L8 -> 0 | L6: ='UD2 Scenarios'!M8 -> 0 | M6: ='UD2 Scenarios'!N8 -> 0 | N6: ='UD2 Scenarios'!O8 -> 0 | O6: ='UD2 Scenarios'!P8 -> 14 | P6: ='UD2 Scenarios'!Q8 -> 0 | Q6: ='UD2 Scenarios'!R8 -> 0 | R6: ='UD2 Scenarios'!S8 -> 0 | S6: ='UD2 Scenarios'!T8 -> 14 | T6: ='UD2 Scenarios'!U8 -> 14 | U6: ='UD2 Scenarios'!W8 -> 3276 | V6: ='UD2 Scenarios'!AB8 -> 73.6 | W6: ='UD2 Scenarios'!AI8 -> 2604 | X6: ='UD2 Scenarios'!AU8 -> 2530.4 | Y6: ='UD2 Scenarios'!AV8 -> 2516.4 | Z6: ='UD2 Scenarios'!AW8 -> 2516.4 | AA6: ='UD2 Scenarios'!AX8 -> 2516.4 | AB6: ='UD2 Scenarios'!AY8 -> 2516.4 | AC6: ='UD2 Scenarios'!AZ8 -> 2516.4 | AD6: ='UD2 Scenarios'!BB8 -> 2515.7244 | AE6: ='UD2 Scenarios'!BC8 -> 67.344 | AF6: ='UD2 Scenarios'!BD8 -> 13.5254 | AG6: ='UD2 Scenarios'!BE8 -> 0 | AH6: ='UD2 Scenarios'!BF8 -> 0 | AI6: ='UD2 Scenarios'!BG8 -> 0 | AJ6: ='UD2 Scenarios'!BH8 -> 0 | AK6: ='UD2 Scenarios'!BI8 -> 0 | AL6: ='UD2 Scenarios'!BK8 -> 2515.7244 | AM6: ='UD2 Scenarios'!BL8 -> 2448.3804 | AN6: ='UD2 Scenarios'!BM8 -> 2434.855 | AO6: ='UD2 Scenarios'!BN8 -> 2434.855 | AP6: ='UD2 Scenarios'!BO8 -> 2434.855 | AQ6: ='UD2 Scenarios'!BP8 -> 2434.855 | AR6: ='UD2 Scenarios'!BQ8 -> 2434.855 | AS6: 520 | AT6: 105 | AU6: 21 | AV6: 26 | AW6: 14 | AX6: 0 | AY6: 0 | AZ6: 0 | BA6: 686 | BB6: 686
A7: ='UD2 Scenarios'!A9 -> 2017 | B7: ='UD2 Scenarios'!B9 -> 520 | C7: ='UD2 Scenarios'!C9 -> 105 | D7: ='UD2 Scenarios'!D9 -> 21 | E7: ='UD2 Scenarios'!E9 -> 26 | F7: ='UD2 Scenarios'!F9 -> 0 | G7: ='UD2 Scenarios'!G9 -> 0 | H7: ='UD2 Scenarios'!H9 -> 0 | I7: ='UD2 Scenarios'!I9 -> 0 | J7: ='UD2 Scenarios'!J9 -> 672 | K7: ='UD2 Scenarios'!L9 -> 0 | L7: ='UD2 Scenarios'!M9 -> 0 | M7: ='UD2 Scenarios'!N9 -> 0 | N7: ='UD2 Scenarios'!O9 -> 16 | O7: ='UD2 Scenarios'!P9 -> 40 | P7: ='UD2 Scenarios'!Q9 -> 0 | Q7: ='UD2 Scenarios'!R9 -> 0 | R7: ='UD2 Scenarios'!S9 -> 0 | S7: ='UD2 Scenarios'!T9 -> 56 | T7: ='UD2 Scenarios'!U9 -> 56 | U7: ='UD2 Scenarios'!W9 -> 3417 | V7: ='UD2 Scenarios'!AB9 -> 114.2 | W7: ='UD2 Scenarios'!AI9 -> 2745 | X7: ='UD2 Scenarios'!AU9 -> 2630.8 | Y7: ='UD2 Scenarios'!AV9 -> 2590.8 | Z7: ='UD2 Scenarios'!AW9 -> 2574.8 | AA7: ='UD2 Scenarios'!AX9 -> 2574.8 | AB7: ='UD2 Scenarios'!AY9 -> 2574.8 | AC7: ='UD2 Scenarios'!AZ9 -> 2574.8 | AD7: ='UD2 Scenarios'!BB9 -> 2651.9445 | AE7: ='UD2 Scenarios'!BC9 -> 104.493 | AF7: ='UD2 Scenarios'!BD9 -> 38.644 | AG7: ='UD2 Scenarios'!BE9 -> 15.4576 | AH7: ='UD2 Scenarios'!BF9 -> 0 | AI7: ='UD2 Scenarios'!BG9 -> 0 | AJ7: ='UD2 Scenarios'!BH9 -> 0 | AK7: ='UD2 Scenarios'!BI9 -> 0 | AL7: ='UD2 Scenarios'!BK9 -> 2651.9445 | AM7: ='UD2 Scenarios'!BL9 -> 2547.4515 | AN7: ='UD2 Scenarios'!BM9 -> 2508.8075 | AO7: ='UD2 Scenarios'!BN9 -> 2493.3499 | AP7: ='UD2 Scenarios'!BO9 -> 2493.3499 | AQ7: ='UD2 Scenarios'!BP9 -> 2493.3499 | AR7: ='UD2 Scenarios'!BQ9 -> 2493.3499 | AS7: 520 | AT7: 105 | AU7: 21 | AV7: 42 | AW7: 40 | AX7: 0 | AY7: 0 | AZ7: 0 | BA7: 728 | BB7: 728
A8: ='UD2 Scenarios'!A10 -> 2018 | B8: ='UD2 Scenarios'!B10 -> 520 | C8: ='UD2 Scenarios'!C10 -> 105 | D8: ='UD2 Scenarios'!D10 -> 21 | E8: ='UD2 Scenarios'!E10 -> 26 | F8: ='UD2 Scenarios'!F10 -> 0 | G8: ='UD2 Scenarios'!G10 -> 0 | H8: ='UD2 Scenarios'!H10 -> 0 | I8: ='UD2 Scenarios'!I10 -> 0 | J8: ='UD2 Scenarios'!J10 -> 672 | K8: ='UD2 Scenarios'!L10 -> 0 | L8: ='UD2 Scenarios'!M10 -> 0 | M8: ='UD2 Scenarios'!N10 -> 0 | N8: ='UD2 Scenarios'!O10 -> 41 | O8: ='UD2 Scenarios'!P10 -> 66 | P8: ='UD2 Scenarios'!Q10 -> 0 | Q8: ='UD2 Scenarios'!R10 -> 0 | R8: ='UD2 Scenarios'!S10 -> 0 | S8: ='UD2 Scenarios'!T10 -> 107 | T8: ='UD2 Scenarios'!U10 -> 107 | U8: ='UD2 Scenarios'!W10 -> 3540 | V8: ='UD2 Scenarios'!AB10 -> 154.8 | W8: ='UD2 Scenarios'!AI10 -> 2868 | X8: ='UD2 Scenarios'!AU10 -> 2713.2 | Y8: ='UD2 Scenarios'!AV10 -> 2647.2 | Z8: ='UD2 Scenarios'!AW10 -> 2606.2 | AA8: ='UD2 Scenarios'!AX10 -> 2606.2 | AB8: ='UD2 Scenarios'!AY10 -> 2606.2 | AC8: ='UD2 Scenarios'!AZ10 -> 2606.2 | AD8: ='UD2 Scenarios'!BB10 -> 2770.7748 | AE8: ='UD2 Scenarios'!BC10 -> 141.642 | AF8: ='UD2 Scenarios'!BD10 -> 63.7626 | AG8: ='UD2 Scenarios'!BE10 -> 39.6101 | AH8: ='UD2 Scenarios'!BF10 -> 0 | AI8: ='UD2 Scenarios'!BG10 -> 0 | AJ8: ='UD2 Scenarios'!BH10 -> 0 | AK8: ='UD2 Scenarios'!BI10 -> 0 | AL8: ='UD2 Scenarios'!BK10 -> 2770.7748 | AM8: ='UD2 Scenarios'!BL10 -> 2629.1328 | AN8: ='UD2 Scenarios'!BM10 -> 2565.3702 | AO8: ='UD2 Scenarios'!BN10 -> 2525.7601 | AP8: ='UD2 Scenarios'!BO10 -> 2525.7601 | AQ8: ='UD2 Scenarios'!BP10 -> 2525.7601 | AR8: ='UD2 Scenarios'!BQ10 -> 2525.7601 | AS8: 520 | AT8: 105 | AU8: 21 | AV8: 67 | AW8: 66 | AX8: 0 | AY8: 0 | AZ8: 0 | BA8: 779 | BB8: 779
A9: ='UD2 Scenarios'!A11 -> 2019 | B9: ='UD2 Scenarios'!B11 -> 520 | C9: ='UD2 Scenarios'!C11 -> 105 | D9: ='UD2 Scenarios'!D11 -> 21 | E9: ='UD2 Scenarios'!E11 -> 26 | F9: ='UD2 Scenarios'!F11 -> 0 | G9: ='UD2 Scenarios'!G11 -> 0 | H9: ='UD2 Scenarios'!H11 -> 0 | I9: ='UD2 Scenarios'!I11 -> 0 | J9: ='UD2 Scenarios'!J11 -> 672 | K9: ='UD2 Scenarios'!L11 -> 0 | L9: ='UD2 Scenarios'!M11 -> 0 | M9: ='UD2 Scenarios'!N11 -> 0 | N9: ='UD2 Scenarios'!O11 -> 66 | O9: ='UD2 Scenarios'!P11 -> 66 | P9: ='UD2 Scenarios'!Q11 -> 240 | Q9: ='UD2 Scenarios'!R11 -> 0 | R9: ='UD2 Scenarios'!S11 -> 0 | S9: ='UD2 Scenarios'!T11 -> 372 | T9: ='UD2 Scenarios'!U11 -> 372 | U9: ='UD2 Scenarios'!W11 -> 3660 | V9: ='UD2 Scenarios'!AB11 -> 195.4 | W9: ='UD2 Scenarios'!AI11 -> 2988 | X9: ='UD2 Scenarios'!AU11 -> 2792.6 | Y9: ='UD2 Scenarios'!AV11 -> 2726.6 | Z9: ='UD2 Scenarios'!AW11 -> 2660.6 | AA9: ='UD2 Scenarios'!AX11 -> 2420.6 | AB9: ='UD2 Scenarios'!AY11 -> 2420.6 | AC9: ='UD2 Scenarios'!AZ11 -> 2420.6 | AD9: ='UD2 Scenarios'!BB11 -> 2886.7068 | AE9: ='UD2 Scenarios'!BC11 -> 178.791 | AF9: ='UD2 Scenarios'!BD11 -> 63.7626 | AG9: ='UD2 Scenarios'!BE11 -> 63.7626 | AH9: ='UD2 Scenarios'!BF11 -> 219.6 | AI9: ='UD2 Scenarios'!BG11 -> 0 | AJ9: ='UD2 Scenarios'!BH11 -> 0 | AK9: ='UD2 Scenarios'!BI11 -> 0 | AL9: ='UD2 Scenarios'!BK11 -> 2886.7068 | AM9: ='UD2 Scenarios'!BL11 -> 2707.9158 | AN9: ='UD2 Scenarios'!BM11 -> 2644.1532 | AO9: ='UD2 Scenarios'!BN11 -> 2580.3906 | AP9: ='UD2 Scenarios'!BO11 -> 2360.7906 | AQ9: ='UD2 Scenarios'!BP11 -> 2360.7906 | AR9: ='UD2 Scenarios'!BQ11 -> 2360.7906 | AS9: 520 | AT9: 105 | AU9: 21 | AV9: 92 | AW9: 66 | AX9: 240 | AY9: 0 | AZ9: 0 | BA9: 1044 | BB9: 1044
A10: ='UD2 Scenarios'!A12 -> 2020 | B10: ='UD2 Scenarios'!B12 -> 520 | C10: ='UD2 Scenarios'!C12 -> 105 | D10: ='UD2 Scenarios'!D12 -> 21 | E10: ='UD2 Scenarios'!E12 -> 26 | F10: ='UD2 Scenarios'!F12 -> 0 | G10: ='UD2 Scenarios'!G12 -> 0 | H10: ='UD2 Scenarios'!H12 -> 0 | I10: ='UD2 Scenarios'!I12 -> 0 | J10: ='UD2 Scenarios'!J12 -> 672 | K10: ='UD2 Scenarios'!L12 -> 0 | L10: ='UD2 Scenarios'!M12 -> 0 | M10: ='UD2 Scenarios'!N12 -> 0 | N10: ='UD2 Scenarios'!O12 -> 123 | O10: ='UD2 Scenarios'!P12 -> 66 | P10: ='UD2 Scenarios'!Q12 -> 240 | Q10: ='UD2 Scenarios'!R12 -> 0 | R10: ='UD2 Scenarios'!S12 -> 0 | S10: ='UD2 Scenarios'!T12 -> 429 | T10: ='UD2 Scenarios'!U12 -> 429 | U10: ='UD2 Scenarios'!W12 -> 3781 | V10: ='UD2 Scenarios'!AB12 -> 236 | W10: ='UD2 Scenarios'!AI12 -> 3109 | X10: ='UD2 Scenarios'!AU12 -> 2873 | Y10: ='UD2 Scenarios'!AV12 -> 2807 | Z10: ='UD2 Scenarios'!AW12 -> 2684 | AA10: ='UD2 Scenarios'!AX12 -> 2444 | AB10: ='UD2 Scenarios'!AY12 -> 2444 | AC10: ='UD2 Scenarios'!AZ12 -> 2444 | AD10: ='UD2 Scenarios'!BB12 -> 3003.6049 | AE10: ='UD2 Scenarios'!BC12 -> 215.94 | AF10: ='UD2 Scenarios'!BD12 -> 63.7626 | AG10: ='UD2 Scenarios'!BE12 -> 118.8303 | AH10: ='UD2 Scenarios'!BF12 -> 219.6 | AI10: ='UD2 Scenarios'!BG12 -> 0 | AJ10: ='UD2 Scenarios'!BH12 -> 0 | AK10: ='UD2 Scenarios'!BI12 -> 402.1929 | AL10: ='UD2 Scenarios'!BK12 -> 3003.6049 | AM10: ='UD2 Scenarios'!BL12 -> 2787.6649 | AN10: ='UD2 Scenarios'!BM12 -> 2723.9023 | AO10: ='UD2 Scenarios'!BN12 -> 2605.072 | AP10: ='UD2 Scenarios'!BO12 -> 2385.472 | AQ10: ='UD2 Scenarios'!BP12 -> 2385.472 | AR10: ='UD2 Scenarios'!BQ12 -> 2385.472 | AS10: 520 | AT10: 105 | AU10: 21 | AV10: 149 | AW10: 66 | AX10: 240 | AY10: 0 | AZ10: 0 | BA10: 1101 | BB10: 1101
A11: ='UD2 Scenarios'!A13 -> 2021 | B11: ='UD2 Scenarios'!B13 -> 520 | C11: ='UD2 Scenarios'!C13 -> 105 | D11: ='UD2 Scenarios'!D13 -> 21 | E11: ='UD2 Scenarios'!E13 -> 26 | F11: ='UD2 Scenarios'!F13 -> 0 | G11: ='UD2 Scenarios'!G13 -> 0 | H11: ='UD2 Scenarios'!H13 -> 0 | I11: ='UD2 Scenarios'!I13 -> 0 | J11: ='UD2 Scenarios'!J13 -> 672 | K11: ='UD2 Scenarios'!L13 -> 120 | L11: ='UD2 Scenarios'!M13 -> 0 | M11: ='UD2 Scenarios'!N13 -> 0 | N11: ='UD2 Scenarios'!O13 -> 123 | O11: ='UD2 Scenarios'!P13 -> 66 | P11: ='UD2 Scenarios'!Q13 -> 240 | Q11: ='UD2 Scenarios'!R13 -> 0 | R11: ='UD2 Scenarios'!S13 -> 0 | S11: ='UD2 Scenarios'!T13 -> 549 | T11: ='UD2 Scenarios'!U13 -> 549 | U11: ='UD2 Scenarios'!W13 -> 3874 | V11: ='UD2 Scenarios'!AB13 -> 289.2 | W11: ='UD2 Scenarios'!AI13 -> 3202 | X11: ='UD2 Scenarios'!AU13 -> 2912.8 | Y11: ='UD2 Scenarios'!AV13 -> 2846.8 | Z11: ='UD2 Scenarios'!AW13 -> 2723.8 | AA11: ='UD2 Scenarios'!AX13 -> 2483.8 | AB11: ='UD2 Scenarios'!AY13 -> 2363.8 | AC11: ='UD2 Scenarios'!AZ13 -> 2363.8 | AD11: ='UD2 Scenarios'!BB13 -> 3093.4522 | AE11: ='UD2 Scenarios'!BC13 -> 264.618 | AF11: ='UD2 Scenarios'!BD13 -> 63.7626 | AG11: ='UD2 Scenarios'!BE13 -> 118.8303 | AH11: ='UD2 Scenarios'!BF13 -> 219.6 | AI11: ='UD2 Scenarios'!BG13 -> 103.68 | AJ11: ='UD2 Scenarios'!BH13 -> 0 | AK11: ='UD2 Scenarios'!BI13 -> 505.8729 | AL11: ='UD2 Scenarios'!BK13 -> 3093.4522 | AM11: ='UD2 Scenarios'!BL13 -> 2828.8342 | AN11: ='UD2 Scenarios'!BM13 -> 2765.0716 | AO11: ='UD2 Scenarios'!BN13 -> 2646.2413 | AP11: ='UD2 Scenarios'!BO13 -> 2426.6413 | AQ11: ='UD2 Scenarios'!BP13 -> 2322.9613 | AR11: ='UD2 Scenarios'!BQ13 -> 2322.9613 | AS11: 640 | AT11: 105 | AU11: 21 | AV11: 149 | AW11: 66 | AX11: 240 | AY11: 0 | AZ11: 0 | BA11: 1221 | BB11: 1221
A12: ='UD2 Scenarios'!A14 -> 2022 | B12: ='UD2 Scenarios'!B14 -> 520 | C12: ='UD2 Scenarios'!C14 -> 105 | D12: ='UD2 Scenarios'!D14 -> 21 | E12: ='UD2 Scenarios'!E14 -> 26 | F12: ='UD2 Scenarios'!F14 -> 0 | G12: ='UD2 Scenarios'!G14 -> 0 | H12: ='UD2 Scenarios'!H14 -> 0 | I12: ='UD2 Scenarios'!I14 -> 0 | J12: ='UD2 Scenarios'!J14 -> 672 | K12: ='UD2 Scenarios'!L14 -> 120 | L12: ='UD2 Scenarios'!M14 -> 0 | M12: ='UD2 Scenarios'!N14 -> 0 | N12: ='UD2 Scenarios'!O14 -> 123 | O12: ='UD2 Scenarios'!P14 -> 66 | P12: ='UD2 Scenarios'!Q14 -> 240 | Q12: ='UD2 Scenarios'!R14 -> 0 | R12: ='UD2 Scenarios'!S14 -> 0 | S12: ='UD2 Scenarios'!T14 -> 549 | T12: ='UD2 Scenarios'!U14 -> 549 | U12: ='UD2 Scenarios'!W14 -> 3967 | V12: ='UD2 Scenarios'!AB14 -> 342.4 | W12: ='UD2 Scenarios'!AI14 -> 3295 | X12: ='UD2 Scenarios'!AU14 -> 2952.6 | Y12: ='UD2 Scenarios'!AV14 -> 2886.6 | Z12: ='UD2 Scenarios'!AW14 -> 2763.6 | AA12: ='UD2 Scenarios'!AX14 -> 2523.6 | AB12: ='UD2 Scenarios'!AY14 -> 2403.6 | AC12: ='UD2 Scenarios'!AZ14 -> 2403.6 | AD12: ='UD2 Scenarios'!BB14 -> 3183.2995 | AE12: ='UD2 Scenarios'!BC14 -> 313.296 | AF12: ='UD2 Scenarios'!BD14 -> 63.7626 | AG12: ='UD2 Scenarios'!BE14 -> 118.8303 | AH12: ='UD2 Scenarios'!BF14 -> 219.6 | AI12: ='UD2 Scenarios'!BG14 -> 103.68 | AJ12: ='UD2 Scenarios'!BH14 -> 0 | AK12: ='UD2 Scenarios'!BI14 -> 505.8729 | AL12: ='UD2 Scenarios'!BK14 -> 3183.2995 | AM12: ='UD2 Scenarios'!BL14 -> 2870.0035 | AN12: ='UD2 Scenarios'!BM14 -> 2806.2409 | AO12: ='UD2 Scenarios'!BN14 -> 2687.4106 | AP12: ='UD2 Scenarios'!BO14 -> 2467.8106 | AQ12: ='UD2 Scenarios'!BP14 -> 2364.1306 | AR12: ='UD2 Scenarios'!BQ14 -> 2364.1306 | AS12: 640 | AT12: 105 | AU12: 21 | AV12: 149 | AW12: 66 | AX12: 240 | AY12: 0 | AZ12: 0 | BA12: 1221 | BB12: 1221
A13: ='UD2 Scenarios'!A15 -> 2023 | B13: ='UD2 Scenarios'!B15 -> 520 | C13: ='UD2 Scenarios'!C15 -> 105 | D13: ='UD2 Scenarios'!D15 -> 21 | E13: ='UD2 Scenarios'!E15 -> 26 | F13: ='UD2 Scenarios'!F15 -> 0 | G13: ='UD2 Scenarios'!G15 -> 0 | H13: ='UD2 Scenarios'!H15 -> 0 | I13: ='UD2 Scenarios'!I15 -> 0 | J13: ='UD2 Scenarios'!J15 -> 672 | K13: ='UD2 Scenarios'!L15 -> 120 | L13: ='UD2 Scenarios'!M15 -> 0 | M13: ='UD2 Scenarios'!N15 -> 0 | N13: ='UD2 Scenarios'!O15 -> 123 | O13: ='UD2 Scenarios'!P15 -> 66 | P13: ='UD2 Scenarios'!Q15 -> 240 | Q13: ='UD2 Scenarios'!R15 -> 0 | R13: ='UD2 Scenarios'!S15 -> 0 | S13: ='UD2 Scenarios'!T15 -> 549 | T13: ='UD2 Scenarios'!U15 -> 549 | U13: ='UD2 Scenarios'!W15 -> 4062 | V13: ='UD2 Scenarios'!AB15 -> 395.6 | W13: ='UD2 Scenarios'!AI15 -> 3390 | X13: ='UD2 Scenarios'!AU15 -> 2994.4 | Y13: ='UD2 Scenarios'!AV15 -> 2928.4 | Z13: ='UD2 Scenarios'!AW15 -> 2805.4 | AA13: ='UD2 Scenarios'!AX15 -> 2565.4 | AB13: ='UD2 Scenarios'!AY15 -> 2445.4 | AC13: ='UD2 Scenarios'!AZ15 -> 2445.4 | AD13: ='UD2 Scenarios'!BB15 -> 3275.079 | AE13: ='UD2 Scenarios'!BC15 -> 361.974 | AF13: ='UD2 Scenarios'!BD15 -> 63.7626 | AG13: ='UD2 Scenarios'!BE15 -> 118.8303 | AH13: ='UD2 Scenarios'!BF15 -> 219.6 | AI13: ='UD2 Scenarios'!BG15 -> 103.68 | AJ13: ='UD2 Scenarios'!BH15 -> 0 | AK13: ='UD2 Scenarios'!BI15 -> 505.8729 | AL13: ='UD2 Scenarios'!BK15 -> 3275.079 | AM13: ='UD2 Scenarios'!BL15 -> 2913.105 | AN13: ='UD2 Scenarios'!BM15 -> 2849.3424 | AO13: ='UD2 Scenarios'!BN15 -> 2730.5121 | AP13: ='UD2 Scenarios'!BO15 -> 2510.9121 | AQ13: ='UD2 Scenarios'!BP15 -> 2407.2321 | AR13: ='UD2 Scenarios'!BQ15 -> 2407.2321 | AS13: 640 | AT13: 105 | AU13: 21 | AV13: 149 | AW13: 66 | AX13: 240 | AY13: 0 | AZ13: 0 | BA13: 1221 | BB13: 1221
A14: ='UD2 Scenarios'!A16 -> 2024 | B14: ='UD2 Scenarios'!B16 -> 520 | C14: ='UD2 Scenarios'!C16 -> 105 | D14: ='UD2 Scenarios'!D16 -> 21 | E14: ='UD2 Scenarios'!E16 -> 26 | F14: ='UD2 Scenarios'!F16 -> 0 | G14: ='UD2 Scenarios'!G16 -> 0 | H14: ='UD2 Scenarios'!H16 -> 0 | I14: ='UD2 Scenarios'!I16 -> 0 | J14: ='UD2 Scenarios'!J16 -> 672 | K14: ='UD2 Scenarios'!L16 -> 120 | L14: ='UD2 Scenarios'!M16 -> 0 | M14: ='UD2 Scenarios'!N16 -> 0 | N14: ='UD2 Scenarios'!O16 -> 123 | O14: ='UD2 Scenarios'!P16 -> 66 | P14: ='UD2 Scenarios'!Q16 -> 240 | Q14: ='UD2 Scenarios'!R16 -> 0 | R14: ='UD2 Scenarios'!S16 -> 0 | S14: ='UD2 Scenarios'!T16 -> 549 | T14: ='UD2 Scenarios'!U16 -> 549 | U14: ='UD2 Scenarios'!W16 -> 4161 | V14: ='UD2 Scenarios'!AB16 -> 448.8 | W14: ='UD2 Scenarios'!AI16 -> 3489 | X14: ='UD2 Scenarios'!AU16 -> 3040.2 | Y14: ='UD2 Scenarios'!AV16 -> 2974.2 | Z14: ='UD2 Scenarios'!AW16 -> 2851.2 | AA14: ='UD2 Scenarios'!AX16 -> 2611.2 | AB14: ='UD2 Scenarios'!AY16 -> 2491.2 | AC14: ='UD2 Scenarios'!AZ16 -> 2491.2 | AD14: ='UD2 Scenarios'!BB16 -> 3370.7229 | AE14: ='UD2 Scenarios'!BC16 -> 410.652 | AF14: ='UD2 Scenarios'!BD16 -> 63.7626 | AG14: ='UD2 Scenarios'!BE16 -> 118.8303 | AH14: ='UD2 Scenarios'!BF16 -> 219.6 | AI14: ='UD2 Scenarios'!BG16 -> 103.68 | AJ14: ='UD2 Scenarios'!BH16 -> 0 | AK14: ='UD2 Scenarios'!BI16 -> 505.8729 | AL14: ='UD2 Scenarios'!BK16 -> 3370.7229 | AM14: ='UD2 Scenarios'!BL16 -> 2960.0709 | AN14: ='UD2 Scenarios'!BM16 -> 2896.3083 | AO14: ='UD2 Scenarios'!BN16 -> 2777.478 | AP14: ='UD2 Scenarios'!BO16 -> 2557.878 | AQ14: ='UD2 Scenarios'!BP16 -> 2454.198 | AR14: ='UD2 Scenarios'!BQ16 -> 2454.198 | AS14: 640 | AT14: 105 | AU14: 21 | AV14: 149 | AW14: 66 | AX14: 240 | AY14: 0 | AZ14: 0 | BA14: 1221 | BB14: 1221
A15: ='UD2 Scenarios'!A17 -> 2025 | B15: ='UD2 Scenarios'!B17 -> 520 | C15: ='UD2 Scenarios'!C17 -> 105 | D15: ='UD2 Scenarios'!D17 -> 21 | E15: ='UD2 Scenarios'!E17 -> 26 | F15: ='UD2 Scenarios'!F17 -> 0 | G15: ='UD2 Scenarios'!G17 -> 0 | H15: ='UD2 Scenarios'!H17 -> 0 | I15: ='UD2 Scenarios'!I17 -> 0 | J15: ='UD2 Scenarios'!J17 -> 672 | K15: ='UD2 Scenarios'!L17 -> 120 | L15: ='UD2 Scenarios'!M17 -> 0 | M15: ='UD2 Scenarios'!N17 -> 0 | N15: ='UD2 Scenarios'!O17 -> 123 | O15: ='UD2 Scenarios'!P17 -> 66 | P15: ='UD2 Scenarios'!Q17 -> 240 | Q15: ='UD2 Scenarios'!R17 -> 0 | R15: ='UD2 Scenarios'!S17 -> 0 | S15: ='UD2 Scenarios'!T17 -> 549 | T15: ='UD2 Scenarios'!U17 -> 549 | U15: ='UD2 Scenarios'!W17 -> 4264 | V15: ='UD2 Scenarios'!AB17 -> 502 | W15: ='UD2 Scenarios'!AI17 -> 3592 | X15: ='UD2 Scenarios'!AU17 -> 3090 | Y15: ='UD2 Scenarios'!AV17 -> 3024 | Z15: ='UD2 Scenarios'!AW17 -> 2901 | AA15: ='UD2 Scenarios'!AX17 -> 2661 | AB15: ='UD2 Scenarios'!AY17 -> 2541 | AC15: ='UD2 Scenarios'!AZ17 -> 2541 | AD15: ='UD2 Scenarios'!BB17 -> 3470.2312 | AE15: ='UD2 Scenarios'!BC17 -> 459.33 | AF15: ='UD2 Scenarios'!BD17 -> 63.7626 | AG15: ='UD2 Scenarios'!BE17 -> 118.8303 | AH15: ='UD2 Scenarios'!BF17 -> 219.6 | AI15: ='UD2 Scenarios'!BG17 -> 103.68 | AJ15: ='UD2 Scenarios'!BH17 -> 0 | AK15: ='UD2 Scenarios'!BI17 -> 505.8729 | AL15: ='UD2 Scenarios'!BK17 -> 3470.2312 | AM15: ='UD2 Scenarios'!BL17 -> 3010.9012 | AN15: ='UD2 Scenarios'!BM17 -> 2947.1386 | AO15: ='UD2 Scenarios'!BN17 -> 2828.3083 | AP15: ='UD2 Scenarios'!BO17 -> 2608.7083 | AQ15: ='UD2 Scenarios'!BP17 -> 2505.0283 | AR15: ='UD2 Scenarios'!BQ17 -> 2505.0283 | AS15: 640 | AT15: 105 | AU15: 21 | AV15: 149 | AW15: 66 | AX15: 240 | AY15: 0 | AZ15: 0 | BA15: 1221 | BB15: 1221
A16: ='UD2 Scenarios'!A18 -> 2026 | B16: ='UD2 Scenarios'!B18 -> 520 | C16: ='UD2 Scenarios'!C18 -> 105 | D16: ='UD2 Scenarios'!D18 -> 21 | E16: ='UD2 Scenarios'!E18 -> 26 | F16: ='UD2 Scenarios'!F18 -> 0 | G16: ='UD2 Scenarios'!G18 -> 0 | H16: ='UD2 Scenarios'!H18 -> 0 | I16: ='UD2 Scenarios'!I18 -> 0 | J16: ='UD2 Scenarios'!J18 -> 672 | K16: ='UD2 Scenarios'!L18 -> 120 | L16: ='UD2 Scenarios'!M18 -> 0 | M16: ='UD2 Scenarios'!N18 -> 0 | N16: ='UD2 Scenarios'!O18 -> 123 | O16: ='UD2 Scenarios'!P18 -> 66 | P16: ='UD2 Scenarios'!Q18 -> 240 | Q16: ='UD2 Scenarios'!R18 -> 0 | R16: ='UD2 Scenarios'!S18 -> 0 | S16: ='UD2 Scenarios'!T18 -> 549 | T16: ='UD2 Scenarios'!U18 -> 549 | U16: ='UD2 Scenarios'!W18 -> 4366 | V16: ='UD2 Scenarios'!AB18 -> 571.6 | W16: ='UD2 Scenarios'!AI18 -> 3694 | X16: ='UD2 Scenarios'!AU18 -> 3122.4 | Y16: ='UD2 Scenarios'!AV18 -> 3056.4 | Z16: ='UD2 Scenarios'!AW18 -> 2933.4 | AA16: ='UD2 Scenarios'!AX18 -> 2693.4 | AB16: ='UD2 Scenarios'!AY18 -> 2573.4 | AC16: ='UD2 Scenarios'!AZ18 -> 2573.4 | AD16: ='UD2 Scenarios'!BB18 -> 3568.7734 | AE16: ='UD2 Scenarios'!BC18 -> 493.8624 | AF16: ='UD2 Scenarios'!BD18 -> 63.7626 | AG16: ='UD2 Scenarios'!BE18 -> 118.8303 | AH16: ='UD2 Scenarios'!BF18 -> 219.6 | AI16: ='UD2 Scenarios'!BG18 -> 103.68 | AJ16: ='UD2 Scenarios'!BH18 -> 0 | AK16: ='UD2 Scenarios'!BI18 -> 505.8729 | AL16: ='UD2 Scenarios'!BK18 -> 3568.7734 | AM16: ='UD2 Scenarios'!BL18 -> 3074.911 | AN16: ='UD2 Scenarios'!BM18 -> 3011.1484 | AO16: ='UD2 Scenarios'!BN18 -> 2892.3181 | AP16: ='UD2 Scenarios'!BO18 -> 2672.7181 | AQ16: ='UD2 Scenarios'!BP18 -> 2569.0381 | AR16: ='UD2 Scenarios'!BQ18 -> 2569.0381 | AS16: 640 | AT16: 105 | AU16: 21 | AV16: 149 | AW16: 66 | AX16: 240 | AY16: 0 | AZ16: 0 | BA16: 1221 | BB16: 1221
A17: ='UD2 Scenarios'!A19 -> 2027 | B17: ='UD2 Scenarios'!B19 -> 520 | C17: ='UD2 Scenarios'!C19 -> 105 | D17: ='UD2 Scenarios'!D19 -> 21 | E17: ='UD2 Scenarios'!E19 -> 26 | F17: ='UD2 Scenarios'!F19 -> 0 | G17: ='UD2 Scenarios'!G19 -> 0 | H17: ='UD2 Scenarios'!H19 -> 0 | I17: ='UD2 Scenarios'!I19 -> 0 | J17: ='UD2 Scenarios'!J19 -> 672 | K17: ='UD2 Scenarios'!L19 -> 120 | L17: ='UD2 Scenarios'!M19 -> 0 | M17: ='UD2 Scenarios'!N19 -> 0 | N17: ='UD2 Scenarios'!O19 -> 123 | O17: ='UD2 Scenarios'!P19 -> 66 | P17: ='UD2 Scenarios'!Q19 -> 240 | Q17: ='UD2 Scenarios'!R19 -> 0 | R17: ='UD2 Scenarios'!S19 -> 0 | S17: ='UD2 Scenarios'!T19 -> 549 | T17: ='UD2 Scenarios'!U19 -> 549 | U17: ='UD2 Scenarios'!W19 -> 4440 | V17: ='UD2 Scenarios'!AB19 -> 641.2 | W17: ='UD2 Scenarios'!AI19 -> 3768 | X17: ='UD2 Scenarios'!AU19 -> 3126.8 | Y17: ='UD2 Scenarios'!AV19 -> 3060.8 | Z17: ='UD2 Scenarios'!AW19 -> 2937.8 | AA17: ='UD2 Scenarios'!AX19 -> 2697.8 | AB17: ='UD2 Scenarios'!AY19 -> 2577.8 | AC17: ='UD2 Scenarios'!AZ19 -> 2577.8 | AD17: ='UD2 Scenarios'!BB19 -> 3640.2648 | AE17: ='UD2 Scenarios'!BC19 -> 553.9968 | AF17: ='UD2 Scenarios'!BD19 -> 63.7626 | AG17: ='UD2 Scenarios'!BE19 -> 118.8303 | AH17: ='UD2 Scenarios'!BF19 -> 219.6 | AI17: ='UD2 Scenarios'!BG19 -> 103.68 | AJ17: ='UD2 Scenarios'!BH19 -> 0 | AK17: ='UD2 Scenarios'!BI19 -> 505.8729 | AL17: ='UD2 Scenarios'!BK19 -> 3640.2648 | AM17: ='UD2 Scenarios'!BL19 -> 3086.268 | AN17: ='UD2 Scenarios'!BM19 -> 3022.5054 | AO17: ='UD2 Scenarios'!BN19 -> 2903.6751 | AP17: ='UD2 Scenarios'!BO19 -> 2684.0751 | AQ17: ='UD2 Scenarios'!BP19 -> 2580.3951 | AR17: ='UD2 Scenarios'!BQ19 -> 2580.3951 | AS17: 640 | AT17: 105 | AU17: 21 | AV17: 149 | AW17: 66 | AX17: 240 | AY17: 0 | AZ17: 0 | BA17: 1221 | BB17: 1221
A18: ='UD2 Scenarios'!A20 -> 2028 | B18: ='UD2 Scenarios'!B20 -> 520 | C18: ='UD2 Scenarios'!C20 -> 105 | D18: ='UD2 Scenarios'!D20 -> 21 | E18: ='UD2 Scenarios'!E20 -> 26 | F18: ='UD2 Scenarios'!F20 -> 0 | G18: ='UD2 Scenarios'!G20 -> 0 | H18: ='UD2 Scenarios'!H20 -> 0 | I18: ='UD2 Scenarios'!I20 -> 0 | J18: ='UD2 Scenarios'!J20 -> 672 | K18: ='UD2 Scenarios'!L20 -> 120 | L18: ='UD2 Scenarios'!M20 -> 0 | M18: ='UD2 Scenarios'!N20 -> 0 | N18: ='UD2 Scenarios'!O20 -> 123 | O18: ='UD2 Scenarios'!P20 -> 66 | P18: ='UD2 Scenarios'!Q20 -> 240 | Q18: ='UD2 Scenarios'!R20 -> 0 | R18: ='UD2 Scenarios'!S20 -> 0 | S18: ='UD2 Scenarios'!T20 -> 549 | T18: ='UD2 Scenarios'!U20 -> 549 | U18: ='UD2 Scenarios'!W20 -> 4509 | V18: ='UD2 Scenarios'!AB20 -> 710.8 | W18: ='UD2 Scenarios'!AI20 -> 3837 | X18: ='UD2 Scenarios'!AU20 -> 3126.2 | Y18: ='UD2 Scenarios'!AV20 -> 3060.2 | Z18: ='UD2 Scenarios'!AW20 -> 2937.2 | AA18: ='UD2 Scenarios'!AX20 -> 2697.2 | AB18: ='UD2 Scenarios'!AY20 -> 2577.2 | AC18: ='UD2 Scenarios'!AZ20 -> 2577.2 | AD18: ='UD2 Scenarios'!BB20 -> 3706.9257 | AE18: ='UD2 Scenarios'!BC20 -> 614.1312 | AF18: ='UD2 Scenarios'!BD20 -> 63.7626 | AG18: ='UD2 Scenarios'!BE20 -> 118.8303 | AH18: ='UD2 Scenarios'!BF20 -> 219.6 | AI18: ='UD2 Scenarios'!BG20 -> 103.68 | AJ18: ='UD2 Scenarios'!BH20 -> 0 | AK18: ='UD2 Scenarios'!BI20 -> 505.8729 | AL18: ='UD2 Scenarios'!BK20 -> 3706.9257 | AM18: ='UD2 Scenarios'!BL20 -> 3092.7945 | AN18: ='UD2 Scenarios'!BM20 -> 3029.0319 | AO18: ='UD2 Scenarios'!BN20 -> 2910.2016 | AP18: ='UD2 Scenarios'!BO20 -> 2690.6016 | AQ18: ='UD2 Scenarios'!BP20 -> 2586.9216 | AR18: ='UD2 Scenarios'!BQ20 -> 2586.9216 | AS18: 640 | AT18: 105 | AU18: 21 | AV18: 149 | AW18: 66 | AX18: 240 | AY18: 0 | AZ18: 0 | BA18: 1221 | BB18: 1221
A19: ='UD2 Scenarios'!A21 -> 2029 | B19: ='UD2 Scenarios'!B21 -> 520 | C19: ='UD2 Scenarios'!C21 -> 105 | D19: ='UD2 Scenarios'!D21 -> 21 | E19: ='UD2 Scenarios'!E21 -> 26 | F19: ='UD2 Scenarios'!F21 -> 0 | G19: ='UD2 Scenarios'!G21 -> 0 | H19: ='UD2 Scenarios'!H21 -> 0 | I19: ='UD2 Scenarios'!I21 -> 0 | J19: ='UD2 Scenarios'!J21 -> 672 | K19: ='UD2 Scenarios'!L21 -> 120 | L19: ='UD2 Scenarios'!M21 -> 0 | M19: ='UD2 Scenarios'!N21 -> 0 | N19: ='UD2 Scenarios'!O21 -> 123 | O19: ='UD2 Scenarios'!P21 -> 66 | P19: ='UD2 Scenarios'!Q21 -> 240 | Q19: ='UD2 Scenarios'!R21 -> 0 | R19: ='UD2 Scenarios'!S21 -> 0 | S19: ='UD2 Scenarios'!T21 -> 549 | T19: ='UD2 Scenarios'!U21 -> 549 | U19: ='UD2 Scenarios'!W21 -> 4577 | V19: ='UD2 Scenarios'!AB21 -> 780.4 | W19: ='UD2 Scenarios'!AI21 -> 3905 | X19: ='UD2 Scenarios'!AU21 -> 3124.6 | Y19: ='UD2 Scenarios'!AV21 -> 3058.6 | Z19: ='UD2 Scenarios'!AW21 -> 2935.6 | AA19: ='UD2 Scenarios'!AX21 -> 2695.6 | AB19: ='UD2 Scenarios'!AY21 -> 2575.6 | AC19: ='UD2 Scenarios'!AZ21 -> 2575.6 | AD19: ='UD2 Scenarios'!BB21 -> 3772.6205 | AE19: ='UD2 Scenarios'!BC21 -> 674.2656 | AF19: ='UD2 Scenarios'!BD21 -> 63.7626 | AG19: ='UD2 Scenarios'!BE21 -> 118.8303 | AH19: ='UD2 Scenarios'!BF21 -> 219.6 | AI19: ='UD2 Scenarios'!BG21 -> 103.68 | AJ19: ='UD2 Scenarios'!BH21 -> 0 | AK19: ='UD2 Scenarios'!BI21 -> 505.8729 | AL19: ='UD2 Scenarios'!BK21 -> 3772.6205 | AM19: ='UD2 Scenarios'!BL21 -> 3098.3549 | AN19: ='UD2 Scenarios'!BM21 -> 3034.5923 | AO19: ='UD2 Scenarios'!BN21 -> 2915.762 | AP19: ='UD2 Scenarios'!BO21 -> 2696.162 | AQ19: ='UD2 Scenarios'!BP21 -> 2592.482 | AR19: ='UD2 Scenarios'!BQ21 -> 2592.482 | AS19: 640 | AT19: 105 | AU19: 21 | AV19: 149 | AW19: 66 | AX19: 240 | AY19: 0 | AZ19: 0 | BA19: 1221 | BB19: 1221
A20: ='UD2 Scenarios'!A22 -> 2030 | B20: ='UD2 Scenarios'!B22 -> 520 | C20: ='UD2 Scenarios'!C22 -> 105 | D20: ='UD2 Scenarios'!D22 -> 21 | E20: ='UD2 Scenarios'!E22 -> 26 | F20: ='UD2 Scenarios'!F22 -> 0 | G20: ='UD2 Scenarios'!G22 -> 0 | H20: ='UD2 Scenarios'!H22 -> 0 | I20: ='UD2 Scenarios'!I22 -> 0 | J20: ='UD2 Scenarios'!J22 -> 672 | K20: ='UD2 Scenarios'!L22 -> 120 | L20: ='UD2 Scenarios'!M22 -> 0 | M20: ='UD2 Scenarios'!N22 -> 0 | N20: ='UD2 Scenarios'!O22 -> 123 | O20: ='UD2 Scenarios'!P22 -> 66 | P20: ='UD2 Scenarios'!Q22 -> 240 | Q20: ='UD2 Scenarios'!R22 -> 0 | R20: ='UD2 Scenarios'!S22 -> 0 | S20: ='UD2 Scenarios'!T22 -> 549 | T20: ='UD2 Scenarios'!U22 -> 629 | U20: ='UD2 Scenarios'!W22 -> 4645 | V20: ='UD2 Scenarios'!AB22 -> 850 | W20: ='UD2 Scenarios'!AI22 -> 3973 | X20: ='UD2 Scenarios'!AU22 -> 3123 | Y20: ='UD2 Scenarios'!AV22 -> 3057 | Z20: ='UD2 Scenarios'!AW22 -> 2934 | AA20: ='UD2 Scenarios'!AX22 -> 2694 | AB20: ='UD2 Scenarios'!AY22 -> 2574 | AC20: ='UD2 Scenarios'!AZ22 -> 2494 | AD20: ='UD2 Scenarios'!BB22 -> 3838.3153 | AE20: ='UD2 Scenarios'!BC22 -> 734.4 | AF20: ='UD2 Scenarios'!BD22 -> 63.7626 | AG20: ='UD2 Scenarios'!BE22 -> 118.8303 | AH20: ='UD2 Scenarios'!BF22 -> 207.36 | AI20: ='UD2 Scenarios'!BG22 -> 103.68 | AJ20: ='UD2 Scenarios'!BH22 -> 77.288 | AK20: ='UD2 Scenarios'!BI22 -> 493.6329 | AL20: ='UD2 Scenarios'!BK22 -> 3838.3153 | AM20: ='UD2 Scenarios'!BL22 -> 3103.9153 | AN20: ='UD2 Scenarios'!BM22 -> 3040.1527 | AO20: ='UD2 Scenarios'!BN22 -> 2921.3224 | AP20: ='UD2 Scenarios'!BO22 -> 2713.9624 | AQ20: ='UD2 Scenarios'!BP22 -> 2610.2824 | AR20: ='UD2 Scenarios'!BQ22 -> 2532.9944 | AS20: 640 | AT20: 105 | AU20: 21 | AV20: 149 | AW20: 66 | AX20: 240 | AY20: 0 | AZ20: 0 | BA20: 1221 | BB20: 1301
A21: ='UD2 Scenarios'!A23 -> 2031 | B21: ='UD2 Scenarios'!B23 -> 520 | C21: ='UD2 Scenarios'!C23 -> 105 | D21: ='UD2 Scenarios'!D23 -> 21 | E21: ='UD2 Scenarios'!E23 -> 26 | F21: ='UD2 Scenarios'!F23 -> 0 | G21: ='UD2 Scenarios'!G23 -> 0 | H21: ='UD2 Scenarios'!H23 -> 0 | I21: ='UD2 Scenarios'!I23 -> 0 | J21: ='UD2 Scenarios'!J23 -> 672 | K21: ='UD2 Scenarios'!L23 -> 120 | L21: ='UD2 Scenarios'!M23 -> 0 | M21: ='UD2 Scenarios'!N23 -> 0 | N21: ='UD2 Scenarios'!O23 -> 123 | O21: ='UD2 Scenarios'!P23 -> 66 | P21: ='UD2 Scenarios'!Q23 -> 240 | Q21: ='UD2 Scenarios'!R23 -> 0 | R21: ='UD2 Scenarios'!S23 -> 0 | S21: ='UD2 Scenarios'!T23 -> 549 | T21: ='UD2 Scenarios'!U23 -> 629 | U21: ='UD2 Scenarios'!W23 -> 4713 | V21: ='UD2 Scenarios'!AB23 -> 935 | W21: ='UD2 Scenarios'!AI23 -> 4041 | X21: ='UD2 Scenarios'!AU23 -> 3106 | Y21: ='UD2 Scenarios'!AV23 -> 3040 | Z21: ='UD2 Scenarios'!AW23 -> 2917 | AA21: ='UD2 Scenarios'!AX23 -> 2677 | AB21: ='UD2 Scenarios'!AY23 -> 2557 | AC21: ='UD2 Scenarios'!AZ23 -> 2477 | AD21: ='UD2 Scenarios'!BB23 -> 3904.0101 | AE21: ='UD2 Scenarios'!BC23 -> 807.84 | AF21: ='UD2 Scenarios'!BD23 -> 63.7626 | AG21: ='UD2 Scenarios'!BE23 -> 118.8303 | AH21: ='UD2 Scenarios'!BF23 -> 207.36 | AI21: ='UD2 Scenarios'!BG23 -> 103.68 | AJ21: ='UD2 Scenarios'!BH23 -> 77.288 | AK21: ='UD2 Scenarios'!BI23 -> 493.6329 | AL21: ='UD2 Scenarios'!BK23 -> 3904.0101 | AM21: ='UD2 Scenarios'!BL23 -> 3096.1701 | AN21: ='UD2 Scenarios'!BM23 -> 3032.4075 | AO21: ='UD2 Scenarios'!BN23 -> 2913.5772 | AP21: ='UD2 Scenarios'!BO23 -> 2706.2172 | AQ21: ='UD2 Scenarios'!BP23 -> 2602.5372 | AR21: ='UD2 Scenarios'!BQ23 -> 2525.2492 | AS21: 640 | AT21: 105 | AU21: 21 | AV21: 149 | AW21: 66 | AX21: 240 | AY21: 0 | AZ21: 0 | BA21: 1221 | BB21: 1301
A22: ='UD2 Scenarios'!A24 -> 2032 | B22: ='UD2 Scenarios'!B24 -> 520 | C22: ='UD2 Scenarios'!C24 -> 105 | D22: ='UD2 Scenarios'!D24 -> 21 | E22: ='UD2 Scenarios'!E24 -> 26 | F22: ='UD2 Scenarios'!F24 -> 0 | G22: ='UD2 Scenarios'!G24 -> 0 | H22: ='UD2 Scenarios'!H24 -> 0 | I22: ='UD2 Scenarios'!I24 -> 0 | J22: ='UD2 Scenarios'!J24 -> 672 | K22: ='UD2 Scenarios'!L24 -> 120 | L22: ='UD2 Scenarios'!M24 -> 0 | M22: ='UD2 Scenarios'!N24 -> 0 | N22: ='UD2 Scenarios'!O24 -> 123 | O22: ='UD2 Scenarios'!P24 -> 66 | P22: ='UD2 Scenarios'!Q24 -> 240 | Q22: ='UD2 Scenarios'!R24 -> 0 | R22: ='UD2 Scenarios'!S24 -> 0 | S22: ='UD2 Scenarios'!T24 -> 549 | T22: ='UD2 Scenarios'!U24 -> 629 | U22: ='UD2 Scenarios'!W24 -> 4783 | V22: ='UD2 Scenarios'!AB24 -> 1020 | W22: ='UD2 Scenarios'!AI24 -> 4111 | X22: ='UD2 Scenarios'!AU24 -> 3091 | Y22: ='UD2 Scenarios'!AV24 -> 3025 | Z22: ='UD2 Scenarios'!AW24 -> 2902 | AA22: ='UD2 Scenarios'!AX24 -> 2662 | AB22: ='UD2 Scenarios'!AY24 -> 2542 | AC22: ='UD2 Scenarios'!AZ24 -> 2462 | AD22: ='UD2 Scenarios'!BB24 -> 3971.6371 | AE22: ='UD2 Scenarios'!BC24 -> 881.28 | AF22: ='UD2 Scenarios'!BD24 -> 63.7626 | AG22: ='UD2 Scenarios'!BE24 -> 118.8303 | AH22: ='UD2 Scenarios'!BF24 -> 207.36 | AI22: ='UD2 Scenarios'!BG24 -> 103.68 | AJ22: ='UD2 Scenarios'!BH24 -> 77.288 | AK22: ='UD2 Scenarios'!BI24 -> 493.6329 | AL22: ='UD2 Scenarios'!BK24 -> 3971.6371 | AM22: ='UD2 Scenarios'!BL24 -> 3090.3571 | AN22: ='UD2 Scenarios'!BM24 -> 3026.5945 | AO22: ='UD2 Scenarios'!BN24 -> 2907.7642 | AP22: ='UD2 Scenarios'!BO24 -> 2700.4042 | AQ22: ='UD2 Scenarios'!BP24 -> 2596.7242 | AR22: ='UD2 Scenarios'!BQ24 -> 2519.4362 | AS22: 640 | AT22: 105 | AU22: 21 | AV22: 149 | AW22: 66 | AX22: 240 | AY22: 0 | AZ22: 0 | BA22: 1221 | BB22: 1301
A23: ='UD2 Scenarios'!A25 -> 2033 | B23: ='UD2 Scenarios'!B25 -> 520 | C23: ='UD2 Scenarios'!C25 -> 105 | D23: ='UD2 Scenarios'!D25 -> 21 | E23: ='UD2 Scenarios'!E25 -> 26 | F23: ='UD2 Scenarios'!F25 -> 0 | G23: ='UD2 Scenarios'!G25 -> 0 | H23: ='UD2 Scenarios'!H25 -> 0 | I23: ='UD2 Scenarios'!I25 -> 0 | J23: ='UD2 Scenarios'!J25 -> 672 | K23: ='UD2 Scenarios'!L25 -> 120 | L23: ='UD2 Scenarios'!M25 -> 0 | M23: ='UD2 Scenarios'!N25 -> 0 | N23: ='UD2 Scenarios'!O25 -> 123 | O23: ='UD2 Scenarios'!P25 -> 66 | P23: ='UD2 Scenarios'!Q25 -> 240 | Q23: ='UD2 Scenarios'!R25 -> 0 | R23: ='UD2 Scenarios'!S25 -> 0 | S23: ='UD2 Scenarios'!T25 -> 549 | T23: ='UD2 Scenarios'!U25 -> 629 | U23: ='UD2 Scenarios'!W25 -> 4853 | V23: ='UD2 Scenarios'!AB25 -> 1105 | W23: ='UD2 Scenarios'!AI25 -> 4181 | X23: ='UD2 Scenarios'!AU25 -> 3076 | Y23: ='UD2 Scenarios'!AV25 -> 3010 | Z23: ='UD2 Scenarios'!AW25 -> 2887 | AA23: ='UD2 Scenarios'!AX25 -> 2647 | AB23: ='UD2 Scenarios'!AY25 -> 2527 | AC23: ='UD2 Scenarios'!AZ25 -> 2447 | AD23: ='UD2 Scenarios'!BB25 -> 4039.2641 | AE23: ='UD2 Scenarios'!BC25 -> 954.72 | AF23: ='UD2 Scenarios'!BD25 -> 63.7626 | AG23: ='UD2 Scenarios'!BE25 -> 118.8303 | AH23: ='UD2 Scenarios'!BF25 -> 207.36 | AI23: ='UD2 Scenarios'!BG25 -> 103.68 | AJ23: ='UD2 Scenarios'!BH25 -> 77.288 | AK23: ='UD2 Scenarios'!BI25 -> 493.6329 | AL23: ='UD2 Scenarios'!BK25 -> 4039.2641 | AM23: ='UD2 Scenarios'!BL25 -> 3084.5441 | AN23: ='UD2 Scenarios'!BM25 -> 3020.7815 | AO23: ='UD2 Scenarios'!BN25 -> 2901.9512 | AP23: ='UD2 Scenarios'!BO25 -> 2694.5912 | AQ23: ='UD2 Scenarios'!BP25 -> 2590.9112 | AR23: ='UD2 Scenarios'!BQ25 -> 2513.6232 | AS23: 640 | AT23: 105 | AU23: 21 | AV23: 149 | AW23: 66 | AX23: 240 | AY23: 0 | AZ23: 0 | BA23: 1221 | BB23: 1301
A24: ='UD2 Scenarios'!A26 -> 2034 | B24: ='UD2 Scenarios'!B26 -> 520 | C24: ='UD2 Scenarios'!C26 -> 105 | D24: ='UD2 Scenarios'!D26 -> 21 | E24: ='UD2 Scenarios'!E26 -> 26 | F24: ='UD2 Scenarios'!F26 -> 0 | G24: ='UD2 Scenarios'!G26 -> 0 | H24: ='UD2 Scenarios'!H26 -> 0 | I24: ='UD2 Scenarios'!I26 -> 0 | J24: ='UD2 Scenarios'!J26 -> 672 | K24: ='UD2 Scenarios'!L26 -> 120 | L24: ='UD2 Scenarios'!M26 -> 0 | M24: ='UD2 Scenarios'!N26 -> 0 | N24: ='UD2 Scenarios'!O26 -> 123 | O24: ='UD2 Scenarios'!P26 -> 66 | P24: ='UD2 Scenarios'!Q26 -> 240 | Q24: ='UD2 Scenarios'!R26 -> 0 | R24: ='UD2 Scenarios'!S26 -> 0 | S24: ='UD2 Scenarios'!T26 -> 549 | T24: ='UD2 Scenarios'!U26 -> 629 | U24: ='UD2 Scenarios'!W26 -> 4925 | V24: ='UD2 Scenarios'!AB26 -> 1190 | W24: ='UD2 Scenarios'!AI26 -> 4253 | X24: ='UD2 Scenarios'!AU26 -> 3063 | Y24: ='UD2 Scenarios'!AV26 -> 2997 | Z24: ='UD2 Scenarios'!AW26 -> 2874 | AA24: ='UD2 Scenarios'!AX26 -> 2634 | AB24: ='UD2 Scenarios'!AY26 -> 2514 | AC24: ='UD2 Scenarios'!AZ26 -> 2434 | AD24: ='UD2 Scenarios'!BB26 -> 4108.8233 | AE24: ='UD2 Scenarios'!BC26 -> 1028.16 | AF24: ='UD2 Scenarios'!BD26 -> 63.7626 | AG24: ='UD2 Scenarios'!BE26 -> 118.8303 | AH24: ='UD2 Scenarios'!BF26 -> 207.36 | AI24: ='UD2 Scenarios'!BG26 -> 103.68 | AJ24: ='UD2 Scenarios'!BH26 -> 77.288 | AK24: ='UD2 Scenarios'!BI26 -> 493.6329 | AL24: ='UD2 Scenarios'!BK26 -> 4108.8233 | AM24: ='UD2 Scenarios'!BL26 -> 3080.6633 | AN24: ='UD2 Scenarios'!BM26 -> 3016.9007 | AO24: ='UD2 Scenarios'!BN26 -> 2898.0704 | AP24: ='UD2 Scenarios'!BO26 -> 2690.7104 | AQ24: ='UD2 Scenarios'!BP26 -> 2587.0304 | AR24: ='UD2 Scenarios'!BQ26 -> 2509.7424 | AS24: 640 | AT24: 105 | AU24: 21 | AV24: 149 | AW24: 66 | AX24: 240 | AY24: 0 | AZ24: 0 | BA24: 1221 | BB24: 1301
A25: ='UD2 Scenarios'!A27 -> 2035 | B25: ='UD2 Scenarios'!B27 -> 520 | C25: ='UD2 Scenarios'!C27 -> 105 | D25: ='UD2 Scenarios'!D27 -> 21 | E25: ='UD2 Scenarios'!E27 -> 26 | F25: ='UD2 Scenarios'!F27 -> 0 | G25: ='UD2 Scenarios'!G27 -> 0 | H25: ='UD2 Scenarios'!H27 -> 0 | I25: ='UD2 Scenarios'!I27 -> 0 | J25: ='UD2 Scenarios'!J27 -> 672 | K25: ='UD2 Scenarios'!L27 -> 120 | L25: ='UD2 Scenarios'!M27 -> 0 | M25: ='UD2 Scenarios'!N27 -> 0 | N25: ='UD2 Scenarios'!O27 -> 123 | O25: ='UD2 Scenarios'!P27 -> 66 | P25: ='UD2 Scenarios'!Q27 -> 240 | Q25: ='UD2 Scenarios'!R27 -> 0 | R25: ='UD2 Scenarios'!S27 -> 0 | S25: ='UD2 Scenarios'!T27 -> 549 | T25: ='UD2 Scenarios'!U27 -> 629 | U25: ='UD2 Scenarios'!W27 -> 4953.02 | V25: ='UD2 Scenarios'!AB27 -> 1275 | W25: ='UD2 Scenarios'!AI27 -> 4281.02 | X25: ='UD2 Scenarios'!AU27 -> 3006.02 | Y25: ='UD2 Scenarios'!AV27 -> 2940.02 | Z25: ='UD2 Scenarios'!AW27 -> 2817.02 | AA25: ='UD2 Scenarios'!AX27 -> 2577.02 | AB25: ='UD2 Scenarios'!AY27 -> 2457.02 | AC25: ='UD2 Scenarios'!AZ27 -> 2377.02 | AD25: ='UD2 Scenarios'!BB27 -> 4135.893422 | AE25: ='UD2 Scenarios'!BC27 -> 1101.6 | AF25: ='UD2 Scenarios'!BD27 -> 63.7626 | AG25: ='UD2 Scenarios'!BE27 -> 118.8303 | AH25: ='UD2 Scenarios'!BF27 -> 207.36 | AI25: ='UD2 Scenarios'!BG27 -> 103.68 | AJ25: ='UD2 Scenarios'!BH27 -> 77.288 | AK25: ='UD2 Scenarios'!BI27 -> 493.6329 | AL25: ='UD2 Scenarios'!BK27 -> 4135.893422 | AM25: ='UD2 Scenarios'!BL27 -> 3034.293422 | AN25: ='UD2 Scenarios'!BM27 -> 2970.530822 | AO25: ='UD2 Scenarios'!BN27 -> 2851.700522 | AP25: ='UD2 Scenarios'!BO27 -> 2644.340522 | AQ25: ='UD2 Scenarios'!BP27 -> 2540.660522 | AR25: ='UD2 Scenarios'!BQ27 -> 2463.372522 | AS25: 640 | AT25: 105 | AU25: 21 | AV25: 149 | AW25: 66 | AX25: 240 | AY25: 0 | AZ25: 0 | BA25: 1221 | BB25: 1301
A26: ='UD2 Scenarios'!A28 -> 2036 | B26: ='UD2 Scenarios'!B28 -> 520 | C26: ='UD2 Scenarios'!C28 -> 105 | D26: ='UD2 Scenarios'!D28 -> 21 | E26: ='UD2 Scenarios'!E28 -> 26 | F26: ='UD2 Scenarios'!F28 -> 0 | G26: ='UD2 Scenarios'!G28 -> 0 | H26: ='UD2 Scenarios'!H28 -> 0 | I26: ='UD2 Scenarios'!I28 -> 0 | J26: ='UD2 Scenarios'!J28 -> 672 | K26: ='UD2 Scenarios'!L28 -> 120 | L26: ='UD2 Scenarios'!M28 -> 0 | M26: ='UD2 Scenarios'!N28 -> 0 | N26: ='UD2 Scenarios'!O28 -> 123 | O26: ='UD2 Scenarios'!P28 -> 66 | P26: ='UD2 Scenarios'!Q28 -> 240 | Q26: ='UD2 Scenarios'!R28 -> 0 | R26: ='UD2 Scenarios'!S28 -> 0 | S26: ='UD2 Scenarios'!T28 -> 549 | T26: ='UD2 Scenarios'!U28 -> 639 | U26: ='UD2 Scenarios'!W28 -> 4935.92 | V26: ='UD2 Scenarios'!AB28 -> 1365 | W26: ='UD2 Scenarios'!AI28 -> 4263.92 | X26: ='UD2 Scenarios'!AU28 -> 2898.92 | Y26: ='UD2 Scenarios'!AV28 -> 2832.92 | Z26: ='UD2 Scenarios'!AW28 -> 2709.92 | AA26: ='UD2 Scenarios'!AX28 -> 2469.92 | AB26: ='UD2 Scenarios'!AY28 -> 2349.92 | AC26: ='UD2 Scenarios'!AZ28 -> 2259.92 | AD26: ='UD2 Scenarios'!BB28 -> 4119.373112 | AE26: ='UD2 Scenarios'!BC28 -> 1179.36 | AF26: ='UD2 Scenarios'!BD28 -> 63.7626 | AG26: ='UD2 Scenarios'!BE28 -> 118.8303 | AH26: ='UD2 Scenarios'!BF28 -> 207.36 | AI26: ='UD2 Scenarios'!BG28 -> 103.68 | AJ26: ='UD2 Scenarios'!BH28 -> 86.949 | AK26: ='UD2 Scenarios'!BI28 -> 493.6329 | AL26: ='UD2 Scenarios'!BK28 -> 4119.373112 | AM26: ='UD2 Scenarios'!BL28 -> 2940.013112 | AN26: ='UD2 Scenarios'!BM28 -> 2876.250512 | AO26: ='UD2 Scenarios'!BN28 -> 2757.420212 | AP26: ='UD2 Scenarios'!BO28 -> 2550.060212 | AQ26: ='UD2 Scenarios'!BP28 -> 2446.380212 | AR26: ='UD2 Scenarios'!BQ28 -> 2359.431212 | AS26: 640 | AT26: 105 | AU26: 21 | AV26: 149 | AW26: 66 | AX26: 240 | AY26: 0 | AZ26: 0 | BA26: 1221 | BB26: 1311
A27: ='UD2 Scenarios'!A29 -> 2037 | B27: ='UD2 Scenarios'!B29 -> 520 | C27: ='UD2 Scenarios'!C29 -> 105 | D27: ='UD2 Scenarios'!D29 -> 21 | E27: ='UD2 Scenarios'!E29 -> 26 | F27: ='UD2 Scenarios'!F29 -> 0 | G27: ='UD2 Scenarios'!G29 -> 0 | H27: ='UD2 Scenarios'!H29 -> 0 | I27: ='UD2 Scenarios'!I29 -> 0 | J27: ='UD2 Scenarios'!J29 -> 672 | K27: ='UD2 Scenarios'!L29 -> 120 | L27: ='UD2 Scenarios'!M29 -> 0 | M27: ='UD2 Scenarios'!N29 -> 0 | N27: ='UD2 Scenarios'!O29 -> 123 | O27: ='UD2 Scenarios'!P29 -> 66 | P27: ='UD2 Scenarios'!Q29 -> 240 | Q27: ='UD2 Scenarios'!R29 -> 0 | R27: ='UD2 Scenarios'!S29 -> 0 | S27: ='UD2 Scenarios'!T29 -> 549 | T27: ='UD2 Scenarios'!U29 -> 639 | U27: ='UD2 Scenarios'!W29 -> 4944.72 | V27: ='UD2 Scenarios'!AB29 -> 1455 | W27: ='UD2 Scenarios'!AI29 -> 4272.72 | X27: ='UD2 Scenarios'!AU29 -> 2817.72 | Y27: ='UD2 Scenarios'!AV29 -> 2751.72 | Z27: ='UD2 Scenarios'!AW29 -> 2628.72 | AA27: ='UD2 Scenarios'!AX29 -> 2388.72 | AB27: ='UD2 Scenarios'!AY29 -> 2268.72 | AC27: ='UD2 Scenarios'!AZ29 -> 2178.72 | AD27: ='UD2 Scenarios'!BB29 -> 4127.874792 | AE27: ='UD2 Scenarios'!BC29 -> 1257.12 | AF27: ='UD2 Scenarios'!BD29 -> 63.7626 | AG27: ='UD2 Scenarios'!BE29 -> 118.8303 | AH27: ='UD2 Scenarios'!BF29 -> 207.36 | AI27: ='UD2 Scenarios'!BG29 -> 103.68 | AJ27: ='UD2 Scenarios'!BH29 -> 86.949 | AK27: ='UD2 Scenarios'!BI29 -> 493.6329 | AL27: ='UD2 Scenarios'!BK29 -> 4127.874792 | AM27: ='UD2 Scenarios'!BL29 -> 2870.754792 | AN27: ='UD2 Scenarios'!BM29 -> 2806.992192 | AO27: ='UD2 Scenarios'!BN29 -> 2688.161892 | AP27: ='UD2 Scenarios'!BO29 -> 2480.801892 | AQ27: ='UD2 Scenarios'!BP29 -> 2377.121892 | AR27: ='UD2 Scenarios'!BQ29 -> 2290.172892 | AS27: 640 | AT27: 105 | AU27: 21 | AV27: 149 | AW27: 66 | AX27: 240 | AY27: 0 | AZ27: 0 | BA27: 1221 | BB27: 1311
A28: ='UD2 Scenarios'!A30 -> 2038 | B28: ='UD2 Scenarios'!B30 -> 520 | C28: ='UD2 Scenarios'!C30 -> 105 | D28: ='UD2 Scenarios'!D30 -> 21 | E28: ='UD2 Scenarios'!E30 -> 26 | F28: ='UD2 Scenarios'!F30 -> 0 | G28: ='UD2 Scenarios'!G30 -> 0 | H28: ='UD2 Scenarios'!H30 -> 0 | I28: ='UD2 Scenarios'!I30 -> 0 | J28: ='UD2 Scenarios'!J30 -> 672 | K28: ='UD2 Scenarios'!L30 -> 120 | L28: ='UD2 Scenarios'!M30 -> 0 | M28: ='UD2 Scenarios'!N30 -> 0 | N28: ='UD2 Scenarios'!O30 -> 123 | O28: ='UD2 Scenarios'!P30 -> 66 | P28: ='UD2 Scenarios'!Q30 -> 240 | Q28: ='UD2 Scenarios'!R30 -> 0 | R28: ='UD2 Scenarios'!S30 -> 0 | S28: ='UD2 Scenarios'!T30 -> 549 | T28: ='UD2 Scenarios'!U30 -> 639 | U28: ='UD2 Scenarios'!W30 -> 4953.52 | V28: ='UD2 Scenarios'!AB30 -> 1545 | W28: ='UD2 Scenarios'!AI30 -> 4281.52 | X28: ='UD2 Scenarios'!AU30 -> 2736.52 | Y28: ='UD2 Scenarios'!AV30 -> 2670.52 | Z28: ='UD2 Scenarios'!AW30 -> 2547.52 | AA28: ='UD2 Scenarios'!AX30 -> 2307.52 | AB28: ='UD2 Scenarios'!AY30 -> 2187.52 | AC28: ='UD2 Scenarios'!AZ30 -> 2097.52 | AD28: ='UD2 Scenarios'!BB30 -> 4136.376472 | AE28: ='UD2 Scenarios'!BC30 -> 1334.88 | AF28: ='UD2 Scenarios'!BD30 -> 63.7626 | AG28: ='UD2 Scenarios'!BE30 -> 118.8303 | AH28: ='UD2 Scenarios'!BF30 -> 207.36 | AI28: ='UD2 Scenarios'!BG30 -> 103.68 | AJ28: ='UD2 Scenarios'!BH30 -> 86.949 | AK28: ='UD2 Scenarios'!BI30 -> 493.6329 | AL28: ='UD2 Scenarios'!BK30 -> 4136.376472 | AM28: ='UD2 Scenarios'!BL30 -> 2801.496472 | AN28: ='UD2 Scenarios'!BM30 -> 2737.733872 | AO28: ='UD2 Scenarios'!BN30 -> 2618.903572 | AP28: ='UD2 Scenarios'!BO30 -> 2411.543572 | AQ28: ='UD2 Scenarios'!BP30 -> 2307.863572 | AR28: ='UD2 Scenarios'!BQ30 -> 2220.914572 | AS28: 640 | AT28: 105 | AU28: 21 | AV28: 149 | AW28: 66 | AX28: 240 | AY28: 0 | AZ28: 0 | BA28: 1221 | BB28: 1311
A29: ='UD2 Scenarios'!A31 -> 2039 | B29: ='UD2 Scenarios'!B31 -> 520 | C29: ='UD2 Scenarios'!C31 -> 105 | D29: ='UD2 Scenarios'!D31 -> 21 | E29: ='UD2 Scenarios'!E31 -> 26 | F29: ='UD2 Scenarios'!F31 -> 0 | G29: ='UD2 Scenarios'!G31 -> 0 | H29: ='UD2 Scenarios'!H31 -> 0 | I29: ='UD2 Scenarios'!I31 -> 0 | J29: ='UD2 Scenarios'!J31 -> 672 | K29: ='UD2 Scenarios'!L31 -> 120 | L29: ='UD2 Scenarios'!M31 -> 0 | M29: ='UD2 Scenarios'!N31 -> 0 | N29: ='UD2 Scenarios'!O31 -> 123 | O29: ='UD2 Scenarios'!P31 -> 66 | P29: ='UD2 Scenarios'!Q31 -> 240 | Q29: ='UD2 Scenarios'!R31 -> 0 | R29: ='UD2 Scenarios'!S31 -> 0 | S29: ='UD2 Scenarios'!T31 -> 549 | T29: ='UD2 Scenarios'!U31 -> 639 | U29: ='UD2 Scenarios'!W31 -> 4962.32 | V29: ='UD2 Scenarios'!AB31 -> 1635 | W29: ='UD2 Scenarios'!AI31 -> 4290.32 | X29: ='UD2 Scenarios'!AU31 -> 2655.32 | Y29: ='UD2 Scenarios'!AV31 -> 2589.32 | Z29: ='UD2 Scenarios'!AW31 -> 2466.32 | AA29: ='UD2 Scenarios'!AX31 -> 2226.32 | AB29: ='UD2 Scenarios'!AY31 -> 2106.32 | AC29: ='UD2 Scenarios'!AZ31 -> 2016.32 | AD29: ='UD2 Scenarios'!BB31 -> 4144.878152 | AE29: ='UD2 Scenarios'!BC31 -> 1412.64 | AF29: ='UD2 Scenarios'!BD31 -> 63.7626 | AG29: ='UD2 Scenarios'!BE31 -> 118.8303 | AH29: ='UD2 Scenarios'!BF31 -> 207.36 | AI29: ='UD2 Scenarios'!BG31 -> 103.68 | AJ29: ='UD2 Scenarios'!BH31 -> 86.949 | AK29: ='UD2 Scenarios'!BI31 -> 493.6329 | AL29: ='UD2 Scenarios'!BK31 -> 4144.878152 | AM29: ='UD2 Scenarios'!BL31 -> 2732.238152 | AN29: ='UD2 Scenarios'!BM31 -> 2668.475552 | AO29: ='UD2 Scenarios'!BN31 -> 2549.645252 | AP29: ='UD2 Scenarios'!BO31 -> 2342.285252 | AQ29: ='UD2 Scenarios'!BP31 -> 2238.605252 | AR29: ='UD2 Scenarios'!BQ31 -> 2151.656252 | AS29: 640 | AT29: 105 | AU29: 21 | AV29: 149 | AW29: 66 | AX29: 240 | AY29: 0 | AZ29: 0 | BA29: 1221 | BB29: 1311
A30: ='UD2 Scenarios'!A32 -> 2040 | B30: ='UD2 Scenarios'!B32 -> 520 | C30: ='UD2 Scenarios'!C32 -> 105 | D30: ='UD2 Scenarios'!D32 -> 21 | E30: ='UD2 Scenarios'!E32 -> 26 | F30: ='UD2 Scenarios'!F32 -> 0 | G30: ='UD2 Scenarios'!G32 -> 0 | H30: ='UD2 Scenarios'!H32 -> 0 | I30: ='UD2 Scenarios'!I32 -> 0 | J30: ='UD2 Scenarios'!J32 -> 672 | K30: ='UD2 Scenarios'!L32 -> 120 | L30: ='UD2 Scenarios'!M32 -> 0 | M30: ='UD2 Scenarios'!N32 -> 0 | N30: ='UD2 Scenarios'!O32 -> 123 | O30: ='UD2 Scenarios'!P32 -> 66 | P30: ='UD2 Scenarios'!Q32 -> 240 | Q30: ='UD2 Scenarios'!R32 -> 0 | R30: ='UD2 Scenarios'!S32 -> 0 | S30: ='UD2 Scenarios'!T32 -> 549 | T30: ='UD2 Scenarios'!U32 -> 639 | U30: ='UD2 Scenarios'!W32 -> 4971.12 | V30: ='UD2 Scenarios'!AB32 -> 1725 | W30: ='UD2 Scenarios'!AI32 -> 4299.12 | X30: ='UD2 Scenarios'!AU32 -> 2574.12 | Y30: ='UD2 Scenarios'!AV32 -> 2508.12 | Z30: ='UD2 Scenarios'!AW32 -> 2385.12 | AA30: ='UD2 Scenarios'!AX32 -> 2145.12 | AB30: ='UD2 Scenarios'!AY32 -> 2025.12 | AC30: ='UD2 Scenarios'!AZ32 -> 1935.12 | AD30: ='UD2 Scenarios'!BB32 -> 4153.379832 | AE30: ='UD2 Scenarios'!BC32 -> 1490.4 | AF30: ='UD2 Scenarios'!BD32 -> 63.7626 | AG30: ='UD2 Scenarios'!BE32 -> 118.8303 | AH30: ='UD2 Scenarios'!BF32 -> 207.36 | AI30: ='UD2 Scenarios'!BG32 -> 103.68 | AJ30: ='UD2 Scenarios'!BH32 -> 86.949 | AK30: ='UD2 Scenarios'!BI32 -> 493.6329 | AL30: ='UD2 Scenarios'!BK32 -> 4153.379832 | AM30: ='UD2 Scenarios'!BL32 -> 2662.979832 | AN30: ='UD2 Scenarios'!BM32 -> 2599.217232 | AO30: ='UD2 Scenarios'!BN32 -> 2480.386932 | AP30: ='UD2 Scenarios'!BO32 -> 2273.026932 | AQ30: ='UD2 Scenarios'!BP32 -> 2169.346932 | AR30: ='UD2 Scenarios'!BQ32 -> 2082.397932 | AS30: 640 | AT30: 105 | AU30: 21 | AV30: 149 | AW30: 66 | AX30: 240 | AY30: 0 | AZ30: 0 | BA30: 1221 | BB30: 1311
A31: ='UD2 Scenarios'!A33 -> 2041 | B31: ='UD2 Scenarios'!B33 -> 520 | C31: ='UD2 Scenarios'!C33 -> 105 | D31: ='UD2 Scenarios'!D33 -> 21 | E31: ='UD2 Scenarios'!E33 -> 26 | F31: ='UD2 Scenarios'!F33 -> 0 | G31: ='UD2 Scenarios'!G33 -> 0 | H31: ='UD2 Scenarios'!H33 -> 0 | I31: ='UD2 Scenarios'!I33 -> 0 | J31: ='UD2 Scenarios'!J33 -> 672 | K31: ='UD2 Scenarios'!L33 -> 120 | L31: ='UD2 Scenarios'!M33 -> 0 | M31: ='UD2 Scenarios'!N33 -> 0 | N31: ='UD2 Scenarios'!O33 -> 123 | O31: ='UD2 Scenarios'!P33 -> 66 | P31: ='UD2 Scenarios'!Q33 -> 240 | Q31: ='UD2 Scenarios'!R33 -> 0 | R31: ='UD2 Scenarios'!S33 -> 0 | S31: ='UD2 Scenarios'!T33 -> 549 | T31: ='UD2 Scenarios'!U33 -> 669 | U31: ='UD2 Scenarios'!W33 -> 5019.32 | V31: ='UD2 Scenarios'!AB33 -> 1805 | W31: ='UD2 Scenarios'!AI33 -> 4347.32 | X31: ='UD2 Scenarios'!AU33 -> 2542.32 | Y31: ='UD2 Scenarios'!AV33 -> 2476.32 | Z31: ='UD2 Scenarios'!AW33 -> 2353.32 | AA31: ='UD2 Scenarios'!AX33 -> 2113.32 | AB31: ='UD2 Scenarios'!AY33 -> 1993.32 | AC31: ='UD2 Scenarios'!AZ33 -> 1873.32 | AD31: ='UD2 Scenarios'!BB33 -> 4199.945852 | AE31: ='UD2 Scenarios'!BC33 -> 1559.52 | AF31: ='UD2 Scenarios'!BD33 -> 63.7626 | AG31: ='UD2 Scenarios'!BE33 -> 118.8303 | AH31: ='UD2 Scenarios'!BF33 -> 207.36 | AI31: ='UD2 Scenarios'!BG33 -> 103.68 | AJ31: ='UD2 Scenarios'!BH33 -> 115.932 | AK31: ='UD2 Scenarios'!BI33 -> 493.6329 | AL31: ='UD2 Scenarios'!BK33 -> 4199.945852 | AM31: ='UD2 Scenarios'!BL33 -> 2640.425852 | AN31: ='UD2 Scenarios'!BM33 -> 2576.663252 | AO31: ='UD2 Scenarios'!BN33 -> 2457.832952 | AP31: ='UD2 Scenarios'!BO33 -> 2250.472952 | AQ31: ='UD2 Scenarios'!BP33 -> 2146.792952 | AR31: ='UD2 Scenarios'!BQ33 -> 2030.860952 | AS31: 640 | AT31: 105 | AU31: 21 | AV31: 149 | AW31: 66 | AX31: 240 | AY31: 0 | AZ31: 0 | BA31: 1221 | BB31: 1341
A32: ='UD2 Scenarios'!A34 -> 2042 | B32: ='UD2 Scenarios'!B34 -> 520 | C32: ='UD2 Scenarios'!C34 -> 105 | D32: ='UD2 Scenarios'!D34 -> 21 | E32: ='UD2 Scenarios'!E34 -> 26 | F32: ='UD2 Scenarios'!F34 -> 0 | G32: ='UD2 Scenarios'!G34 -> 0 | H32: ='UD2 Scenarios'!H34 -> 0 | I32: ='UD2 Scenarios'!I34 -> 0 | J32: ='UD2 Scenarios'!J34 -> 672 | K32: ='UD2 Scenarios'!L34 -> 120 | L32: ='UD2 Scenarios'!M34 -> 0 | M32: ='UD2 Scenarios'!N34 -> 0 | N32: ='UD2 Scenarios'!O34 -> 123 | O32: ='UD2 Scenarios'!P34 -> 66 | P32: ='UD2 Scenarios'!Q34 -> 240 | Q32: ='UD2 Scenarios'!R34 -> 0 | R32: ='UD2 Scenarios'!S34 -> 0 | S32: ='UD2 Scenarios'!T34 -> 549 | T32: ='UD2 Scenarios'!U34 -> 669 | U32: ='UD2 Scenarios'!W34 -> 5067.52 | V32: ='UD2 Scenarios'!AB34 -> 1885 | W32: ='UD2 Scenarios'!AI34 -> 4395.52 | X32: ='UD2 Scenarios'!AU34 -> 2510.52 | Y32: ='UD2 Scenarios'!AV34 -> 2444.52 | Z32: ='UD2 Scenarios'!AW34 -> 2321.52 | AA32: ='UD2 Scenarios'!AX34 -> 2081.52 | AB32: ='UD2 Scenarios'!AY34 -> 1961.52 | AC32: ='UD2 Scenarios'!AZ34 -> 1841.52 | AD32: ='UD2 Scenarios'!BB34 -> 4246.511872 | AE32: ='UD2 Scenarios'!BC34 -> 1628.64 | AF32: ='UD2 Scenarios'!BD34 -> 63.7626 | AG32: ='UD2 Scenarios'!BE34 -> 118.8303 | AH32: ='UD2 Scenarios'!BF34 -> 207.36 | AI32: ='UD2 Scenarios'!BG34 -> 103.68 | AJ32: ='UD2 Scenarios'!BH34 -> 115.932 | AK32: ='UD2 Scenarios'!BI34 -> 493.6329 | AL32: ='UD2 Scenarios'!BK34 -> 4246.511872 | AM32: ='UD2 Scenarios'!BL34 -> 2617.871872 | AN32: ='UD2 Scenarios'!BM34 -> 2554.109272 | AO32: ='UD2 Scenarios'!BN34 -> 2435.278972 | AP32: ='UD2 Scenarios'!BO34 -> 2227.918972 | AQ32: ='UD2 Scenarios'!BP34 -> 2124.238972 | AR32: ='UD2 Scenarios'!BQ34 -> 2008.306972 | AS32: 640 | AT32: 105 | AU32: 21 | AV32: 149 | AW32: 66 | AX32: 240 | AY32: 0 | AZ32: 0 | BA32: 1221 | BB32: 1341
A33: ='UD2 Scenarios'!A35 -> 2043 | B33: ='UD2 Scenarios'!B35 -> 520 | C33: ='UD2 Scenarios'!C35 -> 105 | D33: ='UD2 Scenarios'!D35 -> 21 | E33: ='UD2 Scenarios'!E35 -> 26 | F33: ='UD2 Scenarios'!F35 -> 0 | G33: ='UD2 Scenarios'!G35 -> 0 | H33: ='UD2 Scenarios'!H35 -> 0 | I33: ='UD2 Scenarios'!I35 -> 0 | J33: ='UD2 Scenarios'!J35 -> 672 | K33: ='UD2 Scenarios'!L35 -> 120 | L33: ='UD2 Scenarios'!M35 -> 0 | M33: ='UD2 Scenarios'!N35 -> 0 | N33: ='UD2 Scenarios'!O35 -> 123 | O33: ='UD2 Scenarios'!P35 -> 66 | P33: ='UD2 Scenarios'!Q35 -> 240 | Q33: ='UD2 Scenarios'!R35 -> 0 | R33: ='UD2 Scenarios'!S35 -> 0 | S33: ='UD2 Scenarios'!T35 -> 549 | T33: ='UD2 Scenarios'!U35 -> 699 | U33: ='UD2 Scenarios'!W35 -> 5115.72 | V33: ='UD2 Scenarios'!AB35 -> 1965 | W33: ='UD2 Scenarios'!AI35 -> 4443.72 | X33: ='UD2 Scenarios'!AU35 -> 2478.72 | Y33: ='UD2 Scenarios'!AV35 -> 2412.72 | Z33: ='UD2 Scenarios'!AW35 -> 2289.72 | AA33: ='UD2 Scenarios'!AX35 -> 2049.72 | AB33: ='UD2 Scenarios'!AY35 -> 1929.72 | AC33: ='UD2 Scenarios'!AZ35 -> 1779.72 | AD33: ='UD2 Scenarios'!BB35 -> 4293.077892 | AE33: ='UD2 Scenarios'!BC35 -> 1697.76 | AF33: ='UD2 Scenarios'!BD35 -> 63.7626 | AG33: ='UD2 Scenarios'!BE35 -> 118.8303 | AH33: ='UD2 Scenarios'!BF35 -> 207.36 | AI33: ='UD2 Scenarios'!BG35 -> 103.68 | AJ33: ='UD2 Scenarios'!BH35 -> 144.915 | AK33: ='UD2 Scenarios'!BI35 -> 493.6329 | AL33: ='UD2 Scenarios'!BK35 -> 4293.077892 | AM33: ='UD2 Scenarios'!BL35 -> 2595.317892 | AN33: ='UD2 Scenarios'!BM35 -> 2531.555292 | AO33: ='UD2 Scenarios'!BN35 -> 2412.724992 | AP33: ='UD2 Scenarios'!BO35 -> 2205.364992 | AQ33: ='UD2 Scenarios'!BP35 -> 2101.684992 | AR33: ='UD2 Scenarios'!BQ35 -> 1956.769992 | AS33: 640 | AT33: 105 | AU33: 21 | AV33: 149 | AW33: 66 | AX33: 240 | AY33: 0 | AZ33: 0 | BA33: 1221 | BB33: 1371
A34: ='UD2 Scenarios'!A36 -> 2044 | B34: ='UD2 Scenarios'!B36 -> 520 | C34: ='UD2 Scenarios'!C36 -> 105 | D34: ='UD2 Scenarios'!D36 -> 21 | E34: ='UD2 Scenarios'!E36 -> 26 | F34: ='UD2 Scenarios'!F36 -> 0 | G34: ='UD2 Scenarios'!G36 -> 0 | H34: ='UD2 Scenarios'!H36 -> 0 | I34: ='UD2 Scenarios'!I36 -> 0 | J34: ='UD2 Scenarios'!J36 -> 672 | K34: ='UD2 Scenarios'!L36 -> 120 | L34: ='UD2 Scenarios'!M36 -> 0 | M34: ='UD2 Scenarios'!N36 -> 0 | N34: ='UD2 Scenarios'!O36 -> 123 | O34: ='UD2 Scenarios'!P36 -> 66 | P34: ='UD2 Scenarios'!Q36 -> 240 | Q34: ='UD2 Scenarios'!R36 -> 0 | R34: ='UD2 Scenarios'!S36 -> 0 | S34: ='UD2 Scenarios'!T36 -> 549 | T34: ='UD2 Scenarios'!U36 -> 699 | U34: ='UD2 Scenarios'!W36 -> 5163.92 | V34: ='UD2 Scenarios'!AB36 -> 2045 | W34: ='UD2 Scenarios'!AI36 -> 4491.92 | X34: ='UD2 Scenarios'!AU36 -> 2446.92 | Y34: ='UD2 Scenarios'!AV36 -> 2380.92 | Z34: ='UD2 Scenarios'!AW36 -> 2257.92 | AA34: ='UD2 Scenarios'!AX36 -> 2017.92 | AB34: ='UD2 Scenarios'!AY36 -> 1897.92 | AC34: ='UD2 Scenarios'!AZ36 -> 1747.92 | AD34: ='UD2 Scenarios'!BB36 -> 4339.643912 | AE34: ='UD2 Scenarios'!BC36 -> 1766.88 | AF34: ='UD2 Scenarios'!BD36 -> 63.7626 | AG34: ='UD2 Scenarios'!BE36 -> 118.8303 | AH34: ='UD2 Scenarios'!BF36 -> 207.36 | AI34: ='UD2 Scenarios'!BG36 -> 103.68 | AJ34: ='UD2 Scenarios'!BH36 -> 144.915 | AK34: ='UD2 Scenarios'!BI36 -> 493.6329 | AL34: ='UD2 Scenarios'!BK36 -> 4339.643912 | AM34: ='UD2 Scenarios'!BL36 -> 2572.763912 | AN34: ='UD2 Scenarios'!BM36 -> 2509.001312 | AO34: ='UD2 Scenarios'!BN36 -> 2390.171012 | AP34: ='UD2 Scenarios'!BO36 -> 2182.811012 | AQ34: ='UD2 Scenarios'!BP36 -> 2079.131012 | AR34: ='UD2 Scenarios'!BQ36 -> 1934.216012 | AS34: 640 | AT34: 105 | AU34: 21 | AV34: 149 | AW34: 66 | AX34: 240 | AY34: 0 | AZ34: 0 | BA34: 1221 | BB34: 1371
A35: ='UD2 Scenarios'!A37 -> 2045 | B35: ='UD2 Scenarios'!B37 -> 520 | C35: ='UD2 Scenarios'!C37 -> 105 | D35: ='UD2 Scenarios'!D37 -> 21 | E35: ='UD2 Scenarios'!E37 -> 26 | F35: ='UD2 Scenarios'!F37 -> 0 | G35: ='UD2 Scenarios'!G37 -> 0 | H35: ='UD2 Scenarios'!H37 -> 0 | I35: ='UD2 Scenarios'!I37 -> 0 | J35: ='UD2 Scenarios'!J37 -> 672 | K35: ='UD2 Scenarios'!L37 -> 120 | L35: ='UD2 Scenarios'!M37 -> 0 | M35: ='UD2 Scenarios'!N37 -> 0 | N35: ='UD2 Scenarios'!O37 -> 123 | O35: ='UD2 Scenarios'!P37 -> 66 | P35: ='UD2 Scenarios'!Q37 -> 240 | Q35: ='UD2 Scenarios'!R37 -> 0 | R35: ='UD2 Scenarios'!S37 -> 0 | S35: ='UD2 Scenarios'!T37 -> 549 | T35: ='UD2 Scenarios'!U37 -> 709 | U35: ='UD2 Scenarios'!W37 -> 5212.12 | V35: ='UD2 Scenarios'!AB37 -> 2125 | W35: ='UD2 Scenarios'!AI37 -> 4540.12 | X35: ='UD2 Scenarios'!AU37 -> 2415.12 | Y35: ='UD2 Scenarios'!AV37 -> 2349.12 | Z35: ='UD2 Scenarios'!AW37 -> 2226.12 | AA35: ='UD2 Scenarios'!AX37 -> 1986.12 | AB35: ='UD2 Scenarios'!AY37 -> 1866.12 | AC35: ='UD2 Scenarios'!AZ37 -> 1706.12 | AD35: ='UD2 Scenarios'!BB37 -> 4386.209932 | AE35: ='UD2 Scenarios'!BC37 -> 1836 | AF35: ='UD2 Scenarios'!BD37 -> 63.7626 | AG35: ='UD2 Scenarios'!BE37 -> 118.8303 | AH35: ='UD2 Scenarios'!BF37 -> 207.36 | AI35: ='UD2 Scenarios'!BG37 -> 103.68 | AJ35: ='UD2 Scenarios'!BH37 -> 154.576 | AK35: ='UD2 Scenarios'!BI37 -> 493.6329 | AL35: ='UD2 Scenarios'!BK37 -> 4386.209932 | AM35: ='UD2 Scenarios'!BL37 -> 2550.209932 | AN35: ='UD2 Scenarios'!BM37 -> 2486.447332 | AO35: ='UD2 Scenarios'!BN37 -> 2367.617032 | AP35: ='UD2 Scenarios'!BO37 -> 2160.257032 | AQ35: ='UD2 Scenarios'!BP37 -> 2056.577032 | AR35: ='UD2 Scenarios'!BQ37 -> 1902.001032 | AS35: 640 | AT35: 105 | AU35: 21 | AV35: 149 | AW35: 66 | AX35: 240 | AY35: 0 | AZ35: 0 | BA35: 1221 | BB35: 1381
A36: ='UD2 Scenarios'!A38 -> 2046 | B36: ='UD2 Scenarios'!B38 -> 520 | C36: ='UD2 Scenarios'!C38 -> 105 | D36: ='UD2 Scenarios'!D38 -> 21 | E36: ='UD2 Scenarios'!E38 -> 26 | F36: ='UD2 Scenarios'!F38 -> 0 | G36: ='UD2 Scenarios'!G38 -> 0 | H36: ='UD2 Scenarios'!H38 -> 0 | I36: ='UD2 Scenarios'!I38 -> 0 | J36: ='UD2 Scenarios'!J38 -> 672 | K36: ='UD2 Scenarios'!L38 -> 120 | L36: ='UD2 Scenarios'!M38 -> 0 | M36: ='UD2 Scenarios'!N38 -> 0 | N36: ='UD2 Scenarios'!O38 -> 123 | O36: ='UD2 Scenarios'!P38 -> 66 | P36: ='UD2 Scenarios'!Q38 -> 240 | Q36: ='UD2 Scenarios'!R38 -> 0 | R36: ='UD2 Scenarios'!S38 -> 0 | S36: ='UD2 Scenarios'!T38 -> 549 | T36: ='UD2 Scenarios'!U38 -> 709 | U36: ='UD2 Scenarios'!W38 -> 5260.52 | V36: ='UD2 Scenarios'!AB38 -> 2190 | W36: ='UD2 Scenarios'!AI38 -> 4588.52 | X36: ='UD2 Scenarios'!AU38 -> 2398.52 | Y36: ='UD2 Scenarios'!AV38 -> 2332.52 | Z36: ='UD2 Scenarios'!AW38 -> 2209.52 | AA36: ='UD2 Scenarios'!AX38 -> 1969.52 | AB36: ='UD2 Scenarios'!AY38 -> 1849.52 | AC36: ='UD2 Scenarios'!AZ38 -> 1689.52 | AD36: ='UD2 Scenarios'!BB38 -> 4432.969172 | AE36: ='UD2 Scenarios'!BC38 -> 1892.16 | AF36: ='UD2 Scenarios'!BD38 -> 63.7626 | AG36: ='UD2 Scenarios'!BE38 -> 118.8303 | AH36: ='UD2 Scenarios'!BF38 -> 207.36 | AI36: ='UD2 Scenarios'!BG38 -> 103.68 | AJ36: ='UD2 Scenarios'!BH38 -> 154.576 | AK36: ='UD2 Scenarios'!BI38 -> 493.6329 | AL36: ='UD2 Scenarios'!BK38 -> 4432.969172 | AM36: ='UD2 Scenarios'!BL38 -> 2540.809172 | AN36: ='UD2 Scenarios'!BM38 -> 2477.046572 | AO36: ='UD2 Scenarios'!BN38 -> 2358.216272 | AP36: ='UD2 Scenarios'!BO38 -> 2150.856272 | AQ36: ='UD2 Scenarios'!BP38 -> 2047.176272 | AR36: ='UD2 Scenarios'!BQ38 -> 1892.600272 | AS36: 640 | AT36: 105 | AU36: 21 | AV36: 149 | AW36: 66 | AX36: 240 | AY36: 0 | AZ36: 0 | BA36: 1221 | BB36: 1381
A37: ='UD2 Scenarios'!A39 -> 2047 | B37: ='UD2 Scenarios'!B39 -> 520 | C37: ='UD2 Scenarios'!C39 -> 105 | D37: ='UD2 Scenarios'!D39 -> 21 | E37: ='UD2 Scenarios'!E39 -> 26 | F37: ='UD2 Scenarios'!F39 -> 0 | G37: ='UD2 Scenarios'!G39 -> 0 | H37: ='UD2 Scenarios'!H39 -> 0 | I37: ='UD2 Scenarios'!I39 -> 0 | J37: ='UD2 Scenarios'!J39 -> 672 | K37: ='UD2 Scenarios'!L39 -> 120 | L37: ='UD2 Scenarios'!M39 -> 0 | M37: ='UD2 Scenarios'!N39 -> 0 | N37: ='UD2 Scenarios'!O39 -> 123 | O37: ='UD2 Scenarios'!P39 -> 66 | P37: ='UD2 Scenarios'!Q39 -> 240 | Q37: ='UD2 Scenarios'!R39 -> 0 | R37: ='UD2 Scenarios'!S39 -> 0 | S37: ='UD2 Scenarios'!T39 -> 549 | T37: ='UD2 Scenarios'!U39 -> 729 | U37: ='UD2 Scenarios'!W39 -> 5308.92 | V37: ='UD2 Scenarios'!AB39 -> 2255 | W37: ='UD2 Scenarios'!AI39 -> 4636.92 | X37: ='UD2 Scenarios'!AU39 -> 2381.92 | Y37: ='UD2 Scenarios'!AV39 -> 2315.92 | Z37: ='UD2 Scenarios'!AW39 -> 2192.92 | AA37: ='UD2 Scenarios'!AX39 -> 1952.92 | AB37: ='UD2 Scenarios'!AY39 -> 1832.92 | AC37: ='UD2 Scenarios'!AZ39 -> 1652.92 | AD37: ='UD2 Scenarios'!BB39 -> 4479.728412 | AE37: ='UD2 Scenarios'!BC39 -> 1948.32 | AF37: ='UD2 Scenarios'!BD39 -> 63.7626 | AG37: ='UD2 Scenarios'!BE39 -> 118.8303 | AH37: ='UD2 Scenarios'!BF39 -> 207.36 | AI37: ='UD2 Scenarios'!BG39 -> 103.68 | AJ37: ='UD2 Scenarios'!BH39 -> 173.898 | AK37: ='UD2 Scenarios'!BI39 -> 493.6329 | AL37: ='UD2 Scenarios'!BK39 -> 4479.728412 | AM37: ='UD2 Scenarios'!BL39 -> 2531.408412 | AN37: ='UD2 Scenarios'!BM39 -> 2467.645812 | AO37: ='UD2 Scenarios'!BN39 -> 2348.815512 | AP37: ='UD2 Scenarios'!BO39 -> 2141.455512 | AQ37: ='UD2 Scenarios'!BP39 -> 2037.775512 | AR37: ='UD2 Scenarios'!BQ39 -> 1863.877512 | AS37: 640 | AT37: 105 | AU37: 21 | AV37: 149 | AW37: 66 | AX37: 240 | AY37: 0 | AZ37: 0 | BA37: 1221 | BB37: 1401
A38: ='UD2 Scenarios'!A40 -> 2048 | B38: ='UD2 Scenarios'!B40 -> 520 | C38: ='UD2 Scenarios'!C40 -> 105 | D38: ='UD2 Scenarios'!D40 -> 21 | E38: ='UD2 Scenarios'!E40 -> 26 | F38: ='UD2 Scenarios'!F40 -> 0 | G38: ='UD2 Scenarios'!G40 -> 0 | H38: ='UD2 Scenarios'!H40 -> 0 | I38: ='UD2 Scenarios'!I40 -> 0 | J38: ='UD2 Scenarios'!J40 -> 672 | K38: ='UD2 Scenarios'!L40 -> 120 | L38: ='UD2 Scenarios'!M40 -> 0 | M38: ='UD2 Scenarios'!N40 -> 0 | N38: ='UD2 Scenarios'!O40 -> 123 | O38: ='UD2 Scenarios'!P40 -> 66 | P38: ='UD2 Scenarios'!Q40 -> 240 | Q38: ='UD2 Scenarios'!R40 -> 0 | R38: ='UD2 Scenarios'!S40 -> 0 | S38: ='UD2 Scenarios'!T40 -> 549 | T38: ='UD2 Scenarios'!U40 -> 759 | U38: ='UD2 Scenarios'!W40 -> 5357.32 | V38: ='UD2 Scenarios'!AB40 -> 2320 | W38: ='UD2 Scenarios'!AI40 -> 4685.32 | X38: ='UD2 Scenarios'!AU40 -> 2365.32 | Y38: ='UD2 Scenarios'!AV40 -> 2299.32 | Z38: ='UD2 Scenarios'!AW40 -> 2176.32 | AA38: ='UD2 Scenarios'!AX40 -> 1936.32 | AB38: ='UD2 Scenarios'!AY40 -> 1816.32 | AC38: ='UD2 Scenarios'!AZ40 -> 1606.32 | AD38: ='UD2 Scenarios'!BB40 -> 4526.487652 | AE38: ='UD2 Scenarios'!BC40 -> 2004.48 | AF38: ='UD2 Scenarios'!BD40 -> 63.7626 | AG38: ='UD2 Scenarios'!BE40 -> 118.8303 | AH38: ='UD2 Scenarios'!BF40 -> 207.36 | AI38: ='UD2 Scenarios'!BG40 -> 103.68 | AJ38: ='UD2 Scenarios'!BH40 -> 202.881 | AK38: ='UD2 Scenarios'!BI40 -> 493.6329 | AL38: ='UD2 Scenarios'!BK40 -> 4526.487652 | AM38: ='UD2 Scenarios'!BL40 -> 2522.007652 | AN38: ='UD2 Scenarios'!BM40 -> 2458.245052 | AO38: ='UD2 Scenarios'!BN40 -> 2339.414752 | AP38: ='UD2 Scenarios'!BO40 -> 2132.054752 | AQ38: ='UD2 Scenarios'!BP40 -> 2028.374752 | AR38: ='UD2 Scenarios'!BQ40 -> 1825.493752 | AS38: 640 | AT38: 105 | AU38: 21 | AV38: 149 | AW38: 66 | AX38: 240 | AY38: 0 | AZ38: 0 | BA38: 1221 | BB38: 1431
A39: ='UD2 Scenarios'!A41 -> 2049 | B39: ='UD2 Scenarios'!B41 -> 520 | C39: ='UD2 Scenarios'!C41 -> 105 | D39: ='UD2 Scenarios'!D41 -> 21 | E39: ='UD2 Scenarios'!E41 -> 26 | F39: ='UD2 Scenarios'!F41 -> 0 | G39: ='UD2 Scenarios'!G41 -> 0 | H39: ='UD2 Scenarios'!H41 -> 0 | I39: ='UD2 Scenarios'!I41 -> 0 | J39: ='UD2 Scenarios'!J41 -> 672 | K39: ='UD2 Scenarios'!L41 -> 120 | L39: ='UD2 Scenarios'!M41 -> 0 | M39: ='UD2 Scenarios'!N41 -> 0 | N39: ='UD2 Scenarios'!O41 -> 123 | O39: ='UD2 Scenarios'!P41 -> 66 | P39: ='UD2 Scenarios'!Q41 -> 240 | Q39: ='UD2 Scenarios'!R41 -> 0 | R39: ='UD2 Scenarios'!S41 -> 0 | S39: ='UD2 Scenarios'!T41 -> 549 | T39: ='UD2 Scenarios'!U41 -> 779 | U39: ='UD2 Scenarios'!W41 -> 5405.72 | V39: ='UD2 Scenarios'!AB41 -> 2385 | W39: ='UD2 Scenarios'!AI41 -> 4733.72 | X39: ='UD2 Scenarios'!AU41 -> 2348.72 | Y39: ='UD2 Scenarios'!AV41 -> 2282.72 | Z39: ='UD2 Scenarios'!AW41 -> 2159.72 | AA39: ='UD2 Scenarios'!AX41 -> 1919.72 | AB39: ='UD2 Scenarios'!AY41 -> 1799.72 | AC39: ='UD2 Scenarios'!AZ41 -> 1569.72 | AD39: ='UD2 Scenarios'!BB41 -> 4573.246892 | AE39: ='UD2 Scenarios'!BC41 -> 2060.64 | AF39: ='UD2 Scenarios'!BD41 -> 63.7626 | AG39: ='UD2 Scenarios'!BE41 -> 118.8303 | AH39: ='UD2 Scenarios'!BF41 -> 207.36 | AI39: ='UD2 Scenarios'!BG41 -> 103.68 | AJ39: ='UD2 Scenarios'!BH41 -> 222.203 | AK39: ='UD2 Scenarios'!BI41 -> 493.6329 | AL39: ='UD2 Scenarios'!BK41 -> 4573.246892 | AM39: ='UD2 Scenarios'!BL41 -> 2512.606892 | AN39: ='UD2 Scenarios'!BM41 -> 2448.844292 | AO39: ='UD2 Scenarios'!BN41 -> 2330.013992 | AP39: ='UD2 Scenarios'!BO41 -> 2122.653992 | AQ39: ='UD2 Scenarios'!BP41 -> 2018.973992 | AR39: ='UD2 Scenarios'!BQ41 -> 1796.770992 | AS39: 640 | AT39: 105 | AU39: 21 | AV39: 149 | AW39: 66 | AX39: 240 | AY39: 0 | AZ39: 0 | BA39: 1221 | BB39: 1451
A40: ='UD2 Scenarios'!A42 -> 2050 | B40: ='UD2 Scenarios'!B42 -> 520 | C40: ='UD2 Scenarios'!C42 -> 105 | D40: ='UD2 Scenarios'!D42 -> 21 | E40: ='UD2 Scenarios'!E42 -> 26 | F40: ='UD2 Scenarios'!F42 -> 0 | G40: ='UD2 Scenarios'!G42 -> 0 | H40: ='UD2 Scenarios'!H42 -> 0 | I40: ='UD2 Scenarios'!I42 -> 0 | J40: ='UD2 Scenarios'!J42 -> 672 | K40: ='UD2 Scenarios'!L42 -> 120 | L40: ='UD2 Scenarios'!M42 -> 0 | M40: ='UD2 Scenarios'!N42 -> 0 | N40: ='UD2 Scenarios'!O42 -> 123 | O40: ='UD2 Scenarios'!P42 -> 66 | P40: ='UD2 Scenarios'!Q42 -> 240 | Q40: ='UD2 Scenarios'!R42 -> 0 | R40: ='UD2 Scenarios'!S42 -> 0 | S40: ='UD2 Scenarios'!T42 -> 549 | T40: ='UD2 Scenarios'!U42 -> 819 | U40: ='UD2 Scenarios'!W42 -> 5454.12 | V40: ='UD2 Scenarios'!AB42 -> 2450 | W40: ='UD2 Scenarios'!AI42 -> 4782.12 | X40: ='UD2 Scenarios'!AU42 -> 2332.12 | Y40: ='UD2 Scenarios'!AV42 -> 2266.12 | Z40: ='UD2 Scenarios'!AW42 -> 2143.12 | AA40: ='UD2 Scenarios'!AX42 -> 1903.12 | AB40: ='UD2 Scenarios'!AY42 -> 1783.12 | AC40: ='UD2 Scenarios'!AZ42 -> 1513.12 | AD40: ='UD2 Scenarios'!BB42 -> 4620.006132 | AE40: ='UD2 Scenarios'!BC42 -> 2116.8 | AF40: ='UD2 Scenarios'!BD42 -> 63.7626 | AG40: ='UD2 Scenarios'!BE42 -> 118.8303 | AH40: ='UD2 Scenarios'!BF42 -> 207.36 | AI40: ='UD2 Scenarios'!BG42 -> 103.68 | AJ40: ='UD2 Scenarios'!BH42 -> 260.847 | AK40: ='UD2 Scenarios'!BI42 -> 493.6329 | AL40: ='UD2 Scenarios'!BK42 -> 4620.006132 | AM40: ='UD2 Scenarios'!BL42 -> 2503.206132 | AN40: ='UD2 Scenarios'!BM42 -> 2439.443532 | AO40: ='UD2 Scenarios'!BN42 -> 2320.613232 | AP40: ='UD2 Scenarios'!BO42 -> 2113.253232 | AQ40: ='UD2 Scenarios'!BP42 -> 2009.573232 | AR40: ='UD2 Scenarios'!BQ42 -> 1748.726232 | AS40: 640 | AT40: 105 | AU40: 21 | AV40: 149 | AW40: 66 | AX40: 240 | AY40: 0 | AZ40: 0 | BA40: 1221 | BB40: 1491

Sheet TNC Scenarios (hidden)
B2: 1 | C2: 2 | D2: 3 | E2: 4 | F2: 5 | G2: 6 | H2: 7 | I2: 8 | J2: 9 | K2: 10 | L2: 11 | M2: 12 | N2: 13 | O2: 14 | P2: 15 | Q2: 16 | R2: 17 | S2: 18 | T2: 19 | U2: 20 | V2: 21 | W2: 22 | X2: 23 | Y2: 24 | Z2: 25 | AA2: 26 | AB2: 27 | AC2: 28 | AD2: 29 | AE2: 30 | AF2: 31 | AG2: 32 | AH2: 33 | AI2: 34 | AJ2: 35 | AK2: 36 | AL2: 37 | AM2: 38 | AN2: 39 | AO2: 40 | AP2: 41 | AQ2: 42 | AR2: 43 | AS2: 44 | AT2: 45 | AU2: 46 | AV2: 47 | AW2: 48 | AX2: 49 | AY2: 50 | AZ2: 51 | BA2: 52 | BB2: 53 | BC2: 54 | BD2: 55 | BE2: 56 | BF2: 57 | BG2: 58 | BH2: 59 | BI2: 60 | BJ2: 61 | BK2: 62 | BL2: 63 | BM2: 64 | BN2: 65 | BO2: 66 | BP2: 67 | BQ2: 68 | BR2: 69 | BS2: 70 | BT2: 71
W3: Demand-Side | AA3: Data for modelling, GWh | AI3: BAU-Existing RE | AM3: J column-EE | AN3: Projected | AT3: bau | AU3: ee | AV3: wind | AW3: pv | AX3: wte | AY3: bag | AZ3: cum | BK3: bau | BL3: bau-ee | BM3: bau-ee-wind | BN3: $an-pv | BO3: wte | BP3: bag | BQ3: cum
A4: TNC | B4: Existing RE | C4: Existing RE | D4: Existing RE | E4: Existing RE | F4: Existing RE | G4: Existing RE | H4: Existing RE | I4: Existing RE | J4: Existing RE | L4: Projected RE | M4: Projected RE | N4: Projected RE | O4: Projected RE | P4: Projected RE | Q4: Projected RE | R4: Projected RE | S4: Projected RE | T4: Projected RE | U4: Projected RE | W4: Model | X4: EE | AH4: (Actual GHG baseline) | AM4: Scenario | AN4: RE | AO4: RE/(BAU-EE) | AP4: Additional RE, ARE | AT4: Projected to Grid | AU4: (ABE) | AV4: (ABEW) | AW4: (ABEWPV) | AX4: ABE2 | AY4: ABE3 | AZ4: ABE4 | BC4: Calculating separate emission reductions, GgCO2e | BL4: Equivalent in the form of wedges, GgCO2e
A5: Year | B5: Biomass (bagasse) | C5: Hydro | D5: LFG | E5: Solar PV | F5: Wind | G5: WTE | H5: Ocean | I5: Other Sources | J5: Total Existing RE | L5: Biomass Total | M5: Hydro Total | N5: LPG Total | O5: Solar PV Total | P5: Wind Total | Q5: WTE Total | R5: Ocean Total | S5: Other Sources | T5: Total RE Project 2030 | U5: Total RE Project 2050 | W5: BAU (without existing RE) | X5: EE | Z5: Year | AA5: Model-BAU | AB5: EE | AC5: M_BAU-EE | AD5: EE/BAU% | AF5: Existing RE, GWh | AG5: AB/AG% | AI5: AB | AK5: BAU-EE | AM5: AB-EE | AN5: RE 2030 | AO5: % | AP5: Add RE 2030> | AQ5: Total RE | AR5: %total | AS5: Year | AT5: BAU: AB | AU5: Sc1: AB-EE | AV5: Sc2: ABE-Wind | AW5: Sc3: ABEW-PV | AX5: Sc4: ABE Wind-PV-WTE | AY5: Sc5: ABE2-BAG | AZ5: Sc6: ABE3-AddRE | BA5: Year | BB5: BAU: AB | BC5: Sc1: EE | BD5: Sc2: Wind | BE5: Sc3: PV | BF5: Sc4: WTE | BG5: Sc5: BAG | BH5: Sc6: AddRE | BI5: Supply side | BJ5: Year | BK5: BAU: AB | BL5: Sc1: ABE | BM5: Sc2: ABEW | BN5: Sc3: ABEWPV | BO5: Sc4: ABE2 | BP5: Sc5: ABE3 | BQ5: Sc6: ABE4
A6: 2014 | B6: ='6. TNC Assumptions'!B6 -> 456.2 | C6: ='6. TNC Assumptions'!C6 -> 90.8 | D6: ='6. TNC Assumptions'!D6 -> 21.3 | E6: ='6. TNC Assumptions'!E6 -> 24.6 | F6: ='6. TNC Assumptions'!F6 -> 3.2 | G6: ='6. TNC Assumptions'!G6 -> 0 | H6: ='6. TNC Assumptions'!H6 -> 0 | I6: ='6. TNC Assumptions'!I6 -> 0 | J6: =SUM(B6:E6) -> 592.9 | L6: ='6. TNC Assumptions'!AA6 -> 0 | M6: ='6. TNC Assumptions'!M6 -> 0 | N6: ='6. TNC Assumptions'!L6 -> 0 | O6: ='6. TNC Assumptions'!X6 -> 0 | P6: ='6. TNC Assumptions'!Q6 -> 0 | Q6: ='6. TNC Assumptions'!Y6 -> 0 | R6: ='6. TNC Assumptions'!Z6 -> 0 | S6: ='6. TNC Assumptions'!AB6 -> 0 | T6: 0 | U6: ='6. TNC Assumptions'!AE6 -> 0 | W6: 3019 | X6: 0 | Z6: 2014 | AA6: ='6. TNC Assumptions'!AG6 -> 3019 | AB6: ='6. TNC Assumptions'!AH6 -> 0 | AC6: =AA6-AB6 -> 3019 | AD6: =AB6/AA6% -> 0 | AF6: ='6. TNC Assumptions'!J6 -> 596.1 | AG6: =AF6/AK6% -> 19.74494866 | AI6: =AA6-AF6 -> 2422.9 | AK6: =AA6-AB6 -> 3019 | AM6: =AI6-AB6 -> 2422.9 | AN6: ='6. TNC Assumptions'!AC6 -> 0 | AO6: =AN6/AK6% -> 0 | AP6: ='6. TNC Assumptions'!AD6 -> 0 | AQ6: =AN6+AP6 -> 0 | AR6: =AQ6/AK6% -> 0 | AS6: 2014 | AT6: =AI6 -> 2422.9 | AU6: =AM6 -> 2422.9 | AV6: =AU6-'6. TNC Assumptions'!Q6 -> 2422.9 | AW6: =AV6-'6. TNC Assumptions'!X6 -> 2422.9 | AX6: =AW6-'6. TNC Assumptions'!Y6 -> 2422.9 | AY6: =AX6-'6. TNC Assumptions'!AA6 -> 2422.9 | AZ6: =AY6-AP6 -> 2422.9 | BA6: 2014 | BB6: =AT6*'5. TNC Parameters'!$G$5 -> 2340.76369 | BC6: =AB6*'5. TNC Parameters'!$G$9 -> 0 | BD6: ='6. TNC Assumptions'!Q6*'5. TNC Parameters'!$G$5 -> 0 | BE6: ='6. TNC Assumptions'!X6*'5. TNC Parameters'!$G$5 -> 0 | BF6: ='6. TNC Assumptions'!Y6*'5. TNC Parameters'!$G$9 -> 0 | BG6: ='6. TNC Assumptions'!AA6*'5. TNC Parameters'!$G$10 -> 0 | BH6: =AP6*'5. TNC Parameters'!$G$7 -> 0 | BJ6: 2014 | BK6: =AT6*'5. TNC Parameters'!$G$5 -> 2340.76369 | BL6: =BB6-BC6 -> 2340.76369 | BM6: =BL6-BD6 -> 2340.76369 | BN6: =BM6-BE6 -> 2340.76369 | BO6: =BN6-BF6 -> 2340.76369 | BP6: =BO6-BG6 -> 2340.76369 | BQ6: =BP6-BH6 -> 2340.76369
A7: =A6+1 -> 2015 | B7: ='6. TNC Assumptions'!B7 -> 509.8 | C7: ='6. TNC Assumptions'!C7 -> 121.9 | D7: ='6. TNC Assumptions'!D7 -> 20.4 | E7: ='6. TNC Assumptions'!E7 -> 25.9 | F7: ='6. TNC Assumptions'!F7 -> 2.7 | G7: ='6. TNC Assumptions'!G7 -> 0 | H7: ='6. TNC Assumptions'!H7 -> 0 | I7: ='6. TNC Assumptions'!I7 -> 0 | J7: 678 | L7: ='6. TNC Assumptions'!AA7 -> 0 | M7: ='6. TNC Assumptions'!M7 -> 0 | N7: ='6. TNC Assumptions'!L7 -> 0 | O7: ='6. TNC Assumptions'!X7 -> 0 | P7: ='6. TNC Assumptions'!Q7 -> 0 | Q7: ='6. TNC Assumptions'!Y7 -> 0 | R7: ='6. TNC Assumptions'!Z7 -> 0 | S7: ='6. TNC Assumptions'!AB7 -> 0 | T7: ='6. TNC Assumptions'!AC7 -> 0 | U7: ='6. TNC Assumptions'!AE7 -> 0 | W7: 3138 | X7: 33 | Z7: =Z6+1 -> 2015 | AA7: ='6. TNC Assumptions'!AG7 -> 3138 | AB7: ='6. TNC Assumptions'!AH7 -> 33 | AC7: =AA7-AB7 -> 3105 | AD7: 1.051625239 | AF7: ='6. TNC Assumptions'!J7 -> 680.7 | AG7: =AF7/AK7% -> 21.92270531 | AI7: 2457.3 | AK7: 3105 | AM7: 2424.3 | AN7: ='6. TNC Assumptions'!AC7 -> 0 | AO7: 0 | AP7: ='6. TNC Assumptions'!AD7 -> 0 | AQ7: 0 | AR7: 0 | AS7: =AS6+1 -> 2015 | AT7: 2457.3 | AU7: 2424.3 | AV7: =AU7-'6. TNC Assumptions'!Q7 -> 2424.3 | AW7: =AV7-'6. TNC Assumptions'!X7 -> 2424.3 | AX7: =AW7-'6. TNC Assumptions'!Y7 -> 2424.3 | AY7: =AX7-'6. TNC Assumptions'!AA7 -> 2424.3 | AZ7: 2424.3 | BA7: =BA6+1 -> 2015 | BB7: =AT7*'5. TNC Parameters'!$G$5 -> 2373.99753 | BC7: =AB7*'5. TNC Parameters'!$G$9 -> 30.195 | BD7: ='6. TNC Assumptions'!Q7*'5. TNC Parameters'!$G$5 -> 0 | BE7: ='6. TNC Assumptions'!X7*'5. TNC Parameters'!$G$5 -> 0 | BF7: ='6. TNC Assumptions'!Y7*'5. TNC Parameters'!$G$9 -> 0 | BG7: ='6. TNC Assumptions'!AA7*'5. TNC Parameters'!$G$10 -> 0 | BH7: =AP7*'5. TNC Parameters'!$G$7 -> 0 | BJ7: =BJ6+1 -> 2015 | BK7: =BB7 -> 2373.99753 | BL7: =BB7-BC7 -> 2343.80253 | BM7: =BL7-BD7 -> 2343.80253 | BN7: =BM7-BE7 -> 2343.80253 | BO7: =BN7-BF7 -> 2343.80253 | BP7: =BO7-BG7 -> 2343.80253 | BQ7: =BP7-BH7 -> 2343.80253
A8: =A7+1 -> 2016 | B8: ='6. TNC Assumptions'!B8 -> 497 | C8: ='6. TNC Assumptions'!C8 -> 99.5 | D8: ='6. TNC Assumptions'!D8 -> 18.7 | E8: ='6. TNC Assumptions'!E8 -> 30.3 | F8: ='6. TNC Assumptions'!F8 -> 18 | G8: ='6. TNC Assumptions'!G8 -> 0 | H8: ='6. TNC Assumptions'!H8 -> 0 | I8: ='6. TNC Assumptions'!I8 -> 0 | J8: 645.5 | L8: ='6. TNC Assumptions'!AA8 -> 0 | M8: ='6. TNC Assumptions'!M8 -> 0 | N8: ='6. TNC Assumptions'!L8 -> 0 | O8: ='6. TNC Assumptions'!X8 -> 0 | P8: ='6. TNC Assumptions'!Q8 -> 0 | Q8: ='6. TNC Assumptions'!Y8 -> 0 | R8: ='6. TNC Assumptions'!Z8 -> 0 | S8: ='6. TNC Assumptions'!AB8 -> 0 | T8: ='6. TNC Assumptions'!AC8 -> 0 | U8: ='6. TNC Assumptions'!AE8 -> 0 | W8: 3276 | X8: 73.6 | Z8: =Z7+1 -> 2016 | AA8: ='6. TNC Assumptions'!AG8 -> 3276 | AB8: ='6. TNC Assumptions'!AH8 -> 73.6 | AC8: 3202.4 | AD8: 2.246642247 | AF8: ='6. TNC Assumptions'!J8 -> 663.5 | AG8: 20.71883587 | AI8: 2612.5 | AK8: 3202.4 | AM8: 2538.9 | AN8: ='6. TNC Assumptions'!AC8 -> 0 | AO8: 0 | AP8: ='6. TNC Assumptions'!AD8 -> 0 | AQ8: 0 | AR8: 0 | AS8: =AS7+1 -> 2016 | AT8: 2612.5 | AU8: 2538.9 | AV8: =AU8-'6. TNC Assumptions'!Q8 -> 2538.9 | AW8: =AV8-'6. TNC Assumptions'!X8 -> 2538.9 | AX8: =AW8-'6. TNC Assumptions'!Y8 -> 2538.9 | AY8: =AX8-'6. TNC Assumptions'!AA8 -> 2538.9 | AZ8: 2538.9 | BA8: =BA7+1 -> 2016 | BB8: =AT8*'5. TNC Parameters'!$G$5 -> 2523.93625 | BC8: =AB8*'5. TNC Parameters'!$G$9 -> 67.344 | BD8: ='6. TNC Assumptions'!Q8*'5. TNC Parameters'!$G$5 -> 0 | BE8: ='6. TNC Assumptions'!X8*'5. TNC Parameters'!$G$5 -> 0 | BF8: ='6. TNC Assumptions'!Y8*'5. TNC Parameters'!$G$9 -> 0 | BG8: ='6. TNC Assumptions'!AA8*'5. TNC Parameters'!$G$10 -> 0 | BH8: =AP8*'5. TNC Parameters'!$G$7 -> 0 | BJ8: =BJ7+1 -> 2016 | BK8: 2523.93625 | BL8: 2456.59225 | BM8: 2456.59225 | BN8: 2456.59225 | BO8: 2456.59225 | BP8: 2456.59225 | BQ8: 2456.59225
A9: 2017 | B9: ='6. TNC Assumptions'!B9 -> 520 | C9: ='6. TNC Assumptions'!C9 -> 105 | D9: ='6. TNC Assumptions'!D9 -> 21 | E9: ='6. TNC Assumptions'!E9 -> 30.3 | F9: ='6. TNC Assumptions'!F9 -> 18 | G9: ='6. TNC Assumptions'!G9 -> 0 | H9: ='6. TNC Assumptions'!H9 -> 0 | I9: ='6. TNC Assumptions'!I9 -> 0 | J9: 676.3 | L9: ='6. TNC Assumptions'!AA9 -> 0 | M9: ='6. TNC Assumptions'!M9 -> 0 | N9: ='6. TNC Assumptions'!L9 -> 0 | O9: ='6. TNC Assumptions'!X9 -> 16 | P9: ='6. TNC Assumptions'!Q9 -> 40 | Q9: ='6. TNC Assumptions'!Y9 -> 0 | R9: ='6. TNC Assumptions'!Z9 -> 0 | S9: ='6. TNC Assumptions'!AB9 -> 0 | T9: ='6. TNC Assumptions'!AC9 -> 56 | U9: ='6. TNC Assumptions'!AE9 -> 56 | W9: 3417 | X9: 114.2 | Z9: 2017 | AA9: ='6. TNC Assumptions'!AG9 -> 3417 | AB9: ='6. TNC Assumptions'!AH9 -> 114.2 | AC9: 3302.8 | AD9: 3.342112965 | AF9: ='6. TNC Assumptions'!J9 -> 694.3 | AG9: 21.02155747 | AI9: 2722.7 | AK9: 3302.8 | AM9: 2608.5 | AN9: ='6. TNC Assumptions'!AC9 -> 56 | AO9: 1.695531065 | AP9: ='6. TNC Assumptions'!AD9 -> 0 | AQ9: 56 | AR9: 1.695531065 | AS9: 2017 | AT9: 2722.7 | AU9: 2608.5 | AV9: =AU9-'6. TNC Assumptions'!Q9 -> 2568.5 | AW9: =AV9-'6. TNC Assumptions'!X9 -> 2552.5 | AX9: =AW9-'6. TNC Assumptions'!Y9 -> 2552.5 | AY9: =AX9-'6. TNC Assumptions'!AA9 -> 2552.5 | AZ9: 2552.5 | BA9: 2017 | BB9: =AT9*'5. TNC Parameters'!$G$5 -> 2630.40047 | BC9: =AB9*'5. TNC Parameters'!$G$9 -> 104.493 | BD9: ='6. TNC Assumptions'!Q9*'5. TNC Parameters'!$G$5 -> 38.644 | BE9: ='6. TNC Assumptions'!X9*'5. TNC Parameters'!$G$5 -> 15.4576 | BF9: ='6. TNC Assumptions'!Y9*'5. TNC Parameters'!$G$9 -> 0 | BG9: ='6. TNC Assumptions'!AA9*'5. TNC Parameters'!$G$10 -> 0 | BH9: =AP9*'5. TNC Parameters'!$G$7 -> 0 | BJ9: 2017 | BK9: 2630.40047 | BL9: 2525.90747 | BM9: 2487.26347 | BN9: 2471.80587 | BO9: 2471.80587 | BP9: 2471.80587 | BQ9: 2471.80587
